Workbook

Sheet COVER
C2: Cover
C4: NAVIGATION
C6: COMMENTS
C9: Bonneville Power Administration
C10: 6P Energy Conservation Standards Savings Model
C11: BATTERY CHARGERS
C13: Product Description
C14: DOE defines a battery charger as "a device that charges batteries for consumer products, including battery chargers embedded in other consumer products." (42 U.S.C. 6291(32)) California Energy Commission (CEC) regulations generally define a “battery charger system” as “a battery charger coupled with its batteries or battery chargers coupled with their batteries, which together are referred to as battery charger systems.” § 1602. This term is further defined to cover all rechargeable batteries or devices incorporating a rechargeable battery and the chargers used with them. CEC regulations provide that the test procedure to be applied to CEC rules for small battery charger systems is the DOE test procedure for battery chargers, 10 C.F.R. Part 430, Subpart B, App. Y (2011).
C16: Standard Compliance Year
C17: While this standard is only lawfully enforceable in the state of Oregon, this model depicts the impact on energy consumption in the Pacific Northwest (PNW) region. Because both Oregon and California, the two states with battery charger standards, constitute such a large portion of the west, their shared standard is likely to become a defacto standard for the PNW at large. Otherwise, manufacturers would need to maintain parallel compliant and non-compliant product lines, inventories, and distribution channels - a scenario believed to be costly and unlikely. The Oregon standards for battery charger systems found in ORS 469.233(19) are effective January 1, 2014, for sale of equipment and installation.
C19: Major changes from previous rulemaking
C20: No Previous Standards
C22: 6P Baseline
C23: Battery chargers were not included in the 6P baseline or savings estimate.
C25: Prepared By:
C26: Navigant Consulting | D26: Cadeo Group
C27: One Market Street | Spear Street Tower, Suite 1200 | D27: 840 First Street, Suite 300
C28: San Francisco, CA 94105 | D28: Washington, DC 20002

Sheet Definitions
C2: Definitions
C4: NAVIGATION
C6: COMMENTS
C9: Average Megawatt (aMW) | D9: The average number of megawatts over a specified time period
C10: Adjustment to 6P Baseline | D10: Adjustment to reconcile the 6P projected energy consumption and the modeled consumption calculated using best available data.
C11: Department of Energy Aggregate Lifecycle Savings | D11: Sum of 'Total First Year Savings'. This accounts for the cumulative savings in accordance with DOE Carbon Accounting Practices.
C12: Department of Energy Notice of Proposed Rulemaking (DOE NOPR) | D12: Federal Register notice detailing analyses conducted by the DOE to establish proposed energy conservation standards.
C13: Efficiency Level (EL) | D13: The discrete efficiency ratings of a product. Each efficiency level is associated with a different UEC.
C14: Efficiency Level Distribution | D14: The mix of various equipment efficiencies shipped in a given year.
C15: First Year Savings, by Year | D15: Savings due to the higher standards for units installed in a particular year. First year savings are highest following the standards compliance year while the stock turns over, after which first year savings are only attributed to shipments associated with new construction.
C16: Governmental Regulatory Impact Model (GRIM) | D16: The industry cash flow model used by DOE to assess impacts on manufacturers due to proposed energy conservation standards
C17: Installed Unit Energy Consumption (Installed UEC) | D17: The average annual unit energy consumption of all installed units in a given year.
C18: Market Unit Energy Consumption (Market UEC) | D18: The average annual unit energy consumption of units shipped in a given year.
C19: National Impact Analysis (NIA) | D19: The energy impact analysis used by DOE to calculate energy savings associated with each standard.
C20: Pre-case | D20: The case representing 6P baseline assumptions where energy consumption due to the product accounts for shipment and shipment UEC by year, without the affect of standards announced following the development of the 6P.
C21: Post-case | D21: The case in which standards are implemented. If the 6P already captured the analyzed standard, the post-case will be the same as the pre-case.
C22: Product Class | D22: Product classificiation determined by product configuration, size, application, location, and other attributes that contribute to consumer utility. DOE is allowed to establish different standards for each product class.
C23: Product Class Distribution | D23: Market share/mix of each product class shipped in a given year.
C24: Product Lifetime | D24: The average time a given class of products stays in the field as part of the installed stock. Some products will last longer (delaying replacement) whereas others will fail and be retired earlier (accelerating replacement), but the lifetime represents the market average.
C25: Shipments | D25: Sales of products. This may be presented by product class, efficiency distribution, or delineated by other metrics. Shipments may be attributed to new construction and/or replacements and retrofits.
C26: Sixth Power Plan (6P) | D26: The Pacific Northwest Resource Plan published by the Northwest Power Conservation Council. The 6P timeframe is from 2010-2015.
C27: Sixth Power Plan Baseline (6P Baseline) | D27: The 6P assumes equipment efficiency and shipment units in the region. When available, the 6P assumptions are the baseline for each standard impact analysis.
C28: Standard Compliance Year | D28: The year when the appliance standard goes into effect.
C29: Stock | D29: All units installed in previous years which remain in operation.
C30: Technical Support Document (TSD) | D30: TSDs are published by the DOE as companion documents to Federal Register notices (e.g., ANOPRs/preliminary analyses and NOPRs). The TSDs include technical detail that supports the notices. The final rule TSD includes the discussion of the Manufacturer Impact Analysis (MIA) and National Impact Analysis (NIA).
C31: Total First Year Savings through 2034 | D31: The sum of first year savings from 2010 through 2034
C32: Trial Standard Level (TSL) | D32: A proposed efficiency standard evaluated by DOE during the NOPR and Final Rule phase analyses. A TSL may specify different standard efficiency levels for each product class included in the rulemaking.

Sheet Comments
C2: Comments
C4: NAVIGATION
C7: Tab | D7: Comment
C8: Example | D8: Please use this space to document your comments as you review the model. We look forward to receiving your feedback. Thank you.

Sheet Navigation
C2: NAVIGATION
C4: COMMENTS
C7: INFORMATION TABS | E7: INPUT TABS | G7: UEC AND EFFICIENCY DEVELOPMENT | I7: UEC CALCULATIONS | K7: RESULTS | M7: AGGREGATE RESULTS | O7: CHARTS
C9: COVER | E9: PRODUCT CLASSES | G9: UEC Development
C11: DEFINITIONS | E11: EFFICIENCY LEVELS | G11: Efficiency Distribution
C13: COMMENTS | E13: STOCK, SALES, LIFE, COMPLIANCE | G13: SHIPMENTS MODELS
C15: NAVIGATION | E15: SATURATIONS | G15: Auto Marine RV | I15: Auto Marine RV - UEC | K15: Auto/Marine/RV - RESULTS
E17: POPULATIONS | G17: Cell Phones | I17: Cell Phones - UEC | K17: Cell Phones - RESULTS
E19: 6P UEC DEVELOPMENT | G19: Cordless Phones | I19: Cordless Phones - UEC | K19: Cordless Phones - RESULTS
G21: Personal Audio Electronics | I21: Personal Audio Electronics - UEC | K21: Personal Audio Electronics - RESULTS
G23: Emergency Systems | I23: Emergency Systems - UEC | K23: Emergency Systems - RESULTS
G25: Laptops | I25: Laptops - UEC | K25: Laptops - RESULTS
G27: Personal Care | I27: Personal Care - UEC | K27: Personal Care - RESULTS
G29: Personal Electric Vehicles | I29: Personal Electric Vehicles - UEC | K29: Personal Electric Vehicles - RESULTS
G31: Portable Electronics | I31: Portable Electronics - UEC | K31: Portable Electronics - RESULTS | M31: AGGREGATE RESULTS | O31: AGGREGATE RESULTS - CHARTS
G33: Portable Lighting | I33: Portable Lighting - UEC | K33: Portable Lighting - RESULTS
G35: Power Tools | I35: Power Tools - UEC | K35: Power Tools - RESULTS | M35: SUMMARY RESULTS
G37: Universal Battery Charger | I37: Universal Battery Charger - UEC | K37: Universal Battery Charger - RESULTS
G39: Golf Carts Electric Carts | I39: Golf Carts Electric Carts - UEC | K39: Golf Carts Electric Carts - RESULTS
G41: Emergency Backup Lighting | I41: Emergency Backup Lighting - UEC | K41: Emergency Backup Lighting - RESULTS
G43: Handheld Barcode Scanners | I43: Handheld Barcode Scanners - UEC | K43: Handheld Barcode Scanners - RESULTS
G45: Two-Way Radios | I45: Two-Way Radios - UEC | K45: Two-Way Radios - RESULTS
G47: Single Phase Lift Trucks | I47: Single Phase Lift Trucks - UEC | K47: Single Phase Lift- Trucks - RESULTS
G49: Three Phase Lift Trucks | I49: Three Phase Lift Trucks - UEC | K49: Three Phase Lift Trucks - RESULTS
G53: STOCK & SHIPMENTS TABLE | K53: COLLECTIVE - RESULTS
G55: SHIPMENTS CHART | K55: INCREMENTAL SAVINGS CHART
G57: STOCK CHART | K57: CUMULATIVE SAVINGS CHART

Sheet Product Classes
C2: Selection of Product Classes for Model
C4: NAVIGATION
C6: COMMENTS
C9: All Product Classes (Application) | D9: CEC Product Classes | E9: Representative PCs | F9: 6th Plan PCs | H9: Model PCs | I9: Rationale
C10: Auto Marine RV | D10: Small Charger Systems | E10: PC 1 | F10: N/A | H10: PC 1 | I10: All included
C11: Cell Phones | E11: PC 2 | F11: N/A | H11: PC 2 | I11: All included
C12: Cordless Phones | E12: PC 3 | F12: N/A | H12: PC 3 | I12: All included
C13: Personal Audio | E13: PC 4 | F13: N/A | H13: PC 4 | I13: All included
C14: Emergency Systems | E14: PC 5 | F14: N/A | H14: PC 5 | I14: All included
C15: Laptops | E15: PC 6 | F15: N/A | H15: PC 6 | I15: All included
C16: Personal Care | E16: PC 7 | F16: N/A | H16: PC 7 | I16: All included
C17: Personal Evs | E17: PC 8 | F17: N/A | H17: PC 8 | I17: All included
C18: Portable Electronics | E18: PC 9 | F18: N/A | H18: PC 9 | I18: All included
C19: Portable Lighting | E19: PC 10 | F19: N/A | H19: PC 10 | I19: All included
C20: Power Tools | E20: PC 11 | F20: N/A | H20: PC 11 | I20: All included
C21: Universal Chargers | E21: PC 12 | F21: N/A | H21: PC 12 | I21: All included
C22: Golf and Electric Carts | E22: PC 13 | F22: N/A | H22: PC 13 | I22: All included
C23: Emergency Lighting | D23: Small Non-Consumer Charger Systems | E23: PC 14 | F23: N/A | H23: PC 14 | I23: All included
C24: Barcode Scanners | E24: PC 15 | F24: N/A | H24: PC 15 | I24: All included
C25: Two-Way Radios | E25: PC 16 | F25: N/A | H25: PC 16 | I25: All included
C26: 1 Phase Lift Trucks | D26: Large Charger Systems | E26: PC 17 | F26: N/A | H26: PC 17 | I26: All included
C27: 3 Phase Lift Trucks | E27: PC 18 | F27: N/A | H27: PC 18 | I27: All included
C29: Sources | D29: 2011 California Energy Commision Staff Analysis of Battery Chargers and Self-Contained Lighting Controls -Table A-3: Design Life (page 34)
D30: Available at: http://www.energy.ca.gov/2011publications/CEC-400-2011-001/CEC-400-2011-001-SF.pdf

Sheet Efficiency Levels
C2: Efficiency Levels and Standards for Each Product Class
C4: NAVIGATION
C6: COMMENTS
C9: Compliance Year for Battery Charger Standards in Oregon | E9: 2014
D11: EL0 - Baseline Energy Use of Battery Charger Systems 1 | J11: EL1 - Compliant Energy Use of Battery Charger Systems 2
C13: Product Class | D13: Charge (W) | E13: Maintenance (W) | F13: No Battery (W) | G13: Percent at Peak (%) | H13: Annual Energy Consumption (kWh per Device) | J13: Charge (W) | K13: Maintenance (W) | L13: No Battery (W) | M13: Annual Energy Consumption (kWh per Device)
C14: ='Product Classes'!H10&" - "&OFFSET('Product Classes'!$C$9,MATCH('Product Classes'!H10,MODEL_PCS,0),0) -> PC 1 - Auto Marine RV | D14: 214 | E14: 41.9 | F14: 49.3 | G14: 0.21 | H14: 343.06 | J14: 118.1 | K14: 1.82 | L14: 0.3 | M14: 29.16
C15: ='Product Classes'!H11&" - "&OFFSET('Product Classes'!$C$9,MATCH('Product Classes'!H11,MODEL_PCS,0),0) -> PC 2 - Cell Phones | D15: 3.9 | E15: 0.5 | F15: 0.3 | G15: 0.28 | H15: 3.48 | J15: 2.8 | K15: 0.5 | L15: 0.3 | M15: 3.03
C16: ='Product Classes'!H12&" - "&OFFSET('Product Classes'!$C$9,MATCH('Product Classes'!H12,MODEL_PCS,0),0) -> PC 3 - Cordless Phones | D16: 2.7 | E16: 2.2 | F16: 1.7 | G16: 0.95 | H16: 19.46 | J16: 1.1 | K16: 0.6 | L16: 0.3 | M16: 6.06
C17: ='Product Classes'!H13&" - "&OFFSET('Product Classes'!$C$9,MATCH('Product Classes'!H13,MODEL_PCS,0),0) -> PC 4 - Personal Audio | D17: 2.1 | E17: 0.5 | F17: 0.1 | G17: 0.16 | H17: 2.5 | J17: 1.2 | K17: 0.5 | L17: 0.1 | M17: 2.01
C18: ='Product Classes'!H14&" - "&OFFSET('Product Classes'!$C$9,MATCH('Product Classes'!H14,MODEL_PCS,0),0) -> PC 5 - Emergency Systems | D18: 7 | E18: 2.9 | F18: 2.5 | G18: 1 | H18: 25.38 | J18: 4 | K18: 1.08 | L18: 0.3 | M18: 9.51
C19: ='Product Classes'!H15&" - "&OFFSET('Product Classes'!$C$9,MATCH('Product Classes'!H15,MODEL_PCS,0),0) -> PC 6 - Laptops | D19: 27.1 | E19: 3 | F19: 1.9 | G19: 0.32 | H19: 33.52 | J19: 24.6 | K19: 0.69 | L19: 0.3 | M19: 16.7
C20: ='Product Classes'!H16&" - "&OFFSET('Product Classes'!$C$9,MATCH('Product Classes'!H16,MODEL_PCS,0),0) -> PC 7 - Personal Care | D20: 1.2 | E20: 1 | F20: 0.9 | G20: 0.8 | H20: 4.15 | J20: 0.6 | K20: 0.6 | L20: 0.3 | M20: 2.34
C21: ='Product Classes'!H17&" - "&OFFSET('Product Classes'!$C$9,MATCH('Product Classes'!H17,MODEL_PCS,0),0) -> PC 8 - Personal Evs | D21: 230 | E21: 34.1 | F21: 33.9 | G21: 0.31 | H21: 931.17 | J21: 120 | K21: 2.22 | L21: 0.3 | M21: 394.33
C22: ='Product Classes'!H18&" - "&OFFSET('Product Classes'!$C$9,MATCH('Product Classes'!H18,MODEL_PCS,0),0) -> PC 9 - Portable Electronics | D22: 9.2 | E22: 2.5 | F22: 0.9 | G22: 0.06 | H22: 2.89 | J22: 8.4 | K22: 0.65 | L22: 0.3 | M22: 1.18
C23: ='Product Classes'!H19&" - "&OFFSET('Product Classes'!$C$9,MATCH('Product Classes'!H19,MODEL_PCS,0),0) -> PC 10 - Portable Lighting | D23: 1.8 | E23: 1.6 | F23: 0.4 | G23: 0.7 | H23: 13.98 | J23: 0.7 | K23: 0.61 | L23: 0.3 | M23: 5.36
C24: ='Product Classes'!H20&" - "&OFFSET('Product Classes'!$C$9,MATCH('Product Classes'!H20,MODEL_PCS,0),0) -> PC 11 - Power Tools | D24: 17.5 | E24: 3.5 | F24: 1.8 | G24: 0.3 | H24: 23.35 | J24: 14.7 | K24: 0.66 | L24: 0.3 | M24: 8.4
C25: ='Product Classes'!H21&" - "&OFFSET('Product Classes'!$C$9,MATCH('Product Classes'!H21,MODEL_PCS,0),0) -> PC 12 - Universal Chargers | D25: 7.1 | E25: 1.1 | F25: 0.9 | G25: 0.26 | H25: 8.16 | J25: 3.9 | K25: 0.61 | L25: 0.3 | M25: 4.23
C26: ='Product Classes'!H22&" - "&OFFSET('Product Classes'!$C$9,MATCH('Product Classes'!H22,MODEL_PCS,0),0) -> PC 13 - Golf and Electric Carts | D26: 620 | E26: 103 | F26: 1.6 | G26: 0.14 | H26: 2439.95 | J26: 485.7 | K26: 13.2 | L26: 0.3 | M26: 1632.33
C27: ='Product Classes'!H23&" - "&OFFSET('Product Classes'!$C$9,MATCH('Product Classes'!H23,MODEL_PCS,0),0) -> PC 14 - Emergency Lighting | D27: 2.2 | E27: 1.6 | F27: 1.6 | G27: 1 | H27: 13.99 | J27: 1 | K27: 0.62 | L27: 0.3 | M27: 5.44
C28: ='Product Classes'!H24&" - "&OFFSET('Product Classes'!$C$9,MATCH('Product Classes'!H24,MODEL_PCS,0),0) -> PC 15 - Barcode Scanners | D28: 11.2 | E28: 3 | F28: 0.2 | G28: 0.46 | H28: 26.59 | J28: 3.2 | K28: 0.61 | L28: 0.2 | M28: 6.92
C29: ='Product Classes'!H25&" - "&OFFSET('Product Classes'!$C$9,MATCH('Product Classes'!H25,MODEL_PCS,0),0) -> PC 16 - Two-Way Radios | D29: 5.3 | E29: 2 | F29: 0.9 | G29: 0.06 | H29: 18.09 | J29: 3.8 | K29: 0.61 | L29: 0.3 | M29: 9.23
C30: ='Product Classes'!H26&" - "&OFFSET('Product Classes'!$C$9,MATCH('Product Classes'!H26,MODEL_PCS,0),0) -> PC 17 - 1 Phase Lift Trucks | D30: 2000 | E30: 50 | F30: 50 | G30: 0.19 | H30: 8169 | J30: 1770 | K30: 36.4 | L30: 10 | M30: 7136.53
C31: ='Product Classes'!H27&" - "&OFFSET('Product Classes'!$C$9,MATCH('Product Classes'!H27,MODEL_PCS,0),0) -> PC 18 - 3 Phase Lift Trucks | D31: 5600 | E31: 88.5 | F31: 33.5 | G31: 1 | H31: 48038 | J31: 5111 | K31: 50.8 | L31: 10 | M31: 43839.52
C33: Sources | D33: 1. 2011 California Energy Commision Staff Analysis of Battery Chargers and Self-Contained Lighting Controls - Table A-5: Base line Energy Use (page 36)
D34: 2. 2011 California Energy Commision Staff Analysis of Battery Chargers and Self-Contained Lighting Controls - Table A-6: Compliant Energy Use (page 37)
D35: Available at: http://www.energy.ca.gov/2011publications/CEC-400-2011-001/CEC-400-2011-001-SF.pdf

Sheet Data by Building Type (hidden)
C2: Market and Usage Attributes by Building Type
C4: NAVIGATION
C7: Market Representation | D7: Single Family | E7: Multi-Family | F7: Manufactured Homes | G7: All Segments (TOTAL) | H7: Source
C8: Percent of Total Housing Units (PNW) | D8: 0.7198079355 | E8: 0.1747856712 | F8: 0.1054063933 | G8: =SUM(D8:F8) -> 1
C12: Market Penetration | D12: Single Family | E12: Multi-Family | F12: Manufactured Homes | G12: All Segments (AVERAGE) | H12: Source
C13: Clothes Dryer Market Penetration (PNW) | D13: =G13 -> 0.82 | E13: =G13 -> 0.82 | F13: =G13 -> 0.82 | G13: 0.82
C17: Fuel Allocation | D17: Single Family | E17: Multi-Family | F17: Manufactured Homes | G17: All Segments (WTD AVG) | H17: Source
C18: Electric (% of Segment) | D18: 0.95 | E18: 0.99 | F18: 0.95 | G18: =SUMPRODUCT($D$8:$F$8,$D$13:$F$13,D18:F18)/$G$13 -> 0.9569914268
C19: Gas (% of Segment) | D19: =1-D18 -> 0.05 | E19: 0.01 | F19: =1-F18 -> 0.05 | G19: =SUMPRODUCT($D$8:$F$8,$D$13:$F$13,D19:F19)/$G$13 -> 0.04300857315
C23: Usage Data | D23: Single Family | E23: Multi-Family | F23: Manufactured Homes | G23: All Segments (WTD AVG) | H23: Source
C24: Cycles per Year | D24: =(0.892*4.92)*365.25/7 -> 228.9929657 | E24: =(4.51*0.916)*365.25/7 -> 215.5580271 | F24: =(4.47*0.888)*365.25/7 -> 207.1155343 | G24: =SUMPRODUCT($D$8:$F$8,$D$13:$F$13,D24:F24)/$G$13 -> 224.3387098 | H24: RBSA 2012-Single Family/RBSA 2012-Manufactured Housing
C28: Product Data | D28: Single Family | E28: Multi-Family | F28: Manufactured Homes | G28: All Segments (AVERAGE) | H28: Source
C29: Dryer Capacity (cu.ft) | D29: =$G29 -> 7 | E29: 7 | F29: 7 | G29: 7 | H29: NW Council Clothes Washers Supply Curve
C30: Test Load Size (lbs/load) | D30: 8.45 | E30: 8.45 | F30: 8.45 | G30: 8.45 | H30: DOE TSD Chapter 5: average loads for standard-size units range from 3.8 lbs. to 13.7 lbs., with a mean value of 8.45 lbs
C31: Lifetime (years) | D31: 16 | E31: =$D31 -> 16 | F31: =$D31 -> 16 | G31: =SUMPRODUCT($D$8:$F$8,$D$13:$F$13,D31:F31)/$G$13 -> 16 | H31: DOE Residential Clothes Dryer NIA

Sheet Stock, Sales, Life, Compliance
C2: Stock, Sales, Life, and Compliance Rates
C4: NAVIGATION
C6: COMMENTS
D9: Stock and Sales of Battery Charger Systems 1 | L9: Design Life 2 | N9: Compliance 3
C11: Product Class | D11: Product Stock 2009 (million) | E11: Sales 2009 (million) | F11: CAGR* Sales 2010 | G11: CAGR* Sales 2013 | H11: Sales 2010 (million) | I11: Sales 2013 (million) | J11: Product Stock 2013 (million) | L11: Years | N11: % that meet standards
C12: ='Product Classes'!H10&" - "&OFFSET('Product Classes'!$C$9,MATCH('Product Classes'!H10,MODEL_PCS,0),0) -> PC 1 - Auto Marine RV | D12: 1.8 | E12: 0.18 | F12: 0.03 | G12: 0.03 | H12: 0.19 | I12: 0.2 | J12: 2.09 | L12: 10 | N12: 0
C13: ='Product Classes'!H11&" - "&OFFSET('Product Classes'!$C$9,MATCH('Product Classes'!H11,MODEL_PCS,0),0) -> PC 2 - Cell Phones | D13: 47.9 | E13: 28.27 | F13: 0.19 | G13: 0.02 | H13: 33.64 | I13: 41.65 | J13: 59.1 | L13: 2 | N13: 0.9
C14: ='Product Classes'!H12&" - "&OFFSET('Product Classes'!$C$9,MATCH('Product Classes'!H12,MODEL_PCS,0),0) -> PC 3 - Cordless Phones | D14: 20.5 | E14: 3.21 | F14: -0.1 | G14: -0.09 | H14: 2.89 | I14: 2.15 | J14: 13.3 | L14: 5 | N14: 0
C15: ='Product Classes'!H13&" - "&OFFSET('Product Classes'!$C$9,MATCH('Product Classes'!H13,MODEL_PCS,0),0) -> PC 4 - Personal Audio | D15: 29.8 | E15: 10.52 | F15: 0.12 | G15: 0.02 | H15: 11.78 | I15: 13.73 | J15: 31.6 | L15: 3 | N15: 0.9
C16: ='Product Classes'!H14&" - "&OFFSET('Product Classes'!$C$9,MATCH('Product Classes'!H14,MODEL_PCS,0),0) -> PC 5 - Emergency Systems | D16: 5.3 | E16: 1.3 | F16: 0 | G16: 0 | H16: 1.3 | I16: 1.3 | J16: 5.4 | L16: 7 | N16: 0.1
C17: ='Product Classes'!H15&" - "&OFFSET('Product Classes'!$C$9,MATCH('Product Classes'!H15,MODEL_PCS,0),0) -> PC 6 - Laptops | D17: 16 | E17: 4.57 | F17: 0.29 | G17: 0.12 | H17: 5.9 | I17: 9.54 | J17: 24.4 | L17: 4 | N17: 0.1
C18: ='Product Classes'!H16&" - "&OFFSET('Product Classes'!$C$9,MATCH('Product Classes'!H16,MODEL_PCS,0),0) -> PC 7 - Personal Care | D18: 8.7 | E18: 1.84 | F18: 0.04 | G18: 0.03 | H18: 1.91 | I18: 2.11 | J18: 9.68 | L18: 5 | N18: 0
C19: ='Product Classes'!H17&" - "&OFFSET('Product Classes'!$C$9,MATCH('Product Classes'!H17,MODEL_PCS,0),0) -> PC 8 - Personal Evs | D19: 0.1 | E19: 0.04 | F19: 0.18 | G19: 0.24 | H19: 0.05 | I19: 0.09 | J19: 0.22 | L19: 9.7 | N19: 0.1
C20: ='Product Classes'!H18&" - "&OFFSET('Product Classes'!$C$9,MATCH('Product Classes'!H18,MODEL_PCS,0),0) -> PC 9 - Portable Electronics | D20: 10.3 | E20: 2 | F20: 0.09 | G20: 0.18 | H20: 2.18 | I20: 3.31 | J20: 18.5 | L20: 5.2 | N20: 0.1
C21: ='Product Classes'!H19&" - "&OFFSET('Product Classes'!$C$9,MATCH('Product Classes'!H19,MODEL_PCS,0),0) -> PC 10 - Portable Lighting | D21: 1.2 | E21: 0.01 | F21: 0.01 | G21: 0.01 | H21: 0.01 | I21: 0.01 | J21: 1.2 | L21: 10 | N21: 0
C22: ='Product Classes'!H20&" - "&OFFSET('Product Classes'!$C$9,MATCH('Product Classes'!H20,MODEL_PCS,0),0) -> PC 11 - Power Tools | D22: 15.3 | E22: 2.87 | F22: 0.05 | G22: 0.05 | H22: 3.01 | I22: 3.49 | J22: 18.6 | L22: 6.5 | N22: 0.1
C23: ='Product Classes'!H21&" - "&OFFSET('Product Classes'!$C$9,MATCH('Product Classes'!H21,MODEL_PCS,0),0) -> PC 12 - Universal Chargers | D23: 0.9 | E23: 0.11 | F23: 0.03 | G23: 0.03 | H23: 0.11 | I23: 0.12 | J23: 1 | L23: 8 | N23: 0.5
C24: ='Product Classes'!H22&" - "&OFFSET('Product Classes'!$C$9,MATCH('Product Classes'!H22,MODEL_PCS,0),0) -> PC 13 - Golf and Electric Carts | D24: 0.175 | E24: 0.017 | F24: 0.16 | G24: 0.11 | H24: 0.02 | I24: 0.03 | J24: 0.248 | L24: 10 | N24: 0.5
C25: ='Product Classes'!H23&" - "&OFFSET('Product Classes'!$C$9,MATCH('Product Classes'!H23,MODEL_PCS,0),0) -> PC 14 - Emergency Lighting | D25: 7.9 | E25: 2 | F25: 0 | G25: 0 | H25: 2 | I25: 2 | J25: 7.85 | L25: 10 | N25: 0.5
C26: ='Product Classes'!H24&" - "&OFFSET('Product Classes'!$C$9,MATCH('Product Classes'!H24,MODEL_PCS,0),0) -> PC 15 - Barcode Scanners | D26: 0.26 | E26: 0.02 | F26: 0.06 | G26: 0.07 | H26: 0.02 | I26: 0.03 | J26: 0.32 | L26: 8 | N26: 0.5
C27: ='Product Classes'!H25&" - "&OFFSET('Product Classes'!$C$9,MATCH('Product Classes'!H25,MODEL_PCS,0),0) -> PC 16 - Two-Way Radios | D27: 0.6 | E27: 0.028 | F27: 0 | G27: 0 | H27: 0.03 | I27: 0.03 | J27: 0.6 | L27: 8 | N27: 0.5
C28: ='Product Classes'!H26&" - "&OFFSET('Product Classes'!$C$9,MATCH('Product Classes'!H26,MODEL_PCS,0),0) -> PC 17 - 1 Phase Lift Trucks | D28: 0.029 | E28: 0.002 | F28: 0.07 | G28: 0.01 | H28: 0 | I28: 0 | J28: 0.0298 | L28: 15 | N28: 0
C29: ='Product Classes'!H27&" - "&OFFSET('Product Classes'!$C$9,MATCH('Product Classes'!H27,MODEL_PCS,0),0) -> PC 18 - 3 Phase Lift Trucks | D29: 0.074 | E29: 0.005 | F29: 0.07 | G29: 0.01 | H29: 0.01 | I29: 0.01 | J29: 0.0754 | L29: 15 | N29: 0
D30: *Compound Annual Growth Rate
C32: Sources | D32: 1. 2011 California Energy Commision Staff Analysis of Battery Chargers and Self-Contained Lighting Controls - Table A-1: Stock and Sales (page 32)
D33: 2. 2011 California Energy Commision Staff Analysis of Battery Chargers and Self-Contained Lighting Controls - Table A-3: Design Life (page 34)
D34: 3. 2011 California Energy Commision Staff Analysis of Battery Chargers and Self-Contained Lighting Controls - Table A-2: Compliance Rates (page 33)
D35: Available at: http://www.energy.ca.gov/2011publications/CEC-400-2011-001/CEC-400-2011-001-SF.pdf

Sheet Saturations
C2: Saturations
C4: NAVIGATION
C6: COMMENTS
D9: 2009 | E9: 2013
C10: California Population | D10: 36961229 | E10: 38431393
C12: SOURCE: US Census: State & County QuickFacts (2010 Census) Available at: http://quickfacts.census.gov/qfd/states/06000.html
D16: CALIFORNIA STOCK | G16: SATURATION
C17: Product | D17: 2009 | E17: 2013 | G17: 2009 | H17: 2013
C18: PC 1 - Auto/Marine/RV | D18: ='Stock, Sales, Life, Compliance'!D12*1000000 -> 1800000 | E18: ='Stock, Sales, Life, Compliance'!J12*1000000 -> 2090000 | G18: =D18/D$10 -> 0.04869967933 | H18: =E18/E$10 -> 0.05438262412
C19: PC 2 - Cell Phones | D19: ='Stock, Sales, Life, Compliance'!D13*1000000 -> 47900000 | E19: ='Stock, Sales, Life, Compliance'!J13*1000000 -> 59100000 | G19: =D19/D$10 -> 1.295952578 | H19: =E19/E$10 -> 1.537805304
C20: PC 3 - Cordless Phones | D20: ='Stock, Sales, Life, Compliance'!D14*1000000 -> 20500000 | E20: ='Stock, Sales, Life, Compliance'!J14*1000000 -> 13300000 | G20: 0.5546352368 | H20: 0.3460712444
C21: PC 4 - Personal Audio Electronics | D21: ='Stock, Sales, Life, Compliance'!D15*1000000 -> 29800000 | E21: ='Stock, Sales, Life, Compliance'!J15*1000000 -> 31600000 | G21: 0.8062502467 | H21: 0.8222444604
C22: PC 5 - Emergency Systems | D22: ='Stock, Sales, Life, Compliance'!D16*1000000 -> 5300000 | E22: ='Stock, Sales, Life, Compliance'!J16*1000000 -> 5400000 | G22: 0.1433935003 | H22: 0.1405101293
C23: PC 6 - Laptops | D23: ='Stock, Sales, Life, Compliance'!D17*1000000 -> 16000000 | E23: ='Stock, Sales, Life, Compliance'!J17*1000000 -> 24400000 | G23: 0.4328860385 | H23: 0.6348976213
C24: PC 7 - Personal Care | D24: ='Stock, Sales, Life, Compliance'!D18*1000000 -> 8700000 | E24: ='Stock, Sales, Life, Compliance'!J18*1000000 -> 9680000 | G24: 0.2353817834 | H24: 0.251877417
C25: PC 8 - Personal Electric Vehicles | D25: ='Stock, Sales, Life, Compliance'!D19*1000000 -> 100000 | E25: ='Stock, Sales, Life, Compliance'!J19*1000000 -> 220000 | G25: 0.002705537741 | H25: 0.00572448675
C26: PC 9 - Portable Electronics | D26: ='Stock, Sales, Life, Compliance'!D20*1000000 -> 10300000 | E26: ='Stock, Sales, Life, Compliance'!J20*1000000 -> 18500000 | G26: 0.2786703873 | H26: 0.4813772949
C27: PC 10 - Portable Lighting | D27: ='Stock, Sales, Life, Compliance'!D21*1000000 -> 1200000 | E27: ='Stock, Sales, Life, Compliance'!J21*1000000 -> 1200000 | G27: 0.03246645289 | H27: 0.03122447318
C28: PC 11 - Power Tools | D28: ='Stock, Sales, Life, Compliance'!D22*1000000 -> 15300000 | E28: ='Stock, Sales, Life, Compliance'!J22*1000000 -> 18600000 | G28: 0.4139472743 | H28: 0.4839793343
C29: PC 12 - Universal Battery Charger | D29: ='Stock, Sales, Life, Compliance'!D23*1000000 -> 900000 | E29: ='Stock, Sales, Life, Compliance'!J23*1000000 -> 1000000 | G29: 0.02434983967 | H29: 0.02602039432
C30: PC 13 - Golf Cart/ Electric Carts | D30: ='Stock, Sales, Life, Compliance'!D24*1000000 -> 175000 | E30: ='Stock, Sales, Life, Compliance'!J24*1000000 -> 248000 | G30: 0.004734691046 | H30: 0.006453057791
C31: PC 14 - Emergency Backup Lighting | D31: ='Stock, Sales, Life, Compliance'!D25*1000000 -> 7900000 | E31: ='Stock, Sales, Life, Compliance'!J25*1000000 -> 7850000 | G31: 0.2137374815 | H31: 0.2042600954
C32: PC 15 - Handheld Barcode Scanners | D32: ='Stock, Sales, Life, Compliance'!D26*1000000 -> 260000 | E32: ='Stock, Sales, Life, Compliance'!J26*1000000 -> 320000 | G32: 0.007034398126 | H32: 0.008326526181
C33: PC 16 - Two-Way Radios | D33: ='Stock, Sales, Life, Compliance'!D27*1000000 -> 600000 | E33: ='Stock, Sales, Life, Compliance'!J27*1000000 -> 600000 | G33: 0.01623322644 | H33: 0.01561223659
C34: PC 17 - Single Phase Lift- Trucks | D34: ='Stock, Sales, Life, Compliance'!D28*1000000 -> 29000 | E34: ='Stock, Sales, Life, Compliance'!J28*1000000 -> 29800 | G34: 0.0007846059448 | H34: 0.0007754077506
C35: PC 18 - Three Phase Lift Trucks | D35: ='Stock, Sales, Life, Compliance'!D29*1000000 -> 74000 | E35: ='Stock, Sales, Life, Compliance'!J29*1000000 -> 75400 | G35: 0.002002097928 | H35: 0.001961937731

Sheet Populations
B2: COUNTY LEVEL POPULATIONS
B4: NAVIGATION
C7: County | D7: State | E7: 1980 | F7: 1981 | G7: 1982 | H7: 1983 | I7: 1984 | J7: 1985 | K7: 1986 | L7: 1987 | M7: 1988 | N7: 1989 | O7: 1990 | P7: 1991 | Q7: 1992 | R7: 1993 | S7: 1994 | T7: 1995 | U7: 1996 | V7: 1997 | W7: 1998 | X7: 1999 | Y7: 2000 | Z7: 2001 | AA7: 2002 | AB7: 2003 | AC7: 2004 | AD7: 2005 | AE7: 2006 | AF7: 2007 | AG7: 2008 | AH7: 2009 | AI7: 2010 | AJ7: 2011 | AK7: 2012 | AL7: 2013 | AM7: 2014 | AN7: 2015 | AO7: 2016 | AP7: 2017 | AQ7: 2018 | AR7: 2019 | AS7: 2020 | AT7: 2021 | AU7: 2022 | AV7: 2023 | AW7: 2024 | AX7: 2025 | AY7: 2026 | AZ7: 2027 | BA7: 2028 | BB7: 2029 | BC7: 2030 | BD7: 2031 | BE7: 2032 | BF7: 2033 | BG7: 2034
C8: Ada County, ID | D8: =RIGHT(C8,2) -> ID | E8: 173125 | F8: 177613 | G8: 180481 | H8: 182911 | I8: 186280 | J8: 189811 | K8: 191039 | L8: 192926 | M8: 195508 | N8: 200950 | O8: 207722 | P8: 216798 | Q8: 225266 | R8: 236477 | S8: 247225 | T8: 256860 | U8: 266290 | V8: 274325 | W8: 284946 | X8: 294292 | Y8: 303328 | Z8: 313896 | AA8: 321616 | AB8: 327393 | AC8: 334926 | AD8: 348755 | AE8: 363498 | AF8: 375368 | AG8: 382618 | AH8: 388577 | AI8: 393531 | AJ8: =FORECAST(AJ$7,$Z8:$AI8,$Z$7:$AI$7) -> 408272.3333 | AK8: =FORECAST(AK$7,$Z8:$AI8,$Z$7:$AI$7) -> 417954.9758 | AL8: 427637.6182 | AM8: 437320.2606 | AN8: 447002.903 | AO8: 456685.5455 | AP8: 466368.1879 | AQ8: 476050.8303 | AR8: 485733.4727 | AS8: 495416.1152 | AT8: 505098.7576 | AU8: 514781.4 | AV8: 524464.0424 | AW8: 534146.6848 | AX8: 543829.3273 | AY8: 553511.9697 | AZ8: 563194.6121 | BA8: =FORECAST(BA$7,$Z8:$AI8,$Z$7:$AI$7) -> 572877.2545 | BB8: 582559.897 | BC8: 592242.5394 | BD8: 601925.1818 | BE8: 611607.8242 | BF8: 621290.4667 | BG8: 630973.1091
C9: Adams County, ID | D9: ID | E9: 3347 | F9: 3276 | G9: 3237 | H9: 3315 | I9: 3413 | J9: 3372 | K9: 3380 | L9: 3196 | M9: 3321 | N9: 3223 | O9: 3257 | P9: 3306 | Q9: 3457 | R9: 3583 | S9: 3692 | T9: 3676 | U9: 3693 | V9: 3572 | W9: 3531 | X9: 3517 | Y9: 3477 | Z9: 3495 | AA9: 3559 | AB9: 3624 | AC9: 3693 | AD9: 3817 | AE9: 3788 | AF9: 3949 | AG9: 4021 | AH9: 4000 | AI9: 3953 | AJ9: =FORECAST(AJ$7,$Z9:$AI9,$Z$7:$AI$7) -> 4121 | AK9: 4181.2 | AL9: 4241.4 | AM9: 4301.6 | AN9: 4361.8 | AO9: 4422 | AP9: 4482.2 | AQ9: 4542.4 | AR9: 4602.6 | AS9: 4662.8 | AT9: 4723 | AU9: 4783.2 | AV9: 4843.4 | AW9: 4903.6 | AX9: 4963.8 | AY9: 5024 | AZ9: 5084.2 | BA9: 5144.4 | BB9: 5204.6 | BC9: 5264.8 | BD9: 5325 | BE9: 5385.2 | BF9: 5445.4 | BG9: 5505.6
C10: Bannock County, ID | D10: ID | E10: 65421 | F10: 66486 | G10: 67081 | H10: 67307 | I10: 67114 | J10: 67051 | K10: 67043 | L10: 66140 | M10: 65588 | N10: 65869 | O10: 66258 | P10: 67338 | Q10: 69173 | R10: 70770 | S10: 72468 | T10: 73603 | U10: 74026 | V10: 74635 | W10: 74864 | X10: 75527 | Y10: 75728 | Z10: 76296 | AA10: 76487 | AB10: 76312 | AC10: 76834 | AD10: 77419 | AE10: 78491 | AF10: 79338 | AG10: 80609 | AH10: 81994 | AI10: 83071 | AJ10: 83004.86667 | AK10: 83790.27879 | AL10: 84575.69091 | AM10: 85361.10303 | AN10: 86146.51515 | AO10: 86931.92727 | AP10: 87717.33939 | AQ10: 88502.75152 | AR10: 89288.16364 | AS10: 90073.57576 | AT10: 90858.98788 | AU10: 91644.4 | AV10: 92429.81212 | AW10: 93215.22424 | AX10: 94000.63636 | AY10: 94786.04848 | AZ10: 95571.46061 | BA10: 96356.87273 | BB10: 97142.28485 | BC10: 97927.69697 | BD10: 98713.10909 | BE10: 99498.52121 | BF10: 100283.9333 | BG10: 101069.3455
C11: Bear Lake County, ID | D11: ID | E11: 6931 | F11: 7138 | G11: 7385 | H11: 7311 | I11: 7089 | J11: 6896 | K11: 6645 | L11: 6347 | M11: 6065 | N11: 6096 | O11: 6082 | P11: 6094 | Q11: 6239 | R11: 6302 | S11: 6310 | T11: 6459 | U11: 6375 | V11: 6384 | W11: 6345 | X11: 6390 | Y11: 6424 | Z11: 6394 | AA11: 6219 | AB11: 6219 | AC11: 6170 | AD11: 6077 | AE11: 6071 | AF11: 6049 | AG11: 6027 | AH11: 6014 | AI11: 5971 | AJ11: 5902.066667 | AK11: 5862.242424 | AL11: 5822.418182 | AM11: 5782.593939 | AN11: 5742.769697 | AO11: 5702.945455 | AP11: 5663.121212 | AQ11: 5623.29697 | AR11: 5583.472727 | AS11: 5543.648485 | AT11: 5503.824242 | AU11: 5464 | AV11: 5424.175758 | AW11: 5384.351515 | AX11: 5344.527273 | AY11: 5304.70303 | AZ11: 5264.878788 | BA11: 5225.054545 | BB11: 5185.230303 | BC11: 5145.406061 | BD11: 5105.581818 | BE11: 5065.757576 | BF11: 5025.933333 | BG11: 4986.109091
C12: Benewah County, ID | D12: ID | E12: 8292 | F12: 8393 | G12: 8378 | H12: 8438 | I12: 8607 | J12: 8532 | K12: 8571 | L12: 8311 | M12: 7995 | N12: 7990 | O12: 7944 | P12: 8013 | Q12: 8084 | R12: 8277 | S12: 8566 | T12: 8795 | U12: 8943 | V12: 8991 | W12: 9116 | X12: 9092 | Y12: 9186 | Z12: 8968 | AA12: 8917 | AB12: 8901 | AC12: 8907 | AD12: 9053 | AE12: 9260 | AF12: 9296 | AG12: 9385 | AH12: 9286 | AI12: 9285 | AJ12: 9433.466667 | AK12: 9489.406061 | AL12: 9545.345455 | AM12: 9601.284848 | AN12: 9657.224242 | AO12: 9713.163636 | AP12: 9769.10303 | AQ12: 9825.042424 | AR12: 9880.981818 | AS12: 9936.921212 | AT12: 9992.860606 | AU12: 10048.8 | AV12: 10104.73939 | AW12: 10160.67879 | AX12: 10216.61818 | AY12: 10272.55758 | AZ12: 10328.49697 | BA12: 10384.43636 | BB12: 10440.37576 | BC12: 10496.31515 | BD12: 10552.25455 | BE12: 10608.19394 | BF12: 10664.13333 | BG12: 10720.07273
C13: Bingham County, ID | D13: ID | E13: 36489 | F13: 37131 | G13: 37516 | H13: 37746 | I13: 38349 | J13: 38290 | K13: 37970 | L13: 38160 | M13: 37858 | N13: 37584 | O13: 37603 | P13: 38360 | Q13: 39505 | R13: 40184 | S13: 40621 | T13: 40648 | U13: 40852 | V13: 41072 | W13: 41413 | X13: 41550 | Y13: 41753 | Z13: 42073 | AA13: 42101 | AB13: 42555 | AC13: 42702 | AD13: 43173 | AE13: 43396 | AF13: 43816 | AG13: 44414 | AH13: 45087 | AI13: 45769 | AJ13: 45742.8 | AK13: 46149.01818 | AL13: 46555.23636 | AM13: 46961.45455 | AN13: 47367.67273 | AO13: 47773.89091 | AP13: 48180.10909 | AQ13: 48586.32727 | AR13: 48992.54545 | AS13: 49398.76364 | AT13: 49804.98182 | AU13: 50211.2 | AV13: 50617.41818 | AW13: 51023.63636 | AX13: 51429.85455 | AY13: 51836.07273 | AZ13: 52242.29091 | BA13: 52648.50909 | BB13: 53054.72727 | BC13: 53460.94545 | BD13: 53867.16364 | BE13: 54273.38182 | BF13: 54679.6 | BG13: 55085.81818
C14: Blaine County, ID | D14: ID | E14: 9841 | F14: 10310 | G14: 11256 | H14: 11579 | I14: 11993 | J14: 12159 | K14: 12153 | L14: 12716 | M14: 12661 | N14: 12920 | O14: 13791 | P14: 14458 | Q14: 15081 | R14: 15669 | S14: 16501 | T14: 17108 | U14: 17707 | V14: 18081 | W14: 18265 | X14: 18521 | Y14: 19115 | Z14: 19755 | AA14: 20189 | AB14: 20557 | AC14: 20811 | AD14: 20897 | AE14: 21082 | AF14: 21169 | AG14: 21477 | AH14: 21590 | AI14: 21326 | AJ14: 21878.8 | AK14: 22059.43636 | AL14: 22240.07273 | AM14: 22420.70909 | AN14: 22601.34545 | AO14: 22781.98182 | AP14: 22962.61818 | AQ14: 23143.25455 | AR14: 23323.89091 | AS14: 23504.52727 | AT14: 23685.16364 | AU14: 23865.8 | AV14: 24046.43636 | AW14: 24227.07273 | AX14: 24407.70909 | AY14: 24588.34545 | AZ14: 24768.98182 | BA14: 24949.61818 | BB14: 25130.25455 | BC14: 25310.89091 | BD14: 25491.52727 | BE14: 25672.16364 | BF14: 25852.8 | BG14: 26033.43636
C15: Boise County, ID | D15: ID | E15: 2999 | F15: 3091 | G15: 3059 | H15: 2974 | I15: 3185 | J15: 3285 | K15: 3269 | L15: 3356 | M15: 3299 | N15: 3324 | O15: 3568 | P15: 3805 | Q15: 4147 | R15: 4553 | S15: 4847 | T15: 5184 | U15: 5543 | V15: 5816 | W15: 6005 | X15: 6344 | Y15: 6702 | Z15: 6733 | AA15: 6854 | AB15: 6977 | AC15: 7004 | AD15: 6981 | AE15: 7151 | AF15: 7229 | AG15: 7148 | AH15: 7051 | AI15: 7032 | AJ15: 7208.333333 | AK15: 7243.30303 | AL15: 7278.272727 | AM15: 7313.242424 | AN15: 7348.212121 | AO15: 7383.181818 | AP15: 7418.151515 | AQ15: 7453.121212 | AR15: 7488.090909 | AS15: 7523.060606 | AT15: 7558.030303 | AU15: 7593 | AV15: 7627.969697 | AW15: 7662.939394 | AX15: 7697.909091 | AY15: 7732.878788 | AZ15: 7767.848485 | BA15: 7802.818182 | BB15: 7837.787879 | BC15: 7872.757576 | BD15: 7907.727273 | BE15: 7942.69697 | BF15: 7977.666667 | BG15: 8012.636364
C16: Bonner County, ID | D16: ID | E16: 24163 | F16: 24821 | G16: 25137 | H16: 25695 | I16: 25999 | J16: 26458 | K16: 26289 | L16: 25700 | M16: 25500 | N16: 26130 | O16: 26767 | P16: 27959 | Q16: 28972 | R16: 30341 | S16: 31976 | T16: 33206 | U16: 34179 | V16: 34986 | W16: 35634 | X16: 36262 | Y16: 36950 | Z16: 36980 | AA16: 37634 | AB16: 38382 | AC16: 38836 | AD16: 39576 | AE16: 40127 | AF16: 40738 | AG16: 40966 | AH16: 40809 | AI16: 40915 | AJ16: 42056.86667 | AK16: 42522.42424 | AL16: 42987.98182 | AM16: 43453.53939 | AN16: 43919.09697 | AO16: 44384.65455 | AP16: 44850.21212 | AQ16: 45315.7697 | AR16: 45781.32727 | AS16: 46246.88485 | AT16: 46712.44242 | AU16: 47178 | AV16: 47643.55758 | AW16: 48109.11515 | AX16: 48574.67273 | AY16: 49040.2303 | AZ16: 49505.78788 | BA16: 49971.34545 | BB16: 50436.90303 | BC16: 50902.46061 | BD16: 51368.01818 | BE16: 51833.57576 | BF16: 52299.13333 | BG16: 52764.69091
C17: Bonneville County, ID | D17: ID | E17: 65980 | F17: 67096 | G17: 66865 | H17: 67260 | I17: 68066 | J17: 68630 | K17: 69346 | L17: 70434 | M17: 70809 | N17: 71295 | O17: 72608 | P17: 75033 | Q17: 77149 | R17: 78310 | S17: 79197 | T17: 79527 | U17: 79459 | V17: 80123 | W17: 80798 | X17: 81576 | Y17: 82968 | Z17: 83907 | AA17: 85060 | AB17: 86846 | AC17: 89514 | AD17: 91709 | AE17: 94756 | AF17: 97890 | AG17: 100811 | AH17: 103016 | AI17: 104592 | AJ17: 107472 | AK17: 109955.9818 | AL17: 112439.9636 | AM17: 114923.9455 | AN17: 117407.9273 | AO17: 119891.9091 | AP17: 122375.8909 | AQ17: 124859.8727 | AR17: 127343.8545 | AS17: 129827.8364 | AT17: 132311.8182 | AU17: 134795.8 | AV17: 137279.7818 | AW17: 139763.7636 | AX17: 142247.7455 | AY17: 144731.7273 | AZ17: 147215.7091 | BA17: 149699.6909 | BB17: 152183.6727 | BC17: 154667.6545 | BD17: 157151.6364 | BE17: 159635.6182 | BF17: 162119.6 | BG17: 164603.5818
C18: Boundary County, ID | D18: ID | E18: 7289 | F18: 7397 | G18: 7458 | H18: 7563 | I18: 8023 | J18: 7942 | K18: 7857 | L18: 7948 | M18: 8037 | N18: 8239 | O18: 8345 | P18: 8362 | Q18: 8590 | R18: 8917 | S18: 9147 | T18: 9468 | U18: 9596 | V18: 9633 | W18: 9589 | X18: 9721 | Y18: 9913 | Z18: 9816 | AA18: 9834 | AB18: 9960 | AC18: 10163 | AD18: 10303 | AE18: 10530 | AF18: 10754 | AG18: 10831 | AH18: 10819 | AI18: 11026 | AJ18: 11208.26667 | AK18: 11354.5697 | AL18: 11500.87273 | AM18: 11647.17576 | AN18: 11793.47879 | AO18: 11939.78182 | AP18: 12086.08485 | AQ18: 12232.38788 | AR18: 12378.69091 | AS18: 12524.99394 | AT18: 12671.29697 | AU18: 12817.6 | AV18: 12963.90303 | AW18: 13110.20606 | AX18: 13256.50909 | AY18: 13402.81212 | AZ18: 13549.11515 | BA18: 13695.41818 | BB18: 13841.72121 | BC18: 13988.02424 | BD18: 14134.32727 | BE18: 14280.6303 | BF18: 14426.93333 | BG18: 14573.23636
C19: Butte County, ID | D19: ID | E19: 3342 | F19: 3456 | G19: 3490 | H19: 3422 | I19: 3442 | J19: 3270 | K19: 3174 | L19: 3118 | M19: 2968 | N19: 2946 | O19: 2912 | P19: 2855 | Q19: 2928 | R19: 2974 | S19: 3038 | T19: 3017 | U19: 3023 | V19: 3002 | W19: 2935 | X19: 2892 | Y19: 2894 | Z19: 2853 | AA19: 2906 | AB19: 2842 | AC19: 2812 | AD19: 2825 | AE19: 2786 | AF19: 2838 | AG19: 2846 | AH19: 2835 | AI19: 2907 | AJ19: 2846.6 | AK19: 2846.890909 | AL19: 2847.181818 | AM19: 2847.472727 | AN19: 2847.763636 | AO19: 2848.054545 | AP19: 2848.345455 | AQ19: 2848.636364 | AR19: 2848.927273 | AS19: 2849.218182 | AT19: 2849.509091 | AU19: 2849.8 | AV19: 2850.090909 | AW19: 2850.381818 | AX19: 2850.672727 | AY19: 2850.963636 | AZ19: 2851.254545 | BA19: 2851.545455 | BB19: 2851.836364 | BC19: 2852.127273 | BD19: 2852.418182 | BE19: 2852.709091 | BF19: 2853 | BG19: 2853.290909
C20: Camas County, ID | D20: ID | E20: 818 | F20: 815 | G20: 804 | H20: 853 | I20: 803 | J20: 795 | K20: 827 | L20: 752 | M20: 731 | N20: 683 | O20: 739 | P20: 767 | Q20: 777 | R20: 785 | S20: 828 | T20: 893 | U20: 953 | V20: 923 | W20: 947 | X20: 1008 | Y20: 968 | Z20: 1000 | AA20: 1025 | AB20: 1029 | AC20: 1022 | AD20: 1069 | AE20: 1073 | AF20: 1103 | AG20: 1120 | AH20: 1133 | AI20: 1109 | AJ20: 1149.6 | AK20: 1164.381818 | AL20: 1179.163636 | AM20: 1193.945455 | AN20: 1208.727273 | AO20: 1223.509091 | AP20: 1238.290909 | AQ20: 1253.072727 | AR20: 1267.854545 | AS20: 1282.636364 | AT20: 1297.418182 | AU20: 1312.2 | AV20: 1326.981818 | AW20: 1341.763636 | AX20: 1356.545455 | AY20: 1371.327273 | AZ20: 1386.109091 | BA20: 1400.890909 | BB20: 1415.672727 | BC20: 1430.454545 | BD20: 1445.236364 | BE20: 1460.018182 | BF20: 1474.8 | BG20: 1489.581818
C21: Canyon County,ID | D21: ID | E21: 83756 | F21: 84590 | G21: 85537 | H21: 86246 | I21: 87079 | J21: 87815 | K21: 88458 | L21: 87587 | M21: 87675 | N21: 88798 | O21: 90676 | P21: 93983 | Q21: 97006 | R21: 101090 | S21: 105491 | T21: 109976 | U21: 113744 | V21: 118124 | W21: 122382 | X21: 126720 | Y21: 133082 | Z21: 139179 | AA21: 145160 | AB21: 151395 | AC21: 157130 | AD21: 163947 | AE21: 172188 | AF21: 179645 | AG21: 184996 | AH21: 187357 | AI21: 189428 | AJ21: 200089.5333 | AK21: 206098.0848 | AL21: 212106.6364 | AM21: 218115.1879 | AN21: 224123.7394 | AO21: 230132.2909 | AP21: 236140.8424 | AQ21: 242149.3939 | AR21: 248157.9455 | AS21: 254166.497 | AT21: 260175.0485 | AU21: 266183.6 | AV21: 272192.1515 | AW21: 278200.703 | AX21: 284209.2545 | AY21: 290217.8061 | AZ21: 296226.3576 | BA21: 302234.9091 | BB21: 308243.4606 | BC21: 314252.0121 | BD21: 320260.5636 | BE21: 326269.1152 | BF21: 332277.6667 | BG21: 338286.2182
C22: Caribou County, ID | D22: ID | E22: 8695 | F22: 8799 | G22: 8873 | H22: 8696 | I22: 8573 | J22: 8314 | K22: 7905 | L22: 7237 | M22: 7079 | N22: 7042 | O22: 6958 | P22: 7081 | Q22: 7120 | R22: 7244 | S22: 7225 | T22: 7290 | U22: 7371 | V22: 7286 | W22: 7411 | X22: 7287 | Y22: 7281 | Z22: 7326 | AA22: 7161 | AB22: 7105 | AC22: 7106 | AD22: 6963 | AE22: 6886 | AF22: 6873 | AG22: 6840 | AH22: 6922 | AI22: 6977 | AJ22: 6785.4 | AK22: 6743.490909 | AL22: 6701.581818 | AM22: 6659.672727 | AN22: 6617.763636 | AO22: 6575.854545 | AP22: =FORECAST(AP$7,$Z22:$AI22,$Z$7:$AI$7) -> 6533.945455 | AQ22: 6492.036364 | AR22: 6450.127273 | AS22: 6408.218182 | AT22: 6366.309091 | AU22: 6324.4 | AV22: 6282.490909 | AW22: 6240.581818 | AX22: 6198.672727 | AY22: 6156.763636 | AZ22: 6114.854545 | BA22: 6072.945455 | BB22: 6031.036364 | BC22: 5989.127273 | BD22: 5947.218182 | BE22: 5905.309091 | BF22: 5863.4 | BG22: 5821.490909
C23: Cassia County, ID | D23: ID | E23: 19427 | F23: 19802 | G23: 20066 | H23: 20343 | I23: 20483 | J23: 20315 | K23: 20145 | L23: 19863 | M23: 19705 | N23: 19447 | O23: 19601 | P23: 19747 | Q23: 20150 | R23: 20408 | S23: 20712 | T23: 20996 | U23: 21190 | V23: 21283 | W23: 21162 | X23: 21425 | Y23: 21393 | Z23: 21557 | AA23: 21504 | AB23: 21466 | AC23: 21323 | AD23: 21372 | AE23: 21281 | AF23: 21568 | AG23: 22134 | AH23: 22476 | AI23: 23088 | AJ23: 22595.8 | AK23: 22744.69091 | AL23: 22893.58182 | AM23: 23042.47273 | AN23: 23191.36364 | AO23: 23340.25455 | AP23: 23489.14545 | AQ23: 23638.03636 | AR23: 23786.92727 | AS23: 23935.81818 | AT23: 24084.70909 | AU23: 24233.6 | AV23: 24382.49091 | AW23: 24531.38182 | AX23: 24680.27273 | AY23: 24829.16364 | AZ23: 24978.05455 | BA23: 25126.94545 | BB23: 25275.83636 | BC23: 25424.72727 | BD23: 25573.61818 | BE23: 25722.50909 | BF23: 25871.4 | BG23: 26020.29091
C24: Clark County, ID | D24: ID | E24: 798 | F24: 800 | G24: 831 | H24: 832 | I24: 835 | J24: 801 | K24: 835 | L24: 812 | M24: 801 | N24: 784 | O24: 760 | P24: 779 | Q24: 835 | R24: 837 | S24: 871 | T24: 866 | U24: 858 | V24: 891 | W24: 948 | X24: 988 | Y24: 1024 | Z24: 965 | AA24: 948 | AB24: 892 | AC24: 923 | AD24: 925 | AE24: 947 | AF24: 948 | AG24: 981 | AH24: 961 | AI24: 988 | AJ24: 975.8 | AK24: 980.8909091 | AL24: 985.9818182 | AM24: 991.0727273 | AN24: 996.1636364 | AO24: 1001.254545 | AP24: 1006.345455 | AQ24: 1011.436364 | AR24: 1016.527273 | AS24: 1021.618182 | AT24: 1026.709091 | AU24: 1031.8 | AV24: 1036.890909 | AW24: 1041.981818 | AX24: 1047.072727 | AY24: 1052.163636 | AZ24: 1057.254545 | BA24: 1062.345455 | BB24: 1067.436364 | BC24: 1072.527273 | BD24: 1077.618182 | BE24: 1082.709091 | BF24: 1087.8 | BG24: 1092.890909
C25: Clearwater County, ID | D25: ID | E25: 10390 | F25: 10396 | G25: 10333 | H25: 10094 | I25: 10010 | J25: 9688 | K25: 9266 | L25: 9064 | M25: 8753 | N25: 8599 | O25: 8485 | P25: 8514 | Q25: 8594 | R25: 8640 | S25: 8896 | T25: 8982 | U25: 9173 | V25: 9099 | W25: 9049 | X25: 9033 | Y25: 8930 | Z25: 8689 | AA25: 8579 | AB25: 8596 | AC25: 8610 | AD25: 8659 | AE25: 8776 | AF25: 8788 | AG25: 8764 | AH25: 8761 | AI25: 8740 | AJ25: 8803.666667 | AK25: 8823.206061 | AL25: 8842.745455 | AM25: 8862.284848 | AN25: 8881.824242 | AO25: 8901.363636 | AP25: 8920.90303 | AQ25: 8940.442424 | AR25: 8959.981818 | AS25: 8979.521212 | AT25: 8999.060606 | AU25: 9018.6 | AV25: 9038.139394 | AW25: 9057.678788 | AX25: 9077.218182 | AY25: 9096.757576 | AZ25: 9116.29697 | BA25: 9135.836364 | BB25: 9155.375758 | BC25: 9174.915152 | BD25: 9194.454545 | BE25: 9213.993939 | BF25: 9233.533333 | BG25: 9253.072727
C26: Custer County, ID | D26: ID | E26: 3385 | F26: 3758 | G26: 5031 | H26: 5522 | I26: 5171 | J26: 5118 | K26: 4781 | L26: 4570 | M26: 4171 | N26: 4054 | O26: 4164 | P26: 4232 | Q26: 4104 | R26: 3922 | S26: 4067 | T26: 4409 | U26: 4552 | V26: 4466 | W26: 4321 | X26: 4336 | Y26: 4336 | Z26: 4223 | AA26: 4143 | AB26: 4116 | AC26: 4129 | AD26: 4084 | AE26: 4155 | AF26: 4200 | AG26: 4300 | AH26: 4363 | AI26: 4366 | AJ26: 4342.266667 | AK26: 4366.69697 | AL26: 4391.127273 | AM26: 4415.557576 | AN26: 4439.987879 | AO26: 4464.418182 | AP26: 4488.848485 | AQ26: 4513.278788 | AR26: 4537.709091 | AS26: 4562.139394 | AT26: 4586.569697 | AU26: 4611 | AV26: 4635.430303 | AW26: 4659.860606 | AX26: 4684.290909 | AY26: 4708.721212 | AZ26: 4733.151515 | BA26: 4757.581818 | BB26: 4782.012121 | BC26: 4806.442424 | BD26: 4830.872727 | BE26: 4855.30303 | BF26: 4879.733333 | BG26: 4904.163636
C27: Elmore County, ID | D27: ID | E27: 21565 | F27: 22139 | G27: 21849 | H27: 22339 | I27: 22084 | J27: 21764 | K27: 21592 | L27: 21341 | M27: 21220 | N27: 21271 | O27: 21301 | P27: 21041 | Q27: 21152 | R27: 23209 | S27: 23903 | T27: 25052 | U27: 25647 | V27: 27168 | W27: 28269 | X27: 28889 | Y27: 28610 | Z27: 27613 | AA27: 27047 | AB27: 25972 | AC27: 26355 | AD27: 25919 | AE27: 25927 | AF27: 26595 | AG27: 26930 | AH27: 26769 | AI27: 27123 | AJ27: 26597.06667 | AK27: 26591.98788 | AL27: 26586.90909 | AM27: 26581.8303 | AN27: 26576.75152 | AO27: 26571.67273 | AP27: 26566.59394 | AQ27: 26561.51515 | AR27: 26556.43636 | AS27: 26551.35758 | AT27: 26546.27879 | AU27: 26541.2 | AV27: 26536.12121 | AW27: 26531.04242 | AX27: 26525.96364 | AY27: 26520.88485 | AZ27: 26515.80606 | BA27: 26510.72727 | BB27: 26505.64848 | BC27: 26500.5697 | BD27: 26495.49091 | BE27: 26490.41212 | BF27: 26485.33333 | BG27: 26480.25455
C28: Franklin County, ID | D28: ID | E28: 8895 | F28: 9215 | G28: 9465 | H28: 9717 | I28: 9695 | J28: 9539 | K28: 9339 | L28: 9276 | M28: 9231 | N28: 9226 | O28: 9259 | P28: 9438 | Q28: 9505 | R28: 9785 | S28: 10068 | T28: 10192 | U28: 10481 | V28: 10772 | W28: 11050 | X28: 11233 | Y28: 11350 | Z28: 11463 | AA28: 11687 | AB28: 11718 | AC28: 11959 | AD28: 12079 | AE28: 12085 | AF28: 12277 | AG28: 12570 | AH28: 12757 | AI28: 12794 | AJ28: 12961.86667 | AK28: 13111.49697 | AL28: 13261.12727 | AM28: 13410.75758 | AN28: 13560.38788 | AO28: 13710.01818 | AP28: 13859.64848 | AQ28: 14009.27879 | AR28: 14158.90909 | AS28: 14308.53939 | AT28: 14458.1697 | AU28: 14607.8 | AV28: 14757.4303 | AW28: 14907.06061 | AX28: 15056.69091 | AY28: 15206.32121 | AZ28: 15355.95152 | BA28: 15505.58182 | BB28: 15655.21212 | BC28: 15804.84242 | BD28: 15954.47273 | BE28: 16104.10303 | BF28: 16253.73333 | BG28: 16403.36364
C29: Fremont County, ID | D29: ID | E29: 10813 | F29: 11047 | G29: 11080 | H29: 11182 | I29: 11030 | J29: 10856 | K29: 10958 | L29: 10788 | M29: 10885 | N29: 10935 | O29: 10939 | P29: 11179 | Q29: 11249 | R29: 11603 | S29: 11548 | T29: 11557 | U29: 11502 | V29: 11724 | W29: 11883 | X29: 11840 | Y29: 11769 | Z29: 11891 | AA29: 12029 | AB29: 12370 | AC29: 12640 | AD29: 12610 | AE29: 12770 | AF29: 13005 | AG29: 13112 | AH29: 13173 | AI29: 13251 | AJ29: 13525.53333 | AK29: 13678.33939 | AL29: 13831.14545 | AM29: 13983.95152 | AN29: 14136.75758 | AO29: 14289.56364 | AP29: 14442.3697 | AQ29: 14595.17576 | AR29: 14747.98182 | AS29: 14900.78788 | AT29: 15053.59394 | AU29: 15206.4 | AV29: 15359.20606 | AW29: 15512.01212 | AX29: 15664.81818 | AY29: 15817.62424 | AZ29: 15970.4303 | BA29: 16123.23636 | BB29: 16276.04242 | BC29: 16428.84848 | BD29: 16581.65455 | BE29: 16734.46061 | BF29: 16887.26667 | BG29: 17040.07273
C30: Gem County, ID | D30: ID | E30: 11972 | F30: 11933 | G30: 11787 | H30: 11670 | I30: 11898 | J30: 11789 | K30: 11604 | L30: 11414 | M30: 11543 | N30: 11527 | O30: 11937 | P30: 12268 | Q30: 12602 | R30: 13114 | S30: 13474 | T30: 13794 | U30: 14052 | V30: 14422 | W30: 14803 | X30: 15052 | Y30: 15215 | Z30: 15393 | AA30: 15488 | AB30: 15693 | AC30: 15925 | AD30: 16304 | AE30: 16632 | AF30: 16833 | AG30: 16941 | AH30: 16809 | AI30: 16675 | AJ30: 17271.86667 | AK30: 17454.15152 | AL30: 17636.43636 | AM30: 17818.72121 | AN30: 18001.00606 | AO30: 18183.29091 | AP30: 18365.57576 | AQ30: 18547.86061 | AR30: 18730.14545 | AS30: 18912.4303 | AT30: 19094.71515 | AU30: 19277 | AV30: 19459.28485 | AW30: 19641.5697 | AX30: 19823.85455 | AY30: 20006.13939 | AZ30: 20188.42424 | BA30: 20370.70909 | BB30: 20552.99394 | BC30: 20735.27879 | BD30: 20917.56364 | BE30: 21099.84848 | BF30: 21282.13333 | BG30: 21464.41818
C31: Gooding County, ID | D31: ID | E31: 11874 | F31: 12155 | G31: 12402 | H31: 12616 | I31: 12551 | J31: 12246 | K31: 12134 | L31: 11823 | M31: 11679 | N31: 11580 | O31: 11667 | P31: 11915 | Q31: 12159 | R31: 12487 | S31: 12724 | T31: 12987 | U31: 13392 | V31: 13741 | W31: 13854 | X31: 13970 | Y31: 14196 | Z31: 14215 | AA31: 14342 | AB31: 14483 | AC31: 14562 | AD31: 14614 | AE31: 14749 | AF31: 14963 | AG31: 15216 | AH31: 15270 | AI31: 15503 | AJ31: 15561.4 | AK31: 15701.34545 | AL31: 15841.29091 | AM31: 15981.23636 | AN31: 16121.18182 | AO31: 16261.12727 | AP31: 16401.07273 | AQ31: 16541.01818 | AR31: 16680.96364 | AS31: 16820.90909 | AT31: 16960.85455 | AU31: 17100.8 | AV31: 17240.74545 | AW31: 17380.69091 | AX31: 17520.63636 | AY31: 17660.58182 | AZ31: 17800.52727 | BA31: 17940.47273 | BB31: 18080.41818 | BC31: 18220.36364 | BD31: 18360.30909 | BE31: 18500.25455 | BF31: 18640.2 | BG31: 18780.14545
C32: Idaho County, ID | D32: ID | E32: 14769 | F32: 14909 | G32: 14865 | H32: 14591 | I32: 14618 | J32: 14386 | K32: 14099 | L32: 13835 | M32: 13647 | N32: 13591 | O32: 13830 | P32: 13951 | Q32: 14267 | R32: 14488 | S32: 14801 | T32: 15103 | U32: 15187 | V32: 15414 | W32: 15418 | X32: 15515 | Y32: 15470 | Z32: 15447 | AA32: 15495 | AB32: 15410 | AC32: 15555 | AD32: 15522 | AE32: 15638 | AF32: 15770 | AG32: 15896 | AH32: 16138 | AI32: 16291 | AJ32: 16225.8 | AK32: 16318.45455 | AL32: 16411.10909 | AM32: 16503.76364 | AN32: 16596.41818 | AO32: 16689.07273 | AP32: 16781.72727 | AQ32: 16874.38182 | AR32: 16967.03636 | AS32: 17059.69091 | AT32: 17152.34545 | AU32: 17245 | AV32: 17337.65455 | AW32: 17430.30909 | AX32: 17522.96364 | AY32: 17615.61818 | AZ32: 17708.27273 | BA32: 17800.92727 | BB32: 17893.58182 | BC32: 17986.23636 | BD32: 18078.89091 | BE32: 18171.54545 | BF32: 18264.2 | BG32: 18356.85455
C33: Jefferson County, ID | D33: ID | E33: 15304 | F33: 15695 | G33: 15596 | H33: 16138 | I33: 16192 | J33: 16230 | K33: 16204 | L33: 16333 | M33: 16536 | N33: 16410 | O33: 16589 | P33: 16884 | Q33: 17320 | R33: 17677 | S33: 18097 | T33: 18245 | U33: 18327 | V33: 18380 | W33: 18692 | X33: 18982 | Y33: 19193 | Z33: 19322 | AA33: 19802 | AB33: 20249 | AC33: 20842 | AD33: 21674 | AE33: 22439 | AF33: 23475 | AG33: 24696 | AH33: 25770 | AI33: 26236 | AJ33: 26947.2 | AK33: 27764.78182 | AL33: 28582.36364 | AM33: 29399.94545 | AN33: 30217.52727 | AO33: 31035.10909 | AP33: 31852.69091 | AQ33: 32670.27273 | AR33: 33487.85455 | AS33: 34305.43636 | AT33: 35123.01818 | AU33: 35940.6 | AV33: 36758.18182 | AW33: 37575.76364 | AX33: 38393.34545 | AY33: 39210.92727 | AZ33: 40028.50909 | BA33: 40846.09091 | BB33: 41663.67273 | BC33: 42481.25455 | BD33: 43298.83636 | BE33: 44116.41818 | BF33: 44934 | BG33: 45751.58182
C34: Jerome County, ID | D34: ID | E34: 14840 | F34: 15226 | G34: 15699 | H34: 16145 | I34: 15938 | J34: 15792 | K34: 15691 | L34: 15282 | M34: 15011 | N34: 14902 | O34: 15216 | P34: 15511 | Q34: 15749 | R34: 16213 | S34: 16522 | T34: 16911 | U34: 17294 | V34: 17495 | W34: 17933 | X34: 18079 | Y34: 18493 | Z34: 18579 | AA34: 18730 | AB34: 18971 | AC34: 19331 | AD34: 19654 | AE34: 20111 | AF34: 20572 | AG34: 21217 | AH34: 22039 | AI34: 22469 | AJ34: 22620.06667 | AK34: 23066.02424 | AL34: 23511.98182 | AM34: 23957.93939 | AN34: 24403.89697 | AO34: 24849.85455 | AP34: 25295.81212 | AQ34: 25741.7697 | AR34: 26187.72727 | AS34: 26633.68485 | AT34: 27079.64242 | AU34: 27525.6 | AV34: 27971.55758 | AW34: 28417.51515 | AX34: 28863.47273 | AY34: 29309.4303 | AZ34: 29755.38788 | BA34: 30201.34545 | BB34: 30647.30303 | BC34: 31093.26061 | BD34: 31539.21818 | BE34: 31985.17576 | BF34: 32431.13333 | BG34: 32877.09091
C35: Kootenai County, ID | D35: ID | E35: 59770 | F35: 60827 | G35: 62436 | H35: 62987 | I35: 65494 | J35: 66783 | K35: 66761 | L35: 66160 | M35: 66859 | N35: 67738 | O35: 70443 | P35: 73946 | Q35: 77577 | R35: 82654 | S35: 88046 | T35: 92677 | U35: 96590 | V35: 100108 | W35: 102717 | X35: 106346 | Y35: 109487 | Z35: 111542 | AA35: 113667 | AB35: 116512 | AC35: 121002 | AD35: 125972 | AE35: 129510 | AF35: 132811 | AG35: 135627 | AH35: 137407 | AI35: 138901 | AJ35: 144526.8 | AK35: 147841.6545 | AL35: 151156.5091 | AM35: 154471.3636 | AN35: 157786.2182 | AO35: 161101.0727 | AP35: 164415.9273 | AQ35: 167730.7818 | AR35: 171045.6364 | AS35: 174360.4909 | AT35: 177675.3455 | AU35: 180990.2 | AV35: 184305.0545 | AW35: 187619.9091 | AX35: 190934.7636 | AY35: 194249.6182 | AZ35: 197564.4727 | BA35: 200879.3273 | BB35: 204194.1818 | BC35: 207509.0364 | BD35: 210823.8909 | BE35: 214138.7455 | BF35: 217453.6 | BG35: 220768.4545
C36: Latah County, ID | D36: ID | E36: 28749 | F36: 29027 | G36: 29908 | H36: 29953 | I36: 30265 | J36: 30731 | K36: 30141 | L36: 30311 | M36: 30795 | N36: 30714 | O36: 30714 | P36: 31343 | Q36: 32251 | R36: 32977 | S36: 33729 | T36: 34339 | U36: 34808 | V36: 35023 | W36: 34811 | X36: 34908 | Y36: 34878 | Z36: 35285 | AA36: 35183 | AB36: 35473 | AC36: 35864 | AD36: 35958 | AE36: 36251 | AF36: 36179 | AG36: 36524 | AH36: 36939 | AI36: 37334 | AJ36: 37339.86667 | AK36: 37565.47879 | AL36: 37791.09091 | AM36: 38016.70303 | AN36: 38242.31515 | AO36: 38467.92727 | AP36: =FORECAST(AP$7,$Z36:$AI36,$Z$7:$AI$7) -> 38693.53939 | AQ36: 38919.15152 | AR36: 39144.76364 | AS36: 39370.37576 | AT36: 39595.98788 | AU36: 39821.6 | AV36: 40047.21212 | AW36: 40272.82424 | AX36: 40498.43636 | AY36: 40724.04848 | AZ36: 40949.66061 | BA36: 41175.27273 | BB36: 41400.88485 | BC36: 41626.49697 | BD36: 41852.10909 | BE36: 42077.72121 | BF36: 42303.33333 | BG36: 42528.94545
C37: Lemhi County, ID | D37: ID | E37: 7460 | F37: 7855 | G37: 8036 | H37: 8015 | I37: 7944 | J37: 7515 | K37: 6900 | L37: 6863 | M37: 6915 | N37: 6773 | O37: 6926 | P37: 7056 | Q37: 7104 | R37: 7203 | S37: 7462 | T37: 8029 | U37: 8084 | V37: 8095 | W37: 8070 | X37: 7944 | Y37: 7724 | Z37: 7593 | AA37: 7590 | AB37: 7600 | AC37: 7660 | AD37: 7708 | AE37: 7795 | AF37: 7780 | AG37: 7902 | AH37: 7870 | AI37: 7957 | AJ37: 7985.266667 | AK37: 8028.860606 | AL37: 8072.454545 | AM37: 8116.048485 | AN37: 8159.642424 | AO37: 8203.236364 | AP37: 8246.830303 | AQ37: 8290.424242 | AR37: 8334.018182 | AS37: 8377.612121 | AT37: 8421.206061 | AU37: 8464.8 | AV37: 8508.393939 | AW37: 8551.987879 | AX37: 8595.581818 | AY37: 8639.175758 | AZ37: 8682.769697 | BA37: 8726.363636 | BB37: 8769.957576 | BC37: 8813.551515 | BD37: 8857.145455 | BE37: 8900.739394 | BF37: 8944.333333 | BG37: 8987.927273
C38: Lewis County, ID | D38: ID | E38: 4118 | F38: 4113 | G38: 4056 | H38: 3937 | I38: 3837 | J38: 3769 | K38: 3612 | L38: 3468 | M38: 3535 | N38: 3557 | O38: 3515 | P38: 3547 | Q38: 3558 | R38: 3678 | S38: 3765 | T38: 3846 | U38: 3854 | V38: 3856 | W38: 3811 | X38: 3754 | Y38: 3740 | Z38: 3599 | AA38: 3673 | AB38: 3671 | AC38: 3669 | AD38: 3665 | AE38: 3712 | AF38: 3707 | AG38: 3739 | AH38: 3832 | AI38: 3816 | AJ38: 3827.2 | AK38: 3848.818182 | AL38: 3870.436364 | AM38: 3892.054545 | AN38: 3913.672727 | AO38: 3935.290909 | AP38: 3956.909091 | AQ38: 3978.527273 | AR38: 4000.145455 | AS38: 4021.763636 | AT38: 4043.381818 | AU38: 4065 | AV38: 4086.618182 | AW38: 4108.236364 | AX38: 4129.854545 | AY38: 4151.472727 | AZ38: 4173.090909 | BA38: 4194.709091 | BB38: 4216.327273 | BC38: 4237.945455 | BD38: 4259.563636 | BE38: 4281.181818 | BF38: 4302.8 | BG38: 4324.418182
C39: Lincoln County, ID | D39: ID | E39: 3436 | F39: 3553 | G39: 3605 | H39: 3697 | I39: 3546 | J39: 3508 | K39: 3370 | L39: 3213 | M39: 3347 | N39: 3210 | O39: 3349 | P39: 3393 | Q39: 3467 | R39: 3557 | S39: 3634 | T39: 3794 | U39: 3860 | V39: 3917 | W39: 3910 | X39: 3991 | Y39: 4051 | Z39: 4159 | AA39: 4242 | AB39: 4372 | AC39: 4441 | AD39: 4694 | AE39: 4762 | AF39: 4938 | AG39: 5041 | AH39: 5151 | AI39: 5211 | AJ39: 5392.266667 | AK39: 5517.933333 | AL39: 5643.6 | AM39: 5769.266667 | AN39: 5894.933333 | AO39: 6020.6 | AP39: 6146.266667 | AQ39: 6271.933333 | AR39: 6397.6 | AS39: 6523.266667 | AT39: 6648.933333 | AU39: 6774.6 | AV39: 6900.266667 | AW39: 7025.933333 | AX39: 7151.6 | AY39: 7277.266667 | AZ39: 7402.933333 | BA39: 7528.6 | BB39: 7654.266667 | BC39: 7779.933333 | BD39: 7905.6 | BE39: 8031.266667 | BF39: 8156.933333 | BG39: 8282.6
C40: Madison County, ID | D40: =RIGHT(C40,2) -> ID | E40: 19480 | F40: 20360 | G40: 20912 | H40: 21505 | I40: 21974 | J40: 22187 | K40: 22629 | L40: 22803 | M40: 23095 | N40: 23498 | O40: 23823 | P40: 24081 | Q40: 24942 | R40: 25336 | S40: 25555 | T40: 26102 | U40: 26271 | V40: 26920 | W40: 27349 | X40: 27293 | Y40: 27519 | Z40: 27699 | AA40: 28478 | AB40: 29997 | AC40: 31990 | AD40: 33807 | AE40: 34984 | AF40: 35771 | AG40: 36564 | AH40: 37121 | AI40: 37623 | AJ40: 39909.13333 | AK40: 41091.99394 | AL40: 42274.85455 | AM40: 43457.71515 | AN40: 44640.57576 | AO40: 45823.43636 | AP40: 47006.29697 | AQ40: 48189.15758 | AR40: 49372.01818 | AS40: 50554.87879 | AT40: 51737.73939 | AU40: 52920.6 | AV40: 54103.46061 | AW40: 55286.32121 | AX40: 56469.18182 | AY40: 57652.04242 | AZ40: 58834.90303 | BA40: 60017.76364 | BB40: 61200.62424 | BC40: 62383.48485 | BD40: 63566.34545 | BE40: 64749.20606 | BF40: 65932.06667 | BG40: 67114.92727
C41: Minidoka County, ID | D41: ID | E41: 19718 | F41: 20035 | G41: 20228 | H41: 20861 | I41: 20992 | J41: 20792 | K41: 20455 | L41: 19744 | M41: 19429 | N41: 19394 | O41: 19383 | P41: 19692 | Q41: 20064 | R41: 20286 | S41: 20534 | T41: 20759 | U41: 20559 | V41: 20495 | W41: 20244 | X41: 20350 | Y41: 20103 | Z41: 19603 | AA41: 19542 | AB41: 19389 | AC41: 19167 | AD41: 19013 | AE41: 19046 | AF41: 19184 | AG41: 19393 | AH41: 19884 | AI41: 20112 | AJ41: =FORECAST(AJ$7,$Z41:$AI41,$Z$7:$AI$7) -> 19669.26667 | AK41: 19712.1697 | AL41: 19755.07273 | AM41: 19797.97576 | AN41: 19840.87879 | AO41: 19883.78182 | AP41: 19926.68485 | AQ41: 19969.58788 | AR41: 20012.49091 | AS41: 20055.39394 | AT41: 20098.29697 | AU41: 20141.2 | AV41: 20184.10303 | AW41: 20227.00606 | AX41: 20269.90909 | AY41: 20312.81212 | AZ41: 20355.71515 | BA41: 20398.61818 | BB41: 20441.52121 | BC41: 20484.42424 | BD41: 20527.32727 | BE41: 20570.2303 | BF41: 20613.13333 | BG41: 20656.03636
C42: Nez Perce County, ID | D42: ID | E42: 33220 | F42: 33206 | G42: 32858 | H42: 32627 | I42: 32965 | J42: 32872 | K42: 32580 | L42: 32935 | M42: 32900 | N42: 33640 | O42: 33860 | P42: 34539 | Q42: 35230 | R42: 35890 | S42: 36533 | T42: 36824 | U42: 37052 | V42: 37375 | W42: 37395 | X42: 37482 | Y42: 37398 | Z42: 36999 | AA42: 37111 | AB42: 37696 | AC42: 37798 | AD42: 38071 | AE42: 38513 | AF42: 38720 | AG42: 38810 | AH42: 39049 | AI42: 39339 | AJ42: 39657.4 | AK42: 39920.45455 | AL42: 40183.50909 | AM42: 40446.56364 | AN42: 40709.61818 | AO42: 40972.67273 | AP42: 41235.72727 | AQ42: 41498.78182 | AR42: 41761.83636 | AS42: 42024.89091 | AT42: 42287.94545 | AU42: 42551 | AV42: 42814.05455 | AW42: 43077.10909 | AX42: 43340.16364 | AY42: 43603.21818 | AZ42: 43866.27273 | BA42: 44129.32727 | BB42: 44392.38182 | BC42: 44655.43636 | BD42: 44918.49091 | BE42: 45181.54545 | BF42: 45444.6 | BG42: 45707.65455
C43: Oneida County, ID | D43: ID | E43: 3258 | F43: 3325 | G43: 3279 | H43: 3348 | I43: 3372 | J43: 3501 | K43: 3467 | L43: 3426 | M43: 3500 | N43: 3443 | O43: 3513 | P43: 3477 | Q43: 3501 | R43: 3531 | S43: 3642 | T43: 3847 | U43: 3901 | V43: 4023 | W43: 4064 | X43: 4115 | Y43: 4135 | Z43: 4176 | AA43: 4125 | AB43: 4089 | AC43: 4086 | AD43: 4137 | AE43: 4146 | AF43: 4167 | AG43: 4201 | AH43: 4248 | AI43: 4298 | AJ43: 4259.666667 | AK43: 4276.460606 | AL43: 4293.254545 | AM43: 4310.048485 | AN43: 4326.842424 | AO43: 4343.636364 | AP43: 4360.430303 | AQ43: 4377.224242 | AR43: 4394.018182 | AS43: 4410.812121 | AT43: 4427.606061 | AU43: 4444.4 | AV43: 4461.193939 | AW43: 4477.987879 | AX43: 4494.781818 | AY43: 4511.575758 | AZ43: 4528.369697 | BA43: 4545.163636 | BB43: 4561.957576 | BC43: 4578.751515 | BD43: 4595.545455 | BE43: 4612.339394 | BF43: 4629.133333 | BG43: 4645.927273
C44: Owyhee County, ID | D44: ID | E44: 8272 | F44: 8691 | G44: 8499 | H44: 8590 | I44: 8609 | J44: 8445 | K44: 8385 | L44: 8444 | M44: 8430 | N44: 8363 | O44: 8413 | P44: 8524 | Q44: 8625 | R44: 8889 | S44: 9123 | T44: 9568 | U44: 9842 | V44: 10110 | W44: 10285 | X44: 10429 | Y44: 10690 | Z44: 10877 | AA44: 10876 | AB44: 11033 | AC44: 10990 | AD44: 10993 | AE44: 11114 | AF44: 11255 | AG44: 11515 | AH44: 11547 | AI44: 11512 | AJ44: 11629.13333 | AK44: 11712.39394 | AL44: 11795.65455 | AM44: 11878.91515 | AN44: 11962.17576 | AO44: 12045.43636 | AP44: 12128.69697 | AQ44: 12211.95758 | AR44: 12295.21818 | AS44: 12378.47879 | AT44: 12461.73939 | AU44: 12545 | AV44: 12628.26061 | AW44: 12711.52121 | AX44: 12794.78182 | AY44: 12878.04242 | AZ44: 12961.30303 | BA44: 13044.56364 | BB44: 13127.82424 | BC44: 13211.08485 | BD44: 13294.34545 | BE44: 13377.60606 | BF44: 13460.86667 | BG44: 13544.12727
C45: Payette County, ID | D45: ID | E45: 15825 | F45: 16068 | G45: 15999 | H45: 15916 | I45: 16300 | J45: 16289 | K45: 16100 | L45: 16321 | M45: 16303 | N45: 16453 | O45: 16433 | P45: 16910 | Q45: 17452 | R45: 17974 | S45: 18744 | T45: 19237 | U45: 19531 | V45: 19792 | W45: 20029 | X45: 20374 | Y45: 20624 | Z45: 20796 | AA45: 20966 | AB45: 21133 | AC45: 21139 | AD45: 21484 | AE45: 21916 | AF45: 22437 | AG45: 22618 | AH45: 22665 | AI45: 22621 | AJ45: 23113.13333 | AK45: 23355.97576 | AL45: 23598.81818 | AM45: 23841.66061 | AN45: 24084.50303 | AO45: 24327.34545 | AP45: 24570.18788 | AQ45: 24813.0303 | AR45: 25055.87273 | AS45: 25298.71515 | AT45: 25541.55758 | AU45: 25784.4 | AV45: 26027.24242 | AW45: 26270.08485 | AX45: 26512.92727 | AY45: 26755.7697 | AZ45: 26998.61212 | BA45: 27241.45455 | BB45: 27484.29697 | BC45: 27727.13939 | BD45: 27969.98182 | BE45: 28212.82424 | BF45: 28455.66667 | BG45: 28698.50909
C46: Power County, ID | D46: ID | E46: 6844 | F46: 6948 | G46: 6935 | H46: 6986 | I46: 7103 | J46: 7233 | K46: 7208 | L46: 7198 | M46: 7130 | N46: 7133 | O46: 7054 | P46: 7179 | Q46: 7371 | R46: 7498 | S46: 7685 | T46: 7720 | U46: 7695 | V46: 7680 | W46: 7778 | X46: 7623 | Y46: 7484 | Z46: 7422 | AA46: 7371 | AB46: 7293 | AC46: 7432 | AD46: 7426 | AE46: 7564 | AF46: 7532 | AG46: 7564 | AH46: 7628 | AI46: 7879 | AJ46: 7767.933333 | AK46: 7814.630303 | AL46: 7861.327273 | AM46: 7908.024242 | AN46: 7954.721212 | AO46: 8001.418182 | AP46: 8048.115152 | AQ46: 8094.812121 | AR46: 8141.509091 | AS46: 8188.206061 | AT46: 8234.90303 | AU46: 8281.6 | AV46: 8328.29697 | AW46: 8374.993939 | AX46: 8421.690909 | AY46: 8468.387879 | AZ46: 8515.084848 | BA46: 8561.781818 | BB46: 8608.478788 | BC46: 8655.175758 | BD46: 8701.872727 | BE46: 8748.569697 | BF46: 8795.266667 | BG46: 8841.963636
C47: Shoshone County, ID | D47: ID | E47: 19226 | F47: 19327 | G47: 19010 | H47: 17354 | I47: 16781 | J47: 16519 | K47: 15916 | L47: 14486 | M47: 13652 | N47: 13822 | O47: 13973 | P47: 14082 | Q47: 13637 | R47: 13869 | S47: 13961 | T47: 14125 | U47: 14058 | V47: 14051 | W47: 13974 | X47: 13813 | Y47: 13762 | Z47: 13464 | AA47: 13044 | AB47: 12897 | AC47: 12781 | AD47: 12912 | AE47: 13014 | AF47: 12949 | AG47: 13031 | AH47: 12862 | AI47: 12729 | AJ47: 12747.86667 | AK47: 12707.78788 | AL47: 12667.70909 | AM47: 12627.6303 | AN47: 12587.55152 | AO47: 12547.47273 | AP47: 12507.39394 | AQ47: 12467.31515 | AR47: 12427.23636 | AS47: 12387.15758 | AT47: 12347.07879 | AU47: 12307 | AV47: 12266.92121 | AW47: 12226.84242 | AX47: 12186.76364 | AY47: 12146.68485 | AZ47: 12106.60606 | BA47: 12066.52727 | BB47: 12026.44848 | BC47: 11986.3697 | BD47: 11946.29091 | BE47: 11906.21212 | BF47: 11866.13333 | BG47: 11826.05455
C48: Teton County, ID | D48: ID | E48: 2897 | F48: 3056 | G48: 3185 | H48: 3400 | I48: 3372 | J48: 3392 | K48: 3466 | L48: 3463 | M48: 3422 | N48: 3383 | O48: 3458 | P48: 3603 | Q48: 3902 | R48: 4082 | S48: 4399 | T48: 4820 | U48: 5116 | V48: 5286 | W48: 5496 | X48: 5705 | Y48: 6098 | Z48: 6455 | AA48: 6849 | AB48: 7193 | AC48: 7460 | AD48: 7814 | AE48: 8270 | AF48: 8932 | AG48: 9627 | AH48: 10041 | AI48: 10193 | AJ48: 10717.66667 | AK48: 11160.26061 | AL48: 11602.85455 | AM48: 12045.44848 | AN48: 12488.04242 | AO48: 12930.63636 | AP48: 13373.2303 | AQ48: 13815.82424 | AR48: 14258.41818 | AS48: 14701.01212 | AT48: 15143.60606 | AU48: 15586.2 | AV48: 16028.79394 | AW48: 16471.38788 | AX48: 16913.98182 | AY48: 17356.57576 | AZ48: 17799.1697 | BA48: 18241.76364 | BB48: 18684.35758 | BC48: 19126.95152 | BD48: 19569.54545 | BE48: 20012.13939 | BF48: 20454.73333 | BG48: 20897.32727
C49: Twin Falls County, ID | D49: ID | E49: 52927 | F49: 53543 | G49: 53958 | H49: 54728 | I49: 54748 | J49: 54185 | K49: 53642 | L49: 53205 | M49: 53382 | N49: 53403 | O49: 53817 | P49: 55073 | Q49: 56195 | R49: 57189 | S49: 58846 | T49: 59679 | U49: 60998 | V49: 62201 | W49: 63020 | X49: 63844 | Y49: 64360 | Z49: 64556 | AA49: 65473 | AB49: 67092 | AC49: 68309 | AD49: 69833 | AE49: 71974 | AF49: 73738 | AG49: 75143 | AH49: 76271 | AI49: 77517 | AJ49: 79354.53333 | AK49: 80875.24848 | AL49: 82395.96364 | AM49: 83916.67879 | AN49: 85437.39394 | AO49: 86958.10909 | AP49: 88478.82424 | AQ49: 89999.53939 | AR49: 91520.25455 | AS49: 93040.9697 | AT49: 94561.68485 | AU49: 96082.4 | AV49: 97603.11515 | AW49: 99123.8303 | AX49: 100644.5455 | AY49: 102165.2606 | AZ49: 103685.9758 | BA49: 105206.6909 | BB49: 106727.4061 | BC49: 108248.1212 | BD49: 109768.8364 | BE49: 111289.5515 | BF49: 112810.2667 | BG49: 114330.9818
C50: Valley County, ID | D50: ID | E50: 5604 | F50: 5858 | G50: 6292 | H50: 6436 | I50: 6390 | J50: 6525 | K50: 6445 | L50: 6159 | M50: 6090 | N50: 6009 | O50: 6142 | P50: 6514 | Q50: 6842 | R50: 7265 | S50: 7512 | T50: 7697 | U50: 7804 | V50: 7893 | W50: 7796 | X50: 7652 | Y50: 7659 | Z50: 7773 | AA50: 7762 | AB50: 8003 | AC50: 8283 | AD50: 8779 | AE50: 9480 | AF50: 9929 | AG50: 10060 | AH50: 9975 | AI50: 9787 | AJ50: 10634.46667 | AK50: 10934.71515 | AL50: 11234.96364 | AM50: 11535.21212 | AN50: 11835.46061 | AO50: 12135.70909 | AP50: =FORECAST(AP$7,$Z50:$AI50,$Z$7:$AI$7) -> 12435.95758 | AQ50: 12736.20606 | AR50: 13036.45455 | AS50: 13336.70303 | AT50: 13636.95152 | AU50: 13937.2 | AV50: 14237.44848 | AW50: 14537.69697 | AX50: 14837.94545 | AY50: 15138.19394 | AZ50: 15438.44242 | BA50: 15738.69091 | BB50: 16038.93939 | BC50: 16339.18788 | BD50: 16639.43636 | BE50: 16939.68485 | BF50: 17239.93333 | BG50: 17540.18182
C51: Washington County, ID | D51: ID | E51: 8803 | F51: 8925 | G51: 8962 | H51: 9021 | I51: 8629 | J51: 8662 | K51: 8571 | L51: 8469 | M51: 8601 | N51: 8474 | O51: 8590 | P51: 8686 | Q51: 8787 | R51: 9031 | S51: 9155 | T51: 9455 | U51: 9651 | V51: 9887 | W51: 10018 | X51: 10010 | Y51: 9970 | Z51: 9936 | AA51: 9904 | AB51: 9904 | AC51: 9947 | AD51: 9995 | AE51: 10025 | AF51: 10027 | AG51: 10095 | AH51: 10173 | AI51: 10205 | AJ51: 10205.4 | AK51: 10238.90909 | AL51: 10272.41818 | AM51: 10305.92727 | AN51: 10339.43636 | AO51: 10372.94545 | AP51: 10406.45455 | AQ51: 10439.96364 | AR51: 10473.47273 | AS51: 10506.98182 | AT51: 10540.49091 | AU51: 10574 | AV51: 10607.50909 | AW51: 10641.01818 | AX51: 10674.52727 | AY51: 10708.03636 | AZ51: 10741.54545 | BA51: 10775.05455 | BB51: 10808.56364 | BC51: 10842.07273 | BD51: 10875.58182 | BE51: 10909.09091 | BF51: 10942.6 | BG51: 10976.10909
C52: Deer Lodge County, MT | D52: MT | E52: 12518 | F52: 11664 | G52: 11386 | H52: 11211 | I52: 11019 | J52: 10937 | K52: 10678 | L52: 10517 | M52: 10411 | N52: 10371 | O52: 10335 | P52: 10164 | Q52: 10049 | R52: 10076 | S52: 10102 | T52: 10070 | U52: 9899 | V52: 9834 | W52: 9779 | X52: 9529 | Y52: 9409 | Z52: 9303 | AA52: 9238 | AB52: 9189 | AC52: 9274 | AD52: 9274 | AE52: 9180 | AF52: 9264 | AG52: 9351 | AH52: 9260 | AI52: 9294 | AJ52: 9288 | AK52: 9292.6 | AL52: 9297.2 | AM52: 9301.8 | AN52: 9306.4 | AO52: 9311 | AP52: 9315.6 | AQ52: 9320.2 | AR52: 9324.8 | AS52: 9329.4 | AT52: 9334 | AU52: 9338.6 | AV52: 9343.2 | AW52: 9347.8 | AX52: 9352.4 | AY52: 9357 | AZ52: 9361.6 | BA52: 9366.2 | BB52: 9370.8 | BC52: 9375.4 | BD52: 9380 | BE52: 9384.6 | BF52: 9389.2 | BG52: 9393.8
C53: Flathead County, MT | D53: MT | E53: 51966 | F53: 52407 | G53: 52662 | H53: 53869 | I53: 56075 | J53: 57662 | K53: 57767 | L53: 57337 | M53: 57608 | N53: 58437 | O53: 59545 | P53: 60899 | Q53: 62949 | R53: 65410 | S53: 67593 | T53: 69876 | U53: 71464 | V53: 72288 | W53: 72541 | X53: 73626 | Y53: 74774 | Z53: 76171 | AA53: 77583 | AB53: 79643 | AC53: 81247 | AD53: 83320 | AE53: 85759 | AF53: 88245 | AG53: 90260 | AH53: 90910 | AI53: 90901 | AJ53: 94483.13333 | AK53: 96315.72121 | AL53: 98148.30909 | AM53: 99980.89697 | AN53: 101813.4848 | AO53: 103646.0727 | AP53: 105478.6606 | AQ53: 107311.2485 | AR53: 109143.8364 | AS53: 110976.4242 | AT53: 112809.0121 | AU53: 114641.6 | AV53: 116474.1879 | AW53: 118306.7758 | AX53: 120139.3636 | AY53: 121971.9515 | AZ53: 123804.5394 | BA53: 125637.1273 | BB53: 127469.7152 | BC53: 129302.303 | BD53: 131134.8909 | BE53: 132967.4788 | BF53: 134800.0667 | BG53: 136632.6545
C54: Granite County, MT | D54: MT | E54: 2700 | F54: 2684 | G54: 2648 | H54: 2696 | I54: 2685 | J54: 2694 | K54: 2624 | L54: 2584 | M54: 2637 | N54: 2621 | O54: 2528 | P54: 2529 | Q54: 2562 | R54: 2644 | S54: 2710 | T54: 2687 | U54: 2717 | V54: 2767 | W54: 2795 | X54: 2786 | Y54: 2849 | Z54: 2905 | AA54: 2919 | AB54: 2931 | AC54: 2943 | AD54: 3009 | AE54: 3013 | AF54: 3039 | AG54: 3031 | AH54: 3057 | AI54: 3082 | AJ54: 3104.6 | AK54: 3124.909091 | AL54: 3145.218182 | AM54: 3165.527273 | AN54: 3185.836364 | AO54: 3206.145455 | AP54: 3226.454545 | AQ54: 3246.763636 | AR54: 3267.072727 | AS54: 3287.381818 | AT54: 3307.690909 | AU54: 3328 | AV54: 3348.309091 | AW54: 3368.618182 | AX54: 3388.927273 | AY54: 3409.236364 | AZ54: 3429.545455 | BA54: 3449.854545 | BB54: 3470.163636 | BC54: 3490.472727 | BD54: 3510.781818 | BE54: 3531.090909 | BF54: 3551.4 | BG54: 3571.709091
C55: Lake County, MT | D55: MT | E55: 19056 | F55: 19240 | G55: 19509 | H55: 19821 | I55: 20376 | J55: 20823 | K55: 20644 | L55: 20595 | M55: 20773 | N55: 21102 | O55: 21048 | P55: 21589 | Q55: 22075 | R55: 22998 | S55: 23678 | T55: 24459 | U55: 25026 | V55: 25493 | W55: 25658 | X55: 26078 | Y55: 26588 | Z55: 26810 | AA55: 26814 | AB55: 27117 | AC55: 27634 | AD55: 28023 | AE55: 28283 | AF55: 28235 | AG55: 28515 | AH55: 28668 | AI55: 28766 | AJ55: 29207.66667 | AK55: 29447.87879 | AL55: 29688.09091 | AM55: 29928.30303 | AN55: 30168.51515 | AO55: 30408.72727 | AP55: 30648.93939 | AQ55: 30889.15152 | AR55: 31129.36364 | AS55: 31369.57576 | AT55: 31609.78788 | AU55: 31850 | AV55: 32090.21212 | AW55: 32330.42424 | AX55: 32570.63636 | AY55: 32810.84848 | AZ55: 33051.06061 | BA55: 33291.27273 | BB55: 33531.48485 | BC55: 33771.69697 | BD55: 34011.90909 | BE55: 34252.12121 | BF55: 34492.33333 | BG55: 34732.54545
C56: Lewis and Clark County, MT | D56: MT | E56: 43039 | F56: 44173 | G56: 44767 | H56: 45564 | I56: 46159 | J56: 46912 | K56: 47112 | L56: 47518 | M56: 47337 | N56: 47322 | O56: 47586 | P56: 48393 | Q56: 49808 | R56: 51150 | S56: 52007 | T56: 53318 | U56: 54047 | V56: 54186 | W56: 54621 | X56: 55214 | Y56: 55886 | Z56: 56262 | AA56: 56271 | AB56: 57110 | AC56: 58041 | AD56: 58529 | AE56: 59529 | AF56: 60646 | AG56: 61747 | AH56: 62671 | AI56: 63620 | AJ56: 64210 | AK56: 65076.8 | AL56: 65943.6 | AM56: 66810.4 | AN56: 67677.2 | AO56: 68544 | AP56: 69410.8 | AQ56: 70277.6 | AR56: 71144.4 | AS56: 72011.2 | AT56: 72878 | AU56: 73744.8 | AV56: 74611.6 | AW56: 75478.4 | AX56: 76345.2 | AY56: 77212 | AZ56: 78078.8 | BA56: 78945.6 | BB56: 79812.4 | BC56: 80679.2 | BD56: 81546 | BE56: 82412.8 | BF56: 83279.6 | BG56: 84146.4
C57: Lincoln County, MT | D57: MT | E57: 17752 | F57: 17854 | G57: 17967 | H57: 18285 | I57: 18712 | J57: 18634 | K57: 18277 | L57: 18019 | M57: 17834 | N57: 17569 | O57: 17499 | P57: 17561 | Q57: 17631 | R57: 18279 | S57: 18429 | T57: 18726 | U57: 18818 | V57: 18792 | W57: 18773 | X57: 18837 | Y57: 18818 | Z57: 18646 | AA57: 18669 | AB57: 18861 | AC57: 18991 | AD57: 19180 | AE57: 19228 | AF57: 19440 | AG57: 19541 | AH57: 19657 | AI57: 19670 | AJ57: 19885.86667 | AK57: 20012.69697 | AL57: 20139.52727 | AM57: 20266.35758 | AN57: 20393.18788 | AO57: 20520.01818 | AP57: 20646.84848 | AQ57: 20773.67879 | AR57: 20900.50909 | AS57: 21027.33939 | AT57: 21154.1697 | AU57: 21281 | AV57: 21407.8303 | AW57: 21534.66061 | AX57: 21661.49091 | AY57: 21788.32121 | AZ57: 21915.15152 | BA57: 22041.98182 | BB57: 22168.81212 | BC57: 22295.64242 | BD57: 22422.47273 | BE57: 22549.30303 | BF57: 22676.13333 | BG57: 22802.96364
C58: Mineral County, MT | D58: MT | E58: 3675 | F58: 3572 | G58: 3503 | H58: 3570 | I58: 3758 | J58: 3650 | K58: 3512 | L58: 3409 | M58: 3301 | N58: 3247 | O58: 3329 | P58: 3328 | Q58: 3448 | R58: 3609 | S58: 3625 | T58: 3612 | U58: 3726 | V58: 3732 | W58: 3783 | X58: 3869 | Y58: 3877 | Z58: 3839 | AA58: 3837 | AB58: 3936 | AC58: 3985 | AD58: 4133 | AE58: 4211 | AF58: 4156 | AG58: 4177 | AH58: 4200 | AI58: 4219 | AJ58: 4327.866667 | AK58: 4374.878788 | AL58: 4421.890909 | AM58: 4468.90303 | AN58: 4515.915152 | AO58: 4562.927273 | AP58: 4609.939394 | AQ58: 4656.951515 | AR58: 4703.963636 | AS58: 4750.975758 | AT58: 4797.987879 | AU58: 4845 | AV58: 4892.012121 | AW58: 4939.024242 | AX58: 4986.036364 | AY58: 5033.048485 | AZ58: 5080.060606 | BA58: 5127.072727 | BB58: 5174.084848 | BC58: 5221.09697 | BD58: 5268.109091 | BE58: 5315.121212 | BF58: 5362.133333 | BG58: 5409.145455
C59: Missoula County, MT | D59: MT | E59: 76016 | F59: 76352 | G59: 75242 | H59: 75571 | I59: 76875 | J59: 77774 | K59: 77949 | L59: 77680 | M59: 77564 | N59: 77995 | O59: 79080 | P59: 81098 | Q59: 83549 | R59: 86243 | S59: 88037 | T59: 90413 | U59: 91947 | V59: 93151 | W59: 93847 | X59: 94791 | Y59: 96178 | Z59: 97435 | AA59: 98968 | AB59: 99976 | AC59: 100934 | AD59: 102298 | AE59: 104372 | AF59: 106110 | AG59: 107747 | AH59: 108717 | AI59: 109494 | AJ59: 111379.4667 | AK59: 112792.9879 | AL59: 114206.5091 | AM59: 115620.0303 | AN59: 117033.5515 | AO59: 118447.0727 | AP59: 119860.5939 | AQ59: 121274.1152 | AR59: 122687.6364 | AS59: 124101.1576 | AT59: 125514.6788 | AU59: 126928.2 | AV59: 128341.7212 | AW59: 129755.2424 | AX59: 131168.7636 | AY59: 132582.2848 | AZ59: 133995.8061 | BA59: 135409.3273 | BB59: 136822.8485 | BC59: 138236.3697 | BD59: 139649.8909 | BE59: 141063.4121 | BF59: 142476.9333 | BG59: 143890.4545
C60: Powell County, MT | D60: MT | E60: 6958 | F60: 6861 | G60: 6802 | H60: 6874 | I60: 6805 | J60: 6904 | K60: 6773 | L60: 6780 | M60: 6702 | N60: 6582 | O60: 6640 | P60: 6712 | Q60: 6809 | R60: 6806 | S60: 6889 | T60: 7057 | U60: 7126 | V60: 7122 | W60: 7135 | X60: 7143 | Y60: 7203 | Z60: 7033 | AA60: 6986 | AB60: 6893 | AC60: 6872 | AD60: 6997 | AE60: 7115 | AF60: 7117 | AG60: 7036 | AH60: 7093 | AI60: 7022 | AJ60: 7090.333333 | AK60: 7103.775758 | AL60: 7117.218182 | AM60: 7130.660606 | AN60: 7144.10303 | AO60: 7157.545455 | AP60: 7170.987879 | AQ60: 7184.430303 | AR60: 7197.872727 | AS60: 7211.315152 | AT60: 7224.757576 | AU60: 7238.2 | AV60: 7251.642424 | AW60: 7265.084848 | AX60: 7278.527273 | AY60: 7291.969697 | AZ60: 7305.412121 | BA60: 7318.854545 | BB60: 7332.29697 | BC60: 7345.739394 | BD60: 7359.181818 | BE60: 7372.624242 | BF60: 7386.066667 | BG60: 7399.509091
C61: Ravalli County, MT | D61: MT | E61: 22493 | F61: 23298 | G61: 23668 | H61: 23815 | I61: 24300 | J61: 24426 | K61: 24447 | L61: 24501 | M61: 24772 | N61: 24857 | O61: 25068 | P61: 25985 | Q61: 27387 | R61: 28754 | S61: 30455 | T61: 31942 | U61: 33170 | V61: 34041 | W61: 34578 | X61: 35311 | Y61: 36301 | Z61: 36683 | AA61: 37308 | AB61: 38184 | AC61: 38739 | AD61: 39012 | AE61: 39555 | AF61: 40023 | AG61: 40223 | AH61: 39956 | AI61: 40308 | AJ61: 41190.8 | AK61: 41589.29091 | AL61: 41987.78182 | AM61: 42386.27273 | AN61: 42784.76364 | AO61: 43183.25455 | AP61: 43581.74545 | AQ61: 43980.23636 | AR61: 44378.72727 | AS61: 44777.21818 | AT61: 45175.70909 | AU61: 45574.2 | AV61: 45972.69091 | AW61: 46371.18182 | AX61: 46769.67273 | AY61: 47168.16364 | AZ61: 47566.65455 | BA61: 47965.14545 | BB61: 48363.63636 | BC61: 48762.12727 | BD61: 49160.61818 | BE61: 49559.10909 | BF61: 49957.6 | BG61: 50356.09091
C62: Sanders County, MT | D62: MT | E62: 8675 | F62: 8772 | G62: 9037 | H62: 9161 | I62: 9365 | J62: 9169 | K62: 8980 | L62: 8802 | M62: 8690 | N62: 8664 | O62: 8680 | P62: 8628 | Q62: 8842 | R62: 9230 | S62: 9644 | T62: 10019 | U62: 10093 | V62: 10155 | W62: 10097 | X62: 10124 | Y62: 10287 | Z62: 10489 | AA62: 10466 | AB62: 10554 | AC62: 10895 | AD62: 11002 | AE62: 11178 | AF62: 11364 | AG62: 11433 | AH62: 11471 | AI62: 11382 | AJ62: 11725.06667 | AK62: 11852.64242 | AL62: 11980.21818 | AM62: 12107.79394 | AN62: 12235.3697 | AO62: 12362.94545 | AP62: 12490.52121 | AQ62: 12618.09697 | AR62: 12745.67273 | AS62: 12873.24848 | AT62: 13000.82424 | AU62: 13128.4 | AV62: 13255.97576 | AW62: 13383.55152 | AX62: 13511.12727 | AY62: 13638.70303 | AZ62: 13766.27879 | BA62: 13893.85455 | BB62: 14021.4303 | BC62: 14149.00606 | BD62: 14276.58182 | BE62: 14404.15758 | BF62: 14531.73333 | BG62: 14659.30909
C63: Silver Bow County, MT | D63: MT | E63: 38092 | F63: 37987 | G63: 37342 | H63: 36642 | I63: 35693 | J63: 35325 | K63: 35000 | L63: 34582 | M63: 34255 | N63: 34068 | O63: 33913 | P63: 34140 | Q63: 34401 | R63: 34868 | S63: 35025 | T63: 34978 | U63: 35014 | V63: 34931 | W63: 35218 | X63: 34757 | Y63: 34571 | Z63: 33882 | AA63: 33636 | AB63: 33474 | AC63: 33416 | AD63: 33414 | AE63: 33441 | AF63: 33489 | AG63: 33812 | AH63: 34008 | AI63: 34234 | AJ63: 33937.53333 | AK63: 33984.24848 | AL63: 34030.96364 | AM63: 34077.67879 | AN63: 34124.39394 | AO63: 34171.10909 | AP63: 34217.82424 | AQ63: 34264.53939 | AR63: 34311.25455 | AS63: 34357.9697 | AT63: 34404.68485 | AU63: 34451.4 | AV63: 34498.11515 | AW63: 34544.8303 | AX63: =FORECAST(AX$7,$Z63:$AI63,$Z$7:$AI$7) -> 34591.54545 | AY63: 34638.26061 | AZ63: 34684.97576 | BA63: 34731.69091 | BB63: 34778.40606 | BC63: 34825.12121 | BD63: 34871.83636 | BE63: 34918.55152 | BF63: 34965.26667 | BG63: 35011.98182
C64: Baker County, OR | D64: OR | E64: 16134 | F64: 16198 | G64: 16377 | H64: 16255 | I64: 16118 | J64: 15731 | K64: 15426 | L64: 15130 | M64: 14994 | N64: 14890 | O64: 15433 | P64: 15581 | Q64: 15847 | R64: 16172 | S64: 16418 | T64: 16691 | U64: 16652 | V64: 16746 | W64: 16841 | X64: 16755 | Y64: 16714 | Z64: 16618 | AA64: 16376 | AB64: 16312 | AC64: 16272 | AD64: 16086 | AE64: 16094 | AF64: 16139 | AG64: 16195 | AH64: 16225 | AI64: 16097 | AJ64: 16017.33333 | AK64: 15976.59394 | AL64: 15935.85455 | AM64: 15895.11515 | AN64: 15854.37576 | AO64: 15813.63636 | AP64: 15772.89697 | AQ64: 15732.15758 | AR64: 15691.41818 | AS64: 15650.67879 | AT64: 15609.93939 | AU64: 15569.2 | AV64: 15528.46061 | AW64: 15487.72121 | AX64: 15446.98182 | AY64: 15406.24242 | AZ64: 15365.50303 | BA64: 15324.76364 | BB64: 15284.02424 | BC64: 15243.28485 | BD64: 15202.54545 | BE64: 15161.80606 | BF64: 15121.06667 | BG64: 15080.32727
C65: Benton County, OR | D65: OR | E65: 68211 | F65: 69369 | G65: 69461 | H65: 68245 | I65: 67474 | J65: 67275 | K65: 66940 | L65: 67590 | M65: 67876 | N65: 69879 | O65: 71059 | P65: 71507 | Q65: 72618 | R65: 73997 | S65: 75481 | T65: 76517 | U65: 77776 | V65: 78560 | W65: 78943 | X65: 78254 | Y65: 78236 | Z65: 78491 | AA65: 80203 | AB65: 80322 | AC65: 80149 | AD65: 80943 | AE65: 81957 | AF65: 83718 | AG65: 84150 | AH65: 85390 | AI65: 85575 | AJ65: 86454 | AK65: 87247.49091 | AL65: 88040.98182 | AM65: 88834.47273 | AN65: 89627.96364 | AO65: 90421.45455 | AP65: 91214.94545 | AQ65: 92008.43636 | AR65: 92801.92727 | AS65: 93595.41818 | AT65: 94388.90909 | AU65: 95182.4 | AV65: 95975.89091 | AW65: 96769.38182 | AX65: 97562.87273 | AY65: 98356.36364 | AZ65: 99149.85455 | BA65: 99943.34545 | BB65: 100736.8364 | BC65: 101530.3273 | BD65: 102323.8182 | BE65: 103117.3091 | BF65: 103910.8 | BG65: 104704.2909
C66: Clackamas County, OR | D66: OR | E66: 241911 | F66: 246139 | G66: 247804 | H66: 247323 | I66: 248703 | J66: 250118 | K66: 255311 | L66: 258603 | M66: 260753 | N66: 272546 | O66: 280862 | P66: 288877 | Q66: 296624 | R66: 303344 | S66: 309257 | T66: 314922 | U66: 322376 | V66: 328898 | W66: 332942 | X66: 335891 | Y66: 339223 | Z66: 343444 | AA66: 348951 | AB66: 352032 | AC66: 355758 | AD66: 359308 | AE66: 363508 | AF66: 366808 | AG66: 371103 | AH66: 374085 | AI66: 376891 | AJ66: 381511 | AK66: 385205.9455 | AL66: 388900.8909 | AM66: 392595.8364 | AN66: 396290.7818 | AO66: 399985.7273 | AP66: 403680.6727 | AQ66: 407375.6182 | AR66: 411070.5636 | AS66: 414765.5091 | AT66: 418460.4545 | AU66: 422155.4 | AV66: 425850.3455 | AW66: 429545.2909 | AX66: 433240.2364 | AY66: 436935.1818 | AZ66: 440630.1273 | BA66: 444325.0727 | BB66: 448020.0182 | BC66: 451714.9636 | BD66: 455409.9091 | BE66: 459104.8545 | BF66: 462799.8 | BG66: 466494.7455
C67: Clatsop County, OR | D67: OR | E67: 32489 | F67: 32700 | G67: 32543 | H67: 32434 | I67: 32116 | J67: 32452 | K67: 32275 | L67: 32122 | M67: 32417 | N67: 33040 | O67: 33436 | P67: 33852 | Q67: 34307 | R67: 34735 | S67: 35288 | T67: 35527 | U67: 35444 | V67: 35770 | W67: 35760 | X67: 35720 | Y67: 35560 | Z67: 35509 | AA67: 35519 | AB67: 35612 | AC67: 35912 | AD67: 36282 | AE67: 36603 | AF67: 36818 | AG67: 36825 | AH67: 36972 | AI67: 37070 | AJ67: 37423 | AK67: 37624.96364 | AL67: 37826.92727 | AM67: 38028.89091 | AN67: 38230.85455 | AO67: 38432.81818 | AP67: 38634.78182 | AQ67: 38836.74545 | AR67: 39038.70909 | AS67: 39240.67273 | AT67: 39442.63636 | AU67: 39644.6 | AV67: 39846.56364 | AW67: 40048.52727 | AX67: 40250.49091 | AY67: 40452.45455 | AZ67: 40654.41818 | BA67: 40856.38182 | BB67: 41058.34545 | BC67: 41260.30909 | BD67: 41462.27273 | BE67: 41664.23636 | BF67: 41866.2 | BG67: 42068.16364
C68: Columbia County, OR | D68: OR | E68: 35646 | F68: 35963 | G68: 36170 | H68: 36022 | I68: 35739 | J68: 35707 | K68: 35829 | L68: 35954 | M68: 36228 | N68: 36708 | O68: 37809 | P68: 38476 | Q68: 38828 | R68: 39466 | S68: 39922 | T68: 40576 | U68: 41454 | V68: 42055 | W68: 42781 | X68: 43360 | Y68: 43634 | Z68: 44196 | AA68: 45104 | AB68: 45636 | AC68: 46192 | AD68: 46955 | AE68: 48184 | AF68: 48898 | AG68: 49209 | AH68: 49394 | AI68: 49343 | AJ68: 50763.26667 | AK68: 51390.93333 | AL68: 52018.6 | AM68: 52646.26667 | AN68: 53273.93333 | AO68: 53901.6 | AP68: 54529.26667 | AQ68: 55156.93333 | AR68: 55784.6 | AS68: 56412.26667 | AT68: 57039.93333 | AU68: 57667.6 | AV68: 58295.26667 | AW68: 58922.93333 | AX68: 59550.6 | AY68: 60178.26667 | AZ68: 60805.93333 | BA68: 61433.6 | BB68: 62061.26667 | BC68: 62688.93333 | BD68: 63316.6 | BE68: 63944.26667 | BF68: 64571.93333 | BG68: 65199.6
C69: Coos County, OR | D69: OR | E69: 64047 | F69: 63257 | G69: 61774 | H69: 61199 | I69: 60944 | J69: 59941 | K69: 58864 | L69: 59551 | M69: 59862 | N69: 59753 | O69: 60441 | P69: 61062 | Q69: 62141 | R69: 62980 | S69: 63283 | T69: 63549 | U69: 63505 | V69: 63517 | W69: 63278 | X69: 62962 | Y69: 62662 | Z69: 62190 | AA69: 62286 | AB69: 62625 | AC69: 63208 | AD69: 63843 | AE69: 63844 | AF69: 63420 | AG69: 63226 | AH69: 63079 | AI69: 63025 | AJ69: 63631.53333 | AK69: 63732.79394 | AL69: 63834.05455 | AM69: 63935.31515 | AN69: 64036.57576 | AO69: 64137.83636 | AP69: 64239.09697 | AQ69: 64340.35758 | AR69: 64441.61818 | AS69: 64542.87879 | AT69: 64644.13939 | AU69: 64745.4 | AV69: 64846.66061 | AW69: 64947.92121 | AX69: 65049.18182 | AY69: 65150.44242 | AZ69: 65251.70303 | BA69: 65352.96364 | BB69: 65454.22424 | BC69: 65555.48485 | BD69: 65656.74545 | BE69: 65758.00606 | BF69: 65859.26667 | BG69: 65960.52727
C70: Crook County, OR | D70: OR | E70: 13091 | F70: 13111 | G70: 12946 | H70: 12910 | I70: 13155 | J70: 13137 | K70: 13142 | L70: 13183 | M70: 13356 | N70: 13664 | O70: 14258 | P70: 14811 | Q70: 15301 | R70: 15885 | S70: 16337 | T70: 16843 | U70: 17227 | V70: 17633 | W70: 18127 | X70: 18596 | Y70: 19262 | Z70: 19705 | AA70: 19779 | AB70: 20011 | AC70: 20643 | AD70: 21019 | AE70: 21673 | AF70: 21818 | AG70: 21811 | AH70: 21410 | AI70: 20864 | AJ70: 22040.86667 | AK70: 22253.15152 | AL70: 22465.43636 | AM70: 22677.72121 | AN70: 22890.00606 | AO70: 23102.29091 | AP70: 23314.57576 | AQ70: 23526.86061 | AR70: 23739.14545 | AS70: 23951.4303 | AT70: 24163.71515 | AU70: 24376 | AV70: 24588.28485 | AW70: 24800.5697 | AX70: 25012.85455 | AY70: 25225.13939 | AZ70: 25437.42424 | BA70: 25649.70909 | BB70: 25861.99394 | BC70: 26074.27879 | BD70: 26286.56364 | BE70: 26498.84848 | BF70: 26711.13333 | BG70: 26923.41818
C71: Curry County, OR | D71: OR | E71: 16992 | F71: 17366 | G71: 17413 | H71: 17045 | I71: 16806 | J71: 16664 | K71: 16809 | L71: 17454 | M71: 18269 | N71: 18810 | O71: 19449 | P71: 19660 | Q71: 19889 | R71: 20381 | S71: 20718 | T71: 21009 | U71: 21023 | V71: 21058 | W71: 21077 | X71: 21182 | Y71: 21133 | Z71: 21250 | AA71: 21653 | AB71: 21899 | AC71: 22473 | AD71: 22750 | AE71: 22626 | AF71: 22447 | AG71: 22305 | AH71: 22341 | AI71: 22337 | AJ71: 22755.66667 | AK71: 22855.22424 | AL71: 22954.78182 | AM71: 23054.33939 | AN71: 23153.89697 | AO71: 23253.45455 | AP71: 23353.01212 | AQ71: 23452.5697 | AR71: 23552.12727 | AS71: 23651.68485 | AT71: 23751.24242 | AU71: 23850.8 | AV71: 23950.35758 | AW71: 24049.91515 | AX71: 24149.47273 | AY71: 24249.0303 | AZ71: 24348.58788 | BA71: 24448.14545 | BB71: 24547.70303 | BC71: 24647.26061 | BD71: 24746.81818 | BE71: 24846.37576 | BF71: 24945.93333 | BG71: 25045.49091
C72: Deschutes County, OR | D72: =RIGHT(C72,2) -> OR | E72: 62142 | F72: 63130 | G72: 63031 | H72: 62516 | I72: 63839 | J72: 64959 | K72: 66160 | L72: 66862 | M72: 68882 | N72: 71415 | O72: 76053 | P72: 80456 | Q72: 84199 | R72: 88061 | S72: 91393 | T72: 95491 | U72: 99362 | V72: 102581 | W72: 106820 | X72: 111933 | Y72: 116566 | Z72: 120526 | AA72: 125247 | AB72: 129094 | AC72: 133756 | AD72: 140567 | AE72: 148149 | AF72: 152633 | AG72: 156820 | AH72: 157345 | AI72: 157894 | AJ72: 167664.4667 | AK72: 172293.8061 | AL72: 176923.1455 | AM72: 181552.4848 | AN72: 186181.8242 | AO72: 190811.1636 | AP72: 195440.503 | AQ72: 200069.8424 | AR72: 204699.1818 | AS72: 209328.5212 | AT72: 213957.8606 | AU72: 218587.2 | AV72: 223216.5394 | AW72: 227845.8788 | AX72: 232475.2182 | AY72: 237104.5576 | AZ72: 241733.897 | BA72: 246363.2364 | BB72: 250992.5758 | BC72: 255621.9152 | BD72: 260251.2545 | BE72: 264880.5939 | BF72: 269509.9333 | BG72: 274139.2727
C73: Douglas County, OR | D73: OR | E73: 93748 | F73: 93767 | G73: 91740 | H73: 90904 | I73: 92608 | J73: 91956 | K73: 91753 | L73: 92504 | M73: 92601 | N73: 93367 | O73: 95050 | P73: 95633 | Q73: 96014 | R73: 96846 | S73: 97657 | T73: 98874 | U73: 99802 | V73: 100528 | W73: 100595 | X73: 100364 | Y73: 100485 | Z73: 100562 | AA73: 101529 | AB73: 102776 | AC73: 103965 | AD73: 105285 | AE73: 106658 | AF73: 107057 | AG73: 107316 | AH73: 107378 | AI73: 107638 | AJ73: =FORECAST(AJ$7,$Z73:$AI73,$Z$7:$AI$7) -> 109615.6 | AK73: 110451.8182 | AL73: 111288.0364 | AM73: 112124.2545 | AN73: 112960.4727 | AO73: 113796.6909 | AP73: 114632.9091 | AQ73: 115469.1273 | AR73: 116305.3455 | AS73: 117141.5636 | AT73: 117977.7818 | AU73: 118814 | AV73: 119650.2182 | AW73: 120486.4364 | AX73: 121322.6545 | AY73: 122158.8727 | AZ73: 122995.0909 | BA73: 123831.3091 | BB73: 124667.5273 | BC73: 125503.7455 | BD73: 126339.9636 | BE73: 127176.1818 | BF73: 128012.4 | BG73: 128848.6182
C74: Gilliam County, OR | D74: OR | E74: 2057 | F74: 2010 | G74: 2001 | H74: 1969 | I74: 1869 | J74: 1840 | K74: 1744 | L74: 1707 | M74: 1670 | N74: 1690 | O74: 1719 | P74: 1706 | Q74: 1731 | R74: 1725 | S74: 1809 | T74: 1799 | U74: 1858 | V74: 1856 | W74: 1890 | X74: 1925 | Y74: 1908 | Z74: 1901 | AA74: 1877 | AB74: 1823 | AC74: 1860 | AD74: 1863 | AE74: 1834 | AF74: 1816 | AG74: 1886 | AH74: 1856 | AI74: 1871 | AJ74: 1849.933333 | AK74: 1848.339394 | AL74: 1846.745455 | AM74: 1845.151515 | AN74: 1843.557576 | AO74: 1841.963636 | AP74: 1840.369697 | AQ74: 1838.775758 | AR74: 1837.181818 | AS74: 1835.587879 | AT74: 1833.993939 | AU74: 1832.4 | AV74: 1830.806061 | AW74: 1829.212121 | AX74: 1827.618182 | AY74: 1826.024242 | AZ74: 1824.430303 | BA74: 1822.836364 | BB74: 1821.242424 | BC74: 1819.648485 | BD74: 1818.054545 | BE74: 1816.460606 | BF74: 1814.866667 | BG74: 1813.272727
C75: Grant County, OR | D75: OR | E75: 8210 | F75: 8183 | G75: 7979 | H75: 7932 | I75: 8182 | J75: 8137 | K75: 8330 | L75: 8174 | M75: 8102 | N75: 7842 | O75: 7870 | P75: 7993 | Q75: 7870 | R75: 7945 | S75: 7971 | T75: 8042 | U75: 8079 | V75: 8117 | W75: 8163 | X75: 8013 | Y75: 7906 | Z75: 7498 | AA75: 7438 | AB75: 7472 | AC75: 7415 | AD75: 7389 | AE75: 7373 | AF75: 7267 | AG75: 7303 | AH75: 7343 | AI75: 7458 | AJ75: 7317.933333 | AK75: 7303.812121 | AL75: 7289.690909 | AM75: 7275.569697 | AN75: 7261.448485 | AO75: 7247.327273 | AP75: 7233.206061 | AQ75: 7219.084848 | AR75: 7204.963636 | AS75: 7190.842424 | AT75: 7176.721212 | AU75: 7162.6 | AV75: 7148.478788 | AW75: 7134.357576 | AX75: 7120.236364 | AY75: 7106.115152 | AZ75: 7091.993939 | BA75: 7077.872727 | BB75: 7063.751515 | BC75: 7049.630303 | BD75: 7035.509091 | BE75: 7021.387879 | BF75: 7007.266667 | BG75: 6993.145455
C76: Harney County, OR | D76: OR | E76: 8314 | F76: 7887 | G76: 7469 | H76: 7395 | I76: 7348 | J76: 7209 | K76: 7125 | L76: 7116 | M76: 7334 | N76: 7077 | O76: 7068 | P76: 7028 | Q76: 7006 | R76: 7058 | S76: 7227 | T76: 7238 | U76: 7201 | V76: 7202 | W76: 7436 | X76: 7565 | Y76: 7661 | Z76: 7491 | AA76: 7417 | AB76: 7360 | AC76: 7312 | AD76: 7211 | AE76: 7286 | AF76: 7327 | AG76: 7375 | AH76: 7432 | AI76: 7399 | AJ76: 7343.4 | AK76: 7340.2 | AL76: 7337 | AM76: 7333.8 | AN76: 7330.6 | AO76: 7327.4 | AP76: 7324.2 | AQ76: 7321 | AR76: 7317.8 | AS76: 7314.6 | AT76: 7311.4 | AU76: 7308.2 | AV76: 7305 | AW76: 7301.8 | AX76: 7298.6 | AY76: 7295.4 | AZ76: 7292.2 | BA76: 7289 | BB76: 7285.8 | BC76: 7282.6 | BD76: 7279.4 | BE76: 7276.2 | BF76: 7273 | BG76: 7269.8
C77: Hood River County, OR | D77: OR | E77: 15835 | F77: 15933 | G77: 16080 | H77: 16147 | I77: 16264 | J77: 16245 | K77: 16143 | L77: 16069 | M77: 16567 | N77: 16839 | O77: 16960 | P77: 17014 | Q77: 17492 | R77: 17976 | S77: 18402 | T77: 18916 | U77: 19339 | V77: 19529 | W77: 19926 | X77: 20199 | Y77: 20461 | Z77: 20397 | AA77: 20615 | AB77: 20621 | AC77: 20835 | AD77: 21022 | AE77: 21200 | AF77: 21276 | AG77: 21589 | AH77: 22015 | AI77: 22451 | AJ77: 22356.33333 | AK77: 22566.19394 | AL77: 22776.05455 | AM77: 22985.91515 | AN77: 23195.77576 | AO77: 23405.63636 | AP77: 23615.49697 | AQ77: 23825.35758 | AR77: 24035.21818 | AS77: 24245.07879 | AT77: 24454.93939 | AU77: 24664.8 | AV77: 24874.66061 | AW77: 25084.52121 | AX77: =FORECAST(AX$7,$Z77:$AI77,$Z$7:$AI$7) -> 25294.38182 | AY77: 25504.24242 | AZ77: 25714.10303 | BA77: 25923.96364 | BB77: 26133.82424 | BC77: 26343.68485 | BD77: 26553.54545 | BE77: 26763.40606 | BF77: 26973.26667 | BG77: 27183.12727
C78: Jackson County, OR | D78: OR | E78: 132456 | F78: 134546 | G78: 133847 | H78: 133130 | I78: 134830 | J78: 136444 | K78: 137397 | L78: 139626 | M78: 140860 | N78: 143549 | O78: 147392 | P78: 150956 | Q78: 154975 | R78: 159054 | S78: 163527 | T78: 167378 | U78: 170715 | V78: 173523 | W78: 176645 | X78: 179264 | Y78: 181775 | Z78: 183835 | AA78: 186704 | AB78: 189838 | AC78: 192185 | AD78: 194701 | AE78: 196858 | AF78: 199152 | AG78: 201162 | AH78: 202301 | AI78: 203462 | AJ78: 207203.1333 | AK78: 209418.2848 | AL78: 211633.4364 | AM78: 213848.5879 | AN78: 216063.7394 | AO78: 218278.8909 | AP78: 220494.0424 | AQ78: 222709.1939 | AR78: 224924.3455 | AS78: 227139.497 | AT78: 229354.6485 | AU78: 231569.8 | AV78: 233784.9515 | AW78: 236000.103 | AX78: 238215.2545 | AY78: 240430.4061 | AZ78: 242645.5576 | BA78: 244860.7091 | BB78: 247075.8606 | BC78: 249291.0121 | BD78: 251506.1636 | BE78: 253721.3152 | BF78: 255936.4667 | BG78: 258151.6182
C79: Jefferson County, OR | D79: OR | E79: 11599 | F79: 12133 | G79: 12305 | H79: 12478 | I79: 12600 | J79: 12748 | K79: 12490 | L79: 12604 | M79: 12768 | N79: 13239 | O79: 13853 | P79: 14366 | Q79: 14904 | R79: 15406 | S79: 16293 | T79: 16949 | U79: 17307 | V79: 17905 | W79: 18317 | X79: 18537 | Y79: 19113 | Z79: 19653 | AA79: 19941 | AB79: 20212 | AC79: 20339 | AD79: 20622 | AE79: 21113 | AF79: 21861 | AG79: 21885 | AH79: 21730 | AI79: 21670 | AJ79: 22372.53333 | AK79: 22639.79394 | AL79: 22907.05455 | AM79: 23174.31515 | AN79: 23441.57576 | AO79: 23708.83636 | AP79: 23976.09697 | AQ79: 24243.35758 | AR79: 24510.61818 | AS79: 24777.87879 | AT79: 25045.13939 | AU79: 25312.4 | AV79: 25579.66061 | AW79: 25846.92121 | AX79: 26114.18182 | AY79: 26381.44242 | AZ79: 26648.70303 | BA79: 26915.96364 | BB79: 27183.22424 | BC79: 27450.48485 | BD79: 27717.74545 | BE79: 27985.00606 | BF79: 28252.26667 | BG79: 28519.52727
C80: Josephine County, OR | D80: OR | E80: 58855 | F80: 59202 | G80: 58154 | H80: 57548 | I80: 59083 | J80: 60666 | K80: 60702 | L80: 61238 | M80: 61721 | N80: 61865 | O80: 62985 | P80: 64575 | Q80: 65507 | R80: 67500 | S80: 69406 | T80: 71313 | U80: 72310 | V80: 73442 | W80: 74455 | X80: 75209 | Y80: 75851 | Z80: 76452 | AA80: 77712 | AB80: 78779 | AC80: 79729 | AD80: 80660 | AE80: 81601 | AF80: 81746 | AG80: 82389 | AH80: 82315 | AI80: 82807 | AJ80: 84234.26667 | AK80: 84927.95152 | AL80: 85621.63636 | AM80: 86315.32121 | AN80: 87009.00606 | AO80: 87702.69091 | AP80: 88396.37576 | AQ80: 89090.06061 | AR80: 89783.74545 | AS80: 90477.4303 | AT80: 91171.11515 | AU80: 91864.8 | AV80: 92558.48485 | AW80: 93252.1697 | AX80: 93945.85455 | AY80: 94639.53939 | AZ80: 95333.22424 | BA80: 96026.90909 | BB80: 96720.59394 | BC80: 97414.27879 | BD80: 98107.96364 | BE80: 98801.64848 | BF80: 99495.33333 | BG80: 100189.0182
C81: Klamath County, OR | D81: OR | E81: 59117 | F81: 59773 | G81: 59035 | H81: 58124 | I81: 57867 | J81: 57476 | K81: 56528 | L81: 56275 | M81: 56585 | N81: 56888 | O81: 57948 | P81: 58285 | Q81: 58700 | R81: 59602 | S81: 60539 | T81: 61132 | U81: 62061 | V81: 62764 | W81: 63144 | X81: 63396 | Y81: 63885 | Z81: 64139 | AA81: 64150 | AB81: 64582 | AC81: 64841 | AD81: 65553 | AE81: 66294 | AF81: 66767 | AG81: 66732 | AH81: 66460 | AI81: 66345 | AJ81: 67362.73333 | AK81: 67685.72121 | AL81: 68008.70909 | AM81: 68331.69697 | AN81: 68654.68485 | AO81: 68977.67273 | AP81: 69300.66061 | AQ81: 69623.64848 | AR81: 69946.63636 | AS81: 70269.62424 | AT81: 70592.61212 | AU81: 70915.6 | AV81: 71238.58788 | AW81: 71561.57576 | AX81: 71884.56364 | AY81: 72207.55152 | AZ81: 72530.53939 | BA81: 72853.52727 | BB81: 73176.51515 | BC81: 73499.50303 | BD81: 73822.49091 | BE81: 74145.47879 | BF81: 74468.46667 | BG81: 74791.45455
C82: Lake County, OR | D82: OR | E82: 7532 | F82: 7776 | G82: 7782 | H82: 7765 | I82: 7784 | J82: 7608 | K82: 7355 | L82: 7446 | M82: 7382 | N82: 7275 | O82: 7182 | P82: 7165 | Q82: 7300 | R82: 7322 | S82: 7439 | T82: 7484 | U82: 7476 | V82: 7476 | W82: 7394 | X82: 7431 | Y82: 7428 | Z82: 7538 | AA82: 7522 | AB82: 7578 | AC82: 7576 | AD82: 7558 | AE82: 7796 | AF82: 7880 | AG82: 7961 | AH82: 7901 | AI82: 7872 | AJ82: 8009 | AK82: 8061.872727 | AL82: 8114.745455 | AM82: 8167.618182 | AN82: 8220.490909 | AO82: 8273.363636 | AP82: 8326.236364 | AQ82: 8379.109091 | AR82: 8431.981818 | AS82: 8484.854545 | AT82: 8537.727273 | AU82: 8590.6 | AV82: 8643.472727 | AW82: 8696.345455 | AX82: 8749.218182 | AY82: 8802.090909 | AZ82: 8854.963636 | BA82: 8907.836364 | BB82: 8960.709091 | BC82: 9013.581818 | BD82: 9066.454545 | BE82: 9119.327273 | BF82: 9172.2 | BG82: 9225.072727
C83: Lane County, OR | D83: OR | E83: 275226 | F83: 277068 | G83: 272346 | H83: 268453 | I83: 267878 | J83: 267051 | K83: 266239 | L83: 268636 | M83: 273014 | N83: 278665 | O83: 284261 | P83: 288490 | Q83: 292482 | R83: 297281 | S83: 301819 | T83: 306704 | U83: 311004 | V83: 316579 | W83: 319646 | X83: 321778 | Y83: 323492 | Z83: 324855 | AA83: 327506 | AB83: 330845 | AC83: 332327 | AD83: 335831 | AE83: 339926 | AF83: 344844 | AG83: 348176 | AH83: 350850 | AI83: 351983 | AJ83: 356576.3333 | AK83: 359823.9758 | AL83: 363071.6182 | AM83: 366319.2606 | AN83: 369566.903 | AO83: 372814.5455 | AP83: 376062.1879 | AQ83: 379309.8303 | AR83: 382557.4727 | AS83: 385805.1152 | AT83: 389052.7576 | AU83: 392300.4 | AV83: 395548.0424 | AW83: 398795.6848 | AX83: 402043.3273 | AY83: 405290.9697 | AZ83: 408538.6121 | BA83: 411786.2545 | BB83: 415033.897 | BC83: 418281.5394 | BD83: 421529.1818 | BE83: 424776.8242 | BF83: 428024.4667 | BG83: 431272.1091
C84: Lincoln County, OR | D84: OR | E84: 35264 | F84: 36006 | G84: 36364 | H84: 36622 | I84: 36335 | J84: 35979 | K84: 36106 | L84: 36591 | M84: 36970 | N84: 38031 | O84: 39075 | P84: 39920 | Q84: 40805 | R84: 42005 | S84: 43076 | T84: 44112 | U84: 44720 | V84: 45310 | W84: 45134 | X84: 44935 | Y84: 44317 | Z84: 43854 | AA84: 44270 | AB84: 44421 | AC84: 44877 | AD84: 45347 | AE84: 45529 | AF84: 45798 | AG84: 45915 | AH84: 45989 | AI84: 46054 | AJ84: 46613.66667 | AK84: 46869.71515 | AL84: 47125.76364 | AM84: 47381.81212 | AN84: 47637.86061 | AO84: 47893.90909 | AP84: 48149.95758 | AQ84: 48406.00606 | AR84: 48662.05455 | AS84: 48918.10303 | AT84: 49174.15152 | AU84: 49430.2 | AV84: 49686.24848 | AW84: 49942.29697 | AX84: 50198.34545 | AY84: 50454.39394 | AZ84: 50710.44242 | BA84: 50966.49091 | BB84: 51222.53939 | BC84: 51478.58788 | BD84: 51734.63636 | BE84: 51990.68485 | BF84: 52246.73333 | BG84: 52502.78182
C85: Linn County, OR | D85: OR | E85: 89495 | F85: 90173 | G85: 89748 | H85: 89415 | I85: 89253 | J85: 88019 | K85: 88026 | L85: 88069 | M85: 89223 | N85: 89890 | O85: 91690 | P85: 93145 | Q85: 94112 | R85: 95496 | S85: 96919 | T85: 98853 | U85: 100582 | V85: 102054 | W85: 102770 | X85: 103462 | Y85: 103020 | Z85: 103544 | AA85: 104561 | AB85: 106035 | AC85: 106799 | AD85: 108132 | AE85: 110764 | AF85: 112932 | AG85: 114967 | AH85: 116001 | AI85: 116910 | AJ85: 118933.3333 | AK85: 120545.8485 | AL85: 122158.3636 | AM85: 123770.8788 | AN85: 125383.3939 | AO85: 126995.9091 | AP85: 128608.4242 | AQ85: 130220.9394 | AR85: 131833.4545 | AS85: 133445.9697 | AT85: 135058.4848 | AU85: 136671 | AV85: 138283.5152 | AW85: 139896.0303 | AX85: 141508.5455 | AY85: 143121.0606 | AZ85: 144733.5758 | BA85: 146346.0909 | BB85: 147958.6061 | BC85: 149571.1212 | BD85: 151183.6364 | BE85: 152796.1515 | BF85: 154408.6667 | BG85: 156021.1818
C86: Malheur County, OR | D86: OR | E86: 26896 | F86: 27201 | G86: 27641 | H86: 27983 | I86: 28272 | J86: 27878 | K86: 27296 | L86: 26580 | M86: 26207 | N86: 25926 | O86: 26162 | P86: 26887 | Q86: 27752 | R86: 28365 | S86: 28820 | T86: 29550 | U86: 30211 | V86: 30708 | W86: 31248 | X86: 31558 | Y86: 31540 | Z86: 31532 | AA86: 31455 | AB86: 31335 | AC86: 31250 | AD86: 31273 | AE86: 31303 | AF86: 31434 | AG86: 31311 | AH86: 31265 | AI86: 31319 | AJ86: 31254.86667 | AK86: 31237.98788 | AL86: 31221.10909 | AM86: 31204.2303 | AN86: 31187.35152 | AO86: 31170.47273 | AP86: 31153.59394 | AQ86: 31136.71515 | AR86: 31119.83636 | AS86: 31102.95758 | AT86: 31086.07879 | AU86: 31069.2 | AV86: 31052.32121 | AW86: 31035.44242 | AX86: 31018.56364 | AY86: 31001.68485 | AZ86: 30984.80606 | BA86: 30967.92727 | BB86: 30951.04848 | BC86: 30934.1697 | BD86: 30917.29091 | BE86: 30900.41212 | BF86: 30883.53333 | BG86: 30866.65455
C87: Marion County, OR | D87: OR | E87: 204692 | F87: 208348 | G87: 209186 | H87: 210337 | I87: 211149 | J87: 213019 | K87: 214366 | L87: 216285 | M87: 220591 | N87: 224980 | O87: 229938 | P87: 235873 | Q87: 242236 | R87: 249287 | S87: 254855 | T87: 260879 | U87: 266490 | V87: 272178 | W87: 277257 | X87: 282129 | Y87: 285411 | Z87: 288136 | AA87: 292533 | AB87: 295317 | AC87: 297139 | AD87: 299461 | AE87: 303290 | AF87: 306964 | AG87: 309729 | AH87: 313389 | AI87: 316096 | AJ87: 318971.9333 | AK87: 322020.3939 | AL87: 325068.8545 | AM87: 328117.3152 | AN87: 331165.7758 | AO87: 334214.2364 | AP87: 337262.697 | AQ87: 340311.1576 | AR87: 343359.6182 | AS87: 346408.0788 | AT87: 349456.5394 | AU87: 352505 | AV87: 355553.4606 | AW87: 358601.9212 | AX87: 361650.3818 | AY87: 364698.8424 | AZ87: 367747.303 | BA87: 370795.7636 | BB87: 373844.2242 | BC87: 376892.6848 | BD87: 379941.1455 | BE87: 382989.6061 | BF87: 386038.0667 | BG87: 389086.5273
C88: Morrow County, OR | D88: OR | E88: 7519 | F88: 7382 | G88: 7519 | H88: 7699 | I88: 7972 | J88: 8090 | K88: 8124 | L88: 8096 | M88: 7768 | N88: 7684 | O88: 7618 | P88: 8028 | Q88: 8208 | R88: 8622 | S88: 8785 | T88: 9075 | U88: 9336 | V88: 9746 | W88: 10160 | X88: 10757 | Y88: 10995 | Z88: 11043 | AA88: 11313 | AB88: 11317 | AC88: 11275 | AD88: 11162 | AE88: 11203 | AF88: 11048 | AG88: 11002 | AH88: 11102 | AI88: 11207 | AJ88: 11093.33333 | AK88: 11079.90303 | AL88: 11066.47273 | AM88: 11053.04242 | AN88: 11039.61212 | AO88: 11026.18182 | AP88: 11012.75152 | AQ88: 10999.32121 | AR88: 10985.89091 | AS88: 10972.46061 | AT88: 10959.0303 | AU88: 10945.6 | AV88: 10932.1697 | AW88: 10918.73939 | AX88: 10905.30909 | AY88: 10891.87879 | AZ88: 10878.44848 | BA88: 10865.01818 | BB88: 10851.58788 | BC88: 10838.15758 | BD88: 10824.72727 | BE88: 10811.29697 | BF88: 10797.86667 | BG88: 10784.43636
C89: Multnomah County, OR | D89: OR | E89: 562647 | F89: 566197 | G89: 565189 | H89: 562371 | I89: 563391 | J89: 564249 | K89: 566459 | L89: 563560 | M89: 573023 | N89: 576816 | O89: 586617 | P89: 598286 | Q89: 606968 | R89: 616719 | S89: 622642 | T89: 629617 | U89: 639587 | V89: 647083 | W89: 652416 | X89: 657740 | Y89: 661654 | Z89: 669690 | AA89: 676653 | AB89: 679348 | AC89: 672526 | AD89: 674862 | AE89: 683767 | AF89: 697799 | AG89: 712989 | AH89: 727721 | AI89: 737902 | AJ89: 734136.1333 | AK89: 741556.2121 | AL89: 748976.2909 | AM89: 756396.3697 | AN89: 763816.4485 | AO89: 771236.5273 | AP89: 778656.6061 | AQ89: 786076.6848 | AR89: 793496.7636 | AS89: 800916.8424 | AT89: 808336.9212 | AU89: 815757 | AV89: 823177.0788 | AW89: 830597.1576 | AX89: 838017.2364 | AY89: 845437.3152 | AZ89: 852857.3939 | BA89: 860277.4727 | BB89: 867697.5515 | BC89: 875117.6303 | BD89: 882537.7091 | BE89: 889957.7879 | BF89: 897377.8667 | BG89: 904797.9455
C90: Polk County, OR | D90: OR | E90: 45203 | F90: 45802 | G90: 45664 | H90: 45063 | I90: 45391 | J90: 45231 | K90: 46072 | L90: 46752 | M90: 47648 | N90: 48620 | O90: 49924 | P90: 51329 | Q90: 52803 | R90: 53918 | S90: 55771 | T90: 56759 | U90: 57967 | V90: 59510 | W90: 61012 | X90: 61856 | Y90: 62596 | Z90: 63445 | AA90: 64135 | AB90: 65060 | AC90: 66569 | AD90: 68585 | AE90: 71027 | AF90: 72791 | AG90: 74346 | AH90: 74934 | AI90: 75625 | AJ90: 78076.73333 | AK90: 79608.55758 | AL90: 81140.38182 | AM90: 82672.20606 | AN90: 84204.0303 | AO90: 85735.85455 | AP90: 87267.67879 | AQ90: 88799.50303 | AR90: 90331.32727 | AS90: 91863.15152 | AT90: 93394.97576 | AU90: 94926.8 | AV90: 96458.62424 | AW90: 97990.44848 | AX90: 99522.27273 | AY90: 101054.097 | AZ90: 102585.9212 | BA90: 104117.7455 | BB90: 105649.5697 | BC90: 107181.3939 | BD90: 108713.2182 | BE90: 110245.0424 | BF90: =FORECAST(BF$7,$Z90:$AI90,$Z$7:$AI$7) -> 111776.8667 | BG90: 113308.6909
C91: Sherman County, OR | D91: OR | E91: 2172 | F91: 2168 | G91: 2152 | H91: 2169 | I91: 2201 | J91: 2141 | K91: 2061 | L91: 1952 | M91: 1941 | N91: 1932 | O91: 1924 | P91: 1928 | Q91: 1946 | R91: 1978 | S91: 1957 | T91: 1988 | U91: 1933 | V91: 1935 | W91: 1951 | X91: 1962 | Y91: 1921 | Z91: 1848 | AA91: 1763 | AB91: 1758 | AC91: 1682 | AD91: 1678 | AE91: 1682 | AF91: 1713 | AG91: 1691 | AH91: 1733 | AI91: 1774 | AJ91: 1695.066667 | AK91: 1688.315152 | AL91: 1681.563636 | AM91: 1674.812121 | AN91: 1668.060606 | AO91: 1661.309091 | AP91: 1654.557576 | AQ91: 1647.806061 | AR91: 1641.054545 | AS91: 1634.30303 | AT91: 1627.551515 | AU91: 1620.8 | AV91: 1614.048485 | AW91: 1607.29697 | AX91: 1600.545455 | AY91: 1593.793939 | AZ91: 1587.042424 | BA91: 1580.290909 | BB91: 1573.539394 | BC91: 1566.787879 | BD91: 1560.036364 | BE91: 1553.284848 | BF91: 1546.533333 | BG91: 1539.781818
C92: Tillamook County, OR | D92: OR | E92: 21164 | F92: 21528 | G92: 21653 | H92: 21563 | I92: 21411 | J92: 21022 | K92: 20998 | L92: 21102 | M92: 21163 | N92: 21356 | O92: 21638 | P92: 21991 | Q92: 22278 | R92: 22777 | S92: 23129 | T92: 23593 | U92: 23994 | V92: 24238 | W92: 24161 | X92: 24335 | Y92: 24253 | Z92: 24359 | AA92: 24396 | AB92: 24565 | AC92: 24780 | AD92: 24974 | AE92: 25160 | AF92: 25243 | AG92: 25151 | AH92: 25179 | AI92: 25265 | AJ92: 25511.86667 | AK92: 25621.80606 | AL92: 25731.74545 | AM92: 25841.68485 | AN92: 25951.62424 | AO92: 26061.56364 | AP92: 26171.50303 | AQ92: 26281.44242 | AR92: 26391.38182 | AS92: 26501.32121 | AT92: 26611.26061 | AU92: 26721.2 | AV92: 26831.13939 | AW92: 26941.07879 | AX92: 27051.01818 | AY92: 27160.95758 | AZ92: 27270.89697 | BA92: 27380.83636 | BB92: 27490.77576 | BC92: 27600.71515 | BD92: 27710.65455 | BE92: 27820.59394 | BF92: 27930.53333 | BG92: 28040.47273
C93: Umatilla County, OR | D93: OR | E93: 58861 | F93: 60056 | G93: 60227 | H93: 60428 | I93: 60657 | J93: 60024 | K93: 59540 | L93: 59115 | M93: 58531 | N93: 59092 | O93: 59433 | P93: 60439 | Q93: 61850 | R93: 63224 | S93: 64378 | T93: 65535 | U93: 66240 | V93: 66724 | W93: 68262 | X93: 69847 | Y93: 70728 | Z93: 70682 | AA93: 72150 | AB93: 72820 | AC93: 73463 | AD93: 73765 | AE93: 73984 | AF93: 74269 | AG93: 74488 | AH93: 75199 | AI93: 76079 | AJ93: 76386.33333 | AK93: 76876.59394 | AL93: 77366.85455 | AM93: 77857.11515 | AN93: 78347.37576 | AO93: 78837.63636 | AP93: 79327.89697 | AQ93: 79818.15758 | AR93: 80308.41818 | AS93: 80798.67879 | AT93: 81288.93939 | AU93: 81779.2 | AV93: 82269.46061 | AW93: 82759.72121 | AX93: 83249.98182 | AY93: 83740.24242 | AZ93: 84230.50303 | BA93: 84720.76364 | BB93: 85211.02424 | BC93: 85701.28485 | BD93: 86191.54545 | BE93: 86681.80606 | BF93: 87172.06667 | BG93: 87662.32727
C94: Union County, OR | D94: OR | E94: 23921 | F94: 24429 | G94: 24536 | H94: 24309 | I94: 24566 | J94: 24131 | K94: 23524 | L94: 23110 | M94: 23264 | N94: 23372 | O94: 23674 | P94: 23961 | Q94: 24096 | R94: 24666 | S94: 24928 | T94: 24931 | U94: 24934 | V94: 24939 | W94: 24746 | X94: 24590 | Y94: 24537 | Z94: 24353 | AA94: 24472 | AB94: 24607 | AC94: 24513 | AD94: 24675 | AE94: 24754 | AF94: 25263 | AG94: 25473 | AH94: 25580 | AI94: 25796 | AJ94: 25862 | AK94: 26028.07273 | AL94: 26194.14545 | AM94: 26360.21818 | AN94: 26526.29091 | AO94: 26692.36364 | AP94: 26858.43636 | AQ94: 27024.50909 | AR94: 27190.58182 | AS94: 27356.65455 | AT94: 27522.72727 | AU94: 27688.8 | AV94: 27854.87273 | AW94: 28020.94545 | AX94: 28187.01818 | AY94: 28353.09091 | AZ94: 28519.16364 | BA94: 28685.23636 | BB94: 28851.30909 | BC94: 29017.38182 | BD94: 29183.45455 | BE94: 29349.52727 | BF94: 29515.6 | BG94: 29681.67273
C95: Wallowa County, OR | D95: OR | E95: 7273 | F95: 7381 | G95: 7412 | H95: 7458 | I95: 7523 | J95: 7323 | K95: 6881 | L95: 6825 | M95: 6767 | N95: 6818 | O95: 6945 | P95: 7142 | Q95: 7258 | R95: 7449 | S95: 7478 | T95: 7504 | U95: 7507 | V95: 7511 | W95: 7367 | X95: 7262 | Y95: 7220 | Z95: 7112 | AA95: 7042 | AB95: 7008 | AC95: 6899 | AD95: 6877 | AE95: 6835 | AF95: 6884 | AG95: 6900 | AH95: 6948 | AI95: 7027 | AJ95: 6884.866667 | AK95: 6872.442424 | AL95: 6860.018182 | AM95: 6847.593939 | AN95: 6835.169697 | AO95: 6822.745455 | AP95: 6810.321212 | AQ95: 6797.89697 | AR95: 6785.472727 | AS95: 6773.048485 | AT95: 6760.624242 | AU95: 6748.2 | AV95: 6735.775758 | AW95: 6723.351515 | AX95: 6710.927273 | AY95: 6698.50303 | AZ95: 6686.078788 | BA95: 6673.654545 | BB95: 6661.230303 | BC95: 6648.806061 | BD95: 6636.381818 | BE95: 6623.957576 | BF95: 6611.533333 | BG95: 6599.109091
C96: Wasco County, OR | D96: OR | E96: 21732 | F96: 22769 | G96: 22767 | H96: 22428 | I96: 22595 | J96: 22627 | K96: 21247 | L96: 20941 | M96: 21005 | N96: 21439 | O96: 21781 | P96: 22182 | Q96: 22415 | R96: 22436 | S96: 22814 | T96: 23011 | U96: 23170 | V96: 23353 | W96: 23381 | X96: 23665 | Y96: 23837 | Z96: 23808 | AA96: 23699 | AB96: 23885 | AC96: 23817 | AD96: 23929 | AE96: 24159 | AF96: 24451 | AG96: 24617 | AH96: 24981 | AI96: 25266 | AJ96: 25190.8 | AK96: 25359.81818 | AL96: 25528.83636 | AM96: 25697.85455 | AN96: 25866.87273 | AO96: 26035.89091 | AP96: 26204.90909 | AQ96: 26373.92727 | AR96: 26542.94545 | AS96: 26711.96364 | AT96: 26880.98182 | AU96: 27050 | AV96: 27219.01818 | AW96: 27388.03636 | AX96: 27557.05455 | AY96: 27726.07273 | AZ96: 27895.09091 | BA96: 28064.10909 | BB96: 28233.12727 | BC96: 28402.14545 | BD96: 28571.16364 | BE96: 28740.18182 | BF96: 28909.2 | BG96: 29078.21818
C97: Washington County, OR | D97: OR | E97: 245860 | F97: 254860 | G97: 259720 | H97: 260332 | I97: 264916 | J97: 269244 | K97: 275243 | L97: 282252 | M97: 292467 | N97: 300230 | O97: 315469 | P97: 330646 | Q97: 344283 | R97: 357789 | S97: 370423 | T97: 384335 | U97: 398289 | V97: 411112 | W97: 423985 | X97: 435602 | Y97: 447980 | Z97: 460622 | AA97: 468549 | AB97: 474336 | AC97: 480207 | AD97: 490773 | AE97: 502226 | AF97: 508842 | AG97: 515815 | AH97: 524699 | AI97: 531744 | AJ97: 540378 | AK97: 548486.4909 | AL97: 556594.9818 | AM97: 564703.4727 | AN97: 572811.9636 | AO97: 580920.4545 | AP97: 589028.9455 | AQ97: 597137.4364 | AR97: 605245.9273 | AS97: 613354.4182 | AT97: 621462.9091 | AU97: 629571.4 | AV97: 637679.8909 | AW97: 645788.3818 | AX97: 653896.8727 | AY97: 662005.3636 | AZ97: 670113.8545 | BA97: 678222.3455 | BB97: 686330.8364 | BC97: 694439.3273 | BD97: 702547.8182 | BE97: 710656.3091 | BF97: 718764.8 | BG97: 726873.2909
C98: Wheeler County, OR | D98: OR | E98: 1513 | F98: 1458 | G98: 1473 | H98: 1461 | I98: 1473 | J98: 1470 | K98: 1464 | L98: 1378 | M98: 1336 | N98: 1382 | O98: 1400 | P98: 1439 | Q98: 1438 | R98: 1499 | S98: 1571 | T98: 1565 | U98: 1642 | V98: 1608 | W98: 1568 | X98: 1553 | Y98: 1546 | Z98: 1503 | AA98: 1534 | AB98: 1516 | AC98: 1473 | AD98: 1414 | AE98: 1425 | AF98: 1419 | AG98: 1399 | AH98: 1411 | AI98: 1450 | AJ98: 1385.266667 | AK98: 1372.69697 | AL98: 1360.127273 | AM98: 1347.557576 | AN98: 1334.987879 | AO98: 1322.418182 | AP98: 1309.848485 | AQ98: 1297.278788 | AR98: 1284.709091 | AS98: 1272.139394 | AT98: 1259.569697 | AU98: 1247 | AV98: 1234.430303 | AW98: 1221.860606 | AX98: 1209.290909 | AY98: 1196.721212 | AZ98: 1184.151515 | BA98: 1171.581818 | BB98: 1159.012121 | BC98: 1146.442424 | BD98: 1133.872727 | BE98: 1121.30303 | BF98: 1108.733333 | BG98: 1096.163636
C99: Yamhill County, OR | D99: OR | E99: 55332 | F99: 56716 | G99: 57411 | H99: 57639 | I99: 58277 | J99: 58837 | K99: 59557 | L99: 60544 | M99: 62152 | N99: 64010 | O99: 65999 | P99: 67818 | Q99: 69572 | R99: 71401 | S99: 73532 | T99: 76108 | U99: 78538 | V99: 80562 | W99: 82851 | X99: 84354 | Y99: 85198 | Z99: 86156 | AA99: 87370 | AB99: 88619 | AC99: 89447 | AD99: 90847 | AE99: 93198 | AF99: 95875 | AG99: 97537 | AH99: 98647 | AI99: 99391 | AJ99: 101518 | AK99: 103119.6909 | AL99: 104721.3818 | AM99: 106323.0727 | AN99: 107924.7636 | AO99: 109526.4545 | AP99: 111128.1455 | AQ99: 112729.8364 | AR99: 114331.5273 | AS99: 115933.2182 | AT99: 117534.9091 | AU99: 119136.6 | AV99: 120738.2909 | AW99: 122339.9818 | AX99: 123941.6727 | AY99: 125543.3636 | AZ99: 127145.0545 | BA99: 128746.7455 | BB99: 130348.4364 | BC99: 131950.1273 | BD99: 133551.8182 | BE99: 135153.5091 | BF99: 136755.2 | BG99: 138356.8909
C100: Adams County, WA | D100: WA | E100: 13267 | F100: 13202 | G100: 13240 | H100: 13403 | I100: 13533 | J100: 13618 | K100: 13482 | L100: 13599 | M100: 13476 | N100: 13575 | O100: 13636 | P100: 14100 | Q100: 14476 | R100: 14932 | S100: 15646 | T100: 15711 | U100: 15860 | V100: 16042 | W100: 16194 | X100: 16239 | Y100: 16458 | Z100: 16259 | AA100: 16445 | AB100: 16612 | AC100: 16664 | AD100: 16918 | AE100: 16997 | AF100: 17413 | AG100: 17782 | AH100: 18405 | AI100: 18821 | AJ100: 18730.06667 | AK100: 19002.51515 | AL100: 19274.96364 | AM100: 19547.41212 | AN100: 19819.86061 | AO100: 20092.30909 | AP100: 20364.75758 | AQ100: 20637.20606 | AR100: 20909.65455 | AS100: 21182.10303 | AT100: 21454.55152 | AU100: 21727 | AV100: 21999.44848 | AW100: 22271.89697 | AX100: 22544.34545 | AY100: 22816.79394 | AZ100: 23089.24242 | BA100: 23361.69091 | BB100: 23634.13939 | BC100: 23906.58788 | BD100: 24179.03636 | BE100: 24451.48485 | BF100: 24723.93333 | BG100: 24996.38182
C101: Asotin County, WA | D101: WA | E101: 16823 | F101: 16963 | G101: 16998 | H101: 17046 | I101: 17299 | J101: 17385 | K101: 17311 | L101: 17128 | M101: 17095 | N101: 17324 | O101: 17666 | P101: 17948 | Q101: 18399 | R101: 18860 | S101: 19454 | T101: 19894 | U101: 20280 | V101: 20499 | W101: 20721 | X101: 20560 | Y101: 20546 | Z101: 20447 | AA101: 20490 | AB101: 20487 | AC101: 20783 | AD101: 20908 | AE101: 21133 | AF101: 21188 | AG101: 21393 | AH101: 21415 | AI101: 21688 | AJ101: 21780.33333 | AK101: 21923.44848 | AL101: 22066.56364 | AM101: 22209.67879 | AN101: 22352.79394 | AO101: 22495.90909 | AP101: 22639.02424 | AQ101: 22782.13939 | AR101: 22925.25455 | AS101: 23068.3697 | AT101: 23211.48485 | AU101: 23354.6 | AV101: 23497.71515 | AW101: 23640.8303 | AX101: 23783.94545 | AY101: 23927.06061 | AZ101: 24070.17576 | BA101: 24213.29091 | BB101: 24356.40606 | BC101: 24499.52121 | BD101: 24642.63636 | BE101: 24785.75152 | BF101: 24928.86667 | BG101: 25071.98182
C102: Benton County, WA | D102: WA | E102: 109444 | F102: 113271 | G102: 116202 | H102: 112679 | I102: 110669 | J102: 110353 | K102: 110193 | L102: 110971 | M102: 110060 | N102: 109284 | O102: 113583 | P102: 116631 | Q102: 120711 | R102: 125195 | S102: 130703 | T102: 134740 | U102: 135833 | V102: 137376 | W102: 138628 | X102: 140629 | Y102: 143131 | Z102: 145909 | AA102: 150323 | AB102: 153596 | AC102: 155689 | AD102: 157726 | AE102: 159564 | AF102: 161669 | AG102: 166573 | AH102: 171122 | AI102: 176455 | AJ102: 176701.6 | AK102: 179763.2364 | AL102: 182824.8727 | AM102: 185886.5091 | AN102: 188948.1455 | AO102: 192009.7818 | AP102: 195071.4182 | AQ102: 198133.0545 | AR102: 201194.6909 | AS102: 204256.3273 | AT102: 207317.9636 | AU102: 210379.6 | AV102: 213441.2364 | AW102: 216502.8727 | AX102: 219564.5091 | AY102: 222626.1455 | AZ102: 225687.7818 | BA102: 228749.4182 | BB102: 231811.0545 | BC102: 234872.6909 | BD102: 237934.3273 | BE102: 240995.9636 | BF102: 244057.6 | BG102: 247119.2364
C103: Chelan County, WA | D103: WA | E103: 45061 | F103: 46242 | G103: 46530 | H103: 47528 | I103: 48598 | J103: 49312 | K103: 49478 | L103: 49636 | M103: 50916 | N103: 51698 | O103: 52476 | P103: 53627 | Q103: 55127 | R103: 56599 | S103: 58384 | T103: 60569 | U103: 62091 | V103: 63233 | W103: 64415 | X103: 65764 | Y103: 66648 | Z103: 66574 | AA103: 66742 | AB103: 67173 | AC103: 67882 | AD103: 68747 | AE103: 69536 | AF103: 70214 | AG103: 70813 | AH103: 71679 | AI103: 72735 | AJ103: 73075.93333 | AK103: 73778.92121 | AL103: 74481.90909 | AM103: 75184.89697 | AN103: 75887.88485 | AO103: 76590.87273 | AP103: 77293.86061 | AQ103: 77996.84848 | AR103: 78699.83636 | AS103: 79402.82424 | AT103: 80105.81212 | AU103: 80808.8 | AV103: 81511.78788 | AW103: 82214.77576 | AX103: 82917.76364 | AY103: 83620.75152 | AZ103: 84323.73939 | BA103: 85026.72727 | BB103: 85729.71515 | BC103: 86432.70303 | BD103: 87135.69091 | BE103: 87838.67879 | BF103: 88541.66667 | BG103: 89244.65455
C104: Clallam County, WA | D104: =RIGHT(C104,2) -> WA | E104: 51648 | F104: 51825 | G104: 51217 | H104: 51162 | I104: 51629 | J104: 52068 | K104: 52687 | L104: 53797 | M104: 54425 | N104: 55241 | O104: 56525 | P104: 57926 | Q104: 59494 | R104: 60643 | S104: 61485 | T104: 62108 | U104: 62916 | V104: 63380 | W104: 63998 | X104: 64252 | Y104: 64269 | Z104: 64756 | AA104: 65777 | AB104: 66301 | AC104: 67411 | AD104: 68720 | AE104: 69642 | AF104: 70186 | AG104: 70769 | AH104: 71077 | AI104: 71515 | AJ104: 72932.66667 | AK104: 73717.62424 | AL104: 74502.58182 | AM104: 75287.53939 | AN104: 76072.49697 | AO104: 76857.45455 | AP104: 77642.41212 | AQ104: 78427.3697 | AR104: 79212.32727 | AS104: 79997.28485 | AT104: 80782.24242 | AU104: =FORECAST(AU$7,$Z104:$AI104,$Z$7:$AI$7) -> 81567.2 | AV104: 82352.15758 | AW104: 83137.11515 | AX104: 83922.07273 | AY104: 84707.0303 | AZ104: 85491.98788 | BA104: 86276.94545 | BB104: 87061.90303 | BC104: 87846.86061 | BD104: 88631.81818 | BE104: 89416.77576 | BF104: 90201.73333 | BG104: 90986.69091
C105: Clark County, WA | D105: WA | E105: 192227 | F105: 196863 | G105: 199472 | H105: 199673 | I105: 201634 | J105: 205606 | K105: 209610 | L105: 214534 | M105: 221654 | N105: 228760 | O105: 240883 | P105: 252172 | Q105: 260947 | R105: 272259 | S105: 283560 | T105: 294656 | U105: 307614 | V105: 320584 | W105: 330699 | X105: 339541 | Y105: 347208 | Z105: 357211 | AA105: 366405 | AB105: 374098 | AC105: 384931 | AD105: 394277 | AE105: 401698 | AF105: 408820 | AG105: 415282 | AH105: 421236 | AI105: 427044 | AJ105: =FORECAST(AJ$7,$Z105:$AI105,$Z$7:$AI$7) -> 438344.2667 | AK105: 446206.8242 | AL105: 454069.3818 | AM105: 461931.9394 | AN105: 469794.497 | AO105: 477657.0545 | AP105: 485519.6121 | AQ105: 493382.1697 | AR105: 501244.7273 | AS105: 509107.2848 | AT105: 516969.8424 | AU105: 524832.4 | AV105: 532694.9576 | AW105: 540557.5152 | AX105: 548420.0727 | AY105: 556282.6303 | AZ105: 564145.1879 | BA105: 572007.7455 | BB105: 579870.303 | BC105: 587732.8606 | BD105: 595595.4182 | BE105: 603457.9758 | BF105: 611320.5333 | BG105: 619183.0909
C106: Columbia County, WA | D106: WA | E106: 4057 | F106: 4069 | G106: 4030 | H106: 4086 | I106: 4111 | J106: 4138 | K106: 4157 | L106: 4114 | M106: 4076 | N106: 4057 | O106: 4020 | P106: 3890 | Q106: 3939 | R106: 4017 | S106: 4053 | T106: 4148 | U106: 4176 | V106: 4126 | W106: 4082 | X106: 4061 | Y106: 4069 | Z106: 4034 | AA106: 3995 | AB106: 4003 | AC106: 4027 | AD106: 3974 | AE106: 3895 | AF106: 3897 | AG106: 3903 | AH106: 3977 | AI106: 4113 | AJ106: 3969 | AK106: 3966.672727 | AL106: 3964.345455 | AM106: 3962.018182 | AN106: 3959.690909 | AO106: =FORECAST(AO$7,$Z106:$AI106,$Z$7:$AI$7) -> 3957.363636 | AP106: 3955.036364 | AQ106: 3952.709091 | AR106: 3950.381818 | AS106: 3948.054545 | AT106: 3945.727273 | AU106: 3943.4 | AV106: 3941.072727 | AW106: 3938.745455 | AX106: 3936.418182 | AY106: 3934.090909 | AZ106: 3931.763636 | BA106: 3929.436364 | BB106: 3927.109091 | BC106: 3924.781818 | BD106: 3922.454545 | BE106: 3920.127273 | BF106: 3917.8 | BG106: 3915.472727
C107: Cowlitz County, WA | D107: WA | E107: 79548 | F107: 79657 | G107: 79006 | H107: 78908 | I107: 79138 | J107: 78627 | K107: 77632 | L107: 78428 | M107: 79531 | N107: 80982 | O107: 82478 | P107: 84207 | Q107: 85316 | R107: 86506 | S107: 87791 | T107: 89284 | U107: 90325 | V107: 91367 | W107: 92301 | X107: 92820 | Y107: 92984 | Z107: 93608 | AA107: 94325 | AB107: 94516 | AC107: 95541 | AD107: 96536 | AE107: 99162 | AF107: 100744 | AG107: 101688 | AH107: 102126 | AI107: 102501 | AJ107: 104366 | AK107: 105509.8727 | AL107: 106653.7455 | AM107: 107797.6182 | AN107: 108941.4909 | AO107: 110085.3636 | AP107: 111229.2364 | AQ107: 112373.1091 | AR107: 113516.9818 | AS107: 114660.8545 | AT107: 115804.7273 | AU107: 116948.6 | AV107: 118092.4727 | AW107: 119236.3455 | AX107: 120380.2182 | AY107: 121524.0909 | AZ107: 122667.9636 | BA107: 123811.8364 | BB107: 124955.7091 | BC107: 126099.5818 | BD107: 127243.4545 | BE107: 128387.3273 | BF107: 129531.2 | BG107: 130675.0727
C108: Douglas County, WA | D108: WA | E108: 22144 | F108: 22762 | G108: 23092 | H108: 23455 | I108: 23830 | J108: 24274 | K108: 24381 | L108: 24600 | M108: 25090 | N108: 25806 | O108: 26389 | P108: 27593 | Q108: 28443 | R108: 29428 | S108: 30371 | T108: 31107 | U108: 31395 | V108: 31885 | W108: 32404 | X108: 32572 | Y108: 32674 | Z108: 32787 | AA108: 33044 | AB108: 33481 | AC108: 34086 | AD108: 34622 | AE108: 35558 | AF108: 36503 | AG108: 37216 | AH108: 37935 | AI108: 38589 | AJ108: 39159.33333 | AK108: 39846.10303 | AL108: 40532.87273 | AM108: 41219.64242 | AN108: 41906.41212 | AO108: 42593.18182 | AP108: 43279.95152 | AQ108: 43966.72121 | AR108: 44653.49091 | AS108: 45340.26061 | AT108: 46027.0303 | AU108: 46713.8 | AV108: 47400.5697 | AW108: 48087.33939 | AX108: 48774.10909 | AY108: 49460.87879 | AZ108: 50147.64848 | BA108: 50834.41818 | BB108: 51521.18788 | BC108: 52207.95758 | BD108: 52894.72727 | BE108: 53581.49697 | BF108: 54268.26667 | BG108: 54955.03636
C109: Ferry County, WA | D109: WA | E109: 5811 | F109: 5925 | G109: 5904 | H109: 5846 | I109: 5955 | J109: 5909 | K109: 5896 | L109: 5852 | M109: 5998 | N109: 6159 | O109: 6329 | P109: 6525 | Q109: 6712 | R109: 6788 | S109: 6969 | T109: 7121 | U109: 7123 | V109: 7198 | W109: 7122 | X109: 7155 | Y109: 7276 | Z109: 7285 | AA109: 7280 | AB109: 7424 | AC109: 7478 | AD109: 7495 | AE109: 7562 | AF109: 7430 | AG109: 7439 | AH109: 7538 | AI109: 7553 | AJ109: 7588.933333 | AK109: 7614.484848 | AL109: 7640.036364 | AM109: 7665.587879 | AN109: 7691.139394 | AO109: 7716.690909 | AP109: 7742.242424 | AQ109: 7767.793939 | AR109: 7793.345455 | AS109: 7818.89697 | AT109: 7844.448485 | AU109: 7870 | AV109: 7895.551515 | AW109: 7921.10303 | AX109: 7946.654545 | AY109: 7972.206061 | AZ109: 7997.757576 | BA109: 8023.309091 | BB109: 8048.860606 | BC109: 8074.412121 | BD109: 8099.963636 | BE109: 8125.515152 | BF109: 8151.066667 | BG109: 8176.618182
C110: Franklin County, WA | D110: WA | E110: 35025 | F110: 36147 | G110: 36877 | H110: 36692 | I110: 36760 | J110: 36047 | K110: 36358 | L110: 36576 | M110: 36690 | N110: 36833 | O110: 37748 | P110: 39362 | Q110: 40969 | R110: 42880 | S110: 44254 | T110: 45761 | U110: 45772 | V110: 46533 | W110: 47662 | X110: 48396 | Y110: 49565 | Z110: 50511 | AA110: 52365 | AB110: 55447 | AC110: 58165 | AD110: 61360 | AE110: 64585 | AF110: 67586 | AG110: 70775 | AH110: 74478 | AI110: 79223 | AJ110: 80827.06667 | AK110: 83986.62424 | AL110: 87146.18182 | AM110: 90305.73939 | AN110: 93465.29697 | AO110: 96624.85455 | AP110: 99784.41212 | AQ110: 102943.9697 | AR110: 106103.5273 | AS110: 109263.0848 | AT110: 112422.6424 | AU110: 115582.2 | AV110: 118741.7576 | AW110: 121901.3152 | AX110: 125060.8727 | AY110: 128220.4303 | AZ110: 131379.9879 | BA110: 134539.5455 | BB110: 137699.103 | BC110: 140858.6606 | BD110: 144018.2182 | BE110: 147177.7758 | BF110: 150337.3333 | BG110: 153496.8909
C111: Garfield County, WA | D111: WA | E111: 2468 | F111: 2446 | G111: 2424 | H111: 2465 | I111: 2485 | J111: 2431 | K111: 2381 | L111: 2325 | M111: 2310 | N111: 2253 | O111: 2248 | P111: 2248 | Q111: 2267 | R111: 2299 | S111: 2342 | T111: 2326 | U111: 2347 | V111: 2347 | W111: 2379 | X111: 2410 | Y111: 2383 | Z111: 2313 | AA111: 2293 | AB111: 2316 | AC111: 2270 | AD111: 2274 | AE111: 2245 | AF111: 2203 | AG111: 2244 | AH111: 2237 | AI111: 2269 | AJ111: 2220.466667 | AK111: 2212.115152 | AL111: 2203.763636 | AM111: 2195.412121 | AN111: 2187.060606 | AO111: 2178.709091 | AP111: 2170.357576 | AQ111: 2162.006061 | AR111: 2153.654545 | AS111: 2145.30303 | AT111: 2136.951515 | AU111: 2128.6 | AV111: 2120.248485 | AW111: 2111.89697 | AX111: 2103.545455 | AY111: 2095.193939 | AZ111: 2086.842424 | BA111: 2078.490909 | BB111: 2070.139394 | BC111: 2061.787879 | BD111: 2053.436364 | BE111: 2045.084848 | BF111: 2036.733333 | BG111: 2028.381818
C112: Grant County, WA | D112: WA | E112: 48522 | F112: 48967 | G112: 49768 | H112: 51245 | I112: 51933 | J112: 52546 | K112: 53491 | L112: 53534 | M112: 53755 | N112: 54080 | O112: 55085 | P112: 57315 | Q112: 59451 | R112: 61506 | S112: 63831 | T112: 66369 | U112: 68409 | V112: 70657 | W112: 72464 | X112: 73928 | Y112: 74918 | Z112: 76044 | AA112: 76944 | AB112: 77955 | AC112: 78734 | AD112: 79531 | AE112: 81036 | AF112: 82645 | AG112: 84944 | AH112: 87340 | AI112: 89744 | AJ112: 89633.53333 | AK112: 91113.86667 | AL112: 92594.2 | AM112: 94074.53333 | AN112: 95554.86667 | AO112: 97035.2 | AP112: 98515.53333 | AQ112: 99995.86667 | AR112: 101476.2 | AS112: 102956.5333 | AT112: 104436.8667 | AU112: 105917.2 | AV112: 107397.5333 | AW112: 108877.8667 | AX112: 110358.2 | AY112: 111838.5333 | AZ112: 113318.8667 | BA112: 114799.2 | BB112: 116279.5333 | BC112: 117759.8667 | BD112: 119240.2 | BE112: 120720.5333 | BF112: 122200.8667 | BG112: 123681.2
C113: Grays Harbor County, WA | D113: WA | E113: 66314 | F113: 66799 | G113: 65659 | H113: 64815 | I113: 64246 | J113: 62983 | K113: 62331 | L113: 62341 | M113: 62907 | N113: 63330 | O113: 64397 | P113: 64649 | Q113: 65417 | R113: 65991 | S113: 66644 | T113: 67273 | U113: 67764 | V113: 68022 | W113: 67466 | X113: 67265 | Y113: 67075 | Z113: 67896 | AA113: 68264 | AB113: 69065 | AC113: 69775 | AD113: 70423 | AE113: 71256 | AF113: 71827 | AG113: 72027 | AH113: 72468 | AI113: 72882 | AJ113: 73791.66667 | AK113: 74374.09697 | AL113: 74956.52727 | AM113: 75538.95758 | AN113: 76121.38788 | AO113: 76703.81818 | AP113: 77286.24848 | AQ113: 77868.67879 | AR113: 78451.10909 | AS113: 79033.53939 | AT113: 79615.9697 | AU113: 80198.4 | AV113: 80780.8303 | AW113: 81363.26061 | AX113: 81945.69091 | AY113: 82528.12121 | AZ113: 83110.55152 | BA113: 83692.98182 | BB113: 84275.41212 | BC113: 84857.84242 | BD113: 85440.27273 | BE113: 86022.70303 | BF113: 86605.13333 | BG113: 87187.56364
C114: Island County, WA | D114: WA | E114: 44048 | F114: 45269 | G114: 45505 | H114: 46460 | I114: 47308 | J114: 48703 | K114: 50111 | L114: 52417 | M114: 54566 | N114: 57493 | O114: 60907 | P114: 61953 | Q114: 64611 | R114: 64582 | S114: 65678 | T114: 66654 | U114: 67075 | V114: 68983 | W114: 69154 | X114: 70440 | Y114: 71886 | Z114: 73884 | AA114: 74840 | AB114: 74670 | AC114: 77667 | AD114: 77589 | AE114: 79136 | AF114: 78726 | AG114: 78375 | AH114: 78248 | AI114: 78681 | AJ114: 80190.86667 | AK114: 80738.00606 | AL114: 81285.14545 | AM114: 81832.28485 | AN114: 82379.42424 | AO114: 82926.56364 | AP114: 83473.70303 | AQ114: 84020.84242 | AR114: 84567.98182 | AS114: 85115.12121 | AT114: 85662.26061 | AU114: 86209.4 | AV114: 86756.53939 | AW114: 87303.67879 | AX114: 87850.81818 | AY114: 88397.95758 | AZ114: 88945.09697 | BA114: 89492.23636 | BB114: 90039.37576 | BC114: 90586.51515 | BD114: 91133.65455 | BE114: 91680.79394 | BF114: 92227.93333 | BG114: 92775.07273
C115: Jefferson County, WA | D115: WA | E115: 15965 | F115: 16637 | G115: 16794 | H115: 16810 | I115: 17034 | J115: 17443 | K115: 18065 | L115: 18395 | M115: 18689 | N115: 19273 | O115: 20659 | P115: 21451 | Q115: 22272 | R115: 23042 | S115: 23607 | T115: 24377 | U115: 24721 | V115: 24898 | W115: 25328 | X115: 25646 | Y115: 26414 | Z115: 26845 | AA115: 27201 | AB115: 27588 | AC115: 27949 | AD115: 28506 | AE115: 29239 | AF115: 29346 | AG115: 29648 | AH115: 29714 | AI115: 29924 | AJ115: 30613.53333 | AK115: 30980.35758 | AL115: 31347.18182 | AM115: 31714.00606 | AN115: 32080.8303 | AO115: 32447.65455 | AP115: 32814.47879 | AQ115: 33181.30303 | AR115: 33548.12727 | AS115: 33914.95152 | AT115: 34281.77576 | AU115: 34648.6 | AV115: 35015.42424 | AW115: 35382.24848 | AX115: 35749.07273 | AY115: 36115.89697 | AZ115: 36482.72121 | BA115: 36849.54545 | BB115: 37216.3697 | BC115: 37583.19394 | BD115: 37950.01818 | BE115: 38316.84242 | BF115: 38683.66667 | BG115: 39050.49091
C116: King County, WA | D116: WA | E116: 1269898 | F116: 1300390 | G116: 1311370 | H116: 1316336 | I116: 1328049 | J116: 1352665 | K116: 1377451 | L116: 1406373 | M116: 1440287 | N116: 1476320 | O116: 1517208 | P116: 1541496 | Q116: 1571515 | R116: 1596032 | S116: 1611851 | T116: 1631940 | U116: 1654937 | V116: 1684755 | W116: 1712411 | X116: 1729058 | Y116: 1739009 | Z116: 1754090 | AA116: 1758685 | AB116: 1763440 | AC116: 1775297 | AD116: 1795268 | AE116: 1822967 | AF116: 1847986 | AG116: 1875020 | AH116: 1912012 | AI116: 1937961 | AJ116: 1941999.067 | AK116: 1963403.879 | AL116: 1984808.691 | AM116: 2006213.503 | AN116: 2027618.315 | AO116: 2049023.127 | AP116: 2070427.939 | AQ116: 2091832.752 | AR116: 2113237.564 | AS116: 2134642.376 | AT116: 2156047.188 | AU116: 2177452 | AV116: 2198856.812 | AW116: 2220261.624 | AX116: 2241666.436 | AY116: 2263071.248 | AZ116: 2284476.061 | BA116: 2305880.873 | BB116: 2327285.685 | BC116: 2348690.497 | BD116: 2370095.309 | BE116: 2391500.121 | BF116: 2412904.933 | BG116: 2434309.745
C117: Kitsap County, WA | D117: WA | E117: 147152 | F117: 154907 | G117: 155059 | H117: 160515 | I117: 161742 | J117: 163546 | K117: 164293 | L117: 169760 | M117: 178929 | N117: 182461 | O117: 191879 | P117: 199636 | Q117: 209562 | R117: 211262 | S117: 214422 | T117: 223391 | U117: 226584 | V117: 229403 | W117: 228878 | X117: 229393 | Y117: 232720 | Z117: 234513 | AA117: 238129 | AB117: 239758 | AC117: 241960 | AD117: 239806 | AE117: 245054 | AF117: 244105 | AG117: 246912 | AH117: 248800 | AI117: 251809 | AJ117: 252345.0667 | AK117: 254028.7879 | AL117: 255712.5091 | AM117: 257396.2303 | AN117: 259079.9515 | AO117: 260763.6727 | AP117: 262447.3939 | AQ117: 264131.1152 | AR117: 265814.8364 | AS117: 267498.5576 | AT117: 269182.2788 | AU117: 270866 | AV117: 272549.7212 | AW117: 274233.4424 | AX117: 275917.1636 | AY117: 277600.8848 | AZ117: 279284.6061 | BA117: 280968.3273 | BB117: 282652.0485 | BC117: 284335.7697 | BD117: 286019.4909 | BE117: 287703.2121 | BF117: 289386.9333 | BG117: 291070.6545
C118: Kittitas County, WA | D118: WA | E118: 24877 | F118: 25149 | G118: 25021 | H118: 25342 | I118: 25147 | J118: 25247 | K118: 25102 | L118: 25559 | M118: 25575 | N118: 26203 | O118: 26859 | P118: 27790 | Q118: 28202 | R118: 29227 | S118: 30271 | T118: 30766 | U118: 31474 | V118: 32228 | W118: 32459 | X118: 32914 | Y118: 33537 | Z118: 34000 | AA118: 34977 | AB118: 35726 | AC118: 36921 | AD118: 37537 | AE118: 38680 | AF118: 39158 | AG118: 40015 | AH118: 40466 | AI118: 41028 | AJ118: 42216.6 | AK118: 43010.38182 | AL118: 43804.16364 | AM118: 44597.94545 | AN118: 45391.72727 | AO118: 46185.50909 | AP118: 46979.29091 | AQ118: 47773.07273 | AR118: 48566.85455 | AS118: 49360.63636 | AT118: 50154.41818 | AU118: 50948.2 | AV118: 51741.98182 | AW118: 52535.76364 | AX118: 53329.54545 | AY118: 54123.32727 | AZ118: 54917.10909 | BA118: 55710.89091 | BB118: 56504.67273 | BC118: 57298.45455 | BD118: 58092.23636 | BE118: 58886.01818 | BF118: 59679.8 | BG118: 60473.58182
C119: Klickitat County, WA | D119: WA | E119: 15822 | F119: 16429 | G119: 16442 | H119: 16533 | I119: 16501 | J119: 16580 | K119: 16169 | L119: 15945 | M119: 15970 | N119: 16386 | O119: 16665 | P119: 16706 | Q119: 17065 | R119: 17343 | S119: 17519 | T119: 17931 | U119: 18123 | V119: 18503 | W119: 18830 | X119: 18929 | Y119: 19204 | Z119: 19161 | AA119: 19060 | AB119: 19242 | AC119: 19232 | AD119: 19279 | AE119: 19701 | AF119: 19898 | AG119: 20135 | AH119: 20164 | AI119: 20378 | AJ119: 20477.2 | AK119: 20632.14545 | AL119: 20787.09091 | AM119: 20942.03636 | AN119: 21096.98182 | AO119: 21251.92727 | AP119: 21406.87273 | AQ119: 21561.81818 | AR119: 21716.76364 | AS119: 21871.70909 | AT119: 22026.65455 | AU119: 22181.6 | AV119: 22336.54545 | AW119: =FORECAST(AW$7,$Z119:$AI119,$Z$7:$AI$7) -> 22491.49091 | AX119: 22646.43636 | AY119: 22801.38182 | AZ119: 22956.32727 | BA119: 23111.27273 | BB119: 23266.21818 | BC119: 23421.16364 | BD119: 23576.10909 | BE119: 23731.05455 | BF119: 23886 | BG119: 24040.94545
C120: Lewis County, WA | D120: WA | E120: 56025 | F120: 56721 | G120: 57175 | H120: 57149 | I120: 57007 | J120: 56862 | K120: 57087 | L120: 57468 | M120: 57788 | N120: 58663 | O120: 59546 | P120: 60731 | Q120: 61455 | R120: 63237 | S120: 64490 | T120: 65690 | U120: 66572 | V120: 67315 | W120: 67858 | X120: 68345 | Y120: 68596 | Z120: 68934 | AA120: 69452 | AB120: 70366 | AC120: 71021 | AD120: 72060 | AE120: 73318 | AF120: 74229 | AG120: 74899 | AH120: 75316 | AI120: 75487 | AJ120: 76960.6 | AK120: 77770.12727 | AL120: 78579.65455 | AM120: 79389.18182 | AN120: 80198.70909 | AO120: 81008.23636 | AP120: 81817.76364 | AQ120: 82627.29091 | AR120: 83436.81818 | AS120: 84246.34545 | AT120: 85055.87273 | AU120: 85865.4 | AV120: 86674.92727 | AW120: 87484.45455 | AX120: 88293.98182 | AY120: 89103.50909 | AZ120: 89913.03636 | BA120: 90722.56364 | BB120: 91532.09091 | BC120: 92341.61818 | BD120: 93151.14545 | BE120: 93960.67273 | BF120: 94770.2 | BG120: 95579.72727
C121: Lincoln County, WA | D121: WA | E121: 9604 | F121: 9626 | G121: 9532 | H121: 9507 | I121: 9482 | J121: 9348 | K121: 9053 | L121: 9054 | M121: 8911 | N121: 8880 | O121: 8882 | P121: 8983 | Q121: 9113 | R121: 9382 | S121: 9596 | T121: 9662 | U121: 9801 | V121: 9982 | W121: 10096 | X121: 10129 | Y121: 10143 | Z121: 10123 | AA121: 10092 | AB121: 10206 | AC121: 10442 | AD121: 10350 | AE121: 10418 | AF121: 10509 | AG121: 10608 | AH121: 10570 | AI121: 10561 | AJ121: 10706.8 | AK121: 10764.78182 | AL121: 10822.76364 | AM121: 10880.74545 | AN121: 10938.72727 | AO121: 10996.70909 | AP121: 11054.69091 | AQ121: 11112.67273 | AR121: 11170.65455 | AS121: 11228.63636 | AT121: 11286.61818 | AU121: 11344.6 | AV121: 11402.58182 | AW121: 11460.56364 | AX121: 11518.54545 | AY121: 11576.52727 | AZ121: 11634.50909 | BA121: 11692.49091 | BB121: 11750.47273 | BC121: 11808.45455 | BD121: 11866.43636 | BE121: 11924.41818 | BF121: 11982.4 | BG121: 12040.38182
C122: Mason County, WA | D122: WA | E122: 31184 | F122: 32134 | G122: 32819 | H122: 33351 | I122: 34365 | J122: 34535 | K122: 35015 | L122: 35616 | M122: 36393 | N122: 37051 | O122: 38683 | P122: 40514 | Q122: 42169 | R122: 43632 | S122: 45106 | T122: 46419 | U122: 47325 | V122: 48318 | W122: 48454 | X122: 48753 | Y122: 49631 | Z122: 50298 | AA122: 51215 | AB122: 52351 | AC122: 53819 | AD122: 55198 | AE122: 56872 | AF122: 58679 | AG122: 59785 | AH122: 60333 | AI122: 60766 | AJ122: 62980.33333 | AK122: 64261.92121 | AL122: 65543.50909 | AM122: 66825.09697 | AN122: 68106.68485 | AO122: 69388.27273 | AP122: 70669.86061 | AQ122: 71951.44848 | AR122: 73233.03636 | AS122: 74514.62424 | AT122: 75796.21212 | AU122: 77077.8 | AV122: 78359.38788 | AW122: 79640.97576 | AX122: 80922.56364 | AY122: 82204.15152 | AZ122: 83485.73939 | BA122: 84767.32727 | BB122: 86048.91515 | BC122: 87330.50303 | BD122: 88612.09091 | BE122: 89893.67879 | BF122: 91175.26667 | BG122: 92456.85455
C123: Okanogan County, WA | D123: WA | E123: 30663 | F123: 31580 | G123: 31978 | H123: 32392 | I123: 32633 | J123: 32665 | K123: 32470 | L123: 32355 | M123: 32843 | N123: 33169 | O123: 33424 | P123: 33744 | Q123: 34579 | R123: 35529 | S123: 36531 | T123: 37492 | U123: 38510 | V123: 39116 | W123: 39244 | X123: 39394 | Y123: 39566 | Z123: 39126 | AA123: 38865 | AB123: 38575 | AC123: 38847 | AD123: 39143 | AE123: 39322 | AF123: 39676 | AG123: 40235 | AH123: 40699 | AI123: 41257 | AJ123: 41007.26667 | AK123: 41267.7697 | AL123: 41528.27273 | AM123: 41788.77576 | AN123: 42049.27879 | AO123: 42309.78182 | AP123: 42570.28485 | AQ123: 42830.78788 | AR123: 43091.29091 | AS123: 43351.79394 | AT123: 43612.29697 | AU123: 43872.8 | AV123: 44133.30303 | AW123: 44393.80606 | AX123: 44654.30909 | AY123: 44914.81212 | AZ123: 45175.31515 | BA123: 45435.81818 | BB123: 45696.32121 | BC123: 45956.82424 | BD123: 46217.32727 | BE123: 46477.8303 | BF123: 46738.33333 | BG123: 46998.83636
C124: Pacific County, WA | D124: WA | E124: 17237 | F124: 17778 | G124: 17849 | H124: 17894 | I124: 17856 | J124: 17691 | K124: 17743 | L124: 18056 | M124: 18140 | N124: 18481 | O124: 18961 | P124: 19166 | Q124: 19587 | R124: 19997 | S124: 20405 | T124: 20907 | U124: 21090 | V124: 21178 | W124: 21088 | X124: 21039 | Y124: 20939 | Z124: 20631 | AA124: 20514 | AB124: 20885 | AC124: 20953 | AD124: 21228 | AE124: 21326 | AF124: 21415 | AG124: 21305 | AH124: 21026 | AI124: 20886 | AJ124: 21332.33333 | AK124: 21389.68485 | AL124: 21447.03636 | AM124: 21504.38788 | AN124: 21561.73939 | AO124: 21619.09091 | AP124: 21676.44242 | AQ124: 21733.79394 | AR124: 21791.14545 | AS124: 21848.49697 | AT124: 21905.84848 | AU124: 21963.2 | AV124: 22020.55152 | AW124: 22077.90303 | AX124: 22135.25455 | AY124: 22192.60606 | AZ124: 22249.95758 | BA124: 22307.30909 | BB124: 22364.66061 | BC124: 22422.01212 | BD124: 22479.36364 | BE124: 22536.71515 | BF124: 22594.06667 | BG124: 22651.41818
C125: Pend Oreille County, WA | D125: WA | E125: 8580 | F125: 8844 | G125: 8699 | H125: 8663 | I125: 8926 | J125: 8852 | K125: 8677 | L125: 8426 | M125: 8616 | N125: 8868 | O125: 8924 | P125: 9145 | Q125: 9575 | R125: 9961 | S125: 10362 | T125: 10776 | U125: 11127 | V125: 11292 | W125: 11573 | X125: 11658 | Y125: 11672 | Z125: 11807 | AA125: 11934 | AB125: 12029 | AC125: 12244 | AD125: 12357 | AE125: 12681 | AF125: 12828 | AG125: 12985 | AH125: 13043 | AI125: 12983 | AJ125: 13329.2 | AK125: 13481.94545 | AL125: 13634.69091 | AM125: 13787.43636 | AN125: 13940.18182 | AO125: 14092.92727 | AP125: 14245.67273 | AQ125: 14398.41818 | AR125: 14551.16364 | AS125: 14703.90909 | AT125: 14856.65455 | AU125: 15009.4 | AV125: 15162.14545 | AW125: 15314.89091 | AX125: 15467.63636 | AY125: 15620.38182 | AZ125: 15773.12727 | BA125: 15925.87273 | BB125: 16078.61818 | BC125: 16231.36364 | BD125: 16384.10909 | BE125: 16536.85455 | BF125: 16689.6 | BG125: 16842.34545
C126: Pierce County, WA | D126: WA | E126: 485667 | F126: 500132 | G126: 509976 | H126: 511842 | I126: 519868 | J126: 528270 | K126: 534606 | L126: 545019 | M126: 560916 | N126: 570569 | O126: 590519 | P126: 604759 | Q126: 619060 | R126: 630334 | S126: 638397 | T126: 648820 | U126: 656246 | V126: 665132 | W126: 679000 | X126: 692662 | Y126: 703993 | Z126: 716447 | AA126: 728091 | AB126: 733969 | AC126: 740137 | AD126: 748148 | AE126: 763408 | AF126: 772484 | AG126: 785400 | AH126: 796483 | AI126: 795628 | AJ126: 810047.1333 | AK126: 819506.703 | AL126: 828966.2727 | AM126: 838425.8424 | AN126: 847885.4121 | AO126: 857344.9818 | AP126: 866804.5515 | AQ126: 876264.1212 | AR126: 885723.6909 | AS126: 895183.2606 | AT126: 904642.8303 | AU126: 914102.4 | AV126: 923561.9697 | AW126: 933021.5394 | AX126: 942481.1091 | AY126: 951940.6788 | AZ126: 961400.2485 | BA126: 970859.8182 | BB126: 980319.3879 | BC126: 989778.9576 | BD126: 999238.5273 | BE126: 1008698.097 | BF126: 1018157.667 | BG126: 1027617.236
C127: San Juan County, WA | D127: WA | E127: 7838 | F127: 8126 | G127: 8277 | H127: 8333 | I127: 8445 | J127: 8572 | K127: 8774 | L127: 9180 | M127: 9352 | N127: 9609 | O127: 10171 | P127: 10713 | Q127: 11025 | R127: 11448 | S127: 11784 | T127: 12305 | U127: 12523 | V127: 12803 | W127: 13281 | X127: 13762 | Y127: 14120 | Z127: 14334 | AA127: 14628 | AB127: 14787 | AC127: 15071 | AD127: 15167 | AE127: 15270 | AF127: 15400 | AG127: 15590 | AH127: 15714 | AI127: 15783 | AJ127: 16032.66667 | AK127: 16188.71515 | AL127: 16344.76364 | AM127: 16500.81212 | AN127: 16656.86061 | AO127: 16812.90909 | AP127: 16968.95758 | AQ127: 17125.00606 | AR127: 17281.05455 | AS127: 17437.10303 | AT127: 17593.15152 | AU127: 17749.2 | AV127: 17905.24848 | AW127: 18061.29697 | AX127: 18217.34545 | AY127: 18373.39394 | AZ127: 18529.44242 | BA127: 18685.49091 | BB127: 18841.53939 | BC127: 18997.58788 | BD127: 19153.63636 | BE127: 19309.68485 | BF127: 19465.73333 | BG127: 19621.78182
C128: Skagit County, WA | D128: WA | E128: 64138 | F128: 65779 | G128: 66812 | H128: 68094 | I128: 68795 | J128: 69139 | K128: 70353 | L128: 71206 | M128: 73477 | N128: 76054 | O128: 80457 | P128: 83761 | Q128: 86445 | R128: 89530 | S128: 91829 | T128: 94053 | U128: 95743 | V128: 97539 | W128: 99909 | X128: 101701 | Y128: 103420 | Z128: 104534 | AA128: 105563 | AB128: 107369 | AC128: 109030 | AD128: 110683 | AE128: 112621 | AF128: 114066 | AG128: 115808 | AH128: 116557 | AI128: 117102 | AJ128: 119643.6667 | AK128: 121154.6424 | AL128: 122665.6182 | AM128: 124176.5939 | AN128: 125687.5697 | AO128: 127198.5455 | AP128: 128709.5212 | AQ128: 130220.497 | AR128: 131731.4727 | AS128: 133242.4485 | AT128: 134753.4242 | AU128: 136264.4 | AV128: 137775.3758 | AW128: 139286.3515 | AX128: 140797.3273 | AY128: 142308.303 | AZ128: 143819.2788 | BA128: 145330.2545 | BB128: 146841.2303 | BC128: 148352.2061 | BD128: 149863.1818 | BE128: 151374.1576 | BF128: 152885.1333 | BG128: 154396.1091
C129: Skamania County, WA | D129: WA | E129: 7919 | F129: 7785 | G129: 7581 | H129: 7647 | I129: 7679 | J129: 7663 | K129: 7724 | L129: 7791 | M129: 7864 | N129: 8147 | O129: 8326 | P129: 8492 | Q129: 8529 | R129: 8723 | S129: 8880 | T129: 9010 | U129: 9208 | V129: 9573 | W129: 9691 | X129: 9774 | Y129: 9895 | Z129: 9833 | AA129: 9886 | AB129: 10046 | AC129: 10236 | AD129: 10303 | AE129: 10583 | AF129: 10786 | AG129: 10918 | AH129: 10955 | AI129: 11102 | AJ129: 11304.6 | AK129: 11457.29091 | AL129: 11609.98182 | AM129: 11762.67273 | AN129: 11915.36364 | AO129: 12068.05455 | AP129: 12220.74545 | AQ129: 12373.43636 | AR129: 12526.12727 | AS129: 12678.81818 | AT129: 12831.50909 | AU129: 12984.2 | AV129: 13136.89091 | AW129: 13289.58182 | AX129: 13442.27273 | AY129: 13594.96364 | AZ129: 13747.65455 | BA129: 13900.34545 | BB129: 14053.03636 | BC129: 14205.72727 | BD129: 14358.41818 | BE129: 14511.10909 | BF129: 14663.8 | BG129: 14816.49091
C130: Snohomish County, WA | D130: WA | E130: 337720 | F130: 351169 | G130: 356563 | H130: 359921 | I130: 368105 | J130: 377091 | K130: 388967 | L130: 404871 | M130: 425190 | N130: 446325 | O130: 471080 | P130: 484450 | Q130: 500283 | R130: 513959 | S130: 523911 | T130: 533870 | U130: 545612 | V130: 568184 | W130: 587350 | X130: 597931 | Y130: 609185 | Z130: 622390 | AA130: 631526 | AB130: 635612 | AC130: 643533 | AD130: 654849 | AE130: 670706 | AF130: 683997 | AG130: 694622 | AH130: 706302 | AI130: 715470 | AJ130: 725682.4 | AK130: 736551.8 | AL130: 747421.2 | AM130: 758290.6 | AN130: 769160 | AO130: 780029.4 | AP130: 790898.8 | AQ130: 801768.2 | AR130: 812637.6 | AS130: 823507 | AT130: 834376.4 | AU130: 845245.8 | AV130: 856115.2 | AW130: 866984.6 | AX130: 877854 | AY130: 888723.4 | AZ130: 899592.8 | BA130: 910462.2 | BB130: 921331.6 | BC130: 932201 | BD130: 943070.4 | BE130: 953939.8 | BF130: 964809.2 | BG130: 975678.6
C131: Spokane County, WA | D131: WA | E131: 341835 | F131: 346675 | G131: 347440 | H131: 348701 | I131: 353358 | J131: 355734 | K131: 354778 | L131: 354270 | M131: 354092 | N131: 356270 | O131: 363029 | P131: 372770 | Q131: 383020 | R131: 392788 | S131: 398544 | T131: 404652 | U131: 408197 | V131: 410200 | W131: 413510 | X131: 415426 | Y131: 418803 | Z131: 422922 | AA131: 427107 | AB131: 430710 | AC131: 435268 | AD131: 440439 | AE131: 447517 | AF131: 456150 | AG131: 462263 | AH131: 468235 | AI131: 472147 | AJ131: 478222.8 | AK131: 484031.3455 | AL131: 489839.8909 | AM131: 495648.4364 | AN131: 501456.9818 | AO131: 507265.5273 | AP131: 513074.0727 | AQ131: 518882.6182 | AR131: 524691.1636 | AS131: 530499.7091 | AT131: 536308.2545 | AU131: 542116.8 | AV131: 547925.3455 | AW131: 553733.8909 | AX131: 559542.4364 | AY131: 565350.9818 | AZ131: 571159.5273 | BA131: 576968.0727 | BB131: 582776.6182 | BC131: 588585.1636 | BD131: 594393.7091 | BE131: 600202.2545 | BF131: 606010.8 | BG131: 611819.3455
C132: Stevens County, WA | D132: WA | E132: 28979 | F132: 29721 | G132: 29976 | H132: 30142 | I132: 30448 | J132: 30497 | K132: 30396 | L132: 30317 | M132: 30221 | N132: 30416 | O132: 31101 | P132: 31763 | Q132: 33259 | R132: 34691 | S132: 36223 | T132: 37393 | U132: 38323 | V132: 38920 | W132: 39136 | X132: 39524 | Y132: 40210 | Z132: 40204 | AA132: 40334 | AB132: 40589 | AC132: 41022 | AD132: 41612 | AE132: 42366 | AF132: 43059 | AG132: 43398 | AH132: 43548 | AI132: 43486 | AJ132: 44393.33333 | AK132: 44835.4303 | AL132: 45277.52727 | AM132: 45719.62424 | AN132: 46161.72121 | AO132: 46603.81818 | AP132: 47045.91515 | AQ132: 47488.01212 | AR132: 47930.10909 | AS132: 48372.20606 | AT132: 48814.30303 | AU132: 49256.4 | AV132: 49698.49697 | AW132: 50140.59394 | AX132: 50582.69091 | AY132: 51024.78788 | AZ132: 51466.88485 | BA132: 51908.98182 | BB132: 52351.07879 | BC132: 52793.17576 | BD132: 53235.27273 | BE132: =FORECAST(BE$7,$Z132:$AI132,$Z$7:$AI$7) -> 53677.3697 | BF132: 54119.46667 | BG132: 54561.56364
C133: Thurston County, WA | D133: WA | E133: 124264 | F133: 129326 | G133: 132109 | H133: 133899 | I133: 135721 | J133: 138632 | K133: 141998 | L133: 145813 | M133: 150439 | N133: 155365 | O133: 163014 | P133: 169388 | Q133: 176407 | R133: 183054 | S133: 186997 | T133: 192013 | U133: 196247 | V133: 199512 | W133: 202050 | X133: 204873 | Y133: 208287 | Z133: 212421 | AA133: 216313 | AB133: 219499 | AC133: 222985 | AD133: 227023 | AE133: 232688 | AF133: 237772 | AG133: 244332 | AH133: 249936 | AI133: 253087 | AJ133: 257457.1333 | AK133: 262157.4121 | AL133: 266857.6909 | AM133: 271557.9697 | AN133: 276258.2485 | AO133: 280958.5273 | AP133: 285658.8061 | AQ133: 290359.0848 | AR133: 295059.3636 | AS133: 299759.6424 | AT133: 304459.9212 | AU133: 309160.2 | AV133: 313860.4788 | AW133: 318560.7576 | AX133: 323261.0364 | AY133: 327961.3152 | AZ133: 332661.5939 | BA133: 337361.8727 | BB133: 342062.1515 | BC133: 346762.4303 | BD133: 351462.7091 | BE133: 356162.9879 | BF133: 360863.2667 | BG133: 365563.5455
C134: Wahkiakum County, WA | D134: WA | E134: 3832 | F134: 3775 | G134: 3744 | H134: 3681 | I134: 3582 | J134: 3507 | K134: 3361 | L134: 3339 | M134: 3358 | N134: 3327 | O134: 3330 | P134: 3367 | Q134: 3463 | R134: 3487 | S134: 3601 | T134: 3665 | U134: 3765 | V134: 3854 | W134: 3830 | X134: 3790 | Y134: 3835 | Z134: 3776 | AA134: 3789 | AB134: 3662 | AC134: 3729 | AD134: 3824 | AE134: 3936 | AF134: 3975 | AG134: 4033 | AH134: 3995 | AI134: 3971 | AJ134: 4065.733333 | AK134: 4101.50303 | AL134: 4137.272727 | AM134: 4173.042424 | AN134: 4208.812121 | AO134: 4244.581818 | AP134: 4280.351515 | AQ134: 4316.121212 | AR134: 4351.890909 | AS134: 4387.660606 | AT134: 4423.430303 | AU134: 4459.2 | AV134: 4494.969697 | AW134: 4530.739394 | AX134: 4566.509091 | AY134: 4602.278788 | AZ134: 4638.048485 | BA134: 4673.818182 | BB134: 4709.587879 | BC134: 4745.357576 | BD134: 4781.127273 | BE134: 4816.89697 | BF134: 4852.666667 | BG134: 4888.436364
C135: Walla Walla County, WA | D135: WA | E135: 47435 | F135: 47820 | G135: 48751 | H135: 49028 | I135: 48732 | J135: 48357 | K135: 48058 | L135: 47542 | M135: 47278 | N135: 48166 | O135: 48534 | P135: 50151 | Q135: 51002 | R135: 52364 | S135: 53250 | T135: 53747 | U135: 54111 | V135: 54389 | W135: 54566 | X135: 54806 | Y135: 55178 | Z135: 55072 | AA135: 55666 | AB135: 56108 | AC135: 56652 | AD135: 56569 | AE135: 56705 | AF135: 56840 | AG135: 57315 | AH135: 58103 | AI135: 58963 | AJ135: 58759.73333 | AK135: 59116.17576 | AL135: 59472.61818 | AM135: 59829.06061 | AN135: 60185.50303 | AO135: 60541.94545 | AP135: 60898.38788 | AQ135: 61254.8303 | AR135: 61611.27273 | AS135: 61967.71515 | AT135: 62324.15758 | AU135: 62680.6 | AV135: 63037.04242 | AW135: 63393.48485 | AX135: 63749.92727 | AY135: 64106.3697 | AZ135: 64462.81212 | BA135: 64819.25455 | BB135: 65175.69697 | BC135: 65532.13939 | BD135: 65888.58182 | BE135: 66245.02424 | BF135: 66601.46667 | BG135: 66957.90909
C136: Whatcom County, WA | D136: =RIGHT(C136,2) -> WA | E136: 106701 | F136: 109096 | G136: 109885 | H136: 110630 | I136: 111294 | J136: 112441 | K136: 113262 | L136: 115361 | M136: 119002 | N136: 123294 | O136: 129111 | P136: 133823 | Q136: 138957 | R136: 143669 | S136: 147593 | T136: 151369 | U136: 155134 | V136: 158133 | W136: 160988 | X136: 164566 | Y136: 167696 | Z136: 171172 | AA136: 174904 | AB136: 177851 | AC136: 181756 | AD136: 185450 | AE136: 188926 | AF136: 192837 | AG136: 196708 | AH136: 199865 | AI136: 201628 | AJ136: 206437.5333 | AK136: 209951.6848 | AL136: 213465.8364 | AM136: 216979.9879 | AN136: 220494.1394 | AO136: 224008.2909 | AP136: 227522.4424 | AQ136: 231036.5939 | AR136: 234550.7455 | AS136: 238064.897 | AT136: 241579.0485 | AU136: 245093.2 | AV136: 248607.3515 | AW136: 252121.503 | AX136: 255635.6545 | AY136: 259149.8061 | AZ136: 262663.9576 | BA136: 266178.1091 | BB136: 269692.2606 | BC136: 273206.4121 | BD136: 276720.5636 | BE136: 280234.7152 | BF136: 283748.8667 | BG136: 287263.0182
C137: Whitman County, WA | D137: WA | E137: 40103 | F137: 40504 | G137: 39950 | H137: 39148 | I137: 39551 | J137: 39438 | K137: 38862 | L137: 38628 | M137: 38561 | N137: 38569 | O137: 38857 | P137: 38775 | Q137: 38951 | R137: 39400 | S137: 39864 | T137: 40457 | U137: 40449 | V137: 40087 | W137: 40595 | X137: 40886 | Y137: 40754 | Z137: 40814 | AA137: 41484 | AB137: 41442 | AC137: 42158 | AD137: 42836 | AE137: 42827 | AF137: 42608 | AG137: 43802 | AH137: 44705 | AI137: 44791 | AJ137: 45129.4 | AK137: 45562.61818 | AL137: 45995.83636 | AM137: 46429.05455 | AN137: 46862.27273 | AO137: 47295.49091 | AP137: 47728.70909 | AQ137: 48161.92727 | AR137: 48595.14545 | AS137: 49028.36364 | AT137: 49461.58182 | AU137: 49894.8 | AV137: 50328.01818 | AW137: 50761.23636 | AX137: 51194.45455 | AY137: 51627.67273 | AZ137: 52060.89091 | BA137: 52494.10909 | BB137: 52927.32727 | BC137: 53360.54545 | BD137: 53793.76364 | BE137: 54226.98182 | BF137: 54660.2 | BG137: 55093.41818
C138: Yakima County, WA | D138: WA | E138: 172508 | F138: 175218 | G138: 176825 | H138: 179248 | I138: 180209 | J138: 181321 | K138: 180961 | L138: 181707 | M138: 185454 | N138: 187574 | O138: 189454 | P138: 193904 | Q138: 198983 | R138: 204266 | S138: 208963 | T138: 212601 | U138: 214951 | V138: 217201 | W138: 219748 | X138: 221573 | Y138: 222615 | Z138: 222757 | AA138: 223402 | AB138: 225161 | AC138: 227280 | AD138: 228570 | AE138: 230617 | AF138: 232733 | AG138: 235272 | AH138: 239604 | AI138: 244485 | AJ138: 243585.6667 | AK138: 245876.1333 | AL138: 248166.6 | AM138: 250457.0667 | AN138: 252747.5333 | AO138: 255038 | AP138: 257328.4667 | AQ138: 259618.9333 | AR138: 261909.4 | AS138: 264199.8667 | AT138: 266490.3333 | AU138: 268780.8 | AV138: 271071.2667 | AW138: 273361.7333 | AX138: 275652.2 | AY138: 277942.6667 | AZ138: 280233.1333 | BA138: 282523.6 | BB138: 284814.0667 | BC138: 287104.5333 | BD138: 289395 | BE138: 291685.4667 | BF138: 293975.9333 | BG138: 296266.4
C140: TOTAL | E140: =SUM(E8:E138) -> 8012576 | F140: =SUM(F8:F138) -> 8170781 | G140: 8219722 | H140: 8242285 | I140: 8312909 | J140: 8381706 | K140: 8440235 | L140: 8530220 | M140: 8678736 | N140: 8844151 | O140: 9091053 | P140: 9316473 | Q140: 9553707 | R140: 9788044 | S140: 9989759 | T140: 10199875 | U140: 10382994 | V140: 10574069 | W140: 10743166 | X140: 10884244 | Y140: 11016391 | Z140: 11153079 | AA140: 11288840 | AB140: 11402739 | AC140: 11532881 | AD140: 11696939 | AE140: 11915169 | AF140: 12100237 | AG140: 12282172 | AH140: 12450133 | AI140: 12576895 | AJ140: 12748603.67 | AK140: 12913820.99 | AL140: 13079038.31 | AM140: 13244255.63 | AN140: 13409472.95 | AO140: 13574690.27 | AP140: 13739907.59 | AQ140: 13905124.92 | AR140: 14070342.24 | AS140: 14235559.56 | AT140: 14400776.88 | AU140: 14565994.2 | AV140: 14731211.52 | AW140: 14896428.84 | AX140: 15061646.16 | AY140: 15226863.48 | AZ140: 15392080.81 | BA140: 15557298.13 | BB140: 15722515.45 | BC140: 15887732.77 | BD140: 16052950.09 | BE140: 16218167.41 | BF140: 16383384.73 | BG140: 16548602.05
C142: Source | E142: US Census Population Estimates Historical Datasets. Available at: http://www.census.gov/popest/data/historical/index.html

Sheet 6P UEC Development
C2: 6P UEC Development
C4: NAVIGATION
C6: COMMENTS
C9: 6P UEC | D9: N/A

Sheet Constants and Menus
B2: CONSTANTS AND MENUS
B4: NAVIGATION
C7: Appliances Modeled | G7: Model Years
C8: Battery Chargers | G8: 1955
G9: 1956
C10: Shipment Types | G10: 1957
C11: Net New Shipments | G11: 1958
C12: Net Replacements | G12: 1959
C13: Total Shipments | G13: 1960
C14: Stock Units | G14: 1961
G15: 1962
C16: Hours/Day | G16: 1963
C17: 24 | G17: 1964
G18: 1965
C19: Days/Week | G19: 1966
C20: 7 | G20: 1967
G21: 1968
C22: Days/Year | G22: 1969
C23: 365.25 | G23: 1970
G24: 1971
C25: kW/MW | G25: 1972
C26: 1000 | G26: 1973
G27: 1974
G28: 1975
G29: 1976
G30: 1977
G31: 1978
G32: 1979
G33: 1980
G34: 1981
G35: 1982
G36: 1983
G37: 1984
G38: 1985
G39: 1986
G40: 1987
G41: 1988
G42: 1989
G43: 1990
G44: 1991
G45: 1992
G46: 1993
G47: 1994
G48: 1995
G49: 1996
G50: 1997
G51: 1998
G52: 1999
G53: 2000
G54: 2001
G55: 2002
G56: 2003
G57: 2004
G58: 2005
G59: 2006
G60: 2007
G61: 2008
G62: 2009
G63: 2010
G64: 2011
G65: 2012
G66: 2013
G67: 2014
G68: 2015
G69: 2016
G70: 2017
G71: 2018
G72: 2019
G73: 2020
G74: 2021
G75: 2022
G76: 2023
G77: 2024
G78: 2025
G79: 2026
G80: 2027
G81: 2028
G82: 2029
G83: 2030
G84: 2031
G85: 2032
G86: 2033
G87: 2034

Sheet UEC Development
C2: UEC Development
C4: NAVIGATION
C6: COMMENTS
D9: PC 1 | E9: PC 2 | F9: PC 3 | G9: PC 4 | H9: PC 5 | I9: PC 6 | J9: PC 7 | K9: PC 8 | L9: PC 9 | M9: PC 10 | N9: PC 11 | O9: PC 12 | P9: PC 13 | Q9: PC 14 | R9: PC 15 | S9: PC 16 | T9: PC 17 | U9: PC 18
D10: =INDEX(PRODUCTS,MATCH(D9,MODEL_PCS,0)) -> Auto Marine RV | E10: Cell Phones | F10: Cordless Phones | G10: Personal Audio | H10: Emergency Systems | I10: Laptops | J10: Personal Care | K10: Personal Evs | L10: Portable Electronics | M10: Portable Lighting | N10: Power Tools | O10: Universal Chargers | P10: Golf and Electric Carts | Q10: Emergency Lighting | R10: Barcode Scanners | S10: Two-Way Radios | T10: 1 Phase Lift Trucks | U10: 3 Phase Lift Trucks
C12: Efficiency Level | D12: UEC (kWh/year) | E12: UEC (kWh/year) | F12: UEC (kWh/year) | G12: UEC (kWh/year) | H12: UEC (kWh/year) | I12: UEC (kWh/year) | J12: UEC (kWh/year) | K12: UEC (kWh/year) | L12: UEC (kWh/year) | M12: UEC (kWh/year) | N12: UEC (kWh/year) | O12: UEC (kWh/year) | P12: UEC (kWh/year) | Q12: UEC (kWh/year) | R12: UEC (kWh/year) | S12: UEC (kWh/year) | T12: UEC (kWh/year) | U12: UEC (kWh/year)
C13: EL0 | D13: =INDEX(EFFICIENCY_LEVELS_BASELINE,MATCH(D$10,PRODUCTS,0)) -> 343.06 | E13: 3.48 | F13: 19.46 | G13: 2.5 | H13: 25.38 | I13: 33.52 | J13: 4.15 | K13: 931.17 | L13: 2.89 | M13: 13.98 | N13: 23.35 | O13: 8.16 | P13: 2439.95 | Q13: 13.99 | R13: 26.59 | S13: 18.09 | T13: 8169 | U13: 48038
C14: EL1 | D14: =INDEX(EFFICIENCY_LEVELS_COMPLIANT,MATCH(D$10,PRODUCTS,0)) -> 29.16 | E14: 3.03 | F14: 6.06 | G14: 2.01 | H14: 9.51 | I14: 16.7 | J14: 2.34 | K14: 394.33 | L14: 1.18 | M14: 5.36 | N14: 8.4 | O14: 4.23 | P14: 1632.33 | Q14: 5.44 | R14: 6.92 | S14: 9.23 | T14: 7136.53 | U14: 43839.52
C16: % Reduction | D16: =1-D14/D13 -> 0.9150002915 | E16: =1-E14/E13 -> 0.1293103448 | F16: 0.6885919836 | G16: 0.196 | H16: 0.6252955083 | I16: 0.5017899761 | J16: 0.4361445783 | K16: 0.5765220099 | L16: 0.5916955017 | M16: 0.6165951359 | N16: 0.6402569593 | O16: 0.4816176471 | P16: 0.330998586 | Q16: 0.611150822 | R16: 0.7397517864 | S16: 0.4897733554 | T16: 0.1263887869 | U16: 0.08739914235

Sheet Efficiency Dist
C2: Efficiency Distributions by Product Class
C4: =Navigation!$C$15 -> NAVIGATION
C6: COMMENTS
D9: PC 1 | E9: =" - "&OFFSET('Product Classes'!$C$9,MATCH(D9,MODEL_PCS,0),0) -> - Auto Marine RV
D11: PRE-Case | E11: Static Distribution
D12: Efficiency Level | E12: 2010 | G12: 1990 | H12: =G12+1 -> 1991 | I12: =H12+1 -> 1992 | J12: 1993 | K12: 1994 | L12: 1995 | M12: 1996 | N12: 1997 | O12: 1998 | P12: 1999 | Q12: 2000 | R12: 2001 | S12: 2002 | T12: 2003 | U12: 2004 | V12: 2005 | W12: 2006 | X12: 2007 | Y12: 2008 | Z12: 2009 | AA12: 2010 | AB12: 2011 | AC12: 2012 | AD12: 2013 | AE12: 2014 | AF12: 2015 | AG12: 2016 | AH12: 2017 | AI12: 2018 | AJ12: 2019 | AK12: 2020 | AL12: 2021 | AM12: 2022 | AN12: 2023 | AO12: 2024 | AP12: 2025 | AQ12: 2026 | AR12: 2027 | AS12: 2028 | AT12: 2029 | AU12: 2030 | AV12: 2031 | AW12: 2032 | AX12: 2033 | AY12: 2034
D13: EL0 | E13: =1-E14 -> 1 | G13: =$E13 -> 1 | H13: =$E13 -> 1 | I13: 1 | J13: 1 | K13: 1 | L13: 1 | M13: 1 | N13: 1 | O13: 1 | P13: 1 | Q13: 1 | R13: 1 | S13: 1 | T13: 1 | U13: 1 | V13: 1 | W13: 1 | X13: 1 | Y13: 1 | Z13: 1 | AA13: 1 | AB13: 1 | AC13: 1 | AD13: 1 | AE13: 1 | AF13: 1 | AG13: 1 | AH13: 1 | AI13: 1 | AJ13: 1 | AK13: 1 | AL13: 1 | AM13: 1 | AN13: 1 | AO13: 1 | AP13: 1 | AQ13: 1 | AR13: 1 | AS13: 1 | AT13: 1 | AU13: 1 | AV13: 1 | AW13: 1 | AX13: 1 | AY13: 1
D14: EL1 | E14: =VLOOKUP(CONCATENATE(D9,E9),'Stock, Sales, Life, Compliance'!$C$12:$N$29,12,0) -> 0 | G14: =$E14 -> 0 | H14: 0 | I14: 0 | J14: 0 | K14: 0 | L14: 0 | M14: 0 | N14: 0 | O14: 0 | P14: 0 | Q14: 0 | R14: 0 | S14: 0 | T14: 0 | U14: 0 | V14: 0 | W14: 0 | X14: 0 | Y14: 0 | Z14: 0 | AA14: 0 | AB14: 0 | AC14: 0 | AD14: 0 | AE14: 0 | AF14: 0 | AG14: 0 | AH14: 0 | AI14: 0 | AJ14: 0 | AK14: 0 | AL14: 0 | AM14: 0 | AN14: 0 | AO14: 0 | AP14: 0 | AQ14: 0 | AR14: 0 | AS14: 0 | AT14: 0 | AU14: 0 | AV14: 0 | AW14: 0 | AX14: 0 | AY14: 0
D15: TOTAL | E15: =SUM(E13:E14) -> 1 | G15: =SUM(G13:G14) -> 1 | H15: 1 | I15: 1 | J15: 1 | K15: 1 | L15: 1 | M15: 1 | N15: 1 | O15: 1 | P15: 1 | Q15: 1 | R15: 1 | S15: 1 | T15: 1 | U15: 1 | V15: 1 | W15: 1 | X15: 1 | Y15: 1 | Z15: 1 | AA15: 1 | AB15: 1 | AC15: 1 | AD15: 1 | AE15: 1 | AF15: 1 | AG15: 1 | AH15: 1 | AI15: 1 | AJ15: 1 | AK15: 1 | AL15: 1 | AM15: 1 | AN15: 1 | AO15: 1 | AP15: 1 | AQ15: 1 | AR15: 1 | AS15: 1 | AT15: 1 | AU15: 1 | AV15: 1 | AW15: 1 | AX15: 1 | AY15: 1
D17: POST-Case
D18: Efficiency Level | G18: 1990 | H18: =G18+1 -> 1991 | I18: =H18+1 -> 1992 | J18: 1993 | K18: 1994 | L18: 1995 | M18: 1996 | N18: 1997 | O18: 1998 | P18: 1999 | Q18: 2000 | R18: 2001 | S18: 2002 | T18: 2003 | U18: 2004 | V18: 2005 | W18: =W12 -> 2006 | X18: 2007 | Y18: 2008 | Z18: 2009 | AA18: 2010 | AB18: 2011 | AC18: 2012 | AD18: 2013 | AE18: 2014 | AF18: 2015 | AG18: 2016 | AH18: 2017 | AI18: 2018 | AJ18: 2019 | AK18: 2020 | AL18: 2021 | AM18: 2022 | AN18: 2023 | AO18: 2024 | AP18: 2025 | AQ18: 2026 | AR18: 2027 | AS18: 2028 | AT18: 2029 | AU18: 2030 | AV18: 2031 | AW18: 2032 | AX18: 2033 | AY18: 2034
D19: =D13 -> EL0 | G19: =IF(G$18<STANDARD_YEAR,G13,0) -> 1 | H19: =IF(H18<STANDARD_YEAR,H13,0) -> 1 | I19: 1 | J19: 1 | K19: 1 | L19: 1 | M19: 1 | N19: 1 | O19: 1 | P19: 1 | Q19: 1 | R19: 1 | S19: 1 | T19: 1 | U19: 1 | V19: 1 | W19: 1 | X19: 1 | Y19: 1 | Z19: 1 | AA19: 1 | AB19: 1 | AC19: 1 | AD19: 1 | AE19: 0 | AF19: 0 | AG19: 0 | AH19: 0 | AI19: 0 | AJ19: 0 | AK19: 0 | AL19: 0 | AM19: 0 | AN19: 0 | AO19: 0 | AP19: 0 | AQ19: 0 | AR19: 0 | AS19: 0 | AT19: 0 | AU19: 0 | AV19: 0 | AW19: 0 | AX19: 0 | AY19: 0
D20: =D14 -> EL1 | G20: =IF(G$18<STANDARD_YEAR,G14,1) -> 0 | H20: 0 | I20: 0 | J20: 0 | K20: 0 | L20: 0 | M20: 0 | N20: 0 | O20: 0 | P20: 0 | Q20: 0 | R20: 0 | S20: 0 | T20: 0 | U20: 0 | V20: 0 | W20: 0 | X20: 0 | Y20: 0 | Z20: 0 | AA20: 0 | AB20: 0 | AC20: 0 | AD20: 0 | AE20: 1 | AF20: 1 | AG20: 1 | AH20: 1 | AI20: 1 | AJ20: 1 | AK20: 1 | AL20: 1 | AM20: 1 | AN20: 1 | AO20: 1 | AP20: 1 | AQ20: 1 | AR20: 1 | AS20: 1 | AT20: 1 | AU20: 1 | AV20: 1 | AW20: 1 | AX20: 1 | AY20: 1
D21: TOTAL | G21: =SUM(G19:G20) -> 1 | H21: 1 | I21: 1 | J21: 1 | K21: 1 | L21: 1 | M21: 1 | N21: 1 | O21: 1 | P21: 1 | Q21: 1 | R21: 1 | S21: 1 | T21: 1 | U21: 1 | V21: 1 | W21: 1 | X21: 1 | Y21: 1 | Z21: 1 | AA21: 1 | AB21: 1 | AC21: 1 | AD21: 1 | AE21: 1 | AF21: 1 | AG21: 1 | AH21: 1 | AI21: 1 | AJ21: 1 | AK21: 1 | AL21: 1 | AM21: 1 | AN21: 1 | AO21: 1 | AP21: 1 | AQ21: 1 | AR21: 1 | AS21: 1 | AT21: 1 | AU21: 1 | AV21: 1 | AW21: 1 | AX21: 1 | AY21: 1
D25: PC 2 | E25: =" - "&OFFSET('Product Classes'!$C$9,MATCH(D25,MODEL_PCS,0),0) -> - Cell Phones
D27: PRE-Case | E27: Static Distribution
D28: Efficiency Level | E28: 2010 | G28: 1990 | H28: =G28+1 -> 1991 | I28: 1992 | J28: 1993 | K28: 1994 | L28: 1995 | M28: 1996 | N28: 1997 | O28: 1998 | P28: 1999 | Q28: 2000 | R28: 2001 | S28: 2002 | T28: 2003 | U28: 2004 | V28: 2005 | W28: 2006 | X28: 2007 | Y28: 2008 | Z28: 2009 | AA28: 2010 | AB28: 2011 | AC28: 2012 | AD28: 2013 | AE28: 2014 | AF28: 2015 | AG28: 2016 | AH28: 2017 | AI28: 2018 | AJ28: 2019 | AK28: 2020 | AL28: 2021 | AM28: 2022 | AN28: 2023 | AO28: 2024 | AP28: 2025 | AQ28: 2026 | AR28: 2027 | AS28: 2028 | AT28: 2029 | AU28: 2030 | AV28: 2031 | AW28: 2032 | AX28: 2033 | AY28: 2034
D29: EL0 | E29: =1-E30 -> 0.1 | G29: =$E29 -> 0.1 | H29: =$E29 -> 0.1 | I29: 0.1 | J29: 0.1 | K29: 0.1 | L29: 0.1 | M29: 0.1 | N29: 0.1 | O29: 0.1 | P29: 0.1 | Q29: 0.1 | R29: 0.1 | S29: 0.1 | T29: 0.1 | U29: 0.1 | V29: 0.1 | W29: 0.1 | X29: 0.1 | Y29: 0.1 | Z29: 0.1 | AA29: 0.1 | AB29: 0.1 | AC29: 0.1 | AD29: 0.1 | AE29: 0.1 | AF29: 0.1 | AG29: 0.1 | AH29: 0.1 | AI29: 0.1 | AJ29: 0.1 | AK29: 0.1 | AL29: 0.1 | AM29: 0.1 | AN29: 0.1 | AO29: 0.1 | AP29: 0.1 | AQ29: 0.1 | AR29: 0.1 | AS29: 0.1 | AT29: 0.1 | AU29: 0.1 | AV29: 0.1 | AW29: 0.1 | AX29: 0.1 | AY29: 0.1
D30: EL1 | E30: =VLOOKUP(CONCATENATE(D25,E25),'Stock, Sales, Life, Compliance'!$C$12:$N$29,12,0) -> 0.9 | G30: =$E30 -> 0.9 | H30: 0.9 | I30: 0.9 | J30: 0.9 | K30: 0.9 | L30: 0.9 | M30: 0.9 | N30: 0.9 | O30: 0.9 | P30: 0.9 | Q30: 0.9 | R30: 0.9 | S30: 0.9 | T30: 0.9 | U30: 0.9 | V30: 0.9 | W30: 0.9 | X30: 0.9 | Y30: 0.9 | Z30: 0.9 | AA30: 0.9 | AB30: 0.9 | AC30: 0.9 | AD30: 0.9 | AE30: 0.9 | AF30: 0.9 | AG30: 0.9 | AH30: 0.9 | AI30: 0.9 | AJ30: 0.9 | AK30: 0.9 | AL30: 0.9 | AM30: 0.9 | AN30: 0.9 | AO30: 0.9 | AP30: 0.9 | AQ30: 0.9 | AR30: 0.9 | AS30: 0.9 | AT30: 0.9 | AU30: 0.9 | AV30: 0.9 | AW30: 0.9 | AX30: 0.9 | AY30: 0.9
D31: TOTAL | E31: =SUM(E29:E30) -> 1 | G31: =SUM(G29:G30) -> 1 | H31: 1 | I31: 1 | J31: 1 | K31: 1 | L31: 1 | M31: 1 | N31: 1 | O31: 1 | P31: 1 | Q31: 1 | R31: 1 | S31: 1 | T31: 1 | U31: 1 | V31: 1 | W31: 1 | X31: 1 | Y31: 1 | Z31: 1 | AA31: 1 | AB31: 1 | AC31: 1 | AD31: 1 | AE31: 1 | AF31: 1 | AG31: 1 | AH31: 1 | AI31: 1 | AJ31: 1 | AK31: 1 | AL31: 1 | AM31: 1 | AN31: 1 | AO31: 1 | AP31: 1 | AQ31: 1 | AR31: 1 | AS31: 1 | AT31: 1 | AU31: 1 | AV31: 1 | AW31: 1 | AX31: 1 | AY31: 1
D33: POST-Case
D34: Efficiency Level | G34: 1990 | H34: =G34+1 -> 1991 | I34: 1992 | J34: 1993 | K34: 1994 | L34: 1995 | M34: 1996 | N34: 1997 | O34: 1998 | P34: 1999 | Q34: 2000 | R34: 2001 | S34: 2002 | T34: 2003 | U34: 2004 | V34: 2005 | W34: =W28 -> 2006 | X34: 2007 | Y34: 2008 | Z34: 2009 | AA34: 2010 | AB34: 2011 | AC34: 2012 | AD34: 2013 | AE34: 2014 | AF34: 2015 | AG34: 2016 | AH34: 2017 | AI34: 2018 | AJ34: 2019 | AK34: 2020 | AL34: 2021 | AM34: 2022 | AN34: 2023 | AO34: 2024 | AP34: 2025 | AQ34: 2026 | AR34: 2027 | AS34: 2028 | AT34: 2029 | AU34: 2030 | AV34: 2031 | AW34: 2032 | AX34: 2033 | AY34: 2034
D35: =D29 -> EL0 | G35: =IF(G$18<STANDARD_YEAR,G29,0) -> 0.1 | H35: =IF(H34<STANDARD_YEAR,H29,0) -> 0.1 | I35: 0.1 | J35: 0.1 | K35: 0.1 | L35: 0.1 | M35: 0.1 | N35: 0.1 | O35: 0.1 | P35: 0.1 | Q35: 0.1 | R35: 0.1 | S35: 0.1 | T35: 0.1 | U35: 0.1 | V35: 0.1 | W35: 0.1 | X35: 0.1 | Y35: 0.1 | Z35: 0.1 | AA35: 0.1 | AB35: 0.1 | AC35: 0.1 | AD35: 0.1 | AE35: 0 | AF35: 0 | AG35: 0 | AH35: 0 | AI35: 0 | AJ35: 0 | AK35: 0 | AL35: 0 | AM35: 0 | AN35: 0 | AO35: 0 | AP35: 0 | AQ35: 0 | AR35: 0 | AS35: 0 | AT35: 0 | AU35: 0 | AV35: 0 | AW35: 0 | AX35: 0 | AY35: 0
D36: =D30 -> EL1 | G36: =IF(G$18<STANDARD_YEAR,G30,1) -> 0.9 | H36: 0.9 | I36: 0.9 | J36: 0.9 | K36: 0.9 | L36: 0.9 | M36: 0.9 | N36: 0.9 | O36: 0.9 | P36: 0.9 | Q36: 0.9 | R36: 0.9 | S36: 0.9 | T36: 0.9 | U36: 0.9 | V36: 0.9 | W36: 0.9 | X36: 0.9 | Y36: 0.9 | Z36: 0.9 | AA36: 0.9 | AB36: 0.9 | AC36: 0.9 | AD36: 0.9 | AE36: 1 | AF36: 1 | AG36: 1 | AH36: 1 | AI36: 1 | AJ36: 1 | AK36: 1 | AL36: 1 | AM36: 1 | AN36: 1 | AO36: 1 | AP36: 1 | AQ36: 1 | AR36: 1 | AS36: 1 | AT36: 1 | AU36: 1 | AV36: 1 | AW36: 1 | AX36: 1 | AY36: 1
D37: TOTAL | G37: =SUM(G35:G36) -> 1 | H37: 1 | I37: 1 | J37: 1 | K37: 1 | L37: 1 | M37: 1 | N37: 1 | O37: 1 | P37: 1 | Q37: 1 | R37: 1 | S37: 1 | T37: 1 | U37: 1 | V37: 1 | W37: 1 | X37: 1 | Y37: 1 | Z37: 1 | AA37: 1 | AB37: 1 | AC37: 1 | AD37: 1 | AE37: 1 | AF37: 1 | AG37: 1 | AH37: 1 | AI37: 1 | AJ37: 1 | AK37: 1 | AL37: 1 | AM37: 1 | AN37: 1 | AO37: 1 | AP37: 1 | AQ37: 1 | AR37: 1 | AS37: 1 | AT37: 1 | AU37: 1 | AV37: 1 | AW37: 1 | AX37: 1 | AY37: 1
D41: PC 3 | E41: =" - "&OFFSET('Product Classes'!$C$9,MATCH(D41,MODEL_PCS,0),0) -> - Cordless Phones
D43: PRE-Case | E43: Static Distribution
D44: Efficiency Level | E44: 2010 | G44: 1990 | H44: =G44+1 -> 1991 | I44: 1992 | J44: 1993 | K44: 1994 | L44: 1995 | M44: 1996 | N44: 1997 | O44: 1998 | P44: 1999 | Q44: 2000 | R44: 2001 | S44: 2002 | T44: 2003 | U44: 2004 | V44: 2005 | W44: 2006 | X44: 2007 | Y44: 2008 | Z44: 2009 | AA44: 2010 | AB44: 2011 | AC44: 2012 | AD44: 2013 | AE44: 2014 | AF44: 2015 | AG44: 2016 | AH44: 2017 | AI44: 2018 | AJ44: 2019 | AK44: 2020 | AL44: 2021 | AM44: 2022 | AN44: 2023 | AO44: 2024 | AP44: 2025 | AQ44: 2026 | AR44: 2027 | AS44: 2028 | AT44: 2029 | AU44: 2030 | AV44: 2031 | AW44: 2032 | AX44: 2033 | AY44: 2034
D45: EL0 | E45: =1-E46 -> 1 | G45: =$E45 -> 1 | H45: =$E45 -> 1 | I45: 1 | J45: 1 | K45: 1 | L45: 1 | M45: 1 | N45: 1 | O45: 1 | P45: 1 | Q45: 1 | R45: 1 | S45: 1 | T45: 1 | U45: 1 | V45: 1 | W45: 1 | X45: 1 | Y45: 1 | Z45: 1 | AA45: 1 | AB45: 1 | AC45: 1 | AD45: 1 | AE45: 1 | AF45: 1 | AG45: 1 | AH45: 1 | AI45: 1 | AJ45: 1 | AK45: 1 | AL45: 1 | AM45: 1 | AN45: 1 | AO45: 1 | AP45: 1 | AQ45: 1 | AR45: 1 | AS45: 1 | AT45: 1 | AU45: 1 | AV45: 1 | AW45: 1 | AX45: 1 | AY45: 1
D46: EL1 | E46: =VLOOKUP(CONCATENATE(D41,E41),'Stock, Sales, Life, Compliance'!$C$12:$N$29,12,0) -> 0 | G46: =$E46 -> 0 | H46: 0 | I46: 0 | J46: 0 | K46: 0 | L46: 0 | M46: 0 | N46: 0 | O46: 0 | P46: 0 | Q46: 0 | R46: 0 | S46: 0 | T46: 0 | U46: 0 | V46: 0 | W46: 0 | X46: 0 | Y46: 0 | Z46: 0 | AA46: 0 | AB46: 0 | AC46: 0 | AD46: 0 | AE46: 0 | AF46: 0 | AG46: 0 | AH46: 0 | AI46: 0 | AJ46: 0 | AK46: 0 | AL46: 0 | AM46: 0 | AN46: 0 | AO46: 0 | AP46: 0 | AQ46: 0 | AR46: 0 | AS46: 0 | AT46: 0 | AU46: 0 | AV46: 0 | AW46: 0 | AX46: 0 | AY46: 0
D47: TOTAL | E47: =SUM(E45:E46) -> 1 | G47: =SUM(G45:G46) -> 1 | H47: 1 | I47: 1 | J47: 1 | K47: 1 | L47: 1 | M47: 1 | N47: 1 | O47: 1 | P47: 1 | Q47: 1 | R47: 1 | S47: 1 | T47: 1 | U47: 1 | V47: 1 | W47: 1 | X47: 1 | Y47: 1 | Z47: 1 | AA47: 1 | AB47: 1 | AC47: 1 | AD47: 1 | AE47: 1 | AF47: 1 | AG47: 1 | AH47: 1 | AI47: 1 | AJ47: 1 | AK47: 1 | AL47: 1 | AM47: 1 | AN47: 1 | AO47: 1 | AP47: 1 | AQ47: 1 | AR47: 1 | AS47: 1 | AT47: 1 | AU47: 1 | AV47: 1 | AW47: 1 | AX47: 1 | AY47: 1
D49: POST-Case
D50: Efficiency Level | G50: 1990 | H50: =G50+1 -> 1991 | I50: 1992 | J50: 1993 | K50: 1994 | L50: 1995 | M50: 1996 | N50: 1997 | O50: 1998 | P50: 1999 | Q50: 2000 | R50: 2001 | S50: 2002 | T50: 2003 | U50: 2004 | V50: 2005 | W50: =W44 -> 2006 | X50: 2007 | Y50: 2008 | Z50: 2009 | AA50: 2010 | AB50: 2011 | AC50: 2012 | AD50: 2013 | AE50: 2014 | AF50: 2015 | AG50: 2016 | AH50: 2017 | AI50: 2018 | AJ50: 2019 | AK50: 2020 | AL50: 2021 | AM50: 2022 | AN50: 2023 | AO50: 2024 | AP50: 2025 | AQ50: 2026 | AR50: 2027 | AS50: 2028 | AT50: 2029 | AU50: 2030 | AV50: 2031 | AW50: 2032 | AX50: 2033 | AY50: 2034
D51: =D45 -> EL0 | G51: =IF(G$18<STANDARD_YEAR,G45,0) -> 1 | H51: =IF(H50<STANDARD_YEAR,H45,0) -> 1 | I51: 1 | J51: 1 | K51: 1 | L51: 1 | M51: 1 | N51: 1 | O51: 1 | P51: 1 | Q51: 1 | R51: 1 | S51: 1 | T51: 1 | U51: 1 | V51: 1 | W51: 1 | X51: 1 | Y51: 1 | Z51: 1 | AA51: 1 | AB51: 1 | AC51: 1 | AD51: 1 | AE51: 0 | AF51: 0 | AG51: 0 | AH51: 0 | AI51: 0 | AJ51: 0 | AK51: 0 | AL51: 0 | AM51: 0 | AN51: 0 | AO51: 0 | AP51: 0 | AQ51: 0 | AR51: 0 | AS51: 0 | AT51: 0 | AU51: 0 | AV51: 0 | AW51: 0 | AX51: 0 | AY51: 0
D52: =D46 -> EL1 | G52: =IF(G$18<STANDARD_YEAR,G46,1) -> 0 | H52: 0 | I52: 0 | J52: 0 | K52: 0 | L52: 0 | M52: 0 | N52: 0 | O52: 0 | P52: 0 | Q52: 0 | R52: 0 | S52: 0 | T52: 0 | U52: 0 | V52: 0 | W52: 0 | X52: 0 | Y52: 0 | Z52: 0 | AA52: 0 | AB52: 0 | AC52: 0 | AD52: 0 | AE52: 1 | AF52: 1 | AG52: 1 | AH52: 1 | AI52: 1 | AJ52: 1 | AK52: 1 | AL52: 1 | AM52: 1 | AN52: 1 | AO52: 1 | AP52: 1 | AQ52: 1 | AR52: 1 | AS52: 1 | AT52: 1 | AU52: 1 | AV52: 1 | AW52: 1 | AX52: 1 | AY52: 1
D53: TOTAL | G53: =SUM(G51:G52) -> 1 | H53: 1 | I53: 1 | J53: 1 | K53: 1 | L53: 1 | M53: 1 | N53: 1 | O53: 1 | P53: 1 | Q53: 1 | R53: 1 | S53: 1 | T53: 1 | U53: 1 | V53: 1 | W53: 1 | X53: 1 | Y53: 1 | Z53: 1 | AA53: 1 | AB53: 1 | AC53: 1 | AD53: 1 | AE53: 1 | AF53: 1 | AG53: 1 | AH53: 1 | AI53: 1 | AJ53: 1 | AK53: 1 | AL53: 1 | AM53: 1 | AN53: 1 | AO53: 1 | AP53: 1 | AQ53: 1 | AR53: 1 | AS53: 1 | AT53: 1 | AU53: 1 | AV53: 1 | AW53: 1 | AX53: 1 | AY53: 1
D57: PC 4 | E57: =" - "&OFFSET('Product Classes'!$C$9,MATCH(D57,MODEL_PCS,0),0) -> - Personal Audio
D59: PRE-Case | E59: Static Distribution
D60: Efficiency Level | E60: 2010 | G60: 1990 | H60: =G60+1 -> 1991 | I60: 1992 | J60: 1993 | K60: 1994 | L60: 1995 | M60: 1996 | N60: 1997 | O60: 1998 | P60: 1999 | Q60: 2000 | R60: 2001 | S60: 2002 | T60: 2003 | U60: 2004 | V60: 2005 | W60: 2006 | X60: 2007 | Y60: 2008 | Z60: 2009 | AA60: 2010 | AB60: 2011 | AC60: 2012 | AD60: 2013 | AE60: 2014 | AF60: 2015 | AG60: 2016 | AH60: 2017 | AI60: 2018 | AJ60: 2019 | AK60: 2020 | AL60: 2021 | AM60: 2022 | AN60: 2023 | AO60: 2024 | AP60: 2025 | AQ60: 2026 | AR60: 2027 | AS60: 2028 | AT60: 2029 | AU60: 2030 | AV60: 2031 | AW60: 2032 | AX60: 2033 | AY60: 2034
D61: EL0 | E61: =1-E62 -> 0.1 | G61: =$E61 -> 0.1 | H61: =$E61 -> 0.1 | I61: 0.1 | J61: 0.1 | K61: 0.1 | L61: 0.1 | M61: 0.1 | N61: 0.1 | O61: 0.1 | P61: 0.1 | Q61: 0.1 | R61: 0.1 | S61: 0.1 | T61: 0.1 | U61: 0.1 | V61: 0.1 | W61: 0.1 | X61: 0.1 | Y61: 0.1 | Z61: 0.1 | AA61: 0.1 | AB61: 0.1 | AC61: 0.1 | AD61: 0.1 | AE61: 0.1 | AF61: 0.1 | AG61: 0.1 | AH61: 0.1 | AI61: 0.1 | AJ61: 0.1 | AK61: 0.1 | AL61: 0.1 | AM61: 0.1 | AN61: 0.1 | AO61: 0.1 | AP61: 0.1 | AQ61: 0.1 | AR61: 0.1 | AS61: 0.1 | AT61: 0.1 | AU61: 0.1 | AV61: 0.1 | AW61: 0.1 | AX61: 0.1 | AY61: 0.1
D62: EL1 | E62: =VLOOKUP(CONCATENATE(D57,E57),'Stock, Sales, Life, Compliance'!$C$12:$N$29,12,0) -> 0.9 | G62: =$E62 -> 0.9 | H62: 0.9 | I62: 0.9 | J62: 0.9 | K62: 0.9 | L62: 0.9 | M62: 0.9 | N62: 0.9 | O62: 0.9 | P62: 0.9 | Q62: 0.9 | R62: 0.9 | S62: 0.9 | T62: 0.9 | U62: 0.9 | V62: 0.9 | W62: 0.9 | X62: 0.9 | Y62: 0.9 | Z62: 0.9 | AA62: 0.9 | AB62: 0.9 | AC62: 0.9 | AD62: 0.9 | AE62: 0.9 | AF62: 0.9 | AG62: 0.9 | AH62: 0.9 | AI62: 0.9 | AJ62: 0.9 | AK62: 0.9 | AL62: 0.9 | AM62: 0.9 | AN62: 0.9 | AO62: 0.9 | AP62: 0.9 | AQ62: 0.9 | AR62: 0.9 | AS62: 0.9 | AT62: 0.9 | AU62: 0.9 | AV62: 0.9 | AW62: 0.9 | AX62: 0.9 | AY62: 0.9
D63: TOTAL | E63: =SUM(E61:E62) -> 1 | G63: =SUM(G61:G62) -> 1 | H63: 1 | I63: 1 | J63: 1 | K63: 1 | L63: 1 | M63: 1 | N63: 1 | O63: 1 | P63: 1 | Q63: 1 | R63: 1 | S63: 1 | T63: 1 | U63: 1 | V63: 1 | W63: 1 | X63: 1 | Y63: 1 | Z63: 1 | AA63: 1 | AB63: 1 | AC63: 1 | AD63: 1 | AE63: 1 | AF63: 1 | AG63: 1 | AH63: 1 | AI63: 1 | AJ63: 1 | AK63: 1 | AL63: 1 | AM63: 1 | AN63: 1 | AO63: 1 | AP63: 1 | AQ63: 1 | AR63: 1 | AS63: 1 | AT63: 1 | AU63: 1 | AV63: 1 | AW63: 1 | AX63: 1 | AY63: 1
D65: POST-Case
D66: Efficiency Level | G66: 1990 | H66: =G66+1 -> 1991 | I66: 1992 | J66: 1993 | K66: 1994 | L66: 1995 | M66: 1996 | N66: 1997 | O66: 1998 | P66: 1999 | Q66: 2000 | R66: 2001 | S66: 2002 | T66: 2003 | U66: 2004 | V66: 2005 | W66: =W60 -> 2006 | X66: 2007 | Y66: 2008 | Z66: 2009 | AA66: 2010 | AB66: 2011 | AC66: 2012 | AD66: 2013 | AE66: 2014 | AF66: 2015 | AG66: 2016 | AH66: 2017 | AI66: 2018 | AJ66: 2019 | AK66: 2020 | AL66: 2021 | AM66: 2022 | AN66: 2023 | AO66: 2024 | AP66: 2025 | AQ66: 2026 | AR66: 2027 | AS66: 2028 | AT66: 2029 | AU66: 2030 | AV66: 2031 | AW66: 2032 | AX66: 2033 | AY66: 2034
D67: =D61 -> EL0 | G67: =IF(G$18<STANDARD_YEAR,G61,0) -> 0.1 | H67: =IF(H66<STANDARD_YEAR,H61,0) -> 0.1 | I67: 0.1 | J67: 0.1 | K67: 0.1 | L67: 0.1 | M67: 0.1 | N67: 0.1 | O67: 0.1 | P67: 0.1 | Q67: 0.1 | R67: 0.1 | S67: 0.1 | T67: 0.1 | U67: 0.1 | V67: 0.1 | W67: 0.1 | X67: 0.1 | Y67: 0.1 | Z67: 0.1 | AA67: 0.1 | AB67: 0.1 | AC67: 0.1 | AD67: 0.1 | AE67: 0 | AF67: 0 | AG67: 0 | AH67: 0 | AI67: 0 | AJ67: 0 | AK67: 0 | AL67: 0 | AM67: 0 | AN67: 0 | AO67: 0 | AP67: 0 | AQ67: 0 | AR67: 0 | AS67: 0 | AT67: 0 | AU67: 0 | AV67: 0 | AW67: 0 | AX67: 0 | AY67: 0
D68: =D62 -> EL1 | G68: =IF(G$18<STANDARD_YEAR,G62,1) -> 0.9 | H68: 0.9 | I68: 0.9 | J68: 0.9 | K68: 0.9 | L68: 0.9 | M68: 0.9 | N68: 0.9 | O68: 0.9 | P68: 0.9 | Q68: 0.9 | R68: 0.9 | S68: 0.9 | T68: 0.9 | U68: 0.9 | V68: 0.9 | W68: 0.9 | X68: 0.9 | Y68: 0.9 | Z68: 0.9 | AA68: 0.9 | AB68: 0.9 | AC68: 0.9 | AD68: 0.9 | AE68: 1 | AF68: 1 | AG68: 1 | AH68: 1 | AI68: 1 | AJ68: 1 | AK68: 1 | AL68: 1 | AM68: 1 | AN68: 1 | AO68: 1 | AP68: 1 | AQ68: 1 | AR68: 1 | AS68: 1 | AT68: 1 | AU68: 1 | AV68: 1 | AW68: 1 | AX68: 1 | AY68: 1
D69: TOTAL | G69: =SUM(G67:G68) -> 1 | H69: 1 | I69: 1 | J69: 1 | K69: 1 | L69: 1 | M69: 1 | N69: 1 | O69: 1 | P69: 1 | Q69: 1 | R69: 1 | S69: 1 | T69: 1 | U69: 1 | V69: 1 | W69: 1 | X69: 1 | Y69: 1 | Z69: 1 | AA69: 1 | AB69: 1 | AC69: 1 | AD69: 1 | AE69: 1 | AF69: 1 | AG69: 1 | AH69: 1 | AI69: 1 | AJ69: 1 | AK69: 1 | AL69: 1 | AM69: 1 | AN69: 1 | AO69: 1 | AP69: 1 | AQ69: 1 | AR69: 1 | AS69: 1 | AT69: 1 | AU69: 1 | AV69: 1 | AW69: 1 | AX69: 1 | AY69: 1
D73: PC 5 | E73: =" - "&OFFSET('Product Classes'!$C$9,MATCH(D73,MODEL_PCS,0),0) -> - Emergency Systems
D75: PRE-Case | E75: Static Distribution
D76: Efficiency Level | E76: 2010 | G76: 1990 | H76: =G76+1 -> 1991 | I76: 1992 | J76: 1993 | K76: 1994 | L76: 1995 | M76: 1996 | N76: 1997 | O76: 1998 | P76: 1999 | Q76: 2000 | R76: 2001 | S76: 2002 | T76: 2003 | U76: 2004 | V76: 2005 | W76: 2006 | X76: 2007 | Y76: 2008 | Z76: 2009 | AA76: 2010 | AB76: 2011 | AC76: 2012 | AD76: 2013 | AE76: 2014 | AF76: 2015 | AG76: 2016 | AH76: 2017 | AI76: 2018 | AJ76: 2019 | AK76: 2020 | AL76: 2021 | AM76: 2022 | AN76: 2023 | AO76: 2024 | AP76: 2025 | AQ76: 2026 | AR76: 2027 | AS76: 2028 | AT76: 2029 | AU76: 2030 | AV76: 2031 | AW76: 2032 | AX76: 2033 | AY76: 2034
D77: EL0 | E77: =1-E78 -> 0.9 | G77: =$E77 -> 0.9 | H77: =$E77 -> 0.9 | I77: 0.9 | J77: 0.9 | K77: 0.9 | L77: 0.9 | M77: 0.9 | N77: 0.9 | O77: 0.9 | P77: 0.9 | Q77: 0.9 | R77: 0.9 | S77: 0.9 | T77: 0.9 | U77: 0.9 | V77: 0.9 | W77: 0.9 | X77: 0.9 | Y77: 0.9 | Z77: 0.9 | AA77: 0.9 | AB77: 0.9 | AC77: 0.9 | AD77: 0.9 | AE77: 0.9 | AF77: 0.9 | AG77: 0.9 | AH77: 0.9 | AI77: 0.9 | AJ77: 0.9 | AK77: 0.9 | AL77: 0.9 | AM77: 0.9 | AN77: 0.9 | AO77: 0.9 | AP77: 0.9 | AQ77: 0.9 | AR77: 0.9 | AS77: 0.9 | AT77: 0.9 | AU77: 0.9 | AV77: 0.9 | AW77: 0.9 | AX77: 0.9 | AY77: 0.9
D78: EL1 | E78: =VLOOKUP(CONCATENATE(D73,E73),'Stock, Sales, Life, Compliance'!$C$12:$N$29,12,0) -> 0.1 | G78: =$E78 -> 0.1 | H78: 0.1 | I78: 0.1 | J78: 0.1 | K78: 0.1 | L78: 0.1 | M78: 0.1 | N78: 0.1 | O78: 0.1 | P78: 0.1 | Q78: 0.1 | R78: 0.1 | S78: 0.1 | T78: 0.1 | U78: 0.1 | V78: 0.1 | W78: 0.1 | X78: 0.1 | Y78: 0.1 | Z78: 0.1 | AA78: 0.1 | AB78: 0.1 | AC78: 0.1 | AD78: 0.1 | AE78: 0.1 | AF78: 0.1 | AG78: 0.1 | AH78: 0.1 | AI78: 0.1 | AJ78: 0.1 | AK78: 0.1 | AL78: 0.1 | AM78: 0.1 | AN78: 0.1 | AO78: 0.1 | AP78: 0.1 | AQ78: 0.1 | AR78: 0.1 | AS78: 0.1 | AT78: 0.1 | AU78: 0.1 | AV78: 0.1 | AW78: 0.1 | AX78: 0.1 | AY78: 0.1
D79: TOTAL | E79: =SUM(E77:E78) -> 1 | G79: =SUM(G77:G78) -> 1 | H79: 1 | I79: 1 | J79: 1 | K79: 1 | L79: 1 | M79: 1 | N79: 1 | O79: 1 | P79: 1 | Q79: 1 | R79: 1 | S79: 1 | T79: 1 | U79: 1 | V79: 1 | W79: 1 | X79: 1 | Y79: 1 | Z79: 1 | AA79: 1 | AB79: 1 | AC79: 1 | AD79: 1 | AE79: 1 | AF79: 1 | AG79: 1 | AH79: 1 | AI79: 1 | AJ79: 1 | AK79: 1 | AL79: 1 | AM79: 1 | AN79: 1 | AO79: 1 | AP79: 1 | AQ79: 1 | AR79: 1 | AS79: 1 | AT79: 1 | AU79: 1 | AV79: 1 | AW79: 1 | AX79: 1 | AY79: 1
D81: POST-Case
D82: Efficiency Level | G82: 1990 | H82: =G82+1 -> 1991 | I82: 1992 | J82: 1993 | K82: 1994 | L82: 1995 | M82: 1996 | N82: 1997 | O82: 1998 | P82: 1999 | Q82: 2000 | R82: 2001 | S82: 2002 | T82: 2003 | U82: 2004 | V82: 2005 | W82: =W76 -> 2006 | X82: 2007 | Y82: 2008 | Z82: 2009 | AA82: 2010 | AB82: 2011 | AC82: 2012 | AD82: 2013 | AE82: 2014 | AF82: 2015 | AG82: 2016 | AH82: 2017 | AI82: 2018 | AJ82: 2019 | AK82: 2020 | AL82: 2021 | AM82: 2022 | AN82: 2023 | AO82: 2024 | AP82: 2025 | AQ82: 2026 | AR82: 2027 | AS82: 2028 | AT82: 2029 | AU82: 2030 | AV82: 2031 | AW82: 2032 | AX82: 2033 | AY82: 2034
D83: =D77 -> EL0 | G83: =IF(G$18<STANDARD_YEAR,G77,0) -> 0.9 | H83: =IF(H82<STANDARD_YEAR,H77,0) -> 0.9 | I83: 0.9 | J83: 0.9 | K83: 0.9 | L83: 0.9 | M83: 0.9 | N83: 0.9 | O83: 0.9 | P83: 0.9 | Q83: 0.9 | R83: 0.9 | S83: 0.9 | T83: 0.9 | U83: 0.9 | V83: 0.9 | W83: 0.9 | X83: 0.9 | Y83: 0.9 | Z83: 0.9 | AA83: 0.9 | AB83: 0.9 | AC83: 0.9 | AD83: 0.9 | AE83: 0 | AF83: 0 | AG83: 0 | AH83: 0 | AI83: 0 | AJ83: 0 | AK83: 0 | AL83: 0 | AM83: 0 | AN83: 0 | AO83: 0 | AP83: 0 | AQ83: 0 | AR83: 0 | AS83: 0 | AT83: 0 | AU83: 0 | AV83: 0 | AW83: 0 | AX83: 0 | AY83: 0
D84: =D78 -> EL1 | G84: =IF(G$18<STANDARD_YEAR,G78,1) -> 0.1 | H84: 0.1 | I84: 0.1 | J84: 0.1 | K84: 0.1 | L84: 0.1 | M84: 0.1 | N84: 0.1 | O84: 0.1 | P84: 0.1 | Q84: 0.1 | R84: 0.1 | S84: 0.1 | T84: 0.1 | U84: 0.1 | V84: 0.1 | W84: 0.1 | X84: 0.1 | Y84: 0.1 | Z84: 0.1 | AA84: 0.1 | AB84: 0.1 | AC84: 0.1 | AD84: 0.1 | AE84: 1 | AF84: 1 | AG84: 1 | AH84: 1 | AI84: 1 | AJ84: 1 | AK84: 1 | AL84: 1 | AM84: 1 | AN84: 1 | AO84: 1 | AP84: 1 | AQ84: 1 | AR84: 1 | AS84: 1 | AT84: 1 | AU84: 1 | AV84: 1 | AW84: 1 | AX84: 1 | AY84: 1
D85: TOTAL | G85: =SUM(G83:G84) -> 1 | H85: 1 | I85: 1 | J85: 1 | K85: 1 | L85: 1 | M85: 1 | N85: 1 | O85: 1 | P85: 1 | Q85: 1 | R85: 1 | S85: 1 | T85: 1 | U85: 1 | V85: 1 | W85: 1 | X85: 1 | Y85: 1 | Z85: 1 | AA85: 1 | AB85: 1 | AC85: 1 | AD85: 1 | AE85: 1 | AF85: 1 | AG85: 1 | AH85: 1 | AI85: 1 | AJ85: 1 | AK85: 1 | AL85: 1 | AM85: 1 | AN85: 1 | AO85: 1 | AP85: 1 | AQ85: 1 | AR85: 1 | AS85: 1 | AT85: 1 | AU85: 1 | AV85: 1 | AW85: 1 | AX85: 1 | AY85: 1
D89: PC 6 | E89: =" - "&OFFSET('Product Classes'!$C$9,MATCH(D89,MODEL_PCS,0),0) -> - Laptops
D91: PRE-Case | E91: Static Distribution
D92: Efficiency Level | E92: 2010 | G92: 1990 | H92: =G92+1 -> 1991 | I92: 1992 | J92: 1993 | K92: 1994 | L92: 1995 | M92: 1996 | N92: 1997 | O92: 1998 | P92: 1999 | Q92: 2000 | R92: 2001 | S92: 2002 | T92: 2003 | U92: 2004 | V92: 2005 | W92: 2006 | X92: 2007 | Y92: 2008 | Z92: 2009 | AA92: 2010 | AB92: 2011 | AC92: 2012 | AD92: 2013 | AE92: 2014 | AF92: 2015 | AG92: 2016 | AH92: 2017 | AI92: 2018 | AJ92: 2019 | AK92: 2020 | AL92: 2021 | AM92: 2022 | AN92: 2023 | AO92: 2024 | AP92: 2025 | AQ92: 2026 | AR92: 2027 | AS92: 2028 | AT92: 2029 | AU92: 2030 | AV92: 2031 | AW92: 2032 | AX92: 2033 | AY92: 2034
D93: EL0 | E93: =1-E94 -> 0.9 | G93: =$E93 -> 0.9 | H93: =$E93 -> 0.9 | I93: 0.9 | J93: 0.9 | K93: 0.9 | L93: 0.9 | M93: 0.9 | N93: 0.9 | O93: 0.9 | P93: 0.9 | Q93: 0.9 | R93: 0.9 | S93: 0.9 | T93: 0.9 | U93: 0.9 | V93: 0.9 | W93: 0.9 | X93: 0.9 | Y93: 0.9 | Z93: 0.9 | AA93: 0.9 | AB93: 0.9 | AC93: 0.9 | AD93: 0.9 | AE93: 0.9 | AF93: 0.9 | AG93: 0.9 | AH93: 0.9 | AI93: 0.9 | AJ93: 0.9 | AK93: 0.9 | AL93: 0.9 | AM93: 0.9 | AN93: 0.9 | AO93: 0.9 | AP93: 0.9 | AQ93: 0.9 | AR93: 0.9 | AS93: 0.9 | AT93: 0.9 | AU93: 0.9 | AV93: 0.9 | AW93: 0.9 | AX93: 0.9 | AY93: 0.9
D94: EL1 | E94: =VLOOKUP(CONCATENATE(D89,E89),'Stock, Sales, Life, Compliance'!$C$12:$N$29,12,0) -> 0.1 | G94: =$E94 -> 0.1 | H94: 0.1 | I94: 0.1 | J94: 0.1 | K94: 0.1 | L94: 0.1 | M94: 0.1 | N94: 0.1 | O94: 0.1 | P94: 0.1 | Q94: 0.1 | R94: 0.1 | S94: 0.1 | T94: 0.1 | U94: 0.1 | V94: 0.1 | W94: 0.1 | X94: 0.1 | Y94: 0.1 | Z94: 0.1 | AA94: 0.1 | AB94: 0.1 | AC94: 0.1 | AD94: 0.1 | AE94: 0.1 | AF94: 0.1 | AG94: 0.1 | AH94: 0.1 | AI94: 0.1 | AJ94: 0.1 | AK94: 0.1 | AL94: 0.1 | AM94: 0.1 | AN94: 0.1 | AO94: 0.1 | AP94: 0.1 | AQ94: 0.1 | AR94: 0.1 | AS94: 0.1 | AT94: 0.1 | AU94: 0.1 | AV94: 0.1 | AW94: 0.1 | AX94: 0.1 | AY94: 0.1
D95: TOTAL | E95: =SUM(E93:E94) -> 1 | G95: =SUM(G93:G94) -> 1 | H95: 1 | I95: 1 | J95: 1 | K95: 1 | L95: 1 | M95: 1 | N95: 1 | O95: 1 | P95: 1 | Q95: 1 | R95: 1 | S95: 1 | T95: 1 | U95: 1 | V95: 1 | W95: 1 | X95: 1 | Y95: 1 | Z95: 1 | AA95: 1 | AB95: 1 | AC95: 1 | AD95: 1 | AE95: 1 | AF95: 1 | AG95: 1 | AH95: 1 | AI95: 1 | AJ95: 1 | AK95: 1 | AL95: 1 | AM95: 1 | AN95: 1 | AO95: 1 | AP95: 1 | AQ95: 1 | AR95: 1 | AS95: 1 | AT95: 1 | AU95: 1 | AV95: 1 | AW95: 1 | AX95: 1 | AY95: 1
D97: POST-Case
D98: Efficiency Level | G98: 1990 | H98: =G98+1 -> 1991 | I98: 1992 | J98: 1993 | K98: 1994 | L98: 1995 | M98: 1996 | N98: 1997 | O98: 1998 | P98: 1999 | Q98: 2000 | R98: 2001 | S98: 2002 | T98: 2003 | U98: 2004 | V98: 2005 | W98: =W92 -> 2006 | X98: 2007 | Y98: 2008 | Z98: 2009 | AA98: 2010 | AB98: 2011 | AC98: 2012 | AD98: 2013 | AE98: 2014 | AF98: 2015 | AG98: 2016 | AH98: 2017 | AI98: 2018 | AJ98: 2019 | AK98: 2020 | AL98: 2021 | AM98: 2022 | AN98: 2023 | AO98: 2024 | AP98: 2025 | AQ98: 2026 | AR98: 2027 | AS98: 2028 | AT98: 2029 | AU98: 2030 | AV98: 2031 | AW98: 2032 | AX98: 2033 | AY98: 2034
D99: =D93 -> EL0 | G99: =IF(G$18<STANDARD_YEAR,G93,0) -> 0.9 | H99: =IF(H98<STANDARD_YEAR,H93,0) -> 0.9 | I99: 0.9 | J99: 0.9 | K99: 0.9 | L99: 0.9 | M99: 0.9 | N99: 0.9 | O99: 0.9 | P99: 0.9 | Q99: 0.9 | R99: 0.9 | S99: 0.9 | T99: 0.9 | U99: 0.9 | V99: 0.9 | W99: 0.9 | X99: 0.9 | Y99: 0.9 | Z99: 0.9 | AA99: 0.9 | AB99: 0.9 | AC99: 0.9 | AD99: 0.9 | AE99: 0 | AF99: 0 | AG99: 0 | AH99: 0 | AI99: 0 | AJ99: 0 | AK99: 0 | AL99: 0 | AM99: 0 | AN99: 0 | AO99: 0 | AP99: 0 | AQ99: 0 | AR99: 0 | AS99: 0 | AT99: 0 | AU99: 0 | AV99: 0 | AW99: 0 | AX99: 0 | AY99: 0
D100: =D94 -> EL1 | G100: =IF(G$18<STANDARD_YEAR,G94,1) -> 0.1 | H100: 0.1 | I100: 0.1 | J100: 0.1 | K100: 0.1 | L100: 0.1 | M100: 0.1 | N100: 0.1 | O100: 0.1 | P100: 0.1 | Q100: 0.1 | R100: 0.1 | S100: 0.1 | T100: 0.1 | U100: 0.1 | V100: 0.1 | W100: 0.1 | X100: 0.1 | Y100: 0.1 | Z100: 0.1 | AA100: 0.1 | AB100: 0.1 | AC100: 0.1 | AD100: 0.1 | AE100: 1 | AF100: 1 | AG100: 1 | AH100: 1 | AI100: 1 | AJ100: 1 | AK100: 1 | AL100: 1 | AM100: 1 | AN100: 1 | AO100: 1 | AP100: 1 | AQ100: 1 | AR100: 1 | AS100: 1 | AT100: 1 | AU100: 1 | AV100: 1 | AW100: 1 | AX100: 1 | AY100: 1
D101: TOTAL | G101: =SUM(G99:G100) -> 1 | H101: 1 | I101: 1 | J101: 1 | K101: 1 | L101: 1 | M101: 1 | N101: 1 | O101: 1 | P101: 1 | Q101: 1 | R101: 1 | S101: 1 | T101: 1 | U101: 1 | V101: 1 | W101: 1 | X101: 1 | Y101: 1 | Z101: 1 | AA101: 1 | AB101: 1 | AC101: 1 | AD101: 1 | AE101: 1 | AF101: 1 | AG101: 1 | AH101: 1 | AI101: 1 | AJ101: 1 | AK101: 1 | AL101: 1 | AM101: 1 | AN101: 1 | AO101: 1 | AP101: 1 | AQ101: 1 | AR101: 1 | AS101: 1 | AT101: 1 | AU101: 1 | AV101: 1 | AW101: 1 | AX101: 1 | AY101: 1
D105: PC 7 | E105: =" - "&OFFSET('Product Classes'!$C$9,MATCH(D105,MODEL_PCS,0),0) -> - Personal Care
D107: PRE-Case | E107: Static Distribution
D108: Efficiency Level | E108: 2010 | G108: 1990 | H108: =G108+1 -> 1991 | I108: 1992 | J108: 1993 | K108: 1994 | L108: 1995 | M108: 1996 | N108: 1997 | O108: 1998 | P108: 1999 | Q108: 2000 | R108: 2001 | S108: 2002 | T108: 2003 | U108: 2004 | V108: 2005 | W108: 2006 | X108: 2007 | Y108: 2008 | Z108: 2009 | AA108: 2010 | AB108: 2011 | AC108: 2012 | AD108: 2013 | AE108: 2014 | AF108: 2015 | AG108: 2016 | AH108: 2017 | AI108: 2018 | AJ108: 2019 | AK108: 2020 | AL108: 2021 | AM108: 2022 | AN108: 2023 | AO108: 2024 | AP108: 2025 | AQ108: 2026 | AR108: 2027 | AS108: 2028 | AT108: 2029 | AU108: 2030 | AV108: 2031 | AW108: 2032 | AX108: 2033 | AY108: 2034
D109: EL0 | E109: =1-E110 -> 1 | G109: =$E109 -> 1 | H109: =$E109 -> 1 | I109: 1 | J109: 1 | K109: 1 | L109: 1 | M109: 1 | N109: 1 | O109: 1 | P109: 1 | Q109: 1 | R109: 1 | S109: 1 | T109: 1 | U109: 1 | V109: 1 | W109: 1 | X109: 1 | Y109: 1 | Z109: 1 | AA109: 1 | AB109: 1 | AC109: 1 | AD109: 1 | AE109: 1 | AF109: 1 | AG109: 1 | AH109: 1 | AI109: 1 | AJ109: 1 | AK109: 1 | AL109: 1 | AM109: 1 | AN109: 1 | AO109: 1 | AP109: 1 | AQ109: 1 | AR109: 1 | AS109: 1 | AT109: 1 | AU109: 1 | AV109: 1 | AW109: 1 | AX109: 1 | AY109: 1
D110: EL1 | E110: =VLOOKUP(CONCATENATE(D105,E105),'Stock, Sales, Life, Compliance'!$C$12:$N$29,12,0) -> 0 | G110: =$E110 -> 0 | H110: 0 | I110: 0 | J110: 0 | K110: 0 | L110: 0 | M110: 0 | N110: 0 | O110: 0 | P110: 0 | Q110: 0 | R110: 0 | S110: 0 | T110: 0 | U110: 0 | V110: 0 | W110: 0 | X110: 0 | Y110: 0 | Z110: 0 | AA110: 0 | AB110: 0 | AC110: 0 | AD110: 0 | AE110: 0 | AF110: 0 | AG110: 0 | AH110: 0 | AI110: 0 | AJ110: 0 | AK110: 0 | AL110: 0 | AM110: 0 | AN110: 0 | AO110: 0 | AP110: 0 | AQ110: 0 | AR110: 0 | AS110: 0 | AT110: 0 | AU110: 0 | AV110: 0 | AW110: 0 | AX110: 0 | AY110: 0
D111: TOTAL | E111: =SUM(E109:E110) -> 1 | G111: =SUM(G109:G110) -> 1 | H111: 1 | I111: 1 | J111: 1 | K111: 1 | L111: 1 | M111: 1 | N111: 1 | O111: 1 | P111: 1 | Q111: 1 | R111: 1 | S111: 1 | T111: 1 | U111: 1 | V111: 1 | W111: 1 | X111: 1 | Y111: 1 | Z111: 1 | AA111: 1 | AB111: 1 | AC111: 1 | AD111: 1 | AE111: 1 | AF111: 1 | AG111: 1 | AH111: 1 | AI111: 1 | AJ111: 1 | AK111: 1 | AL111: 1 | AM111: 1 | AN111: 1 | AO111: 1 | AP111: 1 | AQ111: 1 | AR111: 1 | AS111: 1 | AT111: 1 | AU111: 1 | AV111: 1 | AW111: 1 | AX111: 1 | AY111: 1
D113: POST-Case
D114: Efficiency Level | G114: 1990 | H114: =G114+1 -> 1991 | I114: 1992 | J114: 1993 | K114: 1994 | L114: 1995 | M114: 1996 | N114: 1997 | O114: 1998 | P114: 1999 | Q114: 2000 | R114: 2001 | S114: 2002 | T114: 2003 | U114: 2004 | V114: 2005 | W114: =W108 -> 2006 | X114: 2007 | Y114: 2008 | Z114: 2009 | AA114: 2010 | AB114: 2011 | AC114: 2012 | AD114: 2013 | AE114: 2014 | AF114: 2015 | AG114: 2016 | AH114: 2017 | AI114: 2018 | AJ114: 2019 | AK114: 2020 | AL114: 2021 | AM114: 2022 | AN114: 2023 | AO114: 2024 | AP114: 2025 | AQ114: 2026 | AR114: 2027 | AS114: 2028 | AT114: 2029 | AU114: 2030 | AV114: 2031 | AW114: 2032 | AX114: 2033 | AY114: 2034
D115: =D109 -> EL0 | G115: =IF(G$18<STANDARD_YEAR,G109,0) -> 1 | H115: =IF(H114<STANDARD_YEAR,H109,0) -> 1 | I115: 1 | J115: 1 | K115: 1 | L115: 1 | M115: 1 | N115: 1 | O115: 1 | P115: 1 | Q115: 1 | R115: 1 | S115: 1 | T115: 1 | U115: 1 | V115: 1 | W115: 1 | X115: 1 | Y115: 1 | Z115: 1 | AA115: 1 | AB115: 1 | AC115: 1 | AD115: 1 | AE115: 0 | AF115: 0 | AG115: 0 | AH115: 0 | AI115: 0 | AJ115: 0 | AK115: 0 | AL115: 0 | AM115: 0 | AN115: 0 | AO115: 0 | AP115: 0 | AQ115: 0 | AR115: 0 | AS115: 0 | AT115: 0 | AU115: 0 | AV115: 0 | AW115: 0 | AX115: 0 | AY115: 0
D116: =D110 -> EL1 | G116: =IF(G$18<STANDARD_YEAR,G110,1) -> 0 | H116: 0 | I116: 0 | J116: 0 | K116: 0 | L116: 0 | M116: 0 | N116: 0 | O116: 0 | P116: 0 | Q116: 0 | R116: 0 | S116: 0 | T116: 0 | U116: 0 | V116: 0 | W116: 0 | X116: 0 | Y116: 0 | Z116: 0 | AA116: 0 | AB116: 0 | AC116: 0 | AD116: 0 | AE116: 1 | AF116: 1 | AG116: 1 | AH116: 1 | AI116: 1 | AJ116: 1 | AK116: 1 | AL116: 1 | AM116: 1 | AN116: 1 | AO116: 1 | AP116: 1 | AQ116: 1 | AR116: 1 | AS116: 1 | AT116: 1 | AU116: 1 | AV116: 1 | AW116: 1 | AX116: 1 | AY116: 1
D117: TOTAL | G117: =SUM(G115:G116) -> 1 | H117: 1 | I117: 1 | J117: 1 | K117: 1 | L117: 1 | M117: 1 | N117: 1 | O117: 1 | P117: 1 | Q117: 1 | R117: 1 | S117: 1 | T117: 1 | U117: 1 | V117: 1 | W117: 1 | X117: 1 | Y117: 1 | Z117: 1 | AA117: 1 | AB117: 1 | AC117: 1 | AD117: 1 | AE117: 1 | AF117: 1 | AG117: 1 | AH117: 1 | AI117: 1 | AJ117: 1 | AK117: 1 | AL117: 1 | AM117: 1 | AN117: 1 | AO117: 1 | AP117: 1 | AQ117: 1 | AR117: 1 | AS117: 1 | AT117: 1 | AU117: 1 | AV117: 1 | AW117: 1 | AX117: 1 | AY117: 1
D121: PC 8 | E121: =" - "&OFFSET('Product Classes'!$C$9,MATCH(D121,MODEL_PCS,0),0) -> - Personal Evs
D123: PRE-Case | E123: Static Distribution
D124: Efficiency Level | E124: 2010 | G124: 1990 | H124: =G124+1 -> 1991 | I124: 1992 | J124: 1993 | K124: 1994 | L124: 1995 | M124: 1996 | N124: 1997 | O124: 1998 | P124: 1999 | Q124: 2000 | R124: 2001 | S124: 2002 | T124: 2003 | U124: 2004 | V124: 2005 | W124: 2006 | X124: 2007 | Y124: 2008 | Z124: 2009 | AA124: 2010 | AB124: 2011 | AC124: 2012 | AD124: 2013 | AE124: 2014 | AF124: 2015 | AG124: 2016 | AH124: 2017 | AI124: 2018 | AJ124: 2019 | AK124: 2020 | AL124: 2021 | AM124: 2022 | AN124: 2023 | AO124: 2024 | AP124: 2025 | AQ124: 2026 | AR124: 2027 | AS124: 2028 | AT124: 2029 | AU124: 2030 | AV124: 2031 | AW124: 2032 | AX124: 2033 | AY124: 2034
D125: EL0 | E125: =1-E126 -> 0.9 | G125: =$E125 -> 0.9 | H125: =$E125 -> 0.9 | I125: 0.9 | J125: 0.9 | K125: 0.9 | L125: 0.9 | M125: 0.9 | N125: 0.9 | O125: 0.9 | P125: 0.9 | Q125: 0.9 | R125: 0.9 | S125: 0.9 | T125: 0.9 | U125: 0.9 | V125: 0.9 | W125: 0.9 | X125: 0.9 | Y125: 0.9 | Z125: 0.9 | AA125: 0.9 | AB125: 0.9 | AC125: 0.9 | AD125: 0.9 | AE125: 0.9 | AF125: 0.9 | AG125: 0.9 | AH125: 0.9 | AI125: 0.9 | AJ125: 0.9 | AK125: 0.9 | AL125: 0.9 | AM125: 0.9 | AN125: 0.9 | AO125: 0.9 | AP125: 0.9 | AQ125: 0.9 | AR125: 0.9 | AS125: 0.9 | AT125: 0.9 | AU125: 0.9 | AV125: 0.9 | AW125: 0.9 | AX125: 0.9 | AY125: 0.9
D126: EL1 | E126: =VLOOKUP(CONCATENATE(D121,E121),'Stock, Sales, Life, Compliance'!$C$12:$N$29,12,0) -> 0.1 | G126: =$E126 -> 0.1 | H126: 0.1 | I126: 0.1 | J126: 0.1 | K126: 0.1 | L126: 0.1 | M126: 0.1 | N126: 0.1 | O126: 0.1 | P126: 0.1 | Q126: 0.1 | R126: 0.1 | S126: 0.1 | T126: 0.1 | U126: 0.1 | V126: 0.1 | W126: 0.1 | X126: 0.1 | Y126: 0.1 | Z126: 0.1 | AA126: 0.1 | AB126: 0.1 | AC126: 0.1 | AD126: 0.1 | AE126: 0.1 | AF126: 0.1 | AG126: 0.1 | AH126: 0.1 | AI126: 0.1 | AJ126: 0.1 | AK126: 0.1 | AL126: 0.1 | AM126: 0.1 | AN126: 0.1 | AO126: 0.1 | AP126: 0.1 | AQ126: 0.1 | AR126: 0.1 | AS126: 0.1 | AT126: 0.1 | AU126: 0.1 | AV126: 0.1 | AW126: 0.1 | AX126: 0.1 | AY126: 0.1
D127: TOTAL | E127: =SUM(E125:E126) -> 1 | G127: =SUM(G125:G126) -> 1 | H127: 1 | I127: 1 | J127: 1 | K127: 1 | L127: 1 | M127: 1 | N127: 1 | O127: 1 | P127: 1 | Q127: 1 | R127: 1 | S127: 1 | T127: 1 | U127: 1 | V127: 1 | W127: 1 | X127: 1 | Y127: 1 | Z127: 1 | AA127: 1 | AB127: 1 | AC127: 1 | AD127: 1 | AE127: 1 | AF127: 1 | AG127: 1 | AH127: 1 | AI127: 1 | AJ127: 1 | AK127: 1 | AL127: 1 | AM127: 1 | AN127: 1 | AO127: 1 | AP127: 1 | AQ127: 1 | AR127: 1 | AS127: 1 | AT127: 1 | AU127: 1 | AV127: 1 | AW127: 1 | AX127: 1 | AY127: 1
D129: POST-Case
D130: Efficiency Level | G130: 1990 | H130: =G130+1 -> 1991 | I130: 1992 | J130: 1993 | K130: 1994 | L130: 1995 | M130: 1996 | N130: 1997 | O130: 1998 | P130: 1999 | Q130: 2000 | R130: 2001 | S130: 2002 | T130: 2003 | U130: 2004 | V130: 2005 | W130: =W124 -> 2006 | X130: 2007 | Y130: 2008 | Z130: 2009 | AA130: 2010 | AB130: 2011 | AC130: 2012 | AD130: 2013 | AE130: 2014 | AF130: 2015 | AG130: 2016 | AH130: 2017 | AI130: 2018 | AJ130: 2019 | AK130: 2020 | AL130: 2021 | AM130: 2022 | AN130: 2023 | AO130: 2024 | AP130: 2025 | AQ130: 2026 | AR130: 2027 | AS130: 2028 | AT130: 2029 | AU130: 2030 | AV130: 2031 | AW130: 2032 | AX130: 2033 | AY130: 2034
D131: =D125 -> EL0 | G131: =IF(G$18<STANDARD_YEAR,G125,0) -> 0.9 | H131: =IF(H130<STANDARD_YEAR,H125,0) -> 0.9 | I131: 0.9 | J131: 0.9 | K131: 0.9 | L131: 0.9 | M131: 0.9 | N131: 0.9 | O131: 0.9 | P131: 0.9 | Q131: 0.9 | R131: 0.9 | S131: 0.9 | T131: 0.9 | U131: 0.9 | V131: 0.9 | W131: 0.9 | X131: 0.9 | Y131: 0.9 | Z131: 0.9 | AA131: 0.9 | AB131: 0.9 | AC131: 0.9 | AD131: 0.9 | AE131: 0 | AF131: 0 | AG131: 0 | AH131: 0 | AI131: 0 | AJ131: 0 | AK131: 0 | AL131: 0 | AM131: 0 | AN131: 0 | AO131: 0 | AP131: 0 | AQ131: 0 | AR131: 0 | AS131: 0 | AT131: 0 | AU131: 0 | AV131: 0 | AW131: 0 | AX131: 0 | AY131: 0
D132: =D126 -> EL1 | G132: =IF(G$18<STANDARD_YEAR,G126,1) -> 0.1 | H132: 0.1 | I132: 0.1 | J132: 0.1 | K132: 0.1 | L132: 0.1 | M132: 0.1 | N132: 0.1 | O132: 0.1 | P132: 0.1 | Q132: 0.1 | R132: 0.1 | S132: 0.1 | T132: 0.1 | U132: 0.1 | V132: 0.1 | W132: 0.1 | X132: 0.1 | Y132: 0.1 | Z132: 0.1 | AA132: 0.1 | AB132: 0.1 | AC132: 0.1 | AD132: 0.1 | AE132: 1 | AF132: 1 | AG132: 1 | AH132: 1 | AI132: 1 | AJ132: 1 | AK132: 1 | AL132: 1 | AM132: 1 | AN132: 1 | AO132: 1 | AP132: 1 | AQ132: 1 | AR132: 1 | AS132: 1 | AT132: 1 | AU132: 1 | AV132: 1 | AW132: 1 | AX132: 1 | AY132: 1
D133: TOTAL | G133: =SUM(G131:G132) -> 1 | H133: 1 | I133: 1 | J133: 1 | K133: 1 | L133: 1 | M133: 1 | N133: 1 | O133: 1 | P133: 1 | Q133: 1 | R133: 1 | S133: 1 | T133: 1 | U133: 1 | V133: 1 | W133: 1 | X133: 1 | Y133: 1 | Z133: 1 | AA133: 1 | AB133: 1 | AC133: 1 | AD133: 1 | AE133: 1 | AF133: 1 | AG133: 1 | AH133: 1 | AI133: 1 | AJ133: 1 | AK133: 1 | AL133: 1 | AM133: 1 | AN133: 1 | AO133: 1 | AP133: 1 | AQ133: 1 | AR133: 1 | AS133: 1 | AT133: 1 | AU133: 1 | AV133: 1 | AW133: 1 | AX133: 1 | AY133: 1
D137: PC 9 | E137: =" - "&OFFSET('Product Classes'!$C$9,MATCH(D137,MODEL_PCS,0),0) -> - Portable Electronics
D139: PRE-Case | E139: Static Distribution
D140: Efficiency Level | E140: 2010 | G140: 1990 | H140: =G140+1 -> 1991 | I140: 1992 | J140: 1993 | K140: 1994 | L140: 1995 | M140: 1996 | N140: 1997 | O140: 1998 | P140: 1999 | Q140: 2000 | R140: 2001 | S140: 2002 | T140: 2003 | U140: 2004 | V140: 2005 | W140: 2006 | X140: 2007 | Y140: 2008 | Z140: 2009 | AA140: 2010 | AB140: 2011 | AC140: 2012 | AD140: 2013 | AE140: 2014 | AF140: 2015 | AG140: 2016 | AH140: 2017 | AI140: 2018 | AJ140: 2019 | AK140: 2020 | AL140: 2021 | AM140: 2022 | AN140: 2023 | AO140: 2024 | AP140: 2025 | AQ140: 2026 | AR140: 2027 | AS140: 2028 | AT140: 2029 | AU140: 2030 | AV140: 2031 | AW140: 2032 | AX140: 2033 | AY140: 2034
D141: EL0 | E141: =1-E142 -> 0.9 | G141: =$E141 -> 0.9 | H141: =$E141 -> 0.9 | I141: 0.9 | J141: 0.9 | K141: 0.9 | L141: 0.9 | M141: 0.9 | N141: 0.9 | O141: 0.9 | P141: 0.9 | Q141: 0.9 | R141: 0.9 | S141: 0.9 | T141: 0.9 | U141: 0.9 | V141: 0.9 | W141: 0.9 | X141: 0.9 | Y141: 0.9 | Z141: 0.9 | AA141: 0.9 | AB141: 0.9 | AC141: 0.9 | AD141: 0.9 | AE141: 0.9 | AF141: 0.9 | AG141: 0.9 | AH141: 0.9 | AI141: 0.9 | AJ141: 0.9 | AK141: 0.9 | AL141: 0.9 | AM141: 0.9 | AN141: 0.9 | AO141: 0.9 | AP141: 0.9 | AQ141: 0.9 | AR141: 0.9 | AS141: 0.9 | AT141: 0.9 | AU141: 0.9 | AV141: 0.9 | AW141: 0.9 | AX141: 0.9 | AY141: 0.9
D142: EL1 | E142: =VLOOKUP(CONCATENATE(D137,E137),'Stock, Sales, Life, Compliance'!$C$12:$N$29,12,0) -> 0.1 | G142: =$E142 -> 0.1 | H142: 0.1 | I142: 0.1 | J142: 0.1 | K142: 0.1 | L142: 0.1 | M142: 0.1 | N142: 0.1 | O142: 0.1 | P142: 0.1 | Q142: 0.1 | R142: 0.1 | S142: 0.1 | T142: 0.1 | U142: 0.1 | V142: 0.1 | W142: 0.1 | X142: 0.1 | Y142: 0.1 | Z142: 0.1 | AA142: 0.1 | AB142: 0.1 | AC142: 0.1 | AD142: 0.1 | AE142: 0.1 | AF142: 0.1 | AG142: 0.1 | AH142: 0.1 | AI142: 0.1 | AJ142: 0.1 | AK142: 0.1 | AL142: 0.1 | AM142: 0.1 | AN142: 0.1 | AO142: 0.1 | AP142: 0.1 | AQ142: 0.1 | AR142: 0.1 | AS142: 0.1 | AT142: 0.1 | AU142: 0.1 | AV142: 0.1 | AW142: 0.1 | AX142: 0.1 | AY142: 0.1
D143: TOTAL | E143: =SUM(E141:E142) -> 1 | G143: =SUM(G141:G142) -> 1 | H143: 1 | I143: 1 | J143: 1 | K143: 1 | L143: 1 | M143: 1 | N143: 1 | O143: 1 | P143: 1 | Q143: 1 | R143: 1 | S143: 1 | T143: 1 | U143: 1 | V143: 1 | W143: 1 | X143: 1 | Y143: 1 | Z143: 1 | AA143: 1 | AB143: 1 | AC143: 1 | AD143: 1 | AE143: 1 | AF143: 1 | AG143: 1 | AH143: 1 | AI143: 1 | AJ143: 1 | AK143: 1 | AL143: 1 | AM143: 1 | AN143: 1 | AO143: 1 | AP143: 1 | AQ143: 1 | AR143: 1 | AS143: 1 | AT143: 1 | AU143: 1 | AV143: 1 | AW143: 1 | AX143: 1 | AY143: 1
D145: POST-Case
D146: Efficiency Level | G146: 1990 | H146: =G146+1 -> 1991 | I146: 1992 | J146: 1993 | K146: 1994 | L146: 1995 | M146: 1996 | N146: 1997 | O146: 1998 | P146: 1999 | Q146: 2000 | R146: 2001 | S146: 2002 | T146: 2003 | U146: 2004 | V146: 2005 | W146: =W140 -> 2006 | X146: 2007 | Y146: 2008 | Z146: 2009 | AA146: 2010 | AB146: 2011 | AC146: 2012 | AD146: 2013 | AE146: 2014 | AF146: 2015 | AG146: 2016 | AH146: 2017 | AI146: 2018 | AJ146: 2019 | AK146: 2020 | AL146: 2021 | AM146: 2022 | AN146: 2023 | AO146: 2024 | AP146: 2025 | AQ146: 2026 | AR146: 2027 | AS146: 2028 | AT146: 2029 | AU146: 2030 | AV146: 2031 | AW146: 2032 | AX146: 2033 | AY146: 2034
D147: =D141 -> EL0 | G147: =IF(G$18<STANDARD_YEAR,G141,0) -> 0.9 | H147: =IF(H146<STANDARD_YEAR,H141,0) -> 0.9 | I147: 0.9 | J147: 0.9 | K147: 0.9 | L147: 0.9 | M147: 0.9 | N147: 0.9 | O147: 0.9 | P147: 0.9 | Q147: 0.9 | R147: 0.9 | S147: 0.9 | T147: 0.9 | U147: 0.9 | V147: 0.9 | W147: 0.9 | X147: 0.9 | Y147: 0.9 | Z147: 0.9 | AA147: 0.9 | AB147: 0.9 | AC147: 0.9 | AD147: 0.9 | AE147: 0 | AF147: 0 | AG147: 0 | AH147: 0 | AI147: 0 | AJ147: 0 | AK147: 0 | AL147: 0 | AM147: 0 | AN147: 0 | AO147: 0 | AP147: 0 | AQ147: 0 | AR147: 0 | AS147: 0 | AT147: 0 | AU147: 0 | AV147: 0 | AW147: 0 | AX147: 0 | AY147: 0
D148: =D142 -> EL1 | G148: =IF(G$18<STANDARD_YEAR,G142,1) -> 0.1 | H148: 0.1 | I148: 0.1 | J148: 0.1 | K148: 0.1 | L148: 0.1 | M148: 0.1 | N148: 0.1 | O148: 0.1 | P148: 0.1 | Q148: 0.1 | R148: 0.1 | S148: 0.1 | T148: 0.1 | U148: 0.1 | V148: 0.1 | W148: 0.1 | X148: 0.1 | Y148: 0.1 | Z148: 0.1 | AA148: 0.1 | AB148: 0.1 | AC148: 0.1 | AD148: 0.1 | AE148: 1 | AF148: 1 | AG148: 1 | AH148: 1 | AI148: 1 | AJ148: 1 | AK148: 1 | AL148: 1 | AM148: 1 | AN148: 1 | AO148: 1 | AP148: 1 | AQ148: 1 | AR148: 1 | AS148: 1 | AT148: 1 | AU148: 1 | AV148: 1 | AW148: 1 | AX148: 1 | AY148: 1
D149: TOTAL | G149: =SUM(G147:G148) -> 1 | H149: 1 | I149: 1 | J149: 1 | K149: 1 | L149: 1 | M149: 1 | N149: 1 | O149: 1 | P149: 1 | Q149: 1 | R149: 1 | S149: 1 | T149: 1 | U149: 1 | V149: 1 | W149: 1 | X149: 1 | Y149: 1 | Z149: 1 | AA149: 1 | AB149: 1 | AC149: 1 | AD149: 1 | AE149: 1 | AF149: 1 | AG149: 1 | AH149: 1 | AI149: 1 | AJ149: 1 | AK149: 1 | AL149: 1 | AM149: 1 | AN149: 1 | AO149: 1 | AP149: 1 | AQ149: 1 | AR149: 1 | AS149: 1 | AT149: 1 | AU149: 1 | AV149: 1 | AW149: 1 | AX149: 1 | AY149: 1
D153: PC 10 | E153: =" - "&OFFSET('Product Classes'!$C$9,MATCH(D153,MODEL_PCS,0),0) -> - Portable Lighting
D155: PRE-Case | E155: Static Distribution
D156: Efficiency Level | E156: 2010 | G156: 1990 | H156: =G156+1 -> 1991 | I156: 1992 | J156: 1993 | K156: 1994 | L156: 1995 | M156: 1996 | N156: 1997 | O156: 1998 | P156: 1999 | Q156: 2000 | R156: 2001 | S156: 2002 | T156: 2003 | U156: 2004 | V156: 2005 | W156: 2006 | X156: 2007 | Y156: 2008 | Z156: 2009 | AA156: 2010 | AB156: 2011 | AC156: 2012 | AD156: 2013 | AE156: 2014 | AF156: 2015 | AG156: 2016 | AH156: 2017 | AI156: 2018 | AJ156: 2019 | AK156: 2020 | AL156: 2021 | AM156: 2022 | AN156: 2023 | AO156: 2024 | AP156: 2025 | AQ156: 2026 | AR156: 2027 | AS156: 2028 | AT156: 2029 | AU156: 2030 | AV156: 2031 | AW156: 2032 | AX156: 2033 | AY156: 2034
D157: EL0 | E157: =1-E158 -> 1 | G157: =$E157 -> 1 | H157: =$E157 -> 1 | I157: 1 | J157: 1 | K157: 1 | L157: 1 | M157: 1 | N157: 1 | O157: 1 | P157: 1 | Q157: 1 | R157: 1 | S157: 1 | T157: 1 | U157: 1 | V157: 1 | W157: 1 | X157: 1 | Y157: 1 | Z157: 1 | AA157: 1 | AB157: 1 | AC157: 1 | AD157: 1 | AE157: 1 | AF157: 1 | AG157: 1 | AH157: 1 | AI157: 1 | AJ157: 1 | AK157: 1 | AL157: 1 | AM157: 1 | AN157: 1 | AO157: 1 | AP157: 1 | AQ157: 1 | AR157: 1 | AS157: 1 | AT157: 1 | AU157: 1 | AV157: 1 | AW157: 1 | AX157: 1 | AY157: 1
D158: EL1 | E158: =VLOOKUP(CONCATENATE(D153,E153),'Stock, Sales, Life, Compliance'!$C$12:$N$29,12,0) -> 0 | G158: =$E158 -> 0 | H158: 0 | I158: 0 | J158: 0 | K158: 0 | L158: 0 | M158: 0 | N158: 0 | O158: 0 | P158: 0 | Q158: 0 | R158: 0 | S158: 0 | T158: 0 | U158: 0 | V158: 0 | W158: 0 | X158: 0 | Y158: 0 | Z158: 0 | AA158: 0 | AB158: 0 | AC158: 0 | AD158: 0 | AE158: 0 | AF158: 0 | AG158: 0 | AH158: 0 | AI158: 0 | AJ158: 0 | AK158: 0 | AL158: 0 | AM158: 0 | AN158: 0 | AO158: 0 | AP158: 0 | AQ158: 0 | AR158: 0 | AS158: 0 | AT158: 0 | AU158: 0 | AV158: 0 | AW158: 0 | AX158: 0 | AY158: 0
D159: TOTAL | E159: =SUM(E157:E158) -> 1 | G159: =SUM(G157:G158) -> 1 | H159: 1 | I159: 1 | J159: 1 | K159: 1 | L159: 1 | M159: 1 | N159: 1 | O159: 1 | P159: 1 | Q159: 1 | R159: 1 | S159: 1 | T159: 1 | U159: 1 | V159: 1 | W159: 1 | X159: 1 | Y159: 1 | Z159: 1 | AA159: 1 | AB159: 1 | AC159: 1 | AD159: 1 | AE159: 1 | AF159: 1 | AG159: 1 | AH159: 1 | AI159: 1 | AJ159: 1 | AK159: 1 | AL159: 1 | AM159: 1 | AN159: 1 | AO159: 1 | AP159: 1 | AQ159: 1 | AR159: 1 | AS159: 1 | AT159: 1 | AU159: 1 | AV159: 1 | AW159: 1 | AX159: 1 | AY159: 1
D161: POST-Case
D162: Efficiency Level | G162: 1990 | H162: =G162+1 -> 1991 | I162: 1992 | J162: 1993 | K162: 1994 | L162: 1995 | M162: 1996 | N162: 1997 | O162: 1998 | P162: 1999 | Q162: 2000 | R162: 2001 | S162: 2002 | T162: 2003 | U162: 2004 | V162: 2005 | W162: =W156 -> 2006 | X162: 2007 | Y162: 2008 | Z162: 2009 | AA162: 2010 | AB162: 2011 | AC162: 2012 | AD162: 2013 | AE162: 2014 | AF162: 2015 | AG162: 2016 | AH162: 2017 | AI162: 2018 | AJ162: 2019 | AK162: 2020 | AL162: 2021 | AM162: 2022 | AN162: 2023 | AO162: 2024 | AP162: 2025 | AQ162: 2026 | AR162: 2027 | AS162: 2028 | AT162: 2029 | AU162: 2030 | AV162: 2031 | AW162: 2032 | AX162: 2033 | AY162: 2034
D163: =D157 -> EL0 | G163: =IF(G$18<STANDARD_YEAR,G157,0) -> 1 | H163: =IF(H162<STANDARD_YEAR,H157,0) -> 1 | I163: 1 | J163: 1 | K163: 1 | L163: 1 | M163: 1 | N163: 1 | O163: 1 | P163: 1 | Q163: 1 | R163: 1 | S163: 1 | T163: 1 | U163: 1 | V163: 1 | W163: 1 | X163: 1 | Y163: 1 | Z163: 1 | AA163: 1 | AB163: 1 | AC163: 1 | AD163: 1 | AE163: 0 | AF163: 0 | AG163: 0 | AH163: 0 | AI163: 0 | AJ163: 0 | AK163: 0 | AL163: 0 | AM163: 0 | AN163: 0 | AO163: 0 | AP163: 0 | AQ163: 0 | AR163: 0 | AS163: 0 | AT163: 0 | AU163: 0 | AV163: 0 | AW163: 0 | AX163: 0 | AY163: 0
D164: =D158 -> EL1 | G164: =IF(G$18<STANDARD_YEAR,G158,1) -> 0 | H164: 0 | I164: 0 | J164: 0 | K164: 0 | L164: 0 | M164: 0 | N164: 0 | O164: 0 | P164: 0 | Q164: 0 | R164: 0 | S164: 0 | T164: 0 | U164: 0 | V164: 0 | W164: 0 | X164: 0 | Y164: 0 | Z164: 0 | AA164: 0 | AB164: 0 | AC164: 0 | AD164: 0 | AE164: 1 | AF164: 1 | AG164: 1 | AH164: 1 | AI164: 1 | AJ164: 1 | AK164: 1 | AL164: 1 | AM164: 1 | AN164: 1 | AO164: 1 | AP164: 1 | AQ164: 1 | AR164: 1 | AS164: 1 | AT164: 1 | AU164: 1 | AV164: 1 | AW164: 1 | AX164: 1 | AY164: 1
D165: TOTAL | G165: =SUM(G163:G164) -> 1 | H165: 1 | I165: 1 | J165: 1 | K165: 1 | L165: 1 | M165: 1 | N165: 1 | O165: 1 | P165: 1 | Q165: 1 | R165: 1 | S165: 1 | T165: 1 | U165: 1 | V165: 1 | W165: 1 | X165: 1 | Y165: 1 | Z165: 1 | AA165: 1 | AB165: 1 | AC165: 1 | AD165: 1 | AE165: 1 | AF165: 1 | AG165: 1 | AH165: 1 | AI165: 1 | AJ165: 1 | AK165: 1 | AL165: 1 | AM165: 1 | AN165: 1 | AO165: 1 | AP165: 1 | AQ165: 1 | AR165: 1 | AS165: 1 | AT165: 1 | AU165: 1 | AV165: 1 | AW165: 1 | AX165: 1 | AY165: 1
D169: PC 11 | E169: =" - "&OFFSET('Product Classes'!$C$9,MATCH(D169,MODEL_PCS,0),0) -> - Power Tools
D171: PRE-Case | E171: Static Distribution
D172: Efficiency Level | E172: 2010 | G172: 1990 | H172: =G172+1 -> 1991 | I172: 1992 | J172: 1993 | K172: 1994 | L172: 1995 | M172: 1996 | N172: 1997 | O172: 1998 | P172: 1999 | Q172: 2000 | R172: 2001 | S172: 2002 | T172: 2003 | U172: 2004 | V172: 2005 | W172: 2006 | X172: 2007 | Y172: 2008 | Z172: 2009 | AA172: 2010 | AB172: 2011 | AC172: 2012 | AD172: 2013 | AE172: 2014 | AF172: 2015 | AG172: 2016 | AH172: 2017 | AI172: 2018 | AJ172: 2019 | AK172: 2020 | AL172: 2021 | AM172: 2022 | AN172: 2023 | AO172: 2024 | AP172: 2025 | AQ172: 2026 | AR172: 2027 | AS172: 2028 | AT172: 2029 | AU172: 2030 | AV172: 2031 | AW172: 2032 | AX172: 2033 | AY172: 2034
D173: EL0 | E173: =1-E174 -> 0.9 | G173: =$E173 -> 0.9 | H173: =$E173 -> 0.9 | I173: 0.9 | J173: 0.9 | K173: 0.9 | L173: 0.9 | M173: 0.9 | N173: 0.9 | O173: 0.9 | P173: 0.9 | Q173: 0.9 | R173: 0.9 | S173: 0.9 | T173: 0.9 | U173: 0.9 | V173: 0.9 | W173: 0.9 | X173: 0.9 | Y173: 0.9 | Z173: 0.9 | AA173: 0.9 | AB173: 0.9 | AC173: 0.9 | AD173: 0.9 | AE173: 0.9 | AF173: 0.9 | AG173: 0.9 | AH173: 0.9 | AI173: 0.9 | AJ173: 0.9 | AK173: 0.9 | AL173: 0.9 | AM173: 0.9 | AN173: 0.9 | AO173: 0.9 | AP173: 0.9 | AQ173: 0.9 | AR173: 0.9 | AS173: 0.9 | AT173: 0.9 | AU173: 0.9 | AV173: 0.9 | AW173: 0.9 | AX173: 0.9 | AY173: 0.9
D174: EL1 | E174: =VLOOKUP(CONCATENATE(D169,E169),'Stock, Sales, Life, Compliance'!$C$12:$N$29,12,0) -> 0.1 | G174: =$E174 -> 0.1 | H174: 0.1 | I174: 0.1 | J174: 0.1 | K174: 0.1 | L174: 0.1 | M174: 0.1 | N174: 0.1 | O174: 0.1 | P174: 0.1 | Q174: 0.1 | R174: 0.1 | S174: 0.1 | T174: 0.1 | U174: 0.1 | V174: 0.1 | W174: 0.1 | X174: 0.1 | Y174: 0.1 | Z174: 0.1 | AA174: 0.1 | AB174: 0.1 | AC174: 0.1 | AD174: 0.1 | AE174: 0.1 | AF174: 0.1 | AG174: 0.1 | AH174: 0.1 | AI174: 0.1 | AJ174: 0.1 | AK174: 0.1 | AL174: 0.1 | AM174: 0.1 | AN174: 0.1 | AO174: 0.1 | AP174: 0.1 | AQ174: 0.1 | AR174: 0.1 | AS174: 0.1 | AT174: 0.1 | AU174: 0.1 | AV174: 0.1 | AW174: 0.1 | AX174: 0.1 | AY174: 0.1
D175: TOTAL | E175: =SUM(E173:E174) -> 1 | G175: =SUM(G173:G174) -> 1 | H175: 1 | I175: 1 | J175: 1 | K175: 1 | L175: 1 | M175: 1 | N175: 1 | O175: 1 | P175: 1 | Q175: 1 | R175: 1 | S175: 1 | T175: 1 | U175: 1 | V175: 1 | W175: 1 | X175: 1 | Y175: 1 | Z175: 1 | AA175: 1 | AB175: 1 | AC175: 1 | AD175: 1 | AE175: 1 | AF175: 1 | AG175: 1 | AH175: 1 | AI175: 1 | AJ175: 1 | AK175: 1 | AL175: 1 | AM175: 1 | AN175: 1 | AO175: 1 | AP175: 1 | AQ175: 1 | AR175: 1 | AS175: 1 | AT175: 1 | AU175: 1 | AV175: 1 | AW175: 1 | AX175: 1 | AY175: 1
D177: POST-Case
D178: Efficiency Level | G178: 1990 | H178: =G178+1 -> 1991 | I178: 1992 | J178: 1993 | K178: 1994 | L178: 1995 | M178: 1996 | N178: 1997 | O178: 1998 | P178: 1999 | Q178: 2000 | R178: 2001 | S178: 2002 | T178: 2003 | U178: 2004 | V178: 2005 | W178: =W172 -> 2006 | X178: 2007 | Y178: 2008 | Z178: 2009 | AA178: 2010 | AB178: 2011 | AC178: 2012 | AD178: 2013 | AE178: 2014 | AF178: 2015 | AG178: 2016 | AH178: 2017 | AI178: 2018 | AJ178: 2019 | AK178: 2020 | AL178: 2021 | AM178: 2022 | AN178: 2023 | AO178: 2024 | AP178: 2025 | AQ178: 2026 | AR178: 2027 | AS178: 2028 | AT178: 2029 | AU178: 2030 | AV178: 2031 | AW178: 2032 | AX178: 2033 | AY178: 2034
D179: =D173 -> EL0 | G179: =IF(G$18<STANDARD_YEAR,G173,0) -> 0.9 | H179: =IF(H178<STANDARD_YEAR,H173,0) -> 0.9 | I179: 0.9 | J179: 0.9 | K179: 0.9 | L179: 0.9 | M179: 0.9 | N179: 0.9 | O179: 0.9 | P179: 0.9 | Q179: 0.9 | R179: 0.9 | S179: 0.9 | T179: 0.9 | U179: 0.9 | V179: 0.9 | W179: 0.9 | X179: 0.9 | Y179: 0.9 | Z179: 0.9 | AA179: 0.9 | AB179: 0.9 | AC179: 0.9 | AD179: 0.9 | AE179: 0 | AF179: 0 | AG179: 0 | AH179: 0 | AI179: 0 | AJ179: 0 | AK179: 0 | AL179: 0 | AM179: 0 | AN179: 0 | AO179: 0 | AP179: 0 | AQ179: 0 | AR179: 0 | AS179: 0 | AT179: 0 | AU179: 0 | AV179: 0 | AW179: 0 | AX179: 0 | AY179: 0
D180: =D174 -> EL1 | G180: =IF(G$18<STANDARD_YEAR,G174,1) -> 0.1 | H180: 0.1 | I180: 0.1 | J180: 0.1 | K180: 0.1 | L180: 0.1 | M180: 0.1 | N180: 0.1 | O180: 0.1 | P180: 0.1 | Q180: 0.1 | R180: 0.1 | S180: 0.1 | T180: 0.1 | U180: 0.1 | V180: 0.1 | W180: 0.1 | X180: 0.1 | Y180: 0.1 | Z180: 0.1 | AA180: 0.1 | AB180: 0.1 | AC180: 0.1 | AD180: 0.1 | AE180: 1 | AF180: 1 | AG180: 1 | AH180: 1 | AI180: 1 | AJ180: 1 | AK180: 1 | AL180: 1 | AM180: 1 | AN180: 1 | AO180: 1 | AP180: 1 | AQ180: 1 | AR180: 1 | AS180: 1 | AT180: 1 | AU180: 1 | AV180: 1 | AW180: 1 | AX180: 1 | AY180: 1
D181: TOTAL | G181: =SUM(G179:G180) -> 1 | H181: 1 | I181: 1 | J181: 1 | K181: 1 | L181: 1 | M181: 1 | N181: 1 | O181: 1 | P181: 1 | Q181: 1 | R181: 1 | S181: 1 | T181: 1 | U181: 1 | V181: 1 | W181: 1 | X181: 1 | Y181: 1 | Z181: 1 | AA181: 1 | AB181: 1 | AC181: 1 | AD181: 1 | AE181: 1 | AF181: 1 | AG181: 1 | AH181: 1 | AI181: 1 | AJ181: 1 | AK181: 1 | AL181: 1 | AM181: 1 | AN181: 1 | AO181: 1 | AP181: 1 | AQ181: 1 | AR181: 1 | AS181: 1 | AT181: 1 | AU181: 1 | AV181: 1 | AW181: 1 | AX181: 1 | AY181: 1
D185: PC 12 | E185: =" - "&OFFSET('Product Classes'!$C$9,MATCH(D185,MODEL_PCS,0),0) -> - Universal Chargers
D187: PRE-Case | E187: Static Distribution
D188: Efficiency Level | E188: 2010 | G188: 1990 | H188: =G188+1 -> 1991 | I188: 1992 | J188: 1993 | K188: 1994 | L188: 1995 | M188: 1996 | N188: 1997 | O188: 1998 | P188: 1999 | Q188: 2000 | R188: 2001 | S188: 2002 | T188: 2003 | U188: 2004 | V188: 2005 | W188: 2006 | X188: 2007 | Y188: 2008 | Z188: 2009 | AA188: 2010 | AB188: 2011 | AC188: 2012 | AD188: 2013 | AE188: 2014 | AF188: 2015 | AG188: 2016 | AH188: 2017 | AI188: 2018 | AJ188: 2019 | AK188: 2020 | AL188: 2021 | AM188: 2022 | AN188: 2023 | AO188: 2024 | AP188: 2025 | AQ188: 2026 | AR188: 2027 | AS188: 2028 | AT188: 2029 | AU188: 2030 | AV188: 2031 | AW188: 2032 | AX188: 2033 | AY188: 2034
D189: EL0 | E189: =1-E190 -> 0.5 | G189: =$E189 -> 0.5 | H189: =$E189 -> 0.5 | I189: 0.5 | J189: 0.5 | K189: 0.5 | L189: 0.5 | M189: 0.5 | N189: 0.5 | O189: 0.5 | P189: 0.5 | Q189: 0.5 | R189: 0.5 | S189: 0.5 | T189: 0.5 | U189: 0.5 | V189: 0.5 | W189: 0.5 | X189: 0.5 | Y189: 0.5 | Z189: 0.5 | AA189: 0.5 | AB189: 0.5 | AC189: 0.5 | AD189: 0.5 | AE189: 0.5 | AF189: 0.5 | AG189: 0.5 | AH189: 0.5 | AI189: 0.5 | AJ189: 0.5 | AK189: 0.5 | AL189: 0.5 | AM189: 0.5 | AN189: 0.5 | AO189: 0.5 | AP189: 0.5 | AQ189: 0.5 | AR189: 0.5 | AS189: 0.5 | AT189: 0.5 | AU189: 0.5 | AV189: 0.5 | AW189: 0.5 | AX189: 0.5 | AY189: 0.5
D190: EL1 | E190: =VLOOKUP(CONCATENATE(D185,E185),'Stock, Sales, Life, Compliance'!$C$12:$N$29,12,0) -> 0.5 | G190: =$E190 -> 0.5 | H190: 0.5 | I190: 0.5 | J190: 0.5 | K190: 0.5 | L190: 0.5 | M190: 0.5 | N190: 0.5 | O190: 0.5 | P190: 0.5 | Q190: 0.5 | R190: 0.5 | S190: 0.5 | T190: 0.5 | U190: 0.5 | V190: 0.5 | W190: 0.5 | X190: 0.5 | Y190: 0.5 | Z190: 0.5 | AA190: 0.5 | AB190: 0.5 | AC190: 0.5 | AD190: 0.5 | AE190: 0.5 | AF190: 0.5 | AG190: 0.5 | AH190: 0.5 | AI190: 0.5 | AJ190: 0.5 | AK190: 0.5 | AL190: 0.5 | AM190: 0.5 | AN190: 0.5 | AO190: 0.5 | AP190: 0.5 | AQ190: 0.5 | AR190: 0.5 | AS190: 0.5 | AT190: 0.5 | AU190: 0.5 | AV190: 0.5 | AW190: 0.5 | AX190: 0.5 | AY190: 0.5
D191: TOTAL | E191: =SUM(E189:E190) -> 1 | G191: =SUM(G189:G190) -> 1 | H191: 1 | I191: 1 | J191: 1 | K191: 1 | L191: 1 | M191: 1 | N191: 1 | O191: 1 | P191: 1 | Q191: 1 | R191: 1 | S191: 1 | T191: 1 | U191: 1 | V191: 1 | W191: 1 | X191: 1 | Y191: 1 | Z191: 1 | AA191: 1 | AB191: 1 | AC191: 1 | AD191: 1 | AE191: 1 | AF191: 1 | AG191: 1 | AH191: 1 | AI191: 1 | AJ191: 1 | AK191: 1 | AL191: 1 | AM191: 1 | AN191: 1 | AO191: 1 | AP191: 1 | AQ191: 1 | AR191: 1 | AS191: 1 | AT191: 1 | AU191: 1 | AV191: 1 | AW191: 1 | AX191: 1 | AY191: 1
D193: POST-Case
D194: Efficiency Level | G194: 1990 | H194: =G194+1 -> 1991 | I194: 1992 | J194: 1993 | K194: 1994 | L194: 1995 | M194: 1996 | N194: 1997 | O194: 1998 | P194: 1999 | Q194: 2000 | R194: 2001 | S194: 2002 | T194: 2003 | U194: 2004 | V194: 2005 | W194: =W188 -> 2006 | X194: 2007 | Y194: 2008 | Z194: 2009 | AA194: 2010 | AB194: 2011 | AC194: 2012 | AD194: 2013 | AE194: 2014 | AF194: 2015 | AG194: 2016 | AH194: 2017 | AI194: 2018 | AJ194: 2019 | AK194: 2020 | AL194: 2021 | AM194: 2022 | AN194: 2023 | AO194: 2024 | AP194: 2025 | AQ194: 2026 | AR194: 2027 | AS194: 2028 | AT194: 2029 | AU194: 2030 | AV194: 2031 | AW194: 2032 | AX194: 2033 | AY194: 2034
D195: =D189 -> EL0 | G195: =IF(G$18<STANDARD_YEAR,G189,0) -> 0.5 | H195: =IF(H194<STANDARD_YEAR,H189,0) -> 0.5 | I195: 0.5 | J195: 0.5 | K195: 0.5 | L195: 0.5 | M195: 0.5 | N195: 0.5 | O195: 0.5 | P195: 0.5 | Q195: 0.5 | R195: 0.5 | S195: 0.5 | T195: 0.5 | U195: 0.5 | V195: 0.5 | W195: 0.5 | X195: 0.5 | Y195: 0.5 | Z195: 0.5 | AA195: 0.5 | AB195: 0.5 | AC195: 0.5 | AD195: 0.5 | AE195: 0 | AF195: 0 | AG195: 0 | AH195: 0 | AI195: 0 | AJ195: 0 | AK195: 0 | AL195: 0 | AM195: 0 | AN195: 0 | AO195: 0 | AP195: 0 | AQ195: 0 | AR195: 0 | AS195: 0 | AT195: 0 | AU195: 0 | AV195: 0 | AW195: 0 | AX195: 0 | AY195: 0
D196: =D190 -> EL1 | G196: =IF(G$18<STANDARD_YEAR,G190,1) -> 0.5 | H196: 0.5 | I196: 0.5 | J196: 0.5 | K196: 0.5 | L196: 0.5 | M196: 0.5 | N196: 0.5 | O196: 0.5 | P196: 0.5 | Q196: 0.5 | R196: 0.5 | S196: 0.5 | T196: 0.5 | U196: 0.5 | V196: 0.5 | W196: 0.5 | X196: 0.5 | Y196: 0.5 | Z196: 0.5 | AA196: 0.5 | AB196: 0.5 | AC196: 0.5 | AD196: 0.5 | AE196: 1 | AF196: 1 | AG196: 1 | AH196: 1 | AI196: 1 | AJ196: 1 | AK196: 1 | AL196: 1 | AM196: 1 | AN196: 1 | AO196: 1 | AP196: 1 | AQ196: 1 | AR196: 1 | AS196: 1 | AT196: 1 | AU196: 1 | AV196: 1 | AW196: 1 | AX196: 1 | AY196: 1
D197: TOTAL | G197: =SUM(G195:G196) -> 1 | H197: 1 | I197: 1 | J197: 1 | K197: 1 | L197: 1 | M197: 1 | N197: 1 | O197: 1 | P197: 1 | Q197: 1 | R197: 1 | S197: 1 | T197: 1 | U197: 1 | V197: 1 | W197: 1 | X197: 1 | Y197: 1 | Z197: 1 | AA197: 1 | AB197: 1 | AC197: 1 | AD197: 1 | AE197: 1 | AF197: 1 | AG197: 1 | AH197: 1 | AI197: 1 | AJ197: 1 | AK197: 1 | AL197: 1 | AM197: 1 | AN197: 1 | AO197: 1 | AP197: 1 | AQ197: 1 | AR197: 1 | AS197: 1 | AT197: 1 | AU197: 1 | AV197: 1 | AW197: 1 | AX197: 1 | AY197: 1
D201: PC 13 | E201: =" - "&OFFSET('Product Classes'!$C$9,MATCH(D201,MODEL_PCS,0),0) -> - Golf and Electric Carts
D203: PRE-Case | E203: Static Distribution
D204: Efficiency Level | E204: 2010 | G204: 1990 | H204: =G204+1 -> 1991 | I204: 1992 | J204: 1993 | K204: 1994 | L204: 1995 | M204: 1996 | N204: 1997 | O204: 1998 | P204: 1999 | Q204: 2000 | R204: 2001 | S204: 2002 | T204: 2003 | U204: 2004 | V204: 2005 | W204: 2006 | X204: 2007 | Y204: 2008 | Z204: 2009 | AA204: 2010 | AB204: 2011 | AC204: 2012 | AD204: 2013 | AE204: 2014 | AF204: 2015 | AG204: 2016 | AH204: 2017 | AI204: 2018 | AJ204: 2019 | AK204: 2020 | AL204: 2021 | AM204: 2022 | AN204: 2023 | AO204: 2024 | AP204: 2025 | AQ204: 2026 | AR204: 2027 | AS204: 2028 | AT204: 2029 | AU204: 2030 | AV204: 2031 | AW204: 2032 | AX204: 2033 | AY204: 2034
D205: EL0 | E205: =1-E206 -> 0.5 | G205: =$E205 -> 0.5 | H205: =$E205 -> 0.5 | I205: 0.5 | J205: 0.5 | K205: 0.5 | L205: 0.5 | M205: 0.5 | N205: 0.5 | O205: 0.5 | P205: 0.5 | Q205: 0.5 | R205: 0.5 | S205: 0.5 | T205: 0.5 | U205: 0.5 | V205: 0.5 | W205: 0.5 | X205: 0.5 | Y205: 0.5 | Z205: 0.5 | AA205: 0.5 | AB205: 0.5 | AC205: 0.5 | AD205: 0.5 | AE205: 0.5 | AF205: 0.5 | AG205: 0.5 | AH205: 0.5 | AI205: 0.5 | AJ205: 0.5 | AK205: 0.5 | AL205: 0.5 | AM205: 0.5 | AN205: 0.5 | AO205: 0.5 | AP205: 0.5 | AQ205: 0.5 | AR205: 0.5 | AS205: 0.5 | AT205: 0.5 | AU205: 0.5 | AV205: 0.5 | AW205: 0.5 | AX205: 0.5 | AY205: 0.5
D206: EL1 | E206: =VLOOKUP(CONCATENATE(D201,E201),'Stock, Sales, Life, Compliance'!$C$12:$N$29,12,0) -> 0.5 | G206: =$E206 -> 0.5 | H206: 0.5 | I206: 0.5 | J206: 0.5 | K206: 0.5 | L206: 0.5 | M206: 0.5 | N206: 0.5 | O206: 0.5 | P206: 0.5 | Q206: 0.5 | R206: 0.5 | S206: 0.5 | T206: 0.5 | U206: 0.5 | V206: 0.5 | W206: 0.5 | X206: 0.5 | Y206: 0.5 | Z206: 0.5 | AA206: 0.5 | AB206: 0.5 | AC206: 0.5 | AD206: 0.5 | AE206: 0.5 | AF206: 0.5 | AG206: 0.5 | AH206: 0.5 | AI206: 0.5 | AJ206: 0.5 | AK206: 0.5 | AL206: 0.5 | AM206: 0.5 | AN206: 0.5 | AO206: 0.5 | AP206: 0.5 | AQ206: 0.5 | AR206: 0.5 | AS206: 0.5 | AT206: 0.5 | AU206: 0.5 | AV206: 0.5 | AW206: 0.5 | AX206: 0.5 | AY206: 0.5
D207: TOTAL | E207: =SUM(E205:E206) -> 1 | G207: =SUM(G205:G206) -> 1 | H207: 1 | I207: 1 | J207: 1 | K207: 1 | L207: 1 | M207: 1 | N207: 1 | O207: 1 | P207: 1 | Q207: 1 | R207: 1 | S207: 1 | T207: 1 | U207: 1 | V207: 1 | W207: 1 | X207: 1 | Y207: 1 | Z207: 1 | AA207: 1 | AB207: 1 | AC207: 1 | AD207: 1 | AE207: 1 | AF207: 1 | AG207: 1 | AH207: 1 | AI207: 1 | AJ207: 1 | AK207: 1 | AL207: 1 | AM207: 1 | AN207: 1 | AO207: 1 | AP207: 1 | AQ207: 1 | AR207: 1 | AS207: 1 | AT207: 1 | AU207: 1 | AV207: 1 | AW207: 1 | AX207: 1 | AY207: 1
D209: POST-Case
D210: Efficiency Level | G210: 1990 | H210: =G210+1 -> 1991 | I210: 1992 | J210: 1993 | K210: 1994 | L210: 1995 | M210: 1996 | N210: 1997 | O210: 1998 | P210: 1999 | Q210: 2000 | R210: 2001 | S210: 2002 | T210: 2003 | U210: 2004 | V210: 2005 | W210: =W204 -> 2006 | X210: 2007 | Y210: 2008 | Z210: 2009 | AA210: 2010 | AB210: 2011 | AC210: 2012 | AD210: 2013 | AE210: 2014 | AF210: 2015 | AG210: 2016 | AH210: 2017 | AI210: 2018 | AJ210: 2019 | AK210: 2020 | AL210: 2021 | AM210: 2022 | AN210: 2023 | AO210: 2024 | AP210: 2025 | AQ210: 2026 | AR210: 2027 | AS210: 2028 | AT210: 2029 | AU210: 2030 | AV210: 2031 | AW210: 2032 | AX210: 2033 | AY210: 2034
D211: =D205 -> EL0 | G211: =IF(G$18<STANDARD_YEAR,G205,0) -> 0.5 | H211: =IF(H210<STANDARD_YEAR,H205,0) -> 0.5 | I211: 0.5 | J211: 0.5 | K211: 0.5 | L211: 0.5 | M211: 0.5 | N211: 0.5 | O211: 0.5 | P211: 0.5 | Q211: 0.5 | R211: 0.5 | S211: 0.5 | T211: 0.5 | U211: 0.5 | V211: 0.5 | W211: 0.5 | X211: 0.5 | Y211: 0.5 | Z211: 0.5 | AA211: 0.5 | AB211: 0.5 | AC211: 0.5 | AD211: 0.5 | AE211: 0 | AF211: 0 | AG211: 0 | AH211: 0 | AI211: 0 | AJ211: 0 | AK211: 0 | AL211: 0 | AM211: 0 | AN211: 0 | AO211: 0 | AP211: 0 | AQ211: 0 | AR211: 0 | AS211: 0 | AT211: 0 | AU211: 0 | AV211: 0 | AW211: 0 | AX211: 0 | AY211: 0
D212: =D206 -> EL1 | G212: =IF(G$18<STANDARD_YEAR,G206,1) -> 0.5 | H212: 0.5 | I212: 0.5 | J212: 0.5 | K212: 0.5 | L212: 0.5 | M212: 0.5 | N212: 0.5 | O212: 0.5 | P212: 0.5 | Q212: 0.5 | R212: 0.5 | S212: 0.5 | T212: 0.5 | U212: 0.5 | V212: 0.5 | W212: 0.5 | X212: 0.5 | Y212: 0.5 | Z212: 0.5 | AA212: 0.5 | AB212: 0.5 | AC212: 0.5 | AD212: 0.5 | AE212: 1 | AF212: 1 | AG212: 1 | AH212: 1 | AI212: 1 | AJ212: 1 | AK212: 1 | AL212: 1 | AM212: 1 | AN212: 1 | AO212: 1 | AP212: 1 | AQ212: 1 | AR212: 1 | AS212: 1 | AT212: 1 | AU212: 1 | AV212: 1 | AW212: 1 | AX212: 1 | AY212: 1
D213: TOTAL | G213: =SUM(G211:G212) -> 1 | H213: 1 | I213: 1 | J213: 1 | K213: 1 | L213: 1 | M213: 1 | N213: 1 | O213: 1 | P213: 1 | Q213: 1 | R213: 1 | S213: 1 | T213: 1 | U213: 1 | V213: 1 | W213: 1 | X213: 1 | Y213: 1 | Z213: 1 | AA213: 1 | AB213: 1 | AC213: 1 | AD213: 1 | AE213: 1 | AF213: 1 | AG213: 1 | AH213: 1 | AI213: 1 | AJ213: 1 | AK213: 1 | AL213: 1 | AM213: 1 | AN213: 1 | AO213: 1 | AP213: 1 | AQ213: 1 | AR213: 1 | AS213: 1 | AT213: 1 | AU213: 1 | AV213: 1 | AW213: 1 | AX213: 1 | AY213: 1
D217: PC 14 | E217: =" - "&OFFSET('Product Classes'!$C$9,MATCH(D217,MODEL_PCS,0),0) -> - Emergency Lighting
D219: PRE-Case | E219: Static Distribution
D220: Efficiency Level | E220: 2010 | G220: 1990 | H220: =G220+1 -> 1991 | I220: 1992 | J220: 1993 | K220: 1994 | L220: 1995 | M220: 1996 | N220: 1997 | O220: 1998 | P220: 1999 | Q220: 2000 | R220: 2001 | S220: 2002 | T220: 2003 | U220: 2004 | V220: 2005 | W220: 2006 | X220: 2007 | Y220: 2008 | Z220: 2009 | AA220: 2010 | AB220: 2011 | AC220: 2012 | AD220: 2013 | AE220: 2014 | AF220: 2015 | AG220: 2016 | AH220: 2017 | AI220: 2018 | AJ220: 2019 | AK220: 2020 | AL220: 2021 | AM220: 2022 | AN220: 2023 | AO220: 2024 | AP220: 2025 | AQ220: 2026 | AR220: 2027 | AS220: 2028 | AT220: 2029 | AU220: 2030 | AV220: 2031 | AW220: 2032 | AX220: 2033 | AY220: 2034
D221: EL0 | E221: =1-E222 -> 0.5 | G221: =$E221 -> 0.5 | H221: =$E221 -> 0.5 | I221: 0.5 | J221: 0.5 | K221: 0.5 | L221: 0.5 | M221: 0.5 | N221: 0.5 | O221: 0.5 | P221: 0.5 | Q221: 0.5 | R221: 0.5 | S221: 0.5 | T221: 0.5 | U221: 0.5 | V221: 0.5 | W221: 0.5 | X221: 0.5 | Y221: 0.5 | Z221: 0.5 | AA221: 0.5 | AB221: 0.5 | AC221: 0.5 | AD221: 0.5 | AE221: 0.5 | AF221: 0.5 | AG221: 0.5 | AH221: 0.5 | AI221: 0.5 | AJ221: 0.5 | AK221: 0.5 | AL221: 0.5 | AM221: 0.5 | AN221: 0.5 | AO221: 0.5 | AP221: 0.5 | AQ221: 0.5 | AR221: 0.5 | AS221: 0.5 | AT221: 0.5 | AU221: 0.5 | AV221: 0.5 | AW221: 0.5 | AX221: 0.5 | AY221: 0.5
D222: EL1 | E222: =VLOOKUP(CONCATENATE(D217,E217),'Stock, Sales, Life, Compliance'!$C$12:$N$29,12,0) -> 0.5 | G222: =$E222 -> 0.5 | H222: 0.5 | I222: 0.5 | J222: 0.5 | K222: 0.5 | L222: 0.5 | M222: 0.5 | N222: 0.5 | O222: 0.5 | P222: 0.5 | Q222: 0.5 | R222: 0.5 | S222: 0.5 | T222: 0.5 | U222: 0.5 | V222: 0.5 | W222: 0.5 | X222: 0.5 | Y222: 0.5 | Z222: 0.5 | AA222: 0.5 | AB222: 0.5 | AC222: 0.5 | AD222: 0.5 | AE222: 0.5 | AF222: 0.5 | AG222: 0.5 | AH222: 0.5 | AI222: 0.5 | AJ222: 0.5 | AK222: 0.5 | AL222: 0.5 | AM222: 0.5 | AN222: 0.5 | AO222: 0.5 | AP222: 0.5 | AQ222: 0.5 | AR222: 0.5 | AS222: 0.5 | AT222: 0.5 | AU222: 0.5 | AV222: 0.5 | AW222: 0.5 | AX222: 0.5 | AY222: 0.5
D223: TOTAL | E223: =SUM(E221:E222) -> 1 | G223: =SUM(G221:G222) -> 1 | H223: 1 | I223: 1 | J223: 1 | K223: 1 | L223: 1 | M223: 1 | N223: 1 | O223: 1 | P223: 1 | Q223: 1 | R223: 1 | S223: 1 | T223: 1 | U223: 1 | V223: 1 | W223: 1 | X223: 1 | Y223: 1 | Z223: 1 | AA223: 1 | AB223: 1 | AC223: 1 | AD223: 1 | AE223: 1 | AF223: 1 | AG223: 1 | AH223: 1 | AI223: 1 | AJ223: 1 | AK223: 1 | AL223: 1 | AM223: 1 | AN223: 1 | AO223: 1 | AP223: 1 | AQ223: 1 | AR223: 1 | AS223: 1 | AT223: 1 | AU223: 1 | AV223: 1 | AW223: 1 | AX223: 1 | AY223: 1
D225: POST-Case
D226: Efficiency Level | G226: 1990 | H226: =G226+1 -> 1991 | I226: 1992 | J226: 1993 | K226: 1994 | L226: 1995 | M226: 1996 | N226: 1997 | O226: 1998 | P226: 1999 | Q226: 2000 | R226: 2001 | S226: 2002 | T226: 2003 | U226: 2004 | V226: 2005 | W226: =W220 -> 2006 | X226: 2007 | Y226: 2008 | Z226: 2009 | AA226: 2010 | AB226: 2011 | AC226: 2012 | AD226: 2013 | AE226: 2014 | AF226: 2015 | AG226: 2016 | AH226: 2017 | AI226: 2018 | AJ226: 2019 | AK226: 2020 | AL226: 2021 | AM226: 2022 | AN226: 2023 | AO226: 2024 | AP226: 2025 | AQ226: 2026 | AR226: 2027 | AS226: 2028 | AT226: 2029 | AU226: 2030 | AV226: 2031 | AW226: 2032 | AX226: 2033 | AY226: 2034
D227: =D221 -> EL0 | G227: =IF(G$18<STANDARD_YEAR,G221,0) -> 0.5 | H227: =IF(H226<STANDARD_YEAR,H221,0) -> 0.5 | I227: 0.5 | J227: 0.5 | K227: 0.5 | L227: 0.5 | M227: 0.5 | N227: 0.5 | O227: 0.5 | P227: 0.5 | Q227: 0.5 | R227: 0.5 | S227: 0.5 | T227: 0.5 | U227: 0.5 | V227: 0.5 | W227: 0.5 | X227: 0.5 | Y227: 0.5 | Z227: 0.5 | AA227: 0.5 | AB227: 0.5 | AC227: 0.5 | AD227: 0.5 | AE227: 0 | AF227: 0 | AG227: 0 | AH227: 0 | AI227: 0 | AJ227: 0 | AK227: 0 | AL227: 0 | AM227: 0 | AN227: 0 | AO227: 0 | AP227: 0 | AQ227: 0 | AR227: 0 | AS227: 0 | AT227: 0 | AU227: 0 | AV227: 0 | AW227: 0 | AX227: 0 | AY227: 0
D228: =D222 -> EL1 | G228: =IF(G$18<STANDARD_YEAR,G222,1) -> 0.5 | H228: 0.5 | I228: 0.5 | J228: 0.5 | K228: 0.5 | L228: 0.5 | M228: 0.5 | N228: 0.5 | O228: 0.5 | P228: 0.5 | Q228: 0.5 | R228: 0.5 | S228: 0.5 | T228: 0.5 | U228: 0.5 | V228: 0.5 | W228: 0.5 | X228: 0.5 | Y228: 0.5 | Z228: 0.5 | AA228: 0.5 | AB228: 0.5 | AC228: 0.5 | AD228: 0.5 | AE228: 1 | AF228: 1 | AG228: 1 | AH228: 1 | AI228: 1 | AJ228: 1 | AK228: 1 | AL228: 1 | AM228: 1 | AN228: 1 | AO228: 1 | AP228: 1 | AQ228: 1 | AR228: 1 | AS228: 1 | AT228: 1 | AU228: 1 | AV228: 1 | AW228: 1 | AX228: 1 | AY228: 1
D229: TOTAL | G229: =SUM(G227:G228) -> 1 | H229: 1 | I229: 1 | J229: 1 | K229: 1 | L229: 1 | M229: 1 | N229: 1 | O229: 1 | P229: 1 | Q229: 1 | R229: 1 | S229: 1 | T229: 1 | U229: 1 | V229: 1 | W229: 1 | X229: 1 | Y229: 1 | Z229: 1 | AA229: 1 | AB229: 1 | AC229: 1 | AD229: 1 | AE229: 1 | AF229: 1 | AG229: 1 | AH229: 1 | AI229: 1 | AJ229: 1 | AK229: 1 | AL229: 1 | AM229: 1 | AN229: 1 | AO229: 1 | AP229: 1 | AQ229: 1 | AR229: 1 | AS229: 1 | AT229: 1 | AU229: 1 | AV229: 1 | AW229: 1 | AX229: 1 | AY229: 1
D233: PC 15 | E233: =" - "&OFFSET('Product Classes'!$C$9,MATCH(D233,MODEL_PCS,0),0) -> - Barcode Scanners
D235: PRE-Case | E235: Static Distribution
D236: Efficiency Level | E236: 2010 | G236: 1990 | H236: =G236+1 -> 1991 | I236: 1992 | J236: 1993 | K236: 1994 | L236: 1995 | M236: 1996 | N236: 1997 | O236: 1998 | P236: 1999 | Q236: 2000 | R236: 2001 | S236: 2002 | T236: 2003 | U236: 2004 | V236: 2005 | W236: 2006 | X236: 2007 | Y236: 2008 | Z236: 2009 | AA236: 2010 | AB236: 2011 | AC236: 2012 | AD236: 2013 | AE236: 2014 | AF236: 2015 | AG236: 2016 | AH236: 2017 | AI236: 2018 | AJ236: 2019 | AK236: 2020 | AL236: 2021 | AM236: 2022 | AN236: 2023 | AO236: 2024 | AP236: 2025 | AQ236: 2026 | AR236: 2027 | AS236: 2028 | AT236: 2029 | AU236: 2030 | AV236: 2031 | AW236: 2032 | AX236: 2033 | AY236: 2034
D237: EL0 | E237: =1-E238 -> 0.5 | G237: =$E237 -> 0.5 | H237: =$E237 -> 0.5 | I237: 0.5 | J237: 0.5 | K237: 0.5 | L237: 0.5 | M237: 0.5 | N237: 0.5 | O237: 0.5 | P237: 0.5 | Q237: 0.5 | R237: 0.5 | S237: 0.5 | T237: 0.5 | U237: 0.5 | V237: 0.5 | W237: 0.5 | X237: 0.5 | Y237: 0.5 | Z237: 0.5 | AA237: 0.5 | AB237: 0.5 | AC237: 0.5 | AD237: 0.5 | AE237: 0.5 | AF237: 0.5 | AG237: 0.5 | AH237: 0.5 | AI237: 0.5 | AJ237: 0.5 | AK237: 0.5 | AL237: 0.5 | AM237: 0.5 | AN237: 0.5 | AO237: 0.5 | AP237: 0.5 | AQ237: 0.5 | AR237: 0.5 | AS237: 0.5 | AT237: 0.5 | AU237: 0.5 | AV237: 0.5 | AW237: 0.5 | AX237: 0.5 | AY237: 0.5
D238: EL1 | E238: =VLOOKUP(CONCATENATE(D233,E233),'Stock, Sales, Life, Compliance'!$C$12:$N$29,12,0) -> 0.5 | G238: =$E238 -> 0.5 | H238: 0.5 | I238: 0.5 | J238: 0.5 | K238: 0.5 | L238: 0.5 | M238: 0.5 | N238: 0.5 | O238: 0.5 | P238: 0.5 | Q238: 0.5 | R238: 0.5 | S238: 0.5 | T238: 0.5 | U238: 0.5 | V238: 0.5 | W238: 0.5 | X238: 0.5 | Y238: 0.5 | Z238: 0.5 | AA238: 0.5 | AB238: 0.5 | AC238: 0.5 | AD238: 0.5 | AE238: 0.5 | AF238: 0.5 | AG238: 0.5 | AH238: 0.5 | AI238: 0.5 | AJ238: 0.5 | AK238: 0.5 | AL238: 0.5 | AM238: 0.5 | AN238: 0.5 | AO238: 0.5 | AP238: 0.5 | AQ238: 0.5 | AR238: 0.5 | AS238: 0.5 | AT238: 0.5 | AU238: 0.5 | AV238: 0.5 | AW238: 0.5 | AX238: 0.5 | AY238: 0.5
D239: TOTAL | E239: =SUM(E237:E238) -> 1 | G239: =SUM(G237:G238) -> 1 | H239: 1 | I239: 1 | J239: 1 | K239: 1 | L239: 1 | M239: 1 | N239: 1 | O239: 1 | P239: 1 | Q239: 1 | R239: 1 | S239: 1 | T239: 1 | U239: 1 | V239: 1 | W239: 1 | X239: 1 | Y239: 1 | Z239: 1 | AA239: 1 | AB239: 1 | AC239: 1 | AD239: 1 | AE239: 1 | AF239: 1 | AG239: 1 | AH239: 1 | AI239: 1 | AJ239: 1 | AK239: 1 | AL239: 1 | AM239: 1 | AN239: 1 | AO239: 1 | AP239: 1 | AQ239: 1 | AR239: 1 | AS239: 1 | AT239: 1 | AU239: 1 | AV239: 1 | AW239: 1 | AX239: 1 | AY239: 1
D241: POST-Case
D242: Efficiency Level | G242: 1990 | H242: =G242+1 -> 1991 | I242: 1992 | J242: 1993 | K242: 1994 | L242: 1995 | M242: 1996 | N242: 1997 | O242: 1998 | P242: 1999 | Q242: 2000 | R242: 2001 | S242: 2002 | T242: 2003 | U242: 2004 | V242: 2005 | W242: =W236 -> 2006 | X242: 2007 | Y242: 2008 | Z242: 2009 | AA242: 2010 | AB242: 2011 | AC242: 2012 | AD242: 2013 | AE242: 2014 | AF242: 2015 | AG242: 2016 | AH242: 2017 | AI242: 2018 | AJ242: 2019 | AK242: 2020 | AL242: 2021 | AM242: 2022 | AN242: 2023 | AO242: 2024 | AP242: 2025 | AQ242: 2026 | AR242: 2027 | AS242: 2028 | AT242: 2029 | AU242: 2030 | AV242: 2031 | AW242: 2032 | AX242: 2033 | AY242: 2034
D243: =D237 -> EL0 | G243: =IF(G$18<STANDARD_YEAR,G237,0) -> 0.5 | H243: =IF(H242<STANDARD_YEAR,H237,0) -> 0.5 | I243: 0.5 | J243: 0.5 | K243: 0.5 | L243: 0.5 | M243: 0.5 | N243: 0.5 | O243: 0.5 | P243: 0.5 | Q243: 0.5 | R243: 0.5 | S243: 0.5 | T243: 0.5 | U243: 0.5 | V243: 0.5 | W243: 0.5 | X243: 0.5 | Y243: 0.5 | Z243: 0.5 | AA243: 0.5 | AB243: 0.5 | AC243: 0.5 | AD243: 0.5 | AE243: 0 | AF243: 0 | AG243: 0 | AH243: 0 | AI243: 0 | AJ243: 0 | AK243: 0 | AL243: 0 | AM243: 0 | AN243: 0 | AO243: 0 | AP243: 0 | AQ243: 0 | AR243: 0 | AS243: 0 | AT243: 0 | AU243: 0 | AV243: 0 | AW243: 0 | AX243: 0 | AY243: 0
D244: =D238 -> EL1 | G244: =IF(G$18<STANDARD_YEAR,G238,1) -> 0.5 | H244: 0.5 | I244: 0.5 | J244: 0.5 | K244: 0.5 | L244: 0.5 | M244: 0.5 | N244: 0.5 | O244: 0.5 | P244: 0.5 | Q244: 0.5 | R244: 0.5 | S244: 0.5 | T244: 0.5 | U244: 0.5 | V244: 0.5 | W244: 0.5 | X244: 0.5 | Y244: 0.5 | Z244: 0.5 | AA244: 0.5 | AB244: 0.5 | AC244: 0.5 | AD244: 0.5 | AE244: 1 | AF244: 1 | AG244: 1 | AH244: 1 | AI244: 1 | AJ244: 1 | AK244: 1 | AL244: 1 | AM244: 1 | AN244: 1 | AO244: 1 | AP244: 1 | AQ244: 1 | AR244: 1 | AS244: 1 | AT244: 1 | AU244: 1 | AV244: 1 | AW244: 1 | AX244: 1 | AY244: 1
D245: TOTAL | G245: =SUM(G243:G244) -> 1 | H245: 1 | I245: 1 | J245: 1 | K245: 1 | L245: 1 | M245: 1 | N245: 1 | O245: 1 | P245: 1 | Q245: 1 | R245: 1 | S245: 1 | T245: 1 | U245: 1 | V245: 1 | W245: 1 | X245: 1 | Y245: 1 | Z245: 1 | AA245: 1 | AB245: 1 | AC245: 1 | AD245: 1 | AE245: 1 | AF245: 1 | AG245: 1 | AH245: 1 | AI245: 1 | AJ245: 1 | AK245: 1 | AL245: 1 | AM245: 1 | AN245: 1 | AO245: 1 | AP245: 1 | AQ245: 1 | AR245: 1 | AS245: 1 | AT245: 1 | AU245: 1 | AV245: 1 | AW245: 1 | AX245: 1 | AY245: 1
D249: PC 16 | E249: =" - "&OFFSET('Product Classes'!$C$9,MATCH(D249,MODEL_PCS,0),0) -> - Two-Way Radios
D251: PRE-Case | E251: Static Distribution
D252: Efficiency Level | E252: 2010 | G252: 1990 | H252: =G252+1 -> 1991 | I252: 1992 | J252: 1993 | K252: 1994 | L252: 1995 | M252: 1996 | N252: 1997 | O252: 1998 | P252: 1999 | Q252: 2000 | R252: 2001 | S252: 2002 | T252: 2003 | U252: 2004 | V252: 2005 | W252: 2006 | X252: 2007 | Y252: 2008 | Z252: 2009 | AA252: 2010 | AB252: 2011 | AC252: 2012 | AD252: 2013 | AE252: 2014 | AF252: 2015 | AG252: 2016 | AH252: 2017 | AI252: 2018 | AJ252: 2019 | AK252: 2020 | AL252: 2021 | AM252: 2022 | AN252: 2023 | AO252: 2024 | AP252: 2025 | AQ252: 2026 | AR252: 2027 | AS252: 2028 | AT252: 2029 | AU252: 2030 | AV252: 2031 | AW252: 2032 | AX252: 2033 | AY252: 2034
D253: EL0 | E253: =1-E254 -> 0.5 | G253: =$E253 -> 0.5 | H253: =$E253 -> 0.5 | I253: 0.5 | J253: 0.5 | K253: 0.5 | L253: 0.5 | M253: 0.5 | N253: 0.5 | O253: 0.5 | P253: 0.5 | Q253: 0.5 | R253: 0.5 | S253: 0.5 | T253: 0.5 | U253: 0.5 | V253: 0.5 | W253: 0.5 | X253: 0.5 | Y253: 0.5 | Z253: 0.5 | AA253: 0.5 | AB253: 0.5 | AC253: 0.5 | AD253: 0.5 | AE253: 0.5 | AF253: 0.5 | AG253: 0.5 | AH253: 0.5 | AI253: 0.5 | AJ253: 0.5 | AK253: 0.5 | AL253: 0.5 | AM253: 0.5 | AN253: 0.5 | AO253: 0.5 | AP253: 0.5 | AQ253: 0.5 | AR253: 0.5 | AS253: 0.5 | AT253: 0.5 | AU253: 0.5 | AV253: 0.5 | AW253: 0.5 | AX253: 0.5 | AY253: 0.5
D254: EL1 | E254: =VLOOKUP(CONCATENATE(D249,E249),'Stock, Sales, Life, Compliance'!$C$12:$N$29,12,0) -> 0.5 | G254: =$E254 -> 0.5 | H254: 0.5 | I254: 0.5 | J254: 0.5 | K254: 0.5 | L254: 0.5 | M254: 0.5 | N254: 0.5 | O254: 0.5 | P254: 0.5 | Q254: 0.5 | R254: 0.5 | S254: 0.5 | T254: 0.5 | U254: 0.5 | V254: 0.5 | W254: 0.5 | X254: 0.5 | Y254: 0.5 | Z254: 0.5 | AA254: 0.5 | AB254: 0.5 | AC254: 0.5 | AD254: 0.5 | AE254: 0.5 | AF254: 0.5 | AG254: 0.5 | AH254: 0.5 | AI254: 0.5 | AJ254: 0.5 | AK254: 0.5 | AL254: 0.5 | AM254: 0.5 | AN254: 0.5 | AO254: 0.5 | AP254: 0.5 | AQ254: 0.5 | AR254: 0.5 | AS254: 0.5 | AT254: 0.5 | AU254: 0.5 | AV254: 0.5 | AW254: 0.5 | AX254: 0.5 | AY254: 0.5
D255: TOTAL | E255: =SUM(E253:E254) -> 1 | G255: =SUM(G253:G254) -> 1 | H255: 1 | I255: 1 | J255: 1 | K255: 1 | L255: 1 | M255: 1 | N255: 1 | O255: 1 | P255: 1 | Q255: 1 | R255: 1 | S255: 1 | T255: 1 | U255: 1 | V255: 1 | W255: 1 | X255: 1 | Y255: 1 | Z255: 1 | AA255: 1 | AB255: 1 | AC255: 1 | AD255: 1 | AE255: 1 | AF255: 1 | AG255: 1 | AH255: 1 | AI255: 1 | AJ255: 1 | AK255: 1 | AL255: 1 | AM255: 1 | AN255: 1 | AO255: 1 | AP255: 1 | AQ255: 1 | AR255: 1 | AS255: 1 | AT255: 1 | AU255: 1 | AV255: 1 | AW255: 1 | AX255: 1 | AY255: 1
D257: POST-Case
D258: Efficiency Level | G258: 1990 | H258: =G258+1 -> 1991 | I258: 1992 | J258: 1993 | K258: 1994 | L258: 1995 | M258: 1996 | N258: 1997 | O258: 1998 | P258: 1999 | Q258: 2000 | R258: 2001 | S258: 2002 | T258: 2003 | U258: 2004 | V258: 2005 | W258: =W252 -> 2006 | X258: 2007 | Y258: 2008 | Z258: 2009 | AA258: 2010 | AB258: 2011 | AC258: 2012 | AD258: 2013 | AE258: 2014 | AF258: 2015 | AG258: 2016 | AH258: 2017 | AI258: 2018 | AJ258: 2019 | AK258: 2020 | AL258: 2021 | AM258: 2022 | AN258: 2023 | AO258: 2024 | AP258: 2025 | AQ258: 2026 | AR258: 2027 | AS258: 2028 | AT258: 2029 | AU258: 2030 | AV258: 2031 | AW258: 2032 | AX258: 2033 | AY258: 2034
D259: =D253 -> EL0 | G259: =IF(G$18<STANDARD_YEAR,G253,0) -> 0.5 | H259: =IF(H258<STANDARD_YEAR,H253,0) -> 0.5 | I259: 0.5 | J259: 0.5 | K259: 0.5 | L259: 0.5 | M259: 0.5 | N259: 0.5 | O259: 0.5 | P259: 0.5 | Q259: 0.5 | R259: 0.5 | S259: 0.5 | T259: 0.5 | U259: 0.5 | V259: 0.5 | W259: 0.5 | X259: 0.5 | Y259: 0.5 | Z259: 0.5 | AA259: 0.5 | AB259: 0.5 | AC259: 0.5 | AD259: 0.5 | AE259: 0 | AF259: 0 | AG259: 0 | AH259: 0 | AI259: 0 | AJ259: 0 | AK259: 0 | AL259: 0 | AM259: 0 | AN259: 0 | AO259: 0 | AP259: 0 | AQ259: 0 | AR259: 0 | AS259: 0 | AT259: 0 | AU259: 0 | AV259: 0 | AW259: 0 | AX259: 0 | AY259: 0
D260: =D254 -> EL1 | G260: =IF(G$18<STANDARD_YEAR,G254,1) -> 0.5 | H260: 0.5 | I260: 0.5 | J260: 0.5 | K260: 0.5 | L260: 0.5 | M260: 0.5 | N260: 0.5 | O260: 0.5 | P260: 0.5 | Q260: 0.5 | R260: 0.5 | S260: 0.5 | T260: 0.5 | U260: 0.5 | V260: 0.5 | W260: 0.5 | X260: 0.5 | Y260: 0.5 | Z260: 0.5 | AA260: 0.5 | AB260: 0.5 | AC260: 0.5 | AD260: 0.5 | AE260: 1 | AF260: 1 | AG260: 1 | AH260: 1 | AI260: 1 | AJ260: 1 | AK260: 1 | AL260: 1 | AM260: 1 | AN260: 1 | AO260: 1 | AP260: 1 | AQ260: 1 | AR260: 1 | AS260: 1 | AT260: 1 | AU260: 1 | AV260: 1 | AW260: 1 | AX260: 1 | AY260: 1
D261: TOTAL | G261: =SUM(G259:G260) -> 1 | H261: 1 | I261: 1 | J261: 1 | K261: 1 | L261: 1 | M261: 1 | N261: 1 | O261: 1 | P261: 1 | Q261: 1 | R261: 1 | S261: 1 | T261: 1 | U261: 1 | V261: 1 | W261: 1 | X261: 1 | Y261: 1 | Z261: 1 | AA261: 1 | AB261: 1 | AC261: 1 | AD261: 1 | AE261: 1 | AF261: 1 | AG261: 1 | AH261: 1 | AI261: 1 | AJ261: 1 | AK261: 1 | AL261: 1 | AM261: 1 | AN261: 1 | AO261: 1 | AP261: 1 | AQ261: 1 | AR261: 1 | AS261: 1 | AT261: 1 | AU261: 1 | AV261: 1 | AW261: 1 | AX261: 1 | AY261: 1
D265: PC 17 | E265: =" - "&OFFSET('Product Classes'!$C$9,MATCH(D265,MODEL_PCS,0),0) -> - 1 Phase Lift Trucks
D267: PRE-Case | E267: Static Distribution
D268: Efficiency Level | E268: 2010 | G268: 1990 | H268: =G268+1 -> 1991 | I268: 1992 | J268: 1993 | K268: 1994 | L268: 1995 | M268: 1996 | N268: 1997 | O268: 1998 | P268: 1999 | Q268: 2000 | R268: 2001 | S268: 2002 | T268: 2003 | U268: 2004 | V268: 2005 | W268: 2006 | X268: 2007 | Y268: 2008 | Z268: 2009 | AA268: 2010 | AB268: 2011 | AC268: 2012 | AD268: 2013 | AE268: 2014 | AF268: 2015 | AG268: 2016 | AH268: 2017 | AI268: 2018 | AJ268: 2019 | AK268: 2020 | AL268: 2021 | AM268: 2022 | AN268: 2023 | AO268: 2024 | AP268: 2025 | AQ268: 2026 | AR268: 2027 | AS268: 2028 | AT268: 2029 | AU268: 2030 | AV268: 2031 | AW268: 2032 | AX268: 2033 | AY268: 2034
D269: EL0 | E269: =1-E270 -> 1 | G269: =$E269 -> 1 | H269: =$E269 -> 1 | I269: 1 | J269: 1 | K269: 1 | L269: 1 | M269: 1 | N269: 1 | O269: 1 | P269: 1 | Q269: 1 | R269: 1 | S269: 1 | T269: 1 | U269: 1 | V269: 1 | W269: 1 | X269: 1 | Y269: 1 | Z269: 1 | AA269: 1 | AB269: 1 | AC269: 1 | AD269: 1 | AE269: 1 | AF269: 1 | AG269: 1 | AH269: 1 | AI269: 1 | AJ269: 1 | AK269: 1 | AL269: 1 | AM269: 1 | AN269: 1 | AO269: 1 | AP269: 1 | AQ269: 1 | AR269: 1 | AS269: 1 | AT269: 1 | AU269: 1 | AV269: 1 | AW269: 1 | AX269: 1 | AY269: 1
D270: EL1 | E270: =VLOOKUP(CONCATENATE(D265,E265),'Stock, Sales, Life, Compliance'!$C$12:$N$29,12,0) -> 0 | G270: =$E270 -> 0 | H270: 0 | I270: 0 | J270: 0 | K270: 0 | L270: 0 | M270: 0 | N270: 0 | O270: 0 | P270: 0 | Q270: 0 | R270: 0 | S270: 0 | T270: 0 | U270: 0 | V270: 0 | W270: 0 | X270: 0 | Y270: 0 | Z270: 0 | AA270: 0 | AB270: 0 | AC270: 0 | AD270: 0 | AE270: 0 | AF270: 0 | AG270: 0 | AH270: 0 | AI270: 0 | AJ270: 0 | AK270: 0 | AL270: 0 | AM270: 0 | AN270: 0 | AO270: 0 | AP270: 0 | AQ270: 0 | AR270: 0 | AS270: 0 | AT270: 0 | AU270: 0 | AV270: 0 | AW270: 0 | AX270: 0 | AY270: 0
D271: TOTAL | E271: =SUM(E269:E270) -> 1 | G271: =SUM(G269:G270) -> 1 | H271: 1 | I271: 1 | J271: 1 | K271: 1 | L271: 1 | M271: 1 | N271: 1 | O271: 1 | P271: 1 | Q271: 1 | R271: 1 | S271: 1 | T271: 1 | U271: 1 | V271: 1 | W271: 1 | X271: 1 | Y271: 1 | Z271: 1 | AA271: 1 | AB271: 1 | AC271: 1 | AD271: 1 | AE271: 1 | AF271: 1 | AG271: 1 | AH271: 1 | AI271: 1 | AJ271: 1 | AK271: 1 | AL271: 1 | AM271: 1 | AN271: 1 | AO271: 1 | AP271: 1 | AQ271: 1 | AR271: 1 | AS271: 1 | AT271: 1 | AU271: 1 | AV271: 1 | AW271: 1 | AX271: 1 | AY271: 1
D273: POST-Case
D274: Efficiency Level | G274: 1990 | H274: =G274+1 -> 1991 | I274: 1992 | J274: 1993 | K274: 1994 | L274: 1995 | M274: 1996 | N274: 1997 | O274: 1998 | P274: 1999 | Q274: 2000 | R274: 2001 | S274: 2002 | T274: 2003 | U274: 2004 | V274: 2005 | W274: =W268 -> 2006 | X274: 2007 | Y274: 2008 | Z274: 2009 | AA274: 2010 | AB274: 2011 | AC274: 2012 | AD274: 2013 | AE274: 2014 | AF274: 2015 | AG274: 2016 | AH274: 2017 | AI274: 2018 | AJ274: 2019 | AK274: 2020 | AL274: 2021 | AM274: 2022 | AN274: 2023 | AO274: 2024 | AP274: 2025 | AQ274: 2026 | AR274: 2027 | AS274: 2028 | AT274: 2029 | AU274: 2030 | AV274: 2031 | AW274: 2032 | AX274: 2033 | AY274: 2034
D275: =D269 -> EL0 | G275: =IF(G$18<STANDARD_YEAR,G269,0) -> 1 | H275: =IF(H274<STANDARD_YEAR,H269,0) -> 1 | I275: 1 | J275: 1 | K275: 1 | L275: 1 | M275: 1 | N275: 1 | O275: 1 | P275: 1 | Q275: 1 | R275: 1 | S275: 1 | T275: 1 | U275: 1 | V275: 1 | W275: 1 | X275: 1 | Y275: 1 | Z275: 1 | AA275: 1 | AB275: 1 | AC275: 1 | AD275: 1 | AE275: 0 | AF275: 0 | AG275: 0 | AH275: 0 | AI275: 0 | AJ275: 0 | AK275: 0 | AL275: 0 | AM275: 0 | AN275: 0 | AO275: 0 | AP275: 0 | AQ275: 0 | AR275: 0 | AS275: 0 | AT275: 0 | AU275: 0 | AV275: 0 | AW275: 0 | AX275: 0 | AY275: 0
D276: =D270 -> EL1 | G276: =IF(G$18<STANDARD_YEAR,G270,1) -> 0 | H276: 0 | I276: 0 | J276: 0 | K276: 0 | L276: 0 | M276: 0 | N276: 0 | O276: 0 | P276: 0 | Q276: 0 | R276: 0 | S276: 0 | T276: 0 | U276: 0 | V276: 0 | W276: 0 | X276: 0 | Y276: 0 | Z276: 0 | AA276: 0 | AB276: 0 | AC276: 0 | AD276: 0 | AE276: 1 | AF276: 1 | AG276: 1 | AH276: 1 | AI276: 1 | AJ276: 1 | AK276: 1 | AL276: 1 | AM276: 1 | AN276: 1 | AO276: 1 | AP276: 1 | AQ276: 1 | AR276: 1 | AS276: 1 | AT276: 1 | AU276: 1 | AV276: 1 | AW276: 1 | AX276: 1 | AY276: 1
D277: TOTAL | G277: =SUM(G275:G276) -> 1 | H277: 1 | I277: 1 | J277: 1 | K277: 1 | L277: 1 | M277: 1 | N277: 1 | O277: 1 | P277: 1 | Q277: 1 | R277: 1 | S277: 1 | T277: 1 | U277: 1 | V277: 1 | W277: 1 | X277: 1 | Y277: 1 | Z277: 1 | AA277: 1 | AB277: 1 | AC277: 1 | AD277: 1 | AE277: 1 | AF277: 1 | AG277: 1 | AH277: 1 | AI277: 1 | AJ277: 1 | AK277: 1 | AL277: 1 | AM277: 1 | AN277: 1 | AO277: 1 | AP277: 1 | AQ277: 1 | AR277: 1 | AS277: 1 | AT277: 1 | AU277: 1 | AV277: 1 | AW277: 1 | AX277: 1 | AY277: 1
D281: PC 18 | E281: =" - "&OFFSET('Product Classes'!$C$9,MATCH(D281,MODEL_PCS,0),0) -> - 3 Phase Lift Trucks
D283: PRE-Case | E283: Static Distribution
D284: Efficiency Level | E284: 2010 | G284: 1990 | H284: =G284+1 -> 1991 | I284: 1992 | J284: 1993 | K284: 1994 | L284: 1995 | M284: 1996 | N284: 1997 | O284: 1998 | P284: 1999 | Q284: 2000 | R284: 2001 | S284: 2002 | T284: 2003 | U284: 2004 | V284: 2005 | W284: 2006 | X284: 2007 | Y284: 2008 | Z284: 2009 | AA284: 2010 | AB284: 2011 | AC284: 2012 | AD284: 2013 | AE284: 2014 | AF284: 2015 | AG284: 2016 | AH284: 2017 | AI284: 2018 | AJ284: 2019 | AK284: 2020 | AL284: 2021 | AM284: 2022 | AN284: 2023 | AO284: 2024 | AP284: 2025 | AQ284: 2026 | AR284: 2027 | AS284: 2028 | AT284: 2029 | AU284: 2030 | AV284: 2031 | AW284: 2032 | AX284: 2033 | AY284: 2034
D285: EL0 | E285: =1-E286 -> 1 | G285: =$E285 -> 1 | H285: =$E285 -> 1 | I285: 1 | J285: 1 | K285: 1 | L285: 1 | M285: 1 | N285: 1 | O285: 1 | P285: 1 | Q285: 1 | R285: 1 | S285: 1 | T285: 1 | U285: 1 | V285: 1 | W285: 1 | X285: 1 | Y285: 1 | Z285: 1 | AA285: 1 | AB285: 1 | AC285: 1 | AD285: 1 | AE285: 1 | AF285: 1 | AG285: 1 | AH285: 1 | AI285: 1 | AJ285: 1 | AK285: 1 | AL285: 1 | AM285: 1 | AN285: 1 | AO285: 1 | AP285: 1 | AQ285: 1 | AR285: 1 | AS285: 1 | AT285: 1 | AU285: 1 | AV285: 1 | AW285: 1 | AX285: 1 | AY285: 1
D286: EL1 | E286: =VLOOKUP(CONCATENATE(D281,E281),'Stock, Sales, Life, Compliance'!$C$12:$N$29,12,0) -> 0 | G286: =$E286 -> 0 | H286: 0 | I286: 0 | J286: 0 | K286: 0 | L286: 0 | M286: 0 | N286: 0 | O286: 0 | P286: 0 | Q286: 0 | R286: 0 | S286: 0 | T286: 0 | U286: 0 | V286: 0 | W286: 0 | X286: 0 | Y286: 0 | Z286: 0 | AA286: 0 | AB286: 0 | AC286: 0 | AD286: 0 | AE286: 0 | AF286: 0 | AG286: 0 | AH286: 0 | AI286: 0 | AJ286: 0 | AK286: 0 | AL286: 0 | AM286: 0 | AN286: 0 | AO286: 0 | AP286: 0 | AQ286: 0 | AR286: 0 | AS286: 0 | AT286: 0 | AU286: 0 | AV286: 0 | AW286: 0 | AX286: 0 | AY286: 0
D287: TOTAL | E287: =SUM(E285:E286) -> 1 | G287: =SUM(G285:G286) -> 1 | H287: 1 | I287: 1 | J287: 1 | K287: 1 | L287: 1 | M287: 1 | N287: 1 | O287: 1 | P287: 1 | Q287: 1 | R287: 1 | S287: 1 | T287: 1 | U287: 1 | V287: 1 | W287: 1 | X287: 1 | Y287: 1 | Z287: 1 | AA287: 1 | AB287: 1 | AC287: 1 | AD287: 1 | AE287: 1 | AF287: 1 | AG287: 1 | AH287: 1 | AI287: 1 | AJ287: 1 | AK287: 1 | AL287: 1 | AM287: 1 | AN287: 1 | AO287: 1 | AP287: 1 | AQ287: 1 | AR287: 1 | AS287: 1 | AT287: 1 | AU287: 1 | AV287: 1 | AW287: 1 | AX287: 1 | AY287: 1
D289: POST-Case
D290: Efficiency Level | G290: 1990 | H290: =G290+1 -> 1991 | I290: 1992 | J290: 1993 | K290: 1994 | L290: 1995 | M290: 1996 | N290: 1997 | O290: 1998 | P290: 1999 | Q290: 2000 | R290: 2001 | S290: 2002 | T290: 2003 | U290: 2004 | V290: 2005 | W290: =W284 -> 2006 | X290: 2007 | Y290: 2008 | Z290: 2009 | AA290: 2010 | AB290: 2011 | AC290: 2012 | AD290: 2013 | AE290: 2014 | AF290: 2015 | AG290: 2016 | AH290: 2017 | AI290: 2018 | AJ290: 2019 | AK290: 2020 | AL290: 2021 | AM290: 2022 | AN290: 2023 | AO290: 2024 | AP290: 2025 | AQ290: 2026 | AR290: 2027 | AS290: 2028 | AT290: 2029 | AU290: 2030 | AV290: 2031 | AW290: 2032 | AX290: 2033 | AY290: 2034
D291: =D285 -> EL0 | G291: =IF(G$18<STANDARD_YEAR,G285,0) -> 1 | H291: =IF(H290<STANDARD_YEAR,H285,0) -> 1 | I291: 1 | J291: 1 | K291: 1 | L291: 1 | M291: 1 | N291: 1 | O291: 1 | P291: 1 | Q291: 1 | R291: 1 | S291: 1 | T291: 1 | U291: 1 | V291: 1 | W291: 1 | X291: 1 | Y291: 1 | Z291: 1 | AA291: 1 | AB291: 1 | AC291: 1 | AD291: 1 | AE291: 0 | AF291: 0 | AG291: 0 | AH291: 0 | AI291: 0 | AJ291: 0 | AK291: 0 | AL291: 0 | AM291: 0 | AN291: 0 | AO291: 0 | AP291: 0 | AQ291: 0 | AR291: 0 | AS291: 0 | AT291: 0 | AU291: 0 | AV291: 0 | AW291: 0 | AX291: 0 | AY291: 0
D292: =D286 -> EL1 | G292: =IF(G$18<STANDARD_YEAR,G286,1) -> 0 | H292: 0 | I292: 0 | J292: 0 | K292: 0 | L292: 0 | M292: 0 | N292: 0 | O292: 0 | P292: 0 | Q292: 0 | R292: 0 | S292: 0 | T292: 0 | U292: 0 | V292: 0 | W292: 0 | X292: 0 | Y292: 0 | Z292: 0 | AA292: 0 | AB292: 0 | AC292: 0 | AD292: 0 | AE292: 1 | AF292: 1 | AG292: 1 | AH292: 1 | AI292: 1 | AJ292: 1 | AK292: 1 | AL292: 1 | AM292: 1 | AN292: 1 | AO292: 1 | AP292: 1 | AQ292: 1 | AR292: 1 | AS292: 1 | AT292: 1 | AU292: 1 | AV292: 1 | AW292: 1 | AX292: 1 | AY292: 1
... 1 more rows

Sheet Auto Marine RV
B2: Auto Marine RV
Q3: Lifetime | S3: Calibration
B4: NAVIGATION | Q4: =ROUND(INDEX(LIFETIMES,MATCH(B2,PRODUCTS,0)),0) -> 10 | S4: =ABS(SUM(OFFSET(S35,-1*Q4,0,Q4,1))-J34) -> 5.820766091e-11
C7: POPULATION | H7: STOCK | O7: SHIPMENTS
D8: Population | I8: Stock Saturation | J8: Stock Units | K8: Stock Growth Rate | P8: Shipments to New Population | Q8: Retirements | R8: Net Change | S8: Total Shipments | T8: Net New Shipments | U8: Net Replacements
C9: 1955 | H9: 1955 | O9: 1955 | R9: =IF($O$35-$O9=Q$4,"CALIBRATE"," ") ->  | S9: =IF(O$35-O9=Q$4,100000, IF(O$35-O9>Q$4,0, IF(O$35-O9<Q$4,S8))) -> 0
C10: 1956 | H10: 1956 | O10: 1956 | R10: =IF($O$35-$O10=Q$4,"CALIBRATE"," ") ->  | S10: 0
C11: 1957 | H11: 1957 | O11: 1957 | S11: 0
C12: 1958 | H12: 1958 | O12: 1958 | S12: 0
C13: 1959 | H13: 1959 | O13: 1959 | S13: 0
C14: 1960 | H14: 1960 | O14: 1960 | S14: 0
C15: 1961 | H15: 1961 | O15: 1961 | S15: 0
C16: 1962 | H16: 1962 | O16: 1962 | S16: 0
C17: 1963 | H17: 1963 | O17: 1963 | S17: 0
C18: 1964 | H18: 1964 | O18: 1964 | S18: 0
C19: 1965 | H19: 1965 | O19: 1965 | S19: 0
C20: 1966 | H20: 1966 | O20: 1966 | S20: 0
C21: 1967 | H21: 1967 | O21: 1967 | S21: 0
C22: 1968 | H22: 1968 | O22: 1968 | S22: 0
C23: 1969 | H23: 1969 | O23: 1969 | S23: 0
C24: 1970 | H24: 1970 | O24: 1970 | S24: 0
C25: 1971 | H25: 1971 | O25: 1971 | R25: CALIBRATE | S25: 39020.98818
C26: 1972 | H26: 1972 | O26: 1972 | S26: =IF(O$35-O26=Q$4,100000, IF(O$35-O26>Q$4,0, IF(O$35-O26<Q$4,S25))) -> 39020.98818
C27: 1973 | H27: 1973 | O27: 1973 | S27: 39020.98818
C28: 1974 | H28: 1974 | O28: 1974 | S28: 39020.98818
C29: 1975 | H29: 1975 | O29: 1975 | S29: 39020.98818
C30: 1976 | H30: 1976 | O30: 1976 | S30: 39020.98818
C31: 1977 | H31: 1977 | O31: 1977 | S31: 39020.98818
C32: 1978 | H32: 1978 | O32: 1978 | S32: 39020.98818
C33: 1979 | H33: 1979 | O33: 1979 | S33: 39020.98818
C34: 1980 | D34: =INDEX(POPULATION,1,MATCH(C34,POPULATION_YEARS,0)) -> 8012576 | H34: 1980 | I34: =I35 -> 0.04869967933 | J34: =$D34*I34 -> 390209.8818 | O34: 1980 | S34: 39020.98818
C35: 1981 | D35: 8170781 | H35: 1981 | I35: 0.04869967933 | J35: =$D35*I35 -> 397914.4146 | K35: =IF(ISNUMBER(J35/J34-1),J35/J34-1,0) -> 0.01974458651 | O35: 1981 | P35: =J35-J34 -> 7704.532769 | Q35: =OFFSET(S35,-Q$4,0) -> 39020.98818 | R35: =J35-J34-P35 -> 0 | S35: =SUM(P35:R35) -> 46725.52095 | T35: =IF(SUM(P35,R35)>0,SUM(P35,R35),0) -> 7704.532769 | U35: =IF(SUM(P35,R35)>0,Q35,SUM(P35:R35)) -> 39020.98818
C36: 1982 | D36: 8219722 | H36: 1982 | I36: 0.04869967933 | J36: 400297.8256 | K36: =IF(ISNUMBER(J36/J35-1),J36/J35-1,0) -> 0.005989757895 | O36: 1982 | P36: =J36-J35 -> 2383.411006 | Q36: =OFFSET(S36,-Q$4,0) -> 39020.98818 | R36: =J36-J35-P36 -> 0 | S36: =SUM(P36:R36) -> 41404.39919 | T36: =IF(SUM(P36,R36)>0,SUM(P36,R36),0) -> 2383.411006 | U36: =IF(SUM(P36,R36)>0,Q36,SUM(P36:R36)) -> 39020.98818
C37: 1983 | D37: 8242285 | H37: 1983 | I37: 0.04869967933 | J37: 401396.6365 | K37: 0.002744983346 | O37: 1983 | P37: 1098.810865 | Q37: 39020.98818 | R37: 0 | S37: 40119.79905 | T37: 1098.810865 | U37: 39020.98818
C38: 1984 | D38: 8312909 | H38: 1984 | I38: 0.04869967933 | J38: 404836.0026 | K38: 0.008568497692 | O38: 1984 | P38: 3439.366153 | Q38: 39020.98818 | R38: 0 | S38: 42460.35434 | T38: 3439.366153 | U38: 39020.98818
C39: 1985 | D39: 8381706 | H39: 1985 | I39: 0.04869967933 | J39: 408186.3945 | K39: 0.008275923627 | O39: 1985 | P39: 3350.391839 | Q39: 39020.98818 | R39: 0 | S39: 42371.38002 | T39: 3350.391839 | U39: 39020.98818
C40: 1986 | D40: 8440235 | H40: 1986 | I40: 0.04869967933 | J40: 411036.738 | K40: 0.006982945954 | O40: 1986 | P40: 2850.343532 | Q40: 39020.98818 | R40: 0 | S40: 41871.33171 | T40: 2850.343532 | U40: 39020.98818
C41: 1987 | D41: 8530220 | H41: 1987 | I41: 0.04869967933 | J41: 415418.9786 | K41: 0.01066143301 | O41: 1987 | P41: 4382.240645 | Q41: 39020.98818 | R41: 0 | S41: 43403.22883 | T41: 4382.240645 | U41: 39020.98818
C42: 1988 | D42: 8678736 | H42: 1988 | I42: 0.04869967933 | J42: 422651.6602 | K42: 0.01741057089 | O42: 1988 | P42: 7232.681576 | Q42: 39020.98818 | R42: 0 | S42: 46253.66976 | T42: 7232.681576 | U42: 39020.98818
C43: 1989 | D43: 8844151 | H43: 1989 | I43: 0.04869967933 | J43: 430707.3177 | K43: 0.01905980318 | O43: 1989 | P43: 8055.657457 | Q43: 39020.98818 | R43: 0 | S43: 47076.64564 | T43: 8055.657457 | U43: 39020.98818
C44: 1990 | D44: 9091053 | H44: 1990 | I44: 0.04869967933 | J44: 442731.3659 | K44: 0.02791698152 | O44: 1990 | P44: 12024.04823 | Q44: 39020.98818 | R44: 0 | S44: 51045.03641 | T44: 12024.04823 | U44: 39020.98818
C45: 1991 | D45: 9316473 | H45: 1991 | I45: 0.04869967933 | J45: 453709.2476 | K45: 0.02479580748 | O45: 1991 | P45: 10977.88171 | Q45: 46725.52095 | R45: 0 | S45: 57703.40267 | T45: 10977.88171 | U45: 46725.52095
C46: 1992 | D46: 9553707 | H46: 1992 | I46: 0.04869967933 | J46: 465262.4673 | K46: 0.02546392825 | O46: 1992 | P46: 11553.21973 | Q46: 41404.39919 | R46: 0 | S46: 52957.61891 | T46: 11553.21973 | U46: 41404.39919
C47: 1993 | D47: 9788044 | H47: 1993 | I47: 0.04869967933 | J47: 476674.6041 | K47: 0.02452838464 | O47: 1993 | P47: 11412.13676 | Q47: 40119.79905 | R47: 0 | S47: 51531.9358 | T47: 11412.13676 | U47: 40119.79905
C48: 1994 | D48: 9989759 | H48: 1994 | I48: 0.04869967933 | J48: 486498.0599 | K48: 0.0206083054 | O48: 1994 | P48: 9823.455816 | Q48: 42460.35434 | R48: 0 | S48: 52283.81015 | T48: 9823.455816 | U48: 42460.35434
C49: 1995 | D49: 10199875 | H49: 1995 | I49: 0.04869967933 | J49: 496730.6417 | K49: 0.02103314004 | O49: 1995 | P49: 10232.58182 | Q49: 42371.38002 | R49: 0 | S49: 52603.96184 | T49: 10232.58182 | U49: 42371.38002
C50: 1996 | D50: 10382994 | H50: 1996 | I50: 0.04869967933 | J50: 505648.4783 | K50: 0.01795306315 | O50: 1996 | P50: 8917.83658 | Q50: 41871.33171 | R50: 0 | S50: 50789.16829 | T50: 8917.83658 | U50: 41871.33171
C51: 1997 | D51: 10574069 | H51: 1997 | I51: 0.04869967933 | J51: 514953.7695 | K51: 0.01840268809 | O51: 1997 | P51: 9305.291228 | Q51: 43403.22883 | R51: 0 | S51: 52708.52005 | T51: 9305.291228 | U51: 43403.22883
C52: 1998 | D52: 10743166 | H52: 1998 | I52: 0.04869967933 | J52: 523188.7392 | K52: 0.01599166792 | O52: 1998 | P52: 8234.969676 | Q52: 46253.66976 | R52: 0 | S52: 54488.63943 | T52: 8234.969676 | U52: 46253.66976
C53: 1999 | D53: 10884244 | H53: 1999 | I53: 0.04869967933 | J53: 530059.1926 | K53: 0.0131318831 | O53: 1999 | P53: 6870.453361 | Q53: 47076.64564 | R53: 0 | S53: 53947.099 | T53: 6870.453361 | U53: 47076.64564
C54: 2000 | D54: 11016391 | H54: 2000 | I54: 0.04869967933 | J54: 536494.7091 | K54: 0.01214112804 | O54: 2000 | P54: 6435.516525 | Q54: 51045.03641 | R54: 0 | S54: 57480.55293 | T54: 6435.516525 | U54: 51045.03641
C55: 2001 | D55: 11153079 | H55: 2001 | I55: 0.04869967933 | J55: 543151.3709 | K55: 0.01240769323 | O55: 2001 | P55: 6656.661768 | Q55: 57703.40267 | R55: 0 | S55: 64360.06443 | T55: 6656.661768 | U55: 57703.40267
C56: 2002 | D56: 11288840 | H56: 2002 | I56: 0.04869967933 | J56: 549762.888 | K56: 0.01217251308 | O56: 2002 | P56: 6611.517166 | Q56: 52957.61891 | R56: 0 | S56: 59569.13608 | T56: 6611.517166 | U56: 52957.61891
C57: 2003 | D57: 11402739 | H57: 2003 | I57: 0.04869967933 | J57: 555309.7328 | K57: 0.01008952204 | O57: 2003 | P57: 5546.844776 | Q57: 51531.9358 | R57: 0 | S57: 57078.78058 | T57: 5546.844776 | U57: 51531.9358
C58: 2004 | D58: 11532881 | H58: 2004 | I58: 0.04869967933 | J58: 561647.6065 | K58: 0.01141322274 | O58: 2004 | P58: 6337.873668 | Q58: 52283.81015 | R58: 0 | S58: 58621.68382 | T58: 6337.873668 | U58: 52283.81015
C59: 2005 | D59: 11696939 | H59: 2005 | I59: 0.04869967933 | J59: 569637.1785 | K59: 0.01422523999 | O59: 2005 | P59: 7989.571992 | Q59: 52603.96184 | R59: 0 | S59: 60593.53384 | T59: 7989.571992 | U59: 52603.96184
C60: 2006 | D60: 11915169 | H60: 2006 | I60: 0.04869967933 | J60: 580264.9095 | K60: 0.01865701787 | O60: 2006 | P60: 10627.73102 | Q60: 50789.16829 | R60: 0 | S60: 61416.89931 | T60: 10627.73102 | U60: 50789.16829
C61: 2007 | D61: 12100237 | H61: 2007 | I61: 0.04869967933 | J61: 589277.6617 | K61: 0.01553213387 | O61: 2007 | P61: 9012.752255 | Q61: 52708.52005 | R61: 0 | S61: 61721.27231 | T61: 9012.752255 | U61: 52708.52005
C62: 2008 | D62: 12282172 | H62: 2008 | I62: =I63 -> 0.04869967933 | J62: 598137.8379 | K62: 0.01503565591 | O62: 2008 | P62: 8860.176159 | Q62: 54488.63943 | R62: 0 | S62: 63348.81559 | T62: 8860.176159 | U62: 54488.63943
C63: 2009 | D63: 12450133 | H63: 2009 | I63: =INDEX(SATURATIONS,MATCH(B$2,PRODUCTS,0),MATCH(H63,SATURATIONS_YEARS,0)) -> 0.04869967933 | J63: 606317.4847 | K63: 0.01367518709 | O63: 2009 | P63: 8179.64684 | Q63: 53947.099 | R63: 0 | S63: 62126.74584 | T63: 8179.64684 | U63: 53947.099
C64: 2010 | D64: 12576895 | H64: 2010 | I64: =(I$67-I$63)/(H$67-H$63)+I63 -> 0.05012041553 | J64: 630359.2035 | K64: 0.0396520294 | O64: 2010 | P64: 24041.71873 | Q64: 57480.55293 | R64: 0 | S64: 81522.27166 | T64: 24041.71873 | U64: 57480.55293
C65: 2011 | D65: 12748603.67 | H65: 2011 | I65: =(I$67-I$63)/(H$67-H$63)+I64 -> 0.05154115173 | J65: 657077.7159 | K65: 0.0423861701 | O65: 2011 | P65: 26718.51242 | Q65: 64360.06443 | R65: 0 | S65: =SUM(P65:R65) -> 91078.57686 | T65: 26718.51242 | U65: 64360.06443
C66: 2012 | D66: =INDEX(POPULATION,1,MATCH(C66,POPULATION_YEARS,0)) -> 12913820.99 | H66: 2012 | I66: 0.05296188792 | J66: 683940.3398 | K66: 0.04088195855 | O66: 2012 | P66: 26862.62395 | Q66: 59569.13608 | R66: 0 | S66: 86431.76003 | T66: 26862.62395 | U66: 59569.13608
C67: 2013 | D67: 13079038.31 | H67: 2013 | I67: =INDEX(SATURATIONS,MATCH(B$2,PRODUCTS,0),MATCH(H67,SATURATIONS_YEARS,0)) -> 0.05438262412 | J67: 711272.4242 | K67: 0.03996267337 | O67: 2013 | P67: 27332.0844 | Q67: 57078.78058 | R67: 0 | S67: 84410.86498 | T67: 27332.0844 | U67: 57078.78058
C68: 2014 | D68: 13244255.63 | H68: 2014 | I68: =I67 -> 0.05438262412 | J68: 720257.3757 | K68: 0.01263222244 | O68: 2014 | P68: 8984.951478 | Q68: 58621.68382 | R68: 0 | S68: 67606.6353 | T68: 8984.951478 | U68: 58621.68382
C69: 2015 | D69: 13409472.95 | H69: 2015 | I69: =I68 -> 0.05438262412 | J69: 729242.3272 | K69: 0.01247464001 | O69: 2015 | P69: 8984.951478 | Q69: 60593.53384 | R69: 0 | S69: 69578.48531 | T69: 8984.951478 | U69: 60593.53384
C70: 2016 | D70: 13574690.27 | H70: 2016 | I70: 0.05438262412 | J70: 738227.2787 | K70: 0.01232094071 | O70: 2016 | P70: 8984.951478 | Q70: 61416.89931 | R70: 0 | S70: 70401.85079 | T70: 8984.951478 | U70: 61416.89931
C71: 2017 | D71: 13739907.59 | H71: 2017 | I71: 0.05438262412 | J71: 747212.2302 | K71: 0.01217098275 | O71: 2017 | P71: 8984.951478 | Q71: 61721.27231 | R71: 0 | S71: 70706.22379 | T71: 8984.951478 | U71: 61721.27231
C72: 2018 | D72: 13905124.92 | H72: 2018 | I72: 0.05438262412 | J72: 756197.1816 | K72: 0.01202463118 | O72: 2018 | P72: 8984.951478 | Q72: 63348.81559 | R72: 0 | S72: 72333.76707 | T72: 8984.951478 | U72: 63348.81559
C73: 2019 | D73: 14070342.24 | H73: 2019 | I73: 0.05438262412 | J73: 765182.1331 | K73: 0.01188175743 | O73: 2019 | P73: 8984.951478 | Q73: 62126.74584 | R73: 0 | S73: 71111.69732 | T73: 8984.951478 | U73: 62126.74584
C74: 2020 | D74: 14235559.56 | H74: 2020 | I74: 0.05438262412 | J74: 774167.0846 | K74: 0.01174223899 | O74: 2020 | P74: 8984.951478 | Q74: 81522.27166 | R74: 0 | S74: 90507.22314 | T74: 8984.951478 | U74: 81522.27166
C75: 2021 | D75: 14400776.88 | H75: 2021 | I75: 0.05438262412 | J75: 783152.0361 | K75: 0.01160595905 | O75: 2021 | P75: 8984.951478 | Q75: 91078.57686 | R75: 0 | S75: 100063.5283 | T75: 8984.951478 | U75: 91078.57686
C76: 2022 | D76: 14565994.2 | H76: 2022 | I76: 0.05438262412 | J76: 792136.9875 | K76: 0.01147280613 | O76: 2022 | P76: 8984.951478 | Q76: 86431.76003 | R76: 0 | S76: 95416.71151 | T76: 8984.951478 | U76: 86431.76003
C77: 2023 | D77: 14731211.52 | H77: 2023 | I77: 0.05438262412 | J77: 801121.939 | K77: 0.01134267383 | O77: 2023 | P77: 8984.951478 | Q77: 84410.86498 | R77: 0 | S77: 93395.81646 | T77: 8984.951478 | U77: 84410.86498
C78: 2024 | D78: 14896428.84 | H78: 2024 | I78: 0.05438262412 | J78: 810106.8905 | K78: 0.01121546052 | O78: 2024 | P78: 8984.951478 | Q78: 67606.6353 | R78: 0 | S78: 76591.58677 | T78: 8984.951478 | U78: 67606.6353
C79: 2025 | D79: 15061646.16 | H79: 2025 | I79: 0.05438262412 | J79: 819091.842 | K79: 0.01109106907 | O79: 2025 | P79: 8984.951478 | Q79: 69578.48531 | R79: 0 | S79: 78563.43679 | T79: 8984.951478 | U79: 69578.48531
C80: 2026 | D80: 15226863.48 | H80: 2026 | I80: 0.05438262412 | J80: 828076.7935 | K80: 0.01096940663 | O80: 2026 | P80: 8984.951478 | Q80: 70401.85079 | R80: 0 | S80: 79386.80227 | T80: 8984.951478 | U80: 70401.85079
C81: 2027 | D81: 15392080.81 | H81: 2027 | I81: 0.05438262412 | J81: 837061.7449 | K81: 0.01085038435 | O81: 2027 | P81: 8984.951478 | Q81: 70706.22379 | R81: 0 | S81: 79691.17527 | T81: 8984.951478 | U81: 70706.22379
C82: 2028 | D82: 15557298.13 | H82: 2028 | I82: 0.05438262412 | J82: 846046.6964 | K82: 0.01073391722 | O82: 2028 | P82: 8984.951478 | Q82: 72333.76707 | R82: 0 | S82: 81318.71855 | T82: 8984.951478 | U82: 72333.76707
C83: 2029 | D83: 15722515.45 | H83: 2029 | I83: 0.05438262412 | J83: 855031.6479 | K83: 0.01061992384 | O83: 2029 | P83: 8984.951478 | Q83: 71111.69732 | R83: 0 | S83: 80096.6488 | T83: 8984.951478 | U83: 71111.69732
C84: 2030 | D84: 15887732.77 | H84: 2030 | I84: 0.05438262412 | J84: 864016.5994 | K84: 0.01050832621 | O84: 2030 | P84: 8984.951478 | Q84: 90507.22314 | R84: 0 | S84: 99492.17462 | T84: 8984.951478 | U84: 90507.22314
C85: 2031 | D85: 16052950.09 | H85: 2031 | I85: 0.05438262412 | J85: 873001.5508 | K85: 0.01039904961 | O85: 2031 | P85: 8984.951478 | Q85: 100063.5283 | R85: 0 | S85: 109048.4798 | T85: 8984.951478 | U85: 100063.5283
C86: 2032 | D86: 16218167.41 | H86: 2032 | I86: 0.05438262412 | J86: 881986.5023 | K86: 0.01029202236 | O86: 2032 | P86: 8984.951478 | Q86: 95416.71151 | R86: 0 | S86: 104401.663 | T86: 8984.951478 | U86: 95416.71151
C87: 2033 | D87: 16383384.73 | H87: 2033 | I87: 0.05438262412 | J87: 890971.4538 | K87: 0.01018717572 | O87: 2033 | P87: 8984.951478 | Q87: 93395.81646 | R87: 0 | S87: 102380.7679 | T87: 8984.951478 | U87: 93395.81646
C88: 2034 | D88: 16548602.05 | H88: 2034 | I88: 0.05438262412 | J88: 899956.4053 | K88: 0.01008444372 | O88: 2034 | P88: 8984.951478 | Q88: 76591.58677 | R88: 0 | S88: 85576.53825 | T88: 8984.951478 | U88: 76591.58677

Sheet Efficiency Dist - SF (hidden)
C2: Efficiency Distributions by Product Class - Single Family
C4: =Navigation!$C$15 -> NAVIGATION
D7: ='Product Classes'!H10&" - "&OFFSET('Product Classes'!$C$9,MATCH('Product Classes'!H10,MODEL_PCS,0),0) -> PC 1 - Auto Marine RV
D9: PRE-Case | F9: Static Distribution
D10: Efficiency Level | E10: ='Efficiency Levels'!#REF! ->  | F10: 2015 | H10: 1990 | I10: =H10+1 -> 1991 | J10: =I10+1 -> 1992 | K10: 1993 | L10: 1994 | M10: 1995 | N10: 1996 | O10: 1997 | P10: 1998 | Q10: 1999 | R10: 2000 | S10: 2001 | T10: 2002 | U10: 2003 | V10: 2004 | W10: 2005 | X10: 2006 | Y10: 2007 | Z10: 2008 | AA10: 2009 | AB10: 2010 | AC10: 2011 | AD10: 2012 | AE10: 2013 | AF10: 2014 | AG10: 2015 | AH10: 2016 | AI10: 2017 | AJ10: 2018 | AK10: 2019 | AL10: 2020 | AM10: 2021 | AN10: 2022 | AO10: 2023 | AP10: 2024 | AQ10: 2025 | AR10: 2026 | AS10: 2027 | AT10: 2028 | AU10: 2029 | AV10: 2030 | AW10: 2031 | AX10: 2032 | AY10: 2033 | AZ10: 2034
D11: ='Efficiency Levels'!#REF! ->  | E11: ='Efficiency Levels'!#REF! ->  | F11: 0.44 | H11: =$F11 -> 0.44 | I11: =$F11 -> 0.44 | J11: 0.44 | K11: 0.44 | L11: 0.44 | M11: 0.44 | N11: 0.44 | O11: 0.44 | P11: 0.44 | Q11: 0.44 | R11: 0.44 | S11: 0.44 | T11: 0.44 | U11: 0.44 | V11: 0.44 | W11: 0.44 | X11: 0.44 | Y11: 0.44 | Z11: 0.44 | AA11: 0.44 | AB11: 0.44 | AC11: 0.44 | AD11: 0.44 | AE11: 0.44 | AF11: 0.44 | AG11: 0.44 | AH11: 0.44 | AI11: 0.44 | AJ11: 0.44 | AK11: 0.44 | AL11: 0.44 | AM11: 0.44 | AN11: 0.44 | AO11: 0.44 | AP11: 0.44 | AQ11: 0.44 | AR11: 0.44 | AS11: 0.44 | AT11: 0.44 | AU11: 0.44 | AV11: 0.44 | AW11: 0.44 | AX11: 0.44 | AY11: 0.44 | AZ11: 0.44
D12: ='Efficiency Levels'!#REF! ->  | E12: ='Efficiency Levels'!#REF! ->  | F12: 0.49 | H12: =$F12 -> 0.49 | I12: =$F12 -> 0.49 | J12: 0.49 | K12: 0.49 | L12: 0.49 | M12: 0.49 | N12: 0.49 | O12: 0.49 | P12: 0.49 | Q12: 0.49 | R12: 0.49 | S12: 0.49 | T12: 0.49 | U12: 0.49 | V12: 0.49 | W12: 0.49 | X12: 0.49 | Y12: 0.49 | Z12: 0.49 | AA12: 0.49 | AB12: 0.49 | AC12: 0.49 | AD12: 0.49 | AE12: 0.49 | AF12: 0.49 | AG12: 0.49 | AH12: 0.49 | AI12: 0.49 | AJ12: 0.49 | AK12: 0.49 | AL12: 0.49 | AM12: 0.49 | AN12: 0.49 | AO12: 0.49 | AP12: 0.49 | AQ12: 0.49 | AR12: 0.49 | AS12: 0.49 | AT12: 0.49 | AU12: 0.49 | AV12: 0.49 | AW12: 0.49 | AX12: 0.49 | AY12: 0.49 | AZ12: 0.49
D13: ='Efficiency Levels'!#REF! ->  | E13: ='Efficiency Levels'!#REF! ->  | F13: 0.05 | H13: =$F13 -> 0.05 | I13: 0.05 | J13: 0.05 | K13: 0.05 | L13: 0.05 | M13: 0.05 | N13: 0.05 | O13: 0.05 | P13: 0.05 | Q13: 0.05 | R13: 0.05 | S13: 0.05 | T13: 0.05 | U13: 0.05 | V13: 0.05 | W13: 0.05 | X13: 0.05 | Y13: 0.05 | Z13: 0.05 | AA13: 0.05 | AB13: 0.05 | AC13: 0.05 | AD13: 0.05 | AE13: 0.05 | AF13: 0.05 | AG13: 0.05 | AH13: 0.05 | AI13: 0.05 | AJ13: 0.05 | AK13: 0.05 | AL13: 0.05 | AM13: 0.05 | AN13: 0.05 | AO13: 0.05 | AP13: 0.05 | AQ13: 0.05 | AR13: 0.05 | AS13: 0.05 | AT13: 0.05 | AU13: 0.05 | AV13: 0.05 | AW13: 0.05 | AX13: 0.05 | AY13: 0.05 | AZ13: 0.05
D14: ='Efficiency Levels'!#REF! ->  | E14: ='Efficiency Levels'!#REF! ->  | F14: 0.02 | H14: =$F14 -> 0.02 | I14: 0.02 | J14: 0.02 | K14: 0.02 | L14: 0.02 | M14: 0.02 | N14: 0.02 | O14: 0.02 | P14: 0.02 | Q14: 0.02 | R14: 0.02 | S14: 0.02 | T14: 0.02 | U14: 0.02 | V14: 0.02 | W14: 0.02 | X14: 0.02 | Y14: 0.02 | Z14: 0.02 | AA14: 0.02 | AB14: 0.02 | AC14: 0.02 | AD14: 0.02 | AE14: 0.02 | AF14: 0.02 | AG14: 0.02 | AH14: 0.02 | AI14: 0.02 | AJ14: 0.02 | AK14: 0.02 | AL14: 0.02 | AM14: 0.02 | AN14: 0.02 | AO14: 0.02 | AP14: 0.02 | AQ14: 0.02 | AR14: 0.02 | AS14: 0.02 | AT14: 0.02 | AU14: 0.02 | AV14: 0.02 | AW14: 0.02 | AX14: 0.02 | AY14: 0.02 | AZ14: 0.02
D16: TOTAL | F16: =SUM(F11:F14) -> 1 | H16: =SUM(H11:H14) -> 1 | I16: 1 | J16: 1 | K16: 1 | L16: 1 | M16: 1 | N16: 1 | O16: 1 | P16: 1 | Q16: 1 | R16: 1 | S16: 1 | T16: 1 | U16: 1 | V16: 1 | W16: 1 | X16: 1 | Y16: 1 | Z16: 1 | AA16: 1 | AB16: 1 | AC16: 1 | AD16: 1 | AE16: 1 | AF16: 1 | AG16: 1 | AH16: 1 | AI16: 1 | AJ16: 1 | AK16: 1 | AL16: 1 | AM16: 1 | AN16: 1 | AO16: 1 | AP16: 1 | AQ16: 1 | AR16: 1 | AS16: 1 | AT16: 1 | AU16: 1 | AV16: 1 | AW16: 1 | AX16: 1 | AY16: 1 | AZ16: 1
D18: POST-Case
D19: Efficiency Level | E19: =$E$10 ->  | H19: 1990 | I19: =H19+1 -> 1991 | J19: =I19+1 -> 1992 | K19: 1993 | L19: 1994 | M19: 1995 | N19: 1996 | O19: 1997 | P19: 1998 | Q19: 1999 | R19: 2000 | S19: 2001 | T19: 2002 | U19: 2003 | V19: 2004 | W19: 2005 | X19: =X10 -> 2006 | Y19: 2007 | Z19: 2008 | AA19: 2009 | AB19: 2010 | AC19: 2011 | AD19: 2012 | AE19: 2013 | AF19: 2014 | AG19: 2015 | AH19: 2016 | AI19: 2017 | AJ19: 2018 | AK19: 2019 | AL19: 2020 | AM19: 2021 | AN19: 2022 | AO19: 2023 | AP19: 2024 | AQ19: 2025 | AR19: 2026 | AS19: 2027 | AT19: 2028 | AU19: 2029 | AV19: 2030 | AW19: 2031 | AX19: 2032 | AY19: 2033 | AZ19: 2034
D20: ='Efficiency Levels'!#REF! ->  | E20: ='Efficiency Levels'!#REF! ->  | H20: =H11 -> 0.44 | I20: 0.44 | J20: 0.44 | K20: 0.44 | L20: 0.44 | M20: 0.44 | N20: 0.44 | O20: 0.44 | P20: 0.44 | Q20: 0.44 | R20: 0.44 | S20: 0.44 | T20: 0.44 | U20: 0.44 | V20: 0.44 | W20: 0.44 | X20: 0.44 | Y20: 0.44 | Z20: 0.44 | AA20: 0.44 | AB20: 0.44 | AC20: 0.44 | AD20: 0.44 | AE20: 0.44 | AF20: 0.44 | AG20: 0 | AH20: 0 | AI20: 0 | AJ20: 0 | AK20: 0 | AL20: 0 | AM20: 0 | AN20: 0 | AO20: 0 | AP20: 0 | AQ20: 0 | AR20: 0 | AS20: 0 | AT20: 0 | AU20: 0 | AV20: 0 | AW20: 0 | AX20: 0 | AY20: 0 | AZ20: 0
D21: ='Efficiency Levels'!#REF! ->  | E21: ='Efficiency Levels'!#REF! ->  | H21: =H12 -> 0.49 | I21: 0.49 | J21: 0.49 | K21: 0.49 | L21: 0.49 | M21: 0.49 | N21: 0.49 | O21: 0.49 | P21: 0.49 | Q21: 0.49 | R21: 0.49 | S21: 0.49 | T21: 0.49 | U21: 0.49 | V21: 0.49 | W21: 0.49 | X21: 0.49 | Y21: 0.49 | Z21: 0.49 | AA21: 0.49 | AB21: 0.49 | AC21: 0.49 | AD21: 0.49 | AE21: 0.49 | AF21: 0.49 | AG21: 0 | AH21: 0 | AI21: 0 | AJ21: 0 | AK21: 0 | AL21: 0 | AM21: 0 | AN21: 0 | AO21: 0 | AP21: 0 | AQ21: 0 | AR21: 0 | AS21: 0 | AT21: 0 | AU21: 0 | AV21: 0 | AW21: 0 | AX21: 0 | AY21: 0 | AZ21: 0
D22: ='Efficiency Levels'!#REF! ->  | E22: ='Efficiency Levels'!#REF! ->  | H22: =H13 -> 0.05 | I22: 0.05 | J22: 0.05 | K22: 0.05 | L22: 0.05 | M22: 0.05 | N22: 0.05 | O22: 0.05 | P22: 0.05 | Q22: 0.05 | R22: 0.05 | S22: 0.05 | T22: 0.05 | U22: 0.05 | V22: 0.05 | W22: 0.05 | X22: 0.05 | Y22: 0.05 | Z22: 0.05 | AA22: 0.05 | AB22: 0.05 | AC22: 0.05 | AD22: 0.05 | AE22: 0.05 | AF22: 0.05 | AG22: 0 | AH22: 0 | AI22: 0 | AJ22: 0 | AK22: 0 | AL22: 0 | AM22: 0 | AN22: 0 | AO22: 0 | AP22: 0 | AQ22: 0 | AR22: 0 | AS22: 0 | AT22: 0 | AU22: 0 | AV22: 0 | AW22: 0 | AX22: 0 | AY22: 0 | AZ22: 0
D23: ='Efficiency Levels'!#REF! ->  | E23: ='Efficiency Levels'!#REF! ->  | H23: =H14 -> 0.02 | I23: 0.02 | J23: 0.02 | K23: 0.02 | L23: 0.02 | M23: 0.02 | N23: 0.02 | O23: 0.02 | P23: 0.02 | Q23: 0.02 | R23: 0.02 | S23: 0.02 | T23: 0.02 | U23: 0.02 | V23: 0.02 | W23: 0.02 | X23: 0.02 | Y23: 0.02 | Z23: 0.02 | AA23: 0.02 | AB23: 0.02 | AC23: 0.02 | AD23: 0.02 | AE23: 0.02 | AF23: 0.02 | AG23: =SUM(AG11:AG14) -> 1 | AH23: 1 | AI23: 1 | AJ23: 1 | AK23: 1 | AL23: 1 | AM23: 1 | AN23: 1 | AO23: 1 | AP23: 1 | AQ23: 1 | AR23: 1 | AS23: 1 | AT23: 1 | AU23: 1 | AV23: 1 | AW23: 1 | AX23: 1 | AY23: 1 | AZ23: 1
D24: TOTAL | H24: =SUM(H20:H23) -> 1 | I24: 1 | J24: 1 | K24: 1 | L24: 1 | M24: 1 | N24: 1 | O24: 1 | P24: 1 | Q24: 1 | R24: 1 | S24: 1 | T24: 1 | U24: 1 | V24: 1 | W24: 1 | X24: 1 | Y24: 1 | Z24: 1 | AA24: 1 | AB24: 1 | AC24: 1 | AD24: 1 | AE24: 1 | AF24: 1 | AG24: 1 | AH24: 1 | AI24: 1 | AJ24: 1 | AK24: 1 | AL24: 1 | AM24: 1 | AN24: 1 | AO24: 1 | AP24: 1 | AQ24: 1 | AR24: 1 | AS24: 1 | AT24: 1 | AU24: 1 | AV24: 1 | AW24: 1 | AX24: 1 | AY24: 1 | AZ24: 1
D26: Sources | E26: DOE 2014 Final Rule NIA Model
D30: ='Product Classes'!H11&" - "&OFFSET('Product Classes'!$C$9,MATCH('Product Classes'!H11,MODEL_PCS,0),0) -> PC 2 - Cell Phones
D32: PRE-Case | F32: Static Distribution
D33: Efficiency Level | E33: ='Efficiency Levels'!#REF! ->  | F33: 2015 | H33: 1990 | I33: =H33+1 -> 1991 | J33: 1992 | K33: 1993 | L33: 1994 | M33: 1995 | N33: 1996 | O33: 1997 | P33: 1998 | Q33: 1999 | R33: 2000 | S33: 2001 | T33: 2002 | U33: 2003 | V33: 2004 | W33: 2005 | X33: 2006 | Y33: 2007 | Z33: 2008 | AA33: 2009 | AB33: 2010 | AC33: 2011 | AD33: 2012 | AE33: 2013 | AF33: 2014 | AG33: 2015 | AH33: 2016 | AI33: 2017 | AJ33: 2018 | AK33: 2019 | AL33: 2020 | AM33: 2021 | AN33: 2022 | AO33: 2023 | AP33: 2024 | AQ33: 2025 | AR33: 2026 | AS33: 2027 | AT33: 2028 | AU33: 2029 | AV33: 2030 | AW33: 2031 | AX33: 2032 | AY33: 2033 | AZ33: 2034
D34: ='Efficiency Levels'!#REF! ->  | E34: ='Efficiency Levels'!#REF! ->  | F34: 0.19 | H34: =$F34 -> 0.19 | I34: =$F34 -> 0.19 | J34: 0.19 | K34: 0.19 | L34: 0.19 | M34: 0.19 | N34: 0.19 | O34: 0.19 | P34: 0.19 | Q34: 0.19 | R34: 0.19 | S34: 0.19 | T34: 0.19 | U34: 0.19 | V34: 0.19 | W34: 0.19 | X34: 0.19 | Y34: 0.19 | Z34: 0.19 | AA34: 0.19 | AB34: 0.19 | AC34: 0.19 | AD34: 0.19 | AE34: 0.19 | AF34: 0.19 | AG34: 0.19 | AH34: 0.19 | AI34: 0.19 | AJ34: 0.19 | AK34: 0.19 | AL34: 0.19 | AM34: 0.19 | AN34: 0.19 | AO34: 0.19 | AP34: 0.19 | AQ34: 0.19 | AR34: 0.19 | AS34: 0.19 | AT34: 0.19 | AU34: 0.19 | AV34: 0.19 | AW34: 0.19 | AX34: 0.19 | AY34: 0.19 | AZ34: 0.19
D35: ='Efficiency Levels'!#REF! ->  | E35: ='Efficiency Levels'!#REF! ->  | F35: 0.52 | H35: =$F35 -> 0.52 | I35: =$F35 -> 0.52 | J35: 0.52 | K35: 0.52 | L35: 0.52 | M35: 0.52 | N35: 0.52 | O35: 0.52 | P35: 0.52 | Q35: 0.52 | R35: 0.52 | S35: 0.52 | T35: 0.52 | U35: 0.52 | V35: 0.52 | W35: 0.52 | X35: 0.52 | Y35: 0.52 | Z35: 0.52 | AA35: 0.52 | AB35: 0.52 | AC35: 0.52 | AD35: 0.52 | AE35: 0.52 | AF35: 0.52 | AG35: 0.52 | AH35: 0.52 | AI35: 0.52 | AJ35: 0.52 | AK35: 0.52 | AL35: 0.52 | AM35: 0.52 | AN35: 0.52 | AO35: 0.52 | AP35: 0.52 | AQ35: 0.52 | AR35: 0.52 | AS35: 0.52 | AT35: 0.52 | AU35: 0.52 | AV35: 0.52 | AW35: 0.52 | AX35: 0.52 | AY35: 0.52 | AZ35: 0.52
D36: ='Efficiency Levels'!#REF! ->  | E36: ='Efficiency Levels'!#REF! ->  | F36: 0.18 | H36: =$F36 -> 0.18 | I36: 0.18 | J36: 0.18 | K36: 0.18 | L36: 0.18 | M36: 0.18 | N36: 0.18 | O36: 0.18 | P36: 0.18 | Q36: 0.18 | R36: 0.18 | S36: 0.18 | T36: 0.18 | U36: 0.18 | V36: 0.18 | W36: 0.18 | X36: 0.18 | Y36: 0.18 | Z36: 0.18 | AA36: 0.18 | AB36: 0.18 | AC36: 0.18 | AD36: 0.18 | AE36: 0.18 | AF36: 0.18 | AG36: 0.18 | AH36: 0.18 | AI36: 0.18 | AJ36: 0.18 | AK36: 0.18 | AL36: 0.18 | AM36: 0.18 | AN36: 0.18 | AO36: 0.18 | AP36: 0.18 | AQ36: 0.18 | AR36: 0.18 | AS36: 0.18 | AT36: 0.18 | AU36: 0.18 | AV36: 0.18 | AW36: 0.18 | AX36: 0.18 | AY36: 0.18 | AZ36: 0.18
D37: ='Efficiency Levels'!#REF! ->  | E37: ='Efficiency Levels'!#REF! ->  | F37: 0.11 | H37: =$F37 -> 0.11 | I37: 0.11 | J37: 0.11 | K37: 0.11 | L37: 0.11 | M37: 0.11 | N37: 0.11 | O37: 0.11 | P37: 0.11 | Q37: 0.11 | R37: 0.11 | S37: 0.11 | T37: 0.11 | U37: 0.11 | V37: 0.11 | W37: 0.11 | X37: 0.11 | Y37: 0.11 | Z37: 0.11 | AA37: 0.11 | AB37: 0.11 | AC37: 0.11 | AD37: 0.11 | AE37: 0.11 | AF37: 0.11 | AG37: 0.11 | AH37: 0.11 | AI37: 0.11 | AJ37: 0.11 | AK37: 0.11 | AL37: 0.11 | AM37: 0.11 | AN37: 0.11 | AO37: 0.11 | AP37: 0.11 | AQ37: 0.11 | AR37: 0.11 | AS37: 0.11 | AT37: 0.11 | AU37: 0.11 | AV37: 0.11 | AW37: 0.11 | AX37: 0.11 | AY37: 0.11 | AZ37: 0.11
D38: TOTAL | F38: =SUM(F34:F37) -> 1 | H38: =SUM(H34:H37) -> 1 | I38: 1 | J38: 1 | K38: 1 | L38: 1 | M38: 1 | N38: 1 | O38: 1 | P38: 1 | Q38: 1 | R38: 1 | S38: 1 | T38: 1 | U38: 1 | V38: 1 | W38: 1 | X38: 1 | Y38: 1 | Z38: 1 | AA38: 1 | AB38: 1 | AC38: 1 | AD38: 1 | AE38: 1 | AF38: 1 | AG38: 1 | AH38: 1 | AI38: 1 | AJ38: 1 | AK38: 1 | AL38: 1 | AM38: 1 | AN38: 1 | AO38: 1 | AP38: 1 | AQ38: 1 | AR38: 1 | AS38: 1 | AT38: 1 | AU38: 1 | AV38: 1 | AW38: 1 | AX38: 1 | AY38: 1 | AZ38: 1
D40: POST-Case
D41: Efficiency Level | E41: =$E$10 ->  | H41: 1990 | I41: =H41+1 -> 1991 | J41: 1992 | K41: 1993 | L41: 1994 | M41: 1995 | N41: 1996 | O41: 1997 | P41: 1998 | Q41: 1999 | R41: 2000 | S41: 2001 | T41: 2002 | U41: 2003 | V41: 2004 | W41: 2005 | X41: =X33 -> 2006 | Y41: 2007 | Z41: 2008 | AA41: 2009 | AB41: 2010 | AC41: 2011 | AD41: 2012 | AE41: 2013 | AF41: 2014 | AG41: 2015 | AH41: 2016 | AI41: 2017 | AJ41: 2018 | AK41: 2019 | AL41: 2020 | AM41: 2021 | AN41: 2022 | AO41: 2023 | AP41: 2024 | AQ41: 2025 | AR41: 2026 | AS41: 2027 | AT41: 2028 | AU41: 2029 | AV41: 2030 | AW41: 2031 | AX41: 2032 | AY41: 2033 | AZ41: 2034
D42: ='Efficiency Levels'!#REF! ->  | E42: ='Efficiency Levels'!#REF! ->  | H42: =H34 -> 0.19 | I42: 0.19 | J42: 0.19 | K42: 0.19 | L42: 0.19 | M42: 0.19 | N42: 0.19 | O42: 0.19 | P42: 0.19 | Q42: 0.19 | R42: 0.19 | S42: 0.19 | T42: 0.19 | U42: 0.19 | V42: 0.19 | W42: 0.19 | X42: 0.19 | Y42: 0.19 | Z42: 0.19 | AA42: 0.19 | AB42: 0.19 | AC42: 0.19 | AD42: 0.19 | AE42: 0.19 | AF42: 0.19 | AG42: 0 | AH42: 0 | AI42: 0 | AJ42: 0 | AK42: 0 | AL42: 0 | AM42: 0 | AN42: 0 | AO42: 0 | AP42: 0 | AQ42: 0 | AR42: 0 | AS42: 0 | AT42: 0 | AU42: 0 | AV42: 0 | AW42: 0 | AX42: 0 | AY42: 0 | AZ42: 0
D43: ='Efficiency Levels'!#REF! ->  | E43: ='Efficiency Levels'!#REF! ->  | H43: =H35 -> 0.52 | I43: 0.52 | J43: 0.52 | K43: 0.52 | L43: 0.52 | M43: 0.52 | N43: 0.52 | O43: 0.52 | P43: 0.52 | Q43: 0.52 | R43: 0.52 | S43: 0.52 | T43: 0.52 | U43: 0.52 | V43: 0.52 | W43: 0.52 | X43: 0.52 | Y43: 0.52 | Z43: 0.52 | AA43: 0.52 | AB43: 0.52 | AC43: 0.52 | AD43: 0.52 | AE43: 0.52 | AF43: 0.52 | AG43: 0 | AH43: 0 | AI43: 0 | AJ43: 0 | AK43: 0 | AL43: 0 | AM43: 0 | AN43: 0 | AO43: 0 | AP43: 0 | AQ43: 0 | AR43: 0 | AS43: 0 | AT43: 0 | AU43: 0 | AV43: 0 | AW43: 0 | AX43: 0 | AY43: 0 | AZ43: 0
D44: ='Efficiency Levels'!#REF! ->  | E44: ='Efficiency Levels'!#REF! ->  | H44: =H36 -> 0.18 | I44: 0.18 | J44: 0.18 | K44: 0.18 | L44: 0.18 | M44: 0.18 | N44: 0.18 | O44: 0.18 | P44: 0.18 | Q44: 0.18 | R44: 0.18 | S44: 0.18 | T44: 0.18 | U44: 0.18 | V44: 0.18 | W44: 0.18 | X44: 0.18 | Y44: 0.18 | Z44: 0.18 | AA44: 0.18 | AB44: 0.18 | AC44: 0.18 | AD44: 0.18 | AE44: 0.18 | AF44: 0.18 | AG44: 0 | AH44: 0 | AI44: 0 | AJ44: 0 | AK44: 0 | AL44: 0 | AM44: 0 | AN44: 0 | AO44: 0 | AP44: 0 | AQ44: 0 | AR44: 0 | AS44: 0 | AT44: 0 | AU44: 0 | AV44: 0 | AW44: 0 | AX44: 0 | AY44: 0 | AZ44: 0
D45: ='Efficiency Levels'!#REF! ->  | E45: ='Efficiency Levels'!#REF! ->  | H45: =H37 -> 0.11 | I45: 0.11 | J45: 0.11 | K45: 0.11 | L45: 0.11 | M45: 0.11 | N45: 0.11 | O45: 0.11 | P45: 0.11 | Q45: 0.11 | R45: 0.11 | S45: 0.11 | T45: 0.11 | U45: 0.11 | V45: 0.11 | W45: 0.11 | X45: 0.11 | Y45: 0.11 | Z45: 0.11 | AA45: 0.11 | AB45: 0.11 | AC45: 0.11 | AD45: 0.11 | AE45: 0.11 | AF45: 0.11 | AG45: =SUM(AG34:AG37) -> 1 | AH45: 1 | AI45: 1 | AJ45: 1 | AK45: 1 | AL45: 1 | AM45: 1 | AN45: 1 | AO45: 1 | AP45: 1 | AQ45: 1 | AR45: 1 | AS45: 1 | AT45: 1 | AU45: 1 | AV45: 1 | AW45: 1 | AX45: 1 | AY45: 1 | AZ45: 1
D46: TOTAL | H46: =SUM(H42:H45) -> 1 | I46: 1 | J46: 1 | K46: 1 | L46: 1 | M46: 1 | N46: 1 | O46: 1 | P46: 1 | Q46: 1 | R46: 1 | S46: 1 | T46: 1 | U46: 1 | V46: 1 | W46: 1 | X46: 1 | Y46: 1 | Z46: 1 | AA46: 1 | AB46: 1 | AC46: 1 | AD46: 1 | AE46: 1 | AF46: 1 | AG46: 1 | AH46: 1 | AI46: 1 | AJ46: 1 | AK46: 1 | AL46: 1 | AM46: 1 | AN46: 1 | AO46: 1 | AP46: 1 | AQ46: 1 | AR46: 1 | AS46: 1 | AT46: 1 | AU46: 1 | AV46: 1 | AW46: 1 | AX46: 1 | AY46: 1 | AZ46: 1
D48: Sources | E48: DOE 2014 Final Rule NIA Model
D52: ='Product Classes'!H12&" - "&OFFSET('Product Classes'!$C$9,MATCH('Product Classes'!H12,MODEL_PCS,0),0) -> PC 3 - Cordless Phones
D54: PRE-Case | F54: Static Distribution
D55: Efficiency Level | E55: ='Efficiency Levels'!#REF! ->  | F55: 2015 | H55: 1990 | I55: =H55+1 -> 1991 | J55: 1992 | K55: 1993 | L55: 1994 | M55: 1995 | N55: 1996 | O55: 1997 | P55: 1998 | Q55: 1999 | R55: 2000 | S55: 2001 | T55: 2002 | U55: 2003 | V55: 2004 | W55: 2005 | X55: 2006 | Y55: 2007 | Z55: 2008 | AA55: 2009 | AB55: 2010 | AC55: 2011 | AD55: 2012 | AE55: 2013 | AF55: 2014 | AG55: 2015 | AH55: 2016 | AI55: 2017 | AJ55: 2018 | AK55: 2019 | AL55: 2020 | AM55: 2021 | AN55: 2022 | AO55: 2023 | AP55: 2024 | AQ55: 2025 | AR55: 2026 | AS55: 2027 | AT55: 2028 | AU55: 2029 | AV55: 2030 | AW55: 2031 | AX55: 2032 | AY55: 2033 | AZ55: 2034
D56: ='Efficiency Levels'!#REF! ->  | E56: ='Efficiency Levels'!#REF! ->  | F56: 0.19 | H56: =$F56 -> 0.19 | I56: =$F56 -> 0.19 | J56: 0.19 | K56: 0.19 | L56: 0.19 | M56: 0.19 | N56: 0.19 | O56: 0.19 | P56: 0.19 | Q56: 0.19 | R56: 0.19 | S56: 0.19 | T56: 0.19 | U56: 0.19 | V56: 0.19 | W56: 0.19 | X56: 0.19 | Y56: 0.19 | Z56: 0.19 | AA56: 0.19 | AB56: 0.19 | AC56: 0.19 | AD56: 0.19 | AE56: 0.19 | AF56: 0.19 | AG56: 0.19 | AH56: 0.19 | AI56: 0.19 | AJ56: 0.19 | AK56: 0.19 | AL56: 0.19 | AM56: 0.19 | AN56: 0.19 | AO56: 0.19 | AP56: 0.19 | AQ56: 0.19 | AR56: 0.19 | AS56: 0.19 | AT56: 0.19 | AU56: 0.19 | AV56: 0.19 | AW56: 0.19 | AX56: 0.19 | AY56: 0.19 | AZ56: 0.19
D57: ='Efficiency Levels'!#REF! ->  | E57: ='Efficiency Levels'!#REF! ->  | F57: 0.63 | H57: =$F57 -> 0.63 | I57: =$F57 -> 0.63 | J57: 0.63 | K57: 0.63 | L57: 0.63 | M57: 0.63 | N57: 0.63 | O57: 0.63 | P57: 0.63 | Q57: 0.63 | R57: 0.63 | S57: 0.63 | T57: 0.63 | U57: 0.63 | V57: 0.63 | W57: 0.63 | X57: 0.63 | Y57: 0.63 | Z57: 0.63 | AA57: 0.63 | AB57: 0.63 | AC57: 0.63 | AD57: 0.63 | AE57: 0.63 | AF57: 0.63 | AG57: 0.63 | AH57: 0.63 | AI57: 0.63 | AJ57: 0.63 | AK57: 0.63 | AL57: 0.63 | AM57: 0.63 | AN57: 0.63 | AO57: 0.63 | AP57: 0.63 | AQ57: 0.63 | AR57: 0.63 | AS57: 0.63 | AT57: 0.63 | AU57: 0.63 | AV57: 0.63 | AW57: 0.63 | AX57: 0.63 | AY57: 0.63 | AZ57: 0.63
D58: ='Efficiency Levels'!#REF! ->  | E58: ='Efficiency Levels'!#REF! ->  | F58: 0.17 | H58: =$F58 -> 0.17 | I58: 0.17 | J58: 0.17 | K58: 0.17 | L58: 0.17 | M58: 0.17 | N58: 0.17 | O58: 0.17 | P58: 0.17 | Q58: 0.17 | R58: 0.17 | S58: 0.17 | T58: 0.17 | U58: 0.17 | V58: 0.17 | W58: 0.17 | X58: 0.17 | Y58: 0.17 | Z58: 0.17 | AA58: 0.17 | AB58: 0.17 | AC58: 0.17 | AD58: 0.17 | AE58: 0.17 | AF58: 0.17 | AG58: 0.17 | AH58: 0.17 | AI58: 0.17 | AJ58: 0.17 | AK58: 0.17 | AL58: 0.17 | AM58: 0.17 | AN58: 0.17 | AO58: 0.17 | AP58: 0.17 | AQ58: 0.17 | AR58: 0.17 | AS58: 0.17 | AT58: 0.17 | AU58: 0.17 | AV58: 0.17 | AW58: 0.17 | AX58: 0.17 | AY58: 0.17 | AZ58: 0.17
D59: ='Efficiency Levels'!#REF! ->  | E59: ='Efficiency Levels'!#REF! ->  | F59: 0.01 | H59: =$F59 -> 0.01 | I59: 0.01 | J59: 0.01 | K59: 0.01 | L59: 0.01 | M59: 0.01 | N59: 0.01 | O59: 0.01 | P59: 0.01 | Q59: 0.01 | R59: 0.01 | S59: 0.01 | T59: 0.01 | U59: 0.01 | V59: 0.01 | W59: 0.01 | X59: 0.01 | Y59: 0.01 | Z59: 0.01 | AA59: 0.01 | AB59: 0.01 | AC59: 0.01 | AD59: 0.01 | AE59: 0.01 | AF59: 0.01 | AG59: 0.01 | AH59: 0.01 | AI59: 0.01 | AJ59: 0.01 | AK59: 0.01 | AL59: 0.01 | AM59: 0.01 | AN59: 0.01 | AO59: 0.01 | AP59: 0.01 | AQ59: 0.01 | AR59: 0.01 | AS59: 0.01 | AT59: 0.01 | AU59: 0.01 | AV59: 0.01 | AW59: 0.01 | AX59: 0.01 | AY59: 0.01 | AZ59: 0.01
D60: TOTAL | F60: =SUM(F56:F59) -> 1 | H60: =SUM(H56:H59) -> 1 | I60: 1 | J60: 1 | K60: 1 | L60: 1 | M60: 1 | N60: 1 | O60: 1 | P60: 1 | Q60: 1 | R60: 1 | S60: 1 | T60: 1 | U60: 1 | V60: 1 | W60: 1 | X60: 1 | Y60: 1 | Z60: 1 | AA60: 1 | AB60: 1 | AC60: 1 | AD60: 1 | AE60: 1 | AF60: 1 | AG60: 1 | AH60: 1 | AI60: 1 | AJ60: 1 | AK60: 1 | AL60: 1 | AM60: 1 | AN60: 1 | AO60: 1 | AP60: 1 | AQ60: 1 | AR60: 1 | AS60: 1 | AT60: 1 | AU60: 1 | AV60: 1 | AW60: 1 | AX60: 1 | AY60: 1 | AZ60: 1
D62: POST-Case
D63: Efficiency Level | E63: =$E$10 ->  | H63: 1990 | I63: =H63+1 -> 1991 | J63: 1992 | K63: 1993 | L63: 1994 | M63: 1995 | N63: 1996 | O63: 1997 | P63: 1998 | Q63: 1999 | R63: 2000 | S63: 2001 | T63: 2002 | U63: 2003 | V63: 2004 | W63: 2005 | X63: =X55 -> 2006 | Y63: 2007 | Z63: 2008 | AA63: 2009 | AB63: 2010 | AC63: 2011 | AD63: 2012 | AE63: 2013 | AF63: 2014 | AG63: 2015 | AH63: 2016 | AI63: 2017 | AJ63: 2018 | AK63: 2019 | AL63: 2020 | AM63: 2021 | AN63: 2022 | AO63: 2023 | AP63: 2024 | AQ63: 2025 | AR63: 2026 | AS63: 2027 | AT63: 2028 | AU63: 2029 | AV63: 2030 | AW63: 2031 | AX63: 2032 | AY63: 2033 | AZ63: 2034
D64: ='Efficiency Levels'!#REF! ->  | E64: ='Efficiency Levels'!#REF! ->  | H64: =H56 -> 0.19 | I64: 0.19 | J64: 0.19 | K64: 0.19 | L64: 0.19 | M64: 0.19 | N64: 0.19 | O64: 0.19 | P64: 0.19 | Q64: 0.19 | R64: 0.19 | S64: 0.19 | T64: 0.19 | U64: 0.19 | V64: 0.19 | W64: 0.19 | X64: 0.19 | Y64: 0.19 | Z64: 0.19 | AA64: 0.19 | AB64: 0.19 | AC64: 0.19 | AD64: 0.19 | AE64: 0.19 | AF64: 0.19 | AG64: 0 | AH64: 0 | AI64: 0 | AJ64: 0 | AK64: 0 | AL64: 0 | AM64: 0 | AN64: 0 | AO64: 0 | AP64: 0 | AQ64: 0 | AR64: 0 | AS64: 0 | AT64: 0 | AU64: 0 | AV64: 0 | AW64: 0 | AX64: 0 | AY64: 0 | AZ64: 0
D65: ='Efficiency Levels'!#REF! ->  | E65: ='Efficiency Levels'!#REF! ->  | H65: =H57 -> 0.63 | I65: 0.63 | J65: 0.63 | K65: 0.63 | L65: 0.63 | M65: 0.63 | N65: 0.63 | O65: 0.63 | P65: 0.63 | Q65: 0.63 | R65: 0.63 | S65: 0.63 | T65: 0.63 | U65: 0.63 | V65: 0.63 | W65: 0.63 | X65: 0.63 | Y65: 0.63 | Z65: 0.63 | AA65: 0.63 | AB65: 0.63 | AC65: 0.63 | AD65: 0.63 | AE65: 0.63 | AF65: 0.63 | AG65: 0 | AH65: 0 | AI65: 0 | AJ65: 0 | AK65: 0 | AL65: 0 | AM65: 0 | AN65: 0 | AO65: 0 | AP65: 0 | AQ65: 0 | AR65: 0 | AS65: 0 | AT65: 0 | AU65: 0 | AV65: 0 | AW65: 0 | AX65: 0 | AY65: 0 | AZ65: 0
D66: ='Efficiency Levels'!#REF! ->  | E66: ='Efficiency Levels'!#REF! ->  | H66: =H58 -> 0.17 | I66: 0.17 | J66: 0.17 | K66: 0.17 | L66: 0.17 | M66: 0.17 | N66: 0.17 | O66: 0.17 | P66: 0.17 | Q66: 0.17 | R66: 0.17 | S66: 0.17 | T66: 0.17 | U66: 0.17 | V66: 0.17 | W66: 0.17 | X66: 0.17 | Y66: 0.17 | Z66: 0.17 | AA66: 0.17 | AB66: 0.17 | AC66: 0.17 | AD66: 0.17 | AE66: 0.17 | AF66: 0.17 | AG66: 0 | AH66: 0 | AI66: 0 | AJ66: 0 | AK66: 0 | AL66: 0 | AM66: 0 | AN66: 0 | AO66: 0 | AP66: 0 | AQ66: 0 | AR66: 0 | AS66: 0 | AT66: 0 | AU66: 0 | AV66: 0 | AW66: 0 | AX66: 0 | AY66: 0 | AZ66: 0
D67: ='Efficiency Levels'!#REF! ->  | E67: ='Efficiency Levels'!#REF! ->  | H67: =H59 -> 0.01 | I67: 0.01 | J67: 0.01 | K67: 0.01 | L67: 0.01 | M67: 0.01 | N67: 0.01 | O67: 0.01 | P67: 0.01 | Q67: 0.01 | R67: 0.01 | S67: 0.01 | T67: 0.01 | U67: 0.01 | V67: 0.01 | W67: 0.01 | X67: 0.01 | Y67: 0.01 | Z67: 0.01 | AA67: 0.01 | AB67: 0.01 | AC67: 0.01 | AD67: 0.01 | AE67: 0.01 | AF67: 0.01 | AG67: =SUM(AG56:AG59) -> 1 | AH67: 1 | AI67: 1 | AJ67: 1 | AK67: 1 | AL67: 1 | AM67: 1 | AN67: 1 | AO67: 1 | AP67: 1 | AQ67: 1 | AR67: 1 | AS67: 1 | AT67: 1 | AU67: 1 | AV67: 1 | AW67: 1 | AX67: 1 | AY67: 1 | AZ67: 1
D68: TOTAL | H68: =SUM(H64:H67) -> 1 | I68: 1 | J68: 1 | K68: 1 | L68: 1 | M68: 1 | N68: 1 | O68: 1 | P68: 1 | Q68: 1 | R68: 1 | S68: 1 | T68: 1 | U68: 1 | V68: 1 | W68: 1 | X68: 1 | Y68: 1 | Z68: 1 | AA68: 1 | AB68: 1 | AC68: 1 | AD68: 1 | AE68: 1 | AF68: 1 | AG68: 1 | AH68: 1 | AI68: 1 | AJ68: 1 | AK68: 1 | AL68: 1 | AM68: 1 | AN68: 1 | AO68: 1 | AP68: 1 | AQ68: 1 | AR68: 1 | AS68: 1 | AT68: 1 | AU68: 1 | AV68: 1 | AW68: 1 | AX68: 1 | AY68: 1 | AZ68: 1
D70: Sources | E70: DOE 2014 Final Rule NIA Model
D74: ='Product Classes'!H13&" - "&OFFSET('Product Classes'!$C$9,MATCH('Product Classes'!H13,MODEL_PCS,0),0) -> PC 4 - Personal Audio
D76: PRE-Case | F76: Static Distribution
D77: Efficiency Level | E77: ='Efficiency Levels'!#REF! ->  | F77: 2015 | H77: 1990 | I77: =H77+1 -> 1991 | J77: 1992 | K77: 1993 | L77: 1994 | M77: 1995 | N77: 1996 | O77: 1997 | P77: 1998 | Q77: 1999 | R77: 2000 | S77: 2001 | T77: 2002 | U77: 2003 | V77: 2004 | W77: 2005 | X77: 2006 | Y77: 2007 | Z77: 2008 | AA77: 2009 | AB77: 2010 | AC77: 2011 | AD77: 2012 | AE77: 2013 | AF77: 2014 | AG77: 2015 | AH77: 2016 | AI77: 2017 | AJ77: 2018 | AK77: 2019 | AL77: 2020 | AM77: 2021 | AN77: 2022 | AO77: 2023 | AP77: 2024 | AQ77: 2025 | AR77: 2026 | AS77: 2027 | AT77: 2028 | AU77: 2029 | AV77: 2030 | AW77: 2031 | AX77: 2032 | AY77: 2033 | AZ77: 2034
D78: ='Efficiency Levels'!#REF! ->  | E78: ='Efficiency Levels'!#REF! ->  | F78: 0.26 | H78: =$F78 -> 0.26 | I78: =$F78 -> 0.26 | J78: 0.26 | K78: 0.26 | L78: 0.26 | M78: 0.26 | N78: 0.26 | O78: 0.26 | P78: 0.26 | Q78: 0.26 | R78: 0.26 | S78: 0.26 | T78: 0.26 | U78: 0.26 | V78: 0.26 | W78: 0.26 | X78: 0.26 | Y78: 0.26 | Z78: 0.26 | AA78: 0.26 | AB78: 0.26 | AC78: 0.26 | AD78: 0.26 | AE78: 0.26 | AF78: 0.26 | AG78: 0.26 | AH78: 0.26 | AI78: 0.26 | AJ78: 0.26 | AK78: 0.26 | AL78: 0.26 | AM78: 0.26 | AN78: 0.26 | AO78: 0.26 | AP78: 0.26 | AQ78: 0.26 | AR78: 0.26 | AS78: 0.26 | AT78: 0.26 | AU78: 0.26 | AV78: 0.26 | AW78: 0.26 | AX78: 0.26 | AY78: 0.26 | AZ78: 0.26
D79: ='Efficiency Levels'!#REF! ->  | E79: ='Efficiency Levels'!#REF! ->  | F79: 0.53 | H79: =$F79 -> 0.53 | I79: =$F79 -> 0.53 | J79: 0.53 | K79: 0.53 | L79: 0.53 | M79: 0.53 | N79: 0.53 | O79: 0.53 | P79: 0.53 | Q79: 0.53 | R79: 0.53 | S79: 0.53 | T79: 0.53 | U79: 0.53 | V79: 0.53 | W79: 0.53 | X79: 0.53 | Y79: 0.53 | Z79: 0.53 | AA79: 0.53 | AB79: 0.53 | AC79: 0.53 | AD79: 0.53 | AE79: 0.53 | AF79: 0.53 | AG79: 0.53 | AH79: 0.53 | AI79: 0.53 | AJ79: 0.53 | AK79: 0.53 | AL79: 0.53 | AM79: 0.53 | AN79: 0.53 | AO79: 0.53 | AP79: 0.53 | AQ79: 0.53 | AR79: 0.53 | AS79: 0.53 | AT79: 0.53 | AU79: 0.53 | AV79: 0.53 | AW79: 0.53 | AX79: 0.53 | AY79: 0.53 | AZ79: 0.53
D80: ='Efficiency Levels'!#REF! ->  | E80: ='Efficiency Levels'!#REF! ->  | F80: 0.18 | H80: =$F80 -> 0.18 | I80: 0.18 | J80: 0.18 | K80: 0.18 | L80: 0.18 | M80: 0.18 | N80: 0.18 | O80: 0.18 | P80: 0.18 | Q80: 0.18 | R80: 0.18 | S80: 0.18 | T80: 0.18 | U80: 0.18 | V80: 0.18 | W80: 0.18 | X80: 0.18 | Y80: 0.18 | Z80: 0.18 | AA80: 0.18 | AB80: 0.18 | AC80: 0.18 | AD80: 0.18 | AE80: 0.18 | AF80: 0.18 | AG80: 0.18 | AH80: 0.18 | AI80: 0.18 | AJ80: 0.18 | AK80: 0.18 | AL80: 0.18 | AM80: 0.18 | AN80: 0.18 | AO80: 0.18 | AP80: 0.18 | AQ80: 0.18 | AR80: 0.18 | AS80: 0.18 | AT80: 0.18 | AU80: 0.18 | AV80: 0.18 | AW80: 0.18 | AX80: 0.18 | AY80: 0.18 | AZ80: 0.18
D81: ='Efficiency Levels'!#REF! ->  | E81: ='Efficiency Levels'!#REF! ->  | F81: 0.03 | H81: =$F81 -> 0.03 | I81: 0.03 | J81: 0.03 | K81: 0.03 | L81: 0.03 | M81: 0.03 | N81: 0.03 | O81: 0.03 | P81: 0.03 | Q81: 0.03 | R81: 0.03 | S81: 0.03 | T81: 0.03 | U81: 0.03 | V81: 0.03 | W81: 0.03 | X81: 0.03 | Y81: 0.03 | Z81: 0.03 | AA81: 0.03 | AB81: 0.03 | AC81: 0.03 | AD81: 0.03 | AE81: 0.03 | AF81: 0.03 | AG81: 0.03 | AH81: 0.03 | AI81: 0.03 | AJ81: 0.03 | AK81: 0.03 | AL81: 0.03 | AM81: 0.03 | AN81: 0.03 | AO81: 0.03 | AP81: 0.03 | AQ81: 0.03 | AR81: 0.03 | AS81: 0.03 | AT81: 0.03 | AU81: 0.03 | AV81: 0.03 | AW81: 0.03 | AX81: 0.03 | AY81: 0.03 | AZ81: 0.03
D82: TOTAL | F82: =SUM(F78:F81) -> 1 | H82: =SUM(H78:H81) -> 1 | I82: 1 | J82: 1 | K82: 1 | L82: 1 | M82: 1 | N82: 1 | O82: 1 | P82: 1 | Q82: 1 | R82: 1 | S82: 1 | T82: 1 | U82: 1 | V82: 1 | W82: 1 | X82: 1 | Y82: 1 | Z82: 1 | AA82: 1 | AB82: 1 | AC82: 1 | AD82: 1 | AE82: 1 | AF82: 1 | AG82: 1 | AH82: 1 | AI82: 1 | AJ82: 1 | AK82: 1 | AL82: 1 | AM82: 1 | AN82: 1 | AO82: 1 | AP82: 1 | AQ82: 1 | AR82: 1 | AS82: 1 | AT82: 1 | AU82: 1 | AV82: 1 | AW82: 1 | AX82: 1 | AY82: 1 | AZ82: 1
D84: POST-Case
D85: Efficiency Level | E85: =$E$10 ->  | H85: 1990 | I85: =H85+1 -> 1991 | J85: 1992 | K85: 1993 | L85: 1994 | M85: 1995 | N85: 1996 | O85: 1997 | P85: 1998 | Q85: 1999 | R85: 2000 | S85: 2001 | T85: 2002 | U85: 2003 | V85: 2004 | W85: 2005 | X85: =X77 -> 2006 | Y85: 2007 | Z85: 2008 | AA85: 2009 | AB85: 2010 | AC85: 2011 | AD85: 2012 | AE85: 2013 | AF85: 2014 | AG85: 2015 | AH85: 2016 | AI85: 2017 | AJ85: 2018 | AK85: 2019 | AL85: 2020 | AM85: 2021 | AN85: 2022 | AO85: 2023 | AP85: 2024 | AQ85: 2025 | AR85: 2026 | AS85: 2027 | AT85: 2028 | AU85: 2029 | AV85: 2030 | AW85: 2031 | AX85: 2032 | AY85: 2033 | AZ85: 2034
D86: ='Efficiency Levels'!#REF! ->  | E86: ='Efficiency Levels'!#REF! ->  | H86: =H78 -> 0.26 | I86: 0.26 | J86: 0.26 | K86: 0.26 | L86: 0.26 | M86: 0.26 | N86: 0.26 | O86: 0.26 | P86: 0.26 | Q86: 0.26 | R86: 0.26 | S86: 0.26 | T86: 0.26 | U86: 0.26 | V86: 0.26 | W86: 0.26 | X86: 0.26 | Y86: 0.26 | Z86: 0.26 | AA86: 0.26 | AB86: 0.26 | AC86: 0.26 | AD86: 0.26 | AE86: 0.26 | AF86: 0.26 | AG86: 0 | AH86: 0 | AI86: 0 | AJ86: 0 | AK86: 0 | AL86: 0 | AM86: 0 | AN86: 0 | AO86: 0 | AP86: 0 | AQ86: 0 | AR86: 0 | AS86: 0 | AT86: 0 | AU86: 0 | AV86: 0 | AW86: 0 | AX86: 0 | AY86: 0 | AZ86: 0
D87: ='Efficiency Levels'!#REF! ->  | E87: ='Efficiency Levels'!#REF! ->  | H87: =H79 -> 0.53 | I87: 0.53 | J87: 0.53 | K87: 0.53 | L87: 0.53 | M87: 0.53 | N87: 0.53 | O87: 0.53 | P87: 0.53 | Q87: 0.53 | R87: 0.53 | S87: 0.53 | T87: 0.53 | U87: 0.53 | V87: 0.53 | W87: 0.53 | X87: 0.53 | Y87: 0.53 | Z87: 0.53 | AA87: 0.53 | AB87: 0.53 | AC87: 0.53 | AD87: 0.53 | AE87: 0.53 | AF87: 0.53 | AG87: 0 | AH87: 0 | AI87: 0 | AJ87: 0 | AK87: 0 | AL87: 0 | AM87: 0 | AN87: 0 | AO87: 0 | AP87: 0 | AQ87: 0 | AR87: 0 | AS87: 0 | AT87: 0 | AU87: 0 | AV87: 0 | AW87: 0 | AX87: 0 | AY87: 0 | AZ87: 0
D88: ='Efficiency Levels'!#REF! ->  | E88: ='Efficiency Levels'!#REF! ->  | H88: =H80 -> 0.18 | I88: 0.18 | J88: 0.18 | K88: 0.18 | L88: 0.18 | M88: 0.18 | N88: 0.18 | O88: 0.18 | P88: 0.18 | Q88: 0.18 | R88: 0.18 | S88: 0.18 | T88: 0.18 | U88: 0.18 | V88: 0.18 | W88: 0.18 | X88: 0.18 | Y88: 0.18 | Z88: 0.18 | AA88: 0.18 | AB88: 0.18 | AC88: 0.18 | AD88: 0.18 | AE88: 0.18 | AF88: 0.18 | AG88: 0 | AH88: 0 | AI88: 0 | AJ88: 0 | AK88: 0 | AL88: 0 | AM88: 0 | AN88: 0 | AO88: 0 | AP88: 0 | AQ88: 0 | AR88: 0 | AS88: 0 | AT88: 0 | AU88: 0 | AV88: 0 | AW88: 0 | AX88: 0 | AY88: 0 | AZ88: 0
D89: ='Efficiency Levels'!#REF! ->  | E89: ='Efficiency Levels'!#REF! ->  | H89: =H81 -> 0.03 | I89: 0.03 | J89: 0.03 | K89: 0.03 | L89: 0.03 | M89: 0.03 | N89: 0.03 | O89: 0.03 | P89: 0.03 | Q89: 0.03 | R89: 0.03 | S89: 0.03 | T89: 0.03 | U89: 0.03 | V89: 0.03 | W89: 0.03 | X89: 0.03 | Y89: 0.03 | Z89: 0.03 | AA89: 0.03 | AB89: 0.03 | AC89: 0.03 | AD89: 0.03 | AE89: 0.03 | AF89: 0.03 | AG89: =SUM(AG78:AG81) -> 1 | AH89: 1 | AI89: 1 | AJ89: 1 | AK89: 1 | AL89: 1 | AM89: 1 | AN89: 1 | AO89: 1 | AP89: 1 | AQ89: 1 | AR89: 1 | AS89: 1 | AT89: 1 | AU89: 1 | AV89: 1 | AW89: 1 | AX89: 1 | AY89: 1 | AZ89: 1
D90: TOTAL | H90: =SUM(H86:H89) -> 1 | I90: 1 | J90: 1 | K90: 1 | L90: 1 | M90: 1 | N90: 1 | O90: 1 | P90: 1 | Q90: 1 | R90: 1 | S90: 1 | T90: 1 | U90: 1 | V90: 1 | W90: 1 | X90: 1 | Y90: 1 | Z90: 1 | AA90: 1 | AB90: 1 | AC90: 1 | AD90: 1 | AE90: 1 | AF90: 1 | AG90: 1 | AH90: 1 | AI90: 1 | AJ90: 1 | AK90: 1 | AL90: 1 | AM90: 1 | AN90: 1 | AO90: 1 | AP90: 1 | AQ90: 1 | AR90: 1 | AS90: 1 | AT90: 1 | AU90: 1 | AV90: 1 | AW90: 1 | AX90: 1 | AY90: 1 | AZ90: 1
D92: Sources | E92: DOE 2014 Final Rule NIA Model
D96: ='Product Classes'!H14&" - "&OFFSET('Product Classes'!$C$9,MATCH('Product Classes'!H14,MODEL_PCS,0),0) -> PC 5 - Emergency Systems
D98: PRE-Case | F98: Static Distribution
D99: Efficiency Level | E99: ='Efficiency Levels'!#REF! ->  | F99: 2015 | H99: 1990 | I99: =H99+1 -> 1991 | J99: 1992 | K99: 1993 | L99: 1994 | M99: 1995 | N99: 1996 | O99: 1997 | P99: 1998 | Q99: 1999 | R99: 2000 | S99: 2001 | T99: 2002 | U99: 2003 | V99: 2004 | W99: 2005 | X99: 2006 | Y99: 2007 | Z99: 2008 | AA99: 2009 | AB99: 2010 | AC99: 2011 | AD99: 2012 | AE99: 2013 | AF99: 2014 | AG99: 2015 | AH99: 2016 | AI99: 2017 | AJ99: 2018 | AK99: 2019 | AL99: 2020 | AM99: 2021 | AN99: 2022 | AO99: 2023 | AP99: 2024 | AQ99: 2025 | AR99: 2026 | AS99: 2027 | AT99: 2028 | AU99: 2029 | AV99: 2030 | AW99: 2031 | AX99: 2032 | AY99: 2033 | AZ99: 2034
D100: ='Efficiency Levels'!#REF! ->  | E100: ='Efficiency Levels'!#REF! ->  | F100: 0.42 | H100: =$F100 -> 0.42 | I100: =$F100 -> 0.42 | J100: 0.42 | K100: 0.42 | L100: 0.42 | M100: 0.42 | N100: 0.42 | O100: 0.42 | P100: 0.42 | Q100: 0.42 | R100: 0.42 | S100: 0.42 | T100: 0.42 | U100: 0.42 | V100: 0.42 | W100: 0.42 | X100: 0.42 | Y100: 0.42 | Z100: 0.42 | AA100: 0.42 | AB100: 0.42 | AC100: 0.42 | AD100: 0.42 | AE100: 0.42 | AF100: 0.42 | AG100: 0.42 | AH100: 0.42 | AI100: 0.42 | AJ100: 0.42 | AK100: 0.42 | AL100: 0.42 | AM100: 0.42 | AN100: 0.42 | AO100: 0.42 | AP100: 0.42 | AQ100: 0.42 | AR100: 0.42 | AS100: 0.42 | AT100: 0.42 | AU100: 0.42 | AV100: 0.42 | AW100: 0.42 | AX100: 0.42 | AY100: 0.42 | AZ100: 0.42
D101: ='Efficiency Levels'!#REF! ->  | E101: ='Efficiency Levels'!#REF! ->  | F101: 0.53 | H101: =$F101 -> 0.53 | I101: =$F101 -> 0.53 | J101: 0.53 | K101: 0.53 | L101: 0.53 | M101: 0.53 | N101: 0.53 | O101: 0.53 | P101: 0.53 | Q101: 0.53 | R101: 0.53 | S101: 0.53 | T101: 0.53 | U101: 0.53 | V101: 0.53 | W101: 0.53 | X101: 0.53 | Y101: 0.53 | Z101: 0.53 | AA101: 0.53 | AB101: 0.53 | AC101: 0.53 | AD101: 0.53 | AE101: 0.53 | AF101: 0.53 | AG101: 0.53 | AH101: 0.53 | AI101: 0.53 | AJ101: 0.53 | AK101: 0.53 | AL101: 0.53 | AM101: 0.53 | AN101: 0.53 | AO101: 0.53 | AP101: 0.53 | AQ101: 0.53 | AR101: 0.53 | AS101: 0.53 | AT101: 0.53 | AU101: 0.53 | AV101: 0.53 | AW101: 0.53 | AX101: 0.53 | AY101: 0.53 | AZ101: 0.53
D102: ='Efficiency Levels'!#REF! ->  | E102: ='Efficiency Levels'!#REF! ->  | F102: 0.02 | H102: =$F102 -> 0.02 | I102: 0.02 | J102: 0.02 | K102: 0.02 | L102: 0.02 | M102: 0.02 | N102: 0.02 | O102: 0.02 | P102: 0.02 | Q102: 0.02 | R102: 0.02 | S102: 0.02 | T102: 0.02 | U102: 0.02 | V102: 0.02 | W102: 0.02 | X102: 0.02 | Y102: 0.02 | Z102: 0.02 | AA102: 0.02 | AB102: 0.02 | AC102: 0.02 | AD102: 0.02 | AE102: 0.02 | AF102: 0.02 | AG102: 0.02 | AH102: 0.02 | AI102: 0.02 | AJ102: 0.02 | AK102: 0.02 | AL102: 0.02 | AM102: 0.02 | AN102: 0.02 | AO102: 0.02 | AP102: 0.02 | AQ102: 0.02 | AR102: 0.02 | AS102: 0.02 | AT102: 0.02 | AU102: 0.02 | AV102: 0.02 | AW102: 0.02 | AX102: 0.02 | AY102: 0.02 | AZ102: 0.02
D103: ='Efficiency Levels'!#REF! ->  | E103: ='Efficiency Levels'!#REF! ->  | F103: 0.03 | H103: =$F103 -> 0.03 | I103: 0.03 | J103: 0.03 | K103: 0.03 | L103: 0.03 | M103: 0.03 | N103: 0.03 | O103: 0.03 | P103: 0.03 | Q103: 0.03 | R103: 0.03 | S103: 0.03 | T103: 0.03 | U103: 0.03 | V103: 0.03 | W103: 0.03 | X103: 0.03 | Y103: 0.03 | Z103: 0.03 | AA103: 0.03 | AB103: 0.03 | AC103: 0.03 | AD103: 0.03 | AE103: 0.03 | AF103: 0.03 | AG103: 0.03 | AH103: 0.03 | AI103: 0.03 | AJ103: 0.03 | AK103: 0.03 | AL103: 0.03 | AM103: 0.03 | AN103: 0.03 | AO103: 0.03 | AP103: 0.03 | AQ103: 0.03 | AR103: 0.03 | AS103: 0.03 | AT103: 0.03 | AU103: 0.03 | AV103: 0.03 | AW103: 0.03 | AX103: 0.03 | AY103: 0.03 | AZ103: 0.03
D104: TOTAL | F104: =SUM(F100:F103) -> 1 | H104: =SUM(H100:H103) -> 1 | I104: 1 | J104: 1 | K104: 1 | L104: 1 | M104: 1 | N104: 1 | O104: 1 | P104: 1 | Q104: 1 | R104: 1 | S104: 1 | T104: 1 | U104: 1 | V104: 1 | W104: 1 | X104: 1 | Y104: 1 | Z104: 1 | AA104: 1 | AB104: 1 | AC104: 1 | AD104: 1 | AE104: 1 | AF104: 1 | AG104: 1 | AH104: 1 | AI104: 1 | AJ104: 1 | AK104: 1 | AL104: 1 | AM104: 1 | AN104: 1 | AO104: 1 | AP104: 1 | AQ104: 1 | AR104: 1 | AS104: 1 | AT104: 1 | AU104: 1 | AV104: 1 | AW104: 1 | AX104: 1 | AY104: 1 | AZ104: 1
D106: POST-Case
D107: Efficiency Level | E107: =$E$10 ->  | H107: 1990 | I107: =H107+1 -> 1991 | J107: 1992 | K107: 1993 | L107: 1994 | M107: 1995 | N107: 1996 | O107: 1997 | P107: 1998 | Q107: 1999 | R107: 2000 | S107: 2001 | T107: 2002 | U107: 2003 | V107: 2004 | W107: 2005 | X107: =X99 -> 2006 | Y107: 2007 | Z107: 2008 | AA107: 2009 | AB107: 2010 | AC107: 2011 | AD107: 2012 | AE107: 2013 | AF107: 2014 | AG107: 2015 | AH107: 2016 | AI107: 2017 | AJ107: 2018 | AK107: 2019 | AL107: 2020 | AM107: 2021 | AN107: 2022 | AO107: 2023 | AP107: 2024 | AQ107: 2025 | AR107: 2026 | AS107: 2027 | AT107: 2028 | AU107: 2029 | AV107: 2030 | AW107: 2031 | AX107: 2032 | AY107: 2033 | AZ107: 2034
D108: ='Efficiency Levels'!#REF! ->  | E108: ='Efficiency Levels'!#REF! ->  | H108: =H100 -> 0.42 | I108: 0.42 | J108: 0.42 | K108: 0.42 | L108: 0.42 | M108: 0.42 | N108: 0.42 | O108: 0.42 | P108: 0.42 | Q108: 0.42 | R108: 0.42 | S108: 0.42 | T108: 0.42 | U108: 0.42 | V108: 0.42 | W108: 0.42 | X108: 0.42 | Y108: 0.42 | Z108: 0.42 | AA108: 0.42 | AB108: 0.42 | AC108: 0.42 | AD108: 0.42 | AE108: 0.42 | AF108: 0.42 | AG108: 0 | AH108: 0 | AI108: 0 | AJ108: 0 | AK108: 0 | AL108: 0 | AM108: 0 | AN108: 0 | AO108: 0 | AP108: 0 | AQ108: 0 | AR108: 0 | AS108: 0 | AT108: 0 | AU108: 0 | AV108: 0 | AW108: 0 | AX108: 0 | AY108: 0 | AZ108: 0
D109: ='Efficiency Levels'!#REF! ->  | E109: ='Efficiency Levels'!#REF! ->  | H109: =H101 -> 0.53 | I109: 0.53 | J109: 0.53 | K109: 0.53 | L109: 0.53 | M109: 0.53 | N109: 0.53 | O109: 0.53 | P109: 0.53 | Q109: 0.53 | R109: 0.53 | S109: 0.53 | T109: 0.53 | U109: 0.53 | V109: 0.53 | W109: 0.53 | X109: 0.53 | Y109: 0.53 | Z109: 0.53 | AA109: 0.53 | AB109: 0.53 | AC109: 0.53 | AD109: 0.53 | AE109: 0.53 | AF109: 0.53 | AG109: 0 | AH109: 0 | AI109: 0 | AJ109: 0 | AK109: 0 | AL109: 0 | AM109: 0 | AN109: 0 | AO109: 0 | AP109: 0 | AQ109: 0 | AR109: 0 | AS109: 0 | AT109: 0 | AU109: 0 | AV109: 0 | AW109: 0 | AX109: 0 | AY109: 0 | AZ109: 0
D110: ='Efficiency Levels'!#REF! ->  | E110: ='Efficiency Levels'!#REF! ->  | H110: =H102 -> 0.02 | I110: 0.02 | J110: 0.02 | K110: 0.02 | L110: 0.02 | M110: 0.02 | N110: 0.02 | O110: 0.02 | P110: 0.02 | Q110: 0.02 | R110: 0.02 | S110: 0.02 | T110: 0.02 | U110: 0.02 | V110: 0.02 | W110: 0.02 | X110: 0.02 | Y110: 0.02 | Z110: 0.02 | AA110: 0.02 | AB110: 0.02 | AC110: 0.02 | AD110: 0.02 | AE110: 0.02 | AF110: 0.02 | AG110: 0 | AH110: 0 | AI110: 0 | AJ110: 0 | AK110: 0 | AL110: 0 | AM110: 0 | AN110: 0 | AO110: 0 | AP110: 0 | AQ110: 0 | AR110: 0 | AS110: 0 | AT110: 0 | AU110: 0 | AV110: 0 | AW110: 0 | AX110: 0 | AY110: 0 | AZ110: 0
D111: ='Efficiency Levels'!#REF! ->  | E111: ='Efficiency Levels'!#REF! ->  | H111: =H103 -> 0.03 | I111: 0.03 | J111: 0.03 | K111: 0.03 | L111: 0.03 | M111: 0.03 | N111: 0.03 | O111: 0.03 | P111: 0.03 | Q111: 0.03 | R111: 0.03 | S111: 0.03 | T111: 0.03 | U111: 0.03 | V111: 0.03 | W111: 0.03 | X111: 0.03 | Y111: 0.03 | Z111: 0.03 | AA111: 0.03 | AB111: 0.03 | AC111: 0.03 | AD111: 0.03 | AE111: 0.03 | AF111: 0.03 | AG111: =SUM(AG100:AG103) -> 1 | AH111: 1 | AI111: 1 | AJ111: 1 | AK111: 1 | AL111: 1 | AM111: 1 | AN111: 1 | AO111: 1 | AP111: 1 | AQ111: 1 | AR111: 1 | AS111: 1 | AT111: 1 | AU111: 1 | AV111: 1 | AW111: 1 | AX111: 1 | AY111: 1 | AZ111: 1
D112: TOTAL | H112: =SUM(H108:H111) -> 1 | I112: 1 | J112: 1 | K112: 1 | L112: 1 | M112: 1 | N112: 1 | O112: 1 | P112: 1 | Q112: 1 | R112: 1 | S112: 1 | T112: 1 | U112: 1 | V112: 1 | W112: 1 | X112: 1 | Y112: 1 | Z112: 1 | AA112: 1 | AB112: 1 | AC112: 1 | AD112: 1 | AE112: 1 | AF112: 1 | AG112: 1 | AH112: 1 | AI112: 1 | AJ112: 1 | AK112: 1 | AL112: 1 | AM112: 1 | AN112: 1 | AO112: 1 | AP112: 1 | AQ112: 1 | AR112: 1 | AS112: 1 | AT112: 1 | AU112: 1 | AV112: 1 | AW112: 1 | AX112: 1 | AY112: 1 | AZ112: 1
D114: Sources | E114: DOE 2014 Final Rule NIA Model
D118: ='Product Classes'!H15&" - "&OFFSET('Product Classes'!$C$9,MATCH('Product Classes'!H15,MODEL_PCS,0),0) -> PC 6 - Laptops
D120: PRE-Case | F120: Static Distribution
D121: Efficiency Level | E121: ='Efficiency Levels'!#REF! ->  | F121: 2015 | H121: 1990 | I121: =H121+1 -> 1991 | J121: 1992 | K121: 1993 | L121: 1994 | M121: 1995 | N121: 1996 | O121: 1997 | P121: 1998 | Q121: 1999 | R121: 2000 | S121: 2001 | T121: 2002 | U121: 2003 | V121: 2004 | W121: 2005 | X121: 2006 | Y121: 2007 | Z121: 2008 | AA121: 2009 | AB121: 2010 | AC121: 2011 | AD121: 2012 | AE121: 2013 | AF121: 2014 | AG121: 2015 | AH121: 2016 | AI121: 2017 | AJ121: 2018 | AK121: 2019 | AL121: 2020 | AM121: 2021 | AN121: 2022 | AO121: 2023 | AP121: 2024 | AQ121: 2025 | AR121: 2026 | AS121: 2027 | AT121: 2028 | AU121: 2029 | AV121: 2030 | AW121: 2031 | AX121: 2032 | AY121: 2033 | AZ121: 2034
D122: ='Efficiency Levels'!#REF! ->  | E122: ='Efficiency Levels'!#REF! ->  | F122: 0.24 | H122: =$F122 -> 0.24 | I122: =$F122 -> 0.24 | J122: 0.24 | K122: 0.24 | L122: 0.24 | M122: 0.24 | N122: 0.24 | O122: 0.24 | P122: 0.24 | Q122: 0.24 | R122: 0.24 | S122: 0.24 | T122: 0.24 | U122: 0.24 | V122: 0.24 | W122: 0.24 | X122: 0.24 | Y122: 0.24 | Z122: 0.24 | AA122: 0.24 | AB122: 0.24 | AC122: 0.24 | AD122: 0.24 | AE122: 0.24 | AF122: 0.24 | AG122: 0.24 | AH122: 0.24 | AI122: 0.24 | AJ122: 0.24 | AK122: 0.24 | AL122: 0.24 | AM122: 0.24 | AN122: 0.24 | AO122: 0.24 | AP122: 0.24 | AQ122: 0.24 | AR122: 0.24 | AS122: 0.24 | AT122: 0.24 | AU122: 0.24 | AV122: 0.24 | AW122: 0.24 | AX122: 0.24 | AY122: 0.24 | AZ122: 0.24
D123: ='Efficiency Levels'!#REF! ->  | E123: ='Efficiency Levels'!#REF! ->  | F123: 0.55 | H123: =$F123 -> 0.55 | I123: =$F123 -> 0.55 | J123: 0.55 | K123: 0.55 | L123: 0.55 | M123: 0.55 | N123: 0.55 | O123: 0.55 | P123: 0.55 | Q123: 0.55 | R123: 0.55 | S123: 0.55 | T123: 0.55 | U123: 0.55 | V123: 0.55 | W123: 0.55 | X123: 0.55 | Y123: 0.55 | Z123: 0.55 | AA123: 0.55 | AB123: 0.55 | AC123: 0.55 | AD123: 0.55 | AE123: 0.55 | AF123: 0.55 | AG123: 0.55 | AH123: 0.55 | AI123: 0.55 | AJ123: 0.55 | AK123: 0.55 | AL123: 0.55 | AM123: 0.55 | AN123: 0.55 | AO123: 0.55 | AP123: 0.55 | AQ123: 0.55 | AR123: 0.55 | AS123: 0.55 | AT123: 0.55 | AU123: 0.55 | AV123: 0.55 | AW123: 0.55 | AX123: 0.55 | AY123: 0.55 | AZ123: 0.55
D124: ='Efficiency Levels'!#REF! ->  | E124: ='Efficiency Levels'!#REF! ->  | F124: 0.17 | H124: =$F124 -> 0.17 | I124: 0.17 | J124: 0.17 | K124: 0.17 | L124: 0.17 | M124: 0.17 | N124: 0.17 | O124: 0.17 | P124: 0.17 | Q124: 0.17 | R124: 0.17 | S124: 0.17 | T124: 0.17 | U124: 0.17 | V124: 0.17 | W124: 0.17 | X124: 0.17 | Y124: 0.17 | Z124: 0.17 | AA124: 0.17 | AB124: 0.17 | AC124: 0.17 | AD124: 0.17 | AE124: 0.17 | AF124: 0.17 | AG124: 0.17 | AH124: 0.17 | AI124: 0.17 | AJ124: 0.17 | AK124: 0.17 | AL124: 0.17 | AM124: 0.17 | AN124: 0.17 | AO124: 0.17 | AP124: 0.17 | AQ124: 0.17 | AR124: 0.17 | AS124: 0.17 | AT124: 0.17 | AU124: 0.17 | AV124: 0.17 | AW124: 0.17 | AX124: 0.17 | AY124: 0.17 | AZ124: 0.17
D125: ='Efficiency Levels'!#REF! ->  | E125: ='Efficiency Levels'!#REF! ->  | F125: 0.04 | H125: =$F125 -> 0.04 | I125: 0.04 | J125: 0.04 | K125: 0.04 | L125: 0.04 | M125: 0.04 | N125: 0.04 | O125: 0.04 | P125: 0.04 | Q125: 0.04 | R125: 0.04 | S125: 0.04 | T125: 0.04 | U125: 0.04 | V125: 0.04 | W125: 0.04 | X125: 0.04 | Y125: 0.04 | Z125: 0.04 | AA125: 0.04 | AB125: 0.04 | AC125: 0.04 | AD125: 0.04 | AE125: 0.04 | AF125: 0.04 | AG125: 0.04 | AH125: 0.04 | AI125: 0.04 | AJ125: 0.04 | AK125: 0.04 | AL125: 0.04 | AM125: 0.04 | AN125: 0.04 | AO125: 0.04 | AP125: 0.04 | AQ125: 0.04 | AR125: 0.04 | AS125: 0.04 | AT125: 0.04 | AU125: 0.04 | AV125: 0.04 | AW125: 0.04 | AX125: 0.04 | AY125: 0.04 | AZ125: 0.04
D126: TOTAL | F126: =SUM(F122:F125) -> 1 | H126: =SUM(H122:H125) -> 1 | I126: 1 | J126: 1 | K126: 1 | L126: 1 | M126: 1 | N126: 1 | O126: 1 | P126: 1 | Q126: 1 | R126: 1 | S126: 1 | T126: 1 | U126: 1 | V126: 1 | W126: 1 | X126: 1 | Y126: 1 | Z126: 1 | AA126: 1 | AB126: 1 | AC126: 1 | AD126: 1 | AE126: 1 | AF126: 1 | AG126: 1 | AH126: 1 | AI126: 1 | AJ126: 1 | AK126: 1 | AL126: 1 | AM126: 1 | AN126: 1 | AO126: 1 | AP126: 1 | AQ126: 1 | AR126: 1 | AS126: 1 | AT126: 1 | AU126: 1 | AV126: 1 | AW126: 1 | AX126: 1 | AY126: 1 | AZ126: 1
D128: POST-Case
D129: Efficiency Level | E129: =$E$10 ->  | H129: 1990 | I129: =H129+1 -> 1991 | J129: 1992 | K129: 1993 | L129: 1994 | M129: 1995 | N129: 1996 | O129: 1997 | P129: 1998 | Q129: 1999 | R129: 2000 | S129: 2001 | T129: 2002 | U129: 2003 | V129: 2004 | W129: 2005 | X129: =X121 -> 2006 | Y129: 2007 | Z129: 2008 | AA129: 2009 | AB129: 2010 | AC129: 2011 | AD129: 2012 | AE129: 2013 | AF129: 2014 | AG129: 2015 | AH129: 2016 | AI129: 2017 | AJ129: 2018 | AK129: 2019 | AL129: 2020 | AM129: 2021 | AN129: 2022 | AO129: 2023 | AP129: 2024 | AQ129: 2025 | AR129: 2026 | AS129: 2027 | AT129: 2028 | AU129: 2029 | AV129: 2030 | AW129: 2031 | AX129: 2032 | AY129: 2033 | AZ129: 2034
D130: ='Efficiency Levels'!#REF! ->  | E130: ='Efficiency Levels'!#REF! ->  | H130: =H122 -> 0.24 | I130: 0.24 | J130: 0.24 | K130: 0.24 | L130: 0.24 | M130: 0.24 | N130: 0.24 | O130: 0.24 | P130: 0.24 | Q130: 0.24 | R130: 0.24 | S130: 0.24 | T130: 0.24 | U130: 0.24 | V130: 0.24 | W130: 0.24 | X130: 0.24 | Y130: 0.24 | Z130: 0.24 | AA130: 0.24 | AB130: 0.24 | AC130: 0.24 | AD130: 0.24 | AE130: 0.24 | AF130: 0.24 | AG130: 0 | AH130: 0 | AI130: 0 | AJ130: 0 | AK130: 0 | AL130: 0 | AM130: 0 | AN130: 0 | AO130: 0 | AP130: 0 | AQ130: 0 | AR130: 0 | AS130: 0 | AT130: 0 | AU130: 0 | AV130: 0 | AW130: 0 | AX130: 0 | AY130: 0 | AZ130: 0
D131: ='Efficiency Levels'!#REF! ->  | E131: ='Efficiency Levels'!#REF! ->  | H131: =H123 -> 0.55 | I131: 0.55 | J131: 0.55 | K131: 0.55 | L131: 0.55 | M131: 0.55 | N131: 0.55 | O131: 0.55 | P131: 0.55 | Q131: 0.55 | R131: 0.55 | S131: 0.55 | T131: 0.55 | U131: 0.55 | V131: 0.55 | W131: 0.55 | X131: 0.55 | Y131: 0.55 | Z131: 0.55 | AA131: 0.55 | AB131: 0.55 | AC131: 0.55 | AD131: 0.55 | AE131: 0.55 | AF131: 0.55 | AG131: 0 | AH131: 0 | AI131: 0 | AJ131: 0 | AK131: 0 | AL131: 0 | AM131: 0 | AN131: 0 | AO131: 0 | AP131: 0 | AQ131: 0 | AR131: 0 | AS131: 0 | AT131: 0 | AU131: 0 | AV131: 0 | AW131: 0 | AX131: 0 | AY131: 0 | AZ131: 0
